Workbook

Sheet RECHNER
B2: Photovoltaik-Rechner für Photovoltaik-Anlagen bis 750 kWp
B5: Vor der Nutzung des Photovoltaik-Rechners beachten Sie bitte:
C6: Pflicht-Eingabefelder (bitte manuell ausfüllen) | E6: Zwischenergebnisse (Felder sind gesperrt) | I6: Datum der Berechnung: | J6: =TODAY() -> 2020-11-13
C7: Experten-Eingabefelder (bitte nur bei Expertenwissen ändern) | E7: Endergebnisse (Felder sind gesperrt) | I7: Stand Rechner: | J7: November 2020
B10: 1. | C10: Solarer Ertrag | G10: 2. | H10: Strombezugspreise
B11: 1.1 | C11: Globalstrahlung am Standort der Photovoltaik-Anlage | D11: 1131 | G11: 2.1 | H11: Strombezugspreis (netto) vom Stromversorger | I11: 0.26 | J11: [EUR/kWh]
B12: 1.2 | C12: Dachart | D12: Schrägdach | E12: [-] | G12: 2.2 | H12: Strompreissteigerung pro Jahr | I12: 1 | J12: [%/a]
B13: 1.3 | C13: Ausrichtung der Teil-Anlage 1 | D13: Ost | E13: [Himmelsrichtung] | G13: 2.3 | H13: ="Strombezugspreis (netto) in "&Nutzungsdauer_der_Anlage&" Jahre" -> Strombezugspreis (netto) in 20 Jahre | I13: =SUMPRODUCT((BERECHNUNG!$AK$6:$AK$35)*(BERECHNUNG!$B$6:$B$35=Nutzungsdauer_der_Anlage))*100 -> 31.72494104 | J13: [ct/kWh]
B14: 1.4 | C14: Ausrichtung der Teil-Anlage 2 | D14: - | E14: [Himmelsrichtung] | G14: 2.4 | H14: ="Ø-Strombezugspreis über "&Nutzungsdauer_der_Anlage&" Jahre" -> Ø-Strombezugspreis über 20 Jahre | I14: =SUMPRODUCT((BERECHNUNG!$AL$6:$AL$35)*(BERECHNUNG!$B$6:$B$35=Nutzungsdauer_der_Anlage))*100 -> 28.91095225 | J14: [ct/kWh]
B15: 1.5 | C15: Neigungswinkel der Anlage | D15: 30 | E15: [Grad]
B16: 1.6 | C16: ="Spezifische ideale solare Einstrahlung aus Ausrichtung nach "&Ausrichtung_der_Anlage_1&"" -> Spezifische ideale solare Einstrahlung aus Ausrichtung nach Ost | D16: =SUMPRODUCT((DATENBASIS!$C$6:$J$17)*(DATENBASIS!$B$6:$B$17=Neigung_der_Anlage)*(Ausrichtung=Ausrichtung_der_Anlage_1)) -> 1131 | E16: [kWh/m2*a]
B17: 1.7 | C17: ="Spezifische ideale solare Einstrahlung aus Ausrichtung nach "&Ausrichtung_der_Anlage_2&"" -> Spezifische ideale solare Einstrahlung aus Ausrichtung nach - | D17: =SUMPRODUCT((DATENBASIS!$C$6:$J$17)*(DATENBASIS!$B$6:$B$17=Neigung_der_Anlage)*(Ausrichtung=Ausrichtung_der_Anlage_2)) -> 0 | E17: [kWh/m2*a]
B18: 1.8 | C18: ="Spezifischer solarer Ertrag der Photovoltaik-Anlage nach "&Ausrichtung_der_Anlage_1&"" -> Spezifischer solarer Ertrag der Photovoltaik-Anlage nach Ost | D18: =SUMPRODUCT((DATENBASIS!$C$6:$J$17)*(DATENBASIS!$B$6:$B$17=Neigung_der_Anlage)*(Ausrichtung=Ausrichtung_der_Anlage_1))*(Performance_Ratio/100) -> 961.35 | E18: [kWh/kWp*a]
B19: 1.9 | C19: ="Spezifischer solarer Ertrag der Photovoltaik-Anlage nach "&Ausrichtung_der_Anlage_2&"" -> Spezifischer solarer Ertrag der Photovoltaik-Anlage nach - | D19: =SUMPRODUCT((DATENBASIS!$C$6:$J$17)*(DATENBASIS!$B$6:$B$17=Neigung_der_Anlage)*(Ausrichtung=Ausrichtung_der_Anlage_2))*(Performance_Ratio/100) -> 0 | E19: [kWh/kWp*a]
B20: 1.10 | C20: Solarer Jahres-Gesamtertrag der Photovoltaik-Anlage im 1. Jahr | D20: =Spezifischer_solarer_Ertrag_der_Anlage_1*Installierte_Nennleistung_der_PV_Anlage_1 + Solarer_Jahres_Gesamtertrag_der_Anlage_2*Installierte_Nennleistung_der_PV_Anlage_2 -> 9613.5 | E20: [kWh/a]
B22: 3. | C22: Technische Voraussetzungen Photovoltaik-Anlage | G22: 4. | H22: Technische Voraussetzungen Batteriesystem | J22: =IF(I71="ja","mit","ohne") -> ohne
B23: 3.1 | C23: ="Installierte Nennleistung der Photovoltaik-Anlage nach "&Ausrichtung_der_Anlage_1&"" -> Installierte Nennleistung der Photovoltaik-Anlage nach Ost | D23: 10 | E23: =IF(AND(Ausrichtung_der_Anlage_1="-",Installierte_Nennleistung_der_PV_Anlage_1>0),"Fehler!","[kWp]") -> [kWp] | G23: 4.1 | H23: Installierte Batteriespeicherkapazität | J23: [kWh]
B24: 3.2 | C24: ="Installierte Nennleistung der Photovoltaik-Anlage nach "&Ausrichtung_der_Anlage_2&"" -> Installierte Nennleistung der Photovoltaik-Anlage nach - | D24: 0 | E24: =IF(AND(Ausrichtung_der_Anlage_2="-",Installierte_Nennleistung_der_PV_Anlage_2>0),"Fehler!","[kWp]") -> [kWp] | G24: 4.2 | H24: Nutzungsdauer der Batterie | I24: =Nutzungsdauer_der_Anlage -> 20 | J24: [Jahre]
B25: 3.3 | C25: Installierte Gesamt-Nennleistung der Photovoltaik-Anlage | D25: =Installierte_Nennleistung_der_PV_Anlage_1+Installierte_Nennleistung_der_PV_Anlage_2 -> 10 | E25: [kWp] | G25: 4.3 | H25: Lebensdauer der ersten Batterie | I25: 12 | J25: [Jahre]
B26: 3.4 | C26: Nutzungsdauer der Photovoltaik-Anlage | D26: 20 | E26: [Jahre] | G26: 4.4 | H26: Batteriespeicherverluste | I26: 10 | J26: [%]
B27: 3.5 | C27: Performance Ratio | D27: 85 | E27: [%]
B28: 3.6 | C28: Moduldegradation | D28: 0.25 | E28: [%/a]
B29: 3.7 | C29: Lebensdauer des ersten Wechselrichters | D29: 15 | E29: [Jahre]
B31: 5. | C31: Investionspreise Photovoltaik-Anlage | D31: 12000 | G31: 6. | H31: Investionspreise Batteriesystem
B32: 5.1 | C32: CAPEX der gesamten Photovoltaik-Anlage inkl. Wechselrichter | E32: [EUR] | G32: 6.1 | H32: CAPEX des Batteriesystems | J32: [EUR]
B33: 5.2 | C33: Spezifische Photovoltaik-Modulpreise | E33: [EUR/kWp] | G33: 6.2 | H33: Spezifische CAPEX der Batterie | J33: [EUR/kWh]
B34: 5.3 | C34: BOS-Preise flächenunabhägig | E34: [EUR/kWp] | G34: 6.3 | H34: Verhältnis Speicherkapazität zu Photovoltaik-Leistung | I34: =Installierte_Speicherkapazität/Installierte_Leistung_der_GesamtAnlage -> 0 | J34: [-]
B35: 5.4 | C35: BOS-Preise flächenabhängig | E35: [EUR/kWp] | G35: 6.4 | H35: Batterie-Ersatzkosten | I35: 40 | J35: [%/CAPEXBat]
B36: 5.5 | C36: Spezifischer CAPEX der Photovoltaik-Anlage | D36: =IF(Angebotpreis_PV=0,Spezifische_PV_Modulpreise+Spez_var_BOS_Preise+BOS_Grundkosten,Angebotpreis_PV/Installierte_Leistung_der_GesamtAnlage) -> 0 | E36: [EUR/kWp] | F36: =I33*D48/100 -> 0 | G36: 6.5 | H36: CAPEX der Batterie Erstinstallation | I36: =IF(Batterie_gewuenscht="ja",(IF(Angebotpreis_Bat=0,IF(Batterie_gewuenscht="ja",Spezifische_CAPEX_der_Batterie*Installierte_Speicherkapazität,0),Angebotpreis_Bat)),0) -> 0 | J36: [EUR]
B37: 5.6 | C37: CAPEX Wechselrichter | D37: =IF(Angebotpreis_PV=0, , Angebotpreis_PV*0.15) -> 0 | E37: [EUR] | G37: 6.6 | H37: CAPEX der Ersatz-Batterien | I37: =IF(Batterie_gewuenscht="ja",IF(OR(Lebensdauer_der_ersten_Batterie>Nutzungsdauer_der_Batterie,Lebensdauer_der_ersten_Batterie=0),0,(Nutzungsdauer_der_Batterie/Lebensdauer_der_ersten_Batterie)*CAPEX_der_Batterie*(Batterie_Ersatzkosten/100)),0) -> 0 | J37: [EUR]
B38: 5.7 | C38: CAPEX der Photovoltaik-Anlage | D38: =IF(Angebotpreis_PV=0,Spezifischer_CAPEX_der_PV_Anlage*Installierte_Leistung_der_GesamtAnlage+Wechselrichter_Kosten,Angebotpreis_PV) -> 0 | E38: [EUR] | G38: 6.7 | H38: Teilnahme an einem Förderprogramm für Batterien | I38: ja
B39: 5.8 | C39: Sonstiger CAPEX (z.B. für Netzanbindung) | D39: 0 | E39: [EUR] | G39: 6.8 | H39: Fördersumme Batterie | J39: [EUR]
B40: 5.9 | C40: Wechselrichter-Ersatzkosten | D40: 60 | E40: [%/CAPEXWR]
B41: 5.10 | C41: CAPEX der Ersatz-Wechselrichtern | D41: =IF(OR(Lebensdauer_des_ersten_Wechselrichters>Nutzungsdauer_der_Anlage,Lebensdauer_des_ersten_Wechselrichters=0),0,(Nutzungsdauer_der_Anlage/Lebensdauer_des_ersten_Wechselrichters)*Wechselrichter_Kosten*(Wechselrichter_Ersatzkosten/100)) -> 0 | E41: [EUR]
B43: 7. | C43: Betriebskosten Photovoltaik-Anlage | G43: 8. | H43: Betriebskosten Batteriesystem
B44: 7.1 | C44: OPEX der Photovoltaik-Anlage | D44: 1 | E44: [%/CAPEXPV] | G44: 8.1 | H44: OPEX der Batterie | J44: [%/CAPEXBat]
B45: 7.2 | C45: Sonstiger OPEX (z.B. für Netzanbindung) | D45: 1 | E45: [%/CAPEXPVgroß]
B47: 9. | C47: Finanzierung Photovoltaik-Anlage | G47: 10. | H47: Finanzierung Batteriesystem
B48: 9.1 | C48: Anteil Eigenkapital | D48: 20 | E48: [%] | G48: 10.1 | H48: Jährliche CAPEX Batterie abgezinst | I48: =-PMT(WACC_real/100,Nutzungsdauer_der_Batterie,(CAPEX_der_Batterie+CAPEX_der_Ersatz_Batterie-IF(AND(Batterie_gewuenscht="ja",Förderung_gewuenscht="ja"),Förderung_Batterie,0)),0) -> 0 | J48: [EUR]
B49: 9.2 | C49: Anteil Fremdkapital | D49: =100-Anteil_Eigenkapital -> 80 | E49: [%] | G49: 10.2 | H49: Jährliche OPEX-Kosten Batterie | I49: =IF(Batterie_gewuenscht="ja",CAPEX_der_Batterie*(PRZNT_pro_CAPEXbat/100),0) -> 0 | J49: [EUR]
B50: 9.3 | C50: Zinssatz für Fremdkapital | D50: 3 | E50: [%/a]
B51: 9.4 | C51: Rendite Eigenkapital | D51: 1 | E51: [%/a]
B52: 9.5 | C52: WACC nominal | D52: =(Anteil_Eigenkapital*Rendite_Eigenkapital+Anteil_Fremdkapital*Zinssatz_für_Fremdkapital)/100 -> 2.6 | E52: [%]
B53: 9.6 | C53: Inflation | D53: 2 | E53: [%/a]
B54: 9.7 | C54: WACC real | D54: =(((100+WACC_nominal)/(100+Inflation))-1)*100 -> 0.5882352941 | E54: [%]
B55: 9.8 | C55: Jährliche CAPEX PV abgezinst | D55: =-PMT(WACC_real/100,Nutzungsdauer_der_Anlage,(CAPEX_der_PV_Anlage+CAPEX_des_Ersatz_Wechselrichters+Sonstiger_CAPEX_der_PV_Anlage),0) -> 0 | E55: [EUR]
B56: 9.9 | C56: Jährliche OPEX-Kosten Photovoltaik | D56: =CAPEX_der_PV_Anlage*(PRZNT_pro_CAPEXpv/100)+Sonstiger_CAPEX_der_PV_Anlage*(PRZNT_pro_CAPEXpvsonstige/100) -> 0 | E56: [EUR]
B58: 11. | C58: Regulatoren | G58: 12. | H58: Eigenverbrauchsquote
B59: 11.1 | C59: Anbringungsort der Photovoltaik-Anlage nach §48 EEG 2017 | D59: Wohngebäude | E59: [-] | G59: 12.1 | H59: Jahresstromverbrauch | I59: 4000 | J59: [kWh/a]
B60: 11.2 | C60: Feste EEG-Vergütung für Überschussstrom | D60: ja | E60: =IF(AND(Feste_EEG_Vergütung="ja",Installierte_Leistung_der_GesamtAnlage>100),"Fehler!",IF(AND(Feste_EEG_Vergütung="nein",Direktvermarktung="nein"),"Ohne Förderung!",IF(AND(Feste_EEG_Vergütung="ja",Direktvermarktung="ja"),"Fehler!","[-]"))) -> [-] | G60: 12.2 | H60: Hauptstromverbrauchszeit im Haushalt | I60: mittags | J60: =IF(OR(Jahresstromverbrauch>4000,I64<>"Privater Haushalt <= 4.000 kWh/a"),".","") -> 
B61: 11.3 | C61: Geförderte Direktvermarktung für Überschussstrom | D61: nein | E61: =IF(AND(Feste_EEG_Vergütung="nein",Direktvermarktung="nein"),"Ohne Förderung!",IF(AND(Feste_EEG_Vergütung="ja",Direktvermarktung="ja"),"Fehler!","[-]")) -> [-] | G61: 12.3 | H61: Photovoltaik-Leistung zu Jahresstromverbrauch | I61: =Installierte_Leistung_der_GesamtAnlage/(Jahresstromverbrauch/1000)*IF(Eingabe_pers_Eigenverbrauch="nein",1,0) -> 2.5 | J61: =IF(OR(kWp_MWh>5,Jahresstromverbrauch>4000,I64<>"Privater Haushalt <= 4.000 kWh/a"),".","[kWp/MWh]") -> [kWp/MWh]
B62: 11.4 | C62: Geplante Inbetriebnahme | D62: 2020-11-01 | E62: [Monat] | G62: 12.4 | H62: Batteriespeicherkapazität zu Jahresstromverbrauch | I62: =IF(Batterie_gewuenscht="ja",Installierte_Speicherkapazität/(Jahresstromverbrauch/1000),0)*IF(Eingabe_pers_Eigenverbrauch="nein",1,0) -> 0 | J62: =IF(OR(kWh_MWh>5,Jahresstromverbrauch>4000,I64<>"Privater Haushalt <= 4.000 kWh/a"),".","[kWh/MWh]") -> [kWh/MWh]
B63: 11.5 | C63: =IF(OR(Inbetriebnahme=DATENBASIS!B161,Inbetriebnahme=DATENBASIS!B162,Inbetriebnahme=DATENBASIS!B163),"Voraussichtlicher Stromerlös bei fester EEG-Vergütung","Stromerlös bei fester EEG-Vergütung") -> Stromerlös bei fester EEG-Vergütung | D63: =INDEX(DATENBASIS!$C$170:$G$175,MATCH(Inbetriebnahme,DATENBASIS!$B$170:$B$175,0),MATCH(Anbringungsort,DATENBASIS!$C$169:$G$169,0)) -> 0.0848 | E63: [EUR/kWh] | G63: 12.5 | H63: ="Eigenverbrauchsquote "&J22&" Batterie" -> Eigenverbrauchsquote ohne Batterie | I63: =IF(Lastprofil="mittags",ROUND(MAX(cofaH+cofbH*kWp_MWh+cofcH*kWh_MWh+cofdH*kWp_MWh^2+cofeH*kWh_MWh^2+coffH*kWp_MWh^3+cofgH*kWh_MWh^3,5),0),IF(Lastprofil="abends",ROUND(MAX(cofaN+cofbN*kWp_MWh+cofcN*kWh_MWh+cofdN*kWp_MWh^2+cofeN*kWh_MWh^2+coffN*kWp_MWh^3+cofgN*kWh_MWh^3,5),0),0))*IF(Eingabe_pers_Eigenverbrauch="nein",1,0)*IF(OR(J61=".",J62="."),0,1) -> 20 | J63: =IF(OR(J61=".",J62="."),"Bitte beachten Sie den Erläuterungstext im Feld links ","[%]") -> [%]
B64: 11.6 | C64: =IF(OR(Inbetriebnahme=DATENBASIS!B161,Inbetriebnahme=DATENBASIS!B162,Inbetriebnahme=DATENBASIS!B163),"Voraussichtlicher Stromerlös bei geförderter Direktvermarktung","Stromerlös bei geförderter Direktvermarktung") -> Stromerlös bei geförderter Direktvermarktung | D64: =INDEX(DATENBASIS!$J$170:$N$175,MATCH(Inbetriebnahme,DATENBASIS!$I$170:$I$175,0),MATCH(Anbringungsort,DATENBASIS!$J$169:$N$169,0)) -> 0 | E64: [EUR/kWh] | G64: 12.6 | H64: Gebäudetyp und Nutzung | I64: Privater Haushalt <= 4.000 kWh/a | J64: =IF(AND(Jahresstromverbrauch>4000,I64="Privater Haushalt <= 4.000 kWh/a"),"Bitte ändern Sie den Gebäudetyp und die Nutzung - Ihr Stromverbrauch liegt über 4000 kWh","") -> 
B65: 11.7 | C65: Verkaufserlös nach Auslauf der Förderung (21. Jahr) | D65: 0.03 | E65: [EUR/kWh] | G65: 12.7 | H65: Eigene Angabe der Eigenverbrauchsquote | I65: nein | J65: [-]
B66: 11.8 | C66: EEG-Umlage für Eigenverbrauch des Solarstroms | D66: 40 | E66: [%] | G66: 12.8 | H66: Manuelle Eingabe Eigenverbrauchsquote ohne Batterie | J66: =IF(J61=".","Bitte geben Sie ihren Eigenverbrauch manuell ein!","[%]") -> [%]
B67: 11.9 | C67: EEG-Umlage für das Jahr 2020 | D67: 0.06756 | E67: [EUR/kWh] | G67: 12.9 | H67: Einspeiselimit | I67: =IF(Installierte_Leistung_der_GesamtAnlage>=30,0,IF(AND(Batterie_gewuenscht="ja",Förderung_gewuenscht="ja"),50,70)) -> 70 | J67: [%]
G68: 12.10 | H68: Abregelungsverluste | I68: =SUMPRODUCT((DATENBASIS!$D$58:$K$92)*(DATENBASIS!$B$58:$B$92=Einspeiselimit)*(DATENBASIS!$C$58:$C$92=Neigung_der_Anlage)*(Ausrichtung=Ausrichtung_der_Anlage_1))*IF(AND(Eingabe_pers_Eigenverbrauch="ja",Eigenverbrauchsquote_pers=0),1,IF(Batterie_gewuenscht="nein",0.5,0.45)) -> 0.45 | J68: [%]
B70: 13. | C70: Umweltwirkung | G70: 14. | H70: Berechnung Photovoltaik-Anlage mit Batteriesystem
B71: 13.1 | C71: Spezifischer Vermeidungsfaktor Treibhausgase Photovoltaik-Strom in Deutschland | D71: 627 | E71: [g CO2-Äq./kWh] | I71: nein
B76: =IF(Batterie_gewuenscht="nein","Live-Ergebnisse für reine PV-Anlage","Live-Ergebnisse PV-Anlage MIT Batteriespeicher") -> Live-Ergebnisse für reine PV-Anlage | G76: =IF(Batterie_gewuenscht="nein","","Vergleichsergebnisse PV-Anlage OHNE Batteriespeicher") -> 
H77: Hinweis: für den direkten Vergleich muss jeweils einmal "PV-Anlage MIT Batteriesystem berechnen" und eine mal "OHNE" Speicher ausgeführt werden.
H78: ="Barwert der vermiedenen Strombezugskosten in "&Nutzungsdauer_der_Anlage&" Jahren" -> Barwert der vermiedenen Strombezugskosten in 20 Jahren | I78: =SUMPRODUCT((BERECHNUNG!N$6:N$35)*(BERECHNUNG!$B$6:$B$35=Nutzungsdauer_der_Anlage)) -> 10165.93615 | J78: [EUR] | K78: =(Barwert_verm_Strombezugskosten+Barwert_EEG_Vergütung+Barwert_Direktvermarktung)-(Barwert_CAPEX_PV_Anlage+Barwert_OPEX_PV_Anlage+Barwert_CAPEX_Batteriesystem+Barwert_OPEX_Batteriesystem+Barwert_EEG_Umlage) -> 22126.25803
H79: ="Barwert aus der EEG-Vergütung nach "&Nutzungsdauer_der_Anlage&" Jahren" -> Barwert aus der EEG-Vergütung nach 20 Jahren | I79: =SUMPRODUCT((BERECHNUNG!T$6:T$35)*(BERECHNUNG!$B$6:$B$35=Nutzungsdauer_der_Anlage)) -> 11960.32189 | J79: [EUR]
H80: ="Barwert aus der Direktvermarktung nach "&Nutzungsdauer_der_Anlage&" Jahren" -> Barwert aus der Direktvermarktung nach 20 Jahren | I80: =SUMPRODUCT((BERECHNUNG!Z$6:Z$35)*(BERECHNUNG!$B$6:$B$35=Nutzungsdauer_der_Anlage)) -> 0 | J80: [EUR]
C81: ="Barwert CAPEX PV-Anlage nach "&Nutzungsdauer_der_Anlage&" Jahren" -> Barwert CAPEX PV-Anlage nach 20 Jahren | D81: =-PV(WACC_real/100,Nutzungsdauer_der_Anlage,Jährlicher_CAPEX_PV) -> 0 | E81: [EUR] | H81: ="Barwert aus der EEG-Umlage nach "&Nutzungsdauer_der_Anlage&" Jahren" -> Barwert aus der EEG-Umlage nach 20 Jahren | I81: =SUMPRODUCT((BERECHNUNG!AF$6:AF$35)*(BERECHNUNG!$B$6:$B$35=Nutzungsdauer_der_Anlage)) -> 0 | J81: [EUR]
C82: ="Barwert OPEX PV-Anlage nach "&Nutzungsdauer_der_Anlage&" Jahren" -> Barwert OPEX PV-Anlage nach 20 Jahren | D82: =-PV(WACC_real/100,Nutzungsdauer_der_Anlage,Jährliche_OPEX_Kosten_PV) -> 0 | E82: [EUR]
C83: ="Barwert CAPEX Batteriesystem nach "&Nutzungsdauer_der_Batterie&" Jahren" -> Barwert CAPEX Batteriesystem nach 20 Jahren | D83: =-PV(WACC_real/100,Nutzungsdauer_der_Batterie,Jährliche_CAPEX_Batterie) -> 0 | E83: [EUR] | H83: ="Barwert der vermiedenen Strombezugskosten nach "&Nutzungsdauer_der_Anlage&" Jahren inkl. Abregelung (Einspeiselimit)." -> Barwert der vermiedenen Strombezugskosten nach 20 Jahren inkl. Abregelung (Einspeiselimit). | I83: =SUMPRODUCT((BERECHNUNG!Q$6:Q$35)*(BERECHNUNG!$B$6:$B$35=Nutzungsdauer_der_Anlage)) -> 10120.18943 | J83: [EUR] | K83: =(Barwert_verm_Strombezugskosten_abg.+Barwert_s_der_EEG_Vergütung_abg.+Barwert_Direktvermarktung_abg.)-(Barwert_CAPEX_PV_Anlage+Barwert_OPEX_PV_Anlage+Barwert_CAPEX_Batteriesystem+Barwert_OPEX_Batteriesystem+Barwert_EEG_Umlage_abg.) -> 22026.68987
C84: ="Barwert OPEX Batteriesystem nach "&Nutzungsdauer_der_Batterie&" Jahren" -> Barwert OPEX Batteriesystem nach 20 Jahren | D84: =-PV(WACC_real/100,Nutzungsdauer_der_Batterie,Jährliche_OPEX_Kosten_Batterie) -> 0 | E84: [EUR] | H84: ="Barwert aus der EEG-Vergütung nach "&Nutzungsdauer_der_Anlage&" Jahren abg." -> Barwert aus der EEG-Vergütung nach 20 Jahren abg. | I84: =SUMPRODUCT((BERECHNUNG!W$6:W$35)*(BERECHNUNG!$B$6:$B$35=Nutzungsdauer_der_Anlage)) -> 11906.50044 | J84: [EUR]
C85: ="Barwert der erzeugten Solarstrommenge nach "&Nutzungsdauer_der_Batterie&" Jahren" -> Barwert der erzeugten Solarstrommenge nach 20 Jahren | D85: =SUMPRODUCT((BERECHNUNG!G$6:G$35)*(BERECHNUNG!$B$6:$B$35=Nutzungsdauer_der_Anlage)) -> 176301.9146 | E85: [kWh] | H85: ="Barwert aus der Direktvermarktung nach "&Nutzungsdauer_der_Anlage&" Jahren abg." -> Barwert aus der Direktvermarktung nach 20 Jahren abg. | I85: =SUMPRODUCT((BERECHNUNG!AC$6:AC$35)*(BERECHNUNG!$B$6:$B$35=Nutzungsdauer_der_Anlage)) -> 0 | J85: [EUR]
C86: ="Barwert der erzeugten Solarstrommenge nach "&Nutzungsdauer_der_Batterie&" Jahren abg." -> Barwert der erzeugten Solarstrommenge nach 20 Jahren abg. | D86: =SUMPRODUCT((BERECHNUNG!K$6:K$35)*(BERECHNUNG!$B$6:$B$35=Nutzungsdauer_der_Anlage)) -> 175508.556 | E86: [kWh] | H86: ="Barwert der erzeugten Solarstrommenge nach "&Nutzungsdauer_der_Anlage&" Jahren abg." -> Barwert der erzeugten Solarstrommenge nach 20 Jahren abg. | I86: =SUMPRODUCT((BERECHNUNG!AI$6:AI$35)*(BERECHNUNG!$B$6:$B$35=Nutzungsdauer_der_Anlage)) -> 0 | J86: [EUR]
C88: Eigenverbrauch | D88: =IF(Eingabe_pers_Eigenverbrauch="nein",Eigenverbrauchsquote_Basis,Eigenverbrauchsquote_pers) -> 20 | E88: [%]
C90: LCOE-CAPEX | D90: =((CAPEX_der_PV_Anlage+Sonstiger_CAPEX_der_PV_Anlage+CAPEX_des_Ersatz_Wechselrichters+CAPEX_der_Batterie+CAPEX_der_Ersatz_Batterie-IF(AND(Batterie_gewuenscht="ja",Förderung_gewuenscht="ja"),Förderung_Batterie,0))/SUMPRODUCT((BERECHNUNG!I6:I35)*(BERECHNUNG!B6:B35=Nutzungsdauer_der_Anlage)))*100 -> 0 | E90: [ct/kWh]
C91: LCOE-Kapital | D91: =(((CAPEX_der_PV_Anlage+Sonstiger_CAPEX_der_PV_Anlage+CAPEX_des_Ersatz_Wechselrichters+CAPEX_der_Batterie+CAPEX_der_Ersatz_Batterie-IF(AND(Batterie_gewuenscht="ja",Förderung_gewuenscht="ja"),Förderung_Batterie,0))/Erzeugte_Solarstrommenge_m_Abr)-((CAPEX_der_PV_Anlage+Sonstiger_CAPEX_der_PV_Anlage+CAPEX_des_Ersatz_Wechselrichters+CAPEX_der_Batterie+CAPEX_der_Ersatz_Batterie-IF(AND(Batterie_gewuenscht="ja",Förderung_gewuenscht="ja"),Förderung_Batterie,0))/SUMPRODUCT((BERECHNUNG!I6:I35)*(BERECHNUNG!B6:B35=Nutzungsdauer_der_Anlage))))*100 -> 0 | E91: [ct/kWh]
C92: LCOE-OPEX | D92: =(Barwert_OPEX_PV_Anlage+Barwert_OPEX_Batteriesystem)/Erzeugte_Solarstrommenge_m_Abr*100 -> 0 | E92: [ct/kWh]
B93: [1] | C93: Stromgestehungskosten | D93: =(Barwert_CAPEX_PV_Anlage+Barwert_OPEX_PV_Anlage+Barwert_CAPEX_Batteriesystem+Barwert_OPEX_Batteriesystem)/Erzeugte_Solarstrommenge_m_Abr*100 -> 0 | E93: [ct/kWh]
C95: Rendite ohne Einspeiselimit | D95: =((((Barwert_verm_Strombezugskosten+Barwert_EEG_Vergütung+Barwert_Direktvermarktung)-(Barwert_OPEX_PV_Anlage+Barwert_OPEX_Batteriesystem+Barwert_EEG_Umlage))/(CAPEX_der_PV_Anlage+Sonstiger_CAPEX_der_PV_Anlage+CAPEX_des_Ersatz_Wechselrichters+CAPEX_der_Batterie+CAPEX_der_Ersatz_Batterie))^(1/Nutzungsdauer_der_Anlage)-1)*100 ->  | E95: [%]
B96: [2] | C96: ="Rendite mit "&Einspeiselimit&"% Einspeiselimit" -> Rendite mit 70% Einspeiselimit | D96: =((((Barwert_verm_Strombezugskosten_abg.+Barwert_s_der_EEG_Vergütung_abg.+Barwert_Direktvermarktung_abg.)-(Barwert_OPEX_PV_Anlage+Barwert_OPEX_Batteriesystem+Barwert_EEG_Umlage_abg.))/(CAPEX_der_PV_Anlage+Sonstiger_CAPEX_der_PV_Anlage+CAPEX_des_Ersatz_Wechselrichters+CAPEX_der_Batterie+CAPEX_der_Ersatz_Batterie))^(1/Nutzungsdauer_der_Anlage)-1)*100 ->  | E96: [%]
C98: ="Absoluter Überschüss bei Einspeiselimit von "&Einspeiselimit&"% nach "&Nutzungsdauer_der_Anlage&" Jahre" -> Absoluter Überschüss bei Einspeiselimit von 70% nach 20 Jahre | D98: =(Barwert_verm_Strombezugskosten_abg.+Barwert_s_der_EEG_Vergütung_abg.+Barwert_Direktvermarktung_abg.)-(Barwert_CAPEX_PV_Anlage+Barwert_OPEX_PV_Anlage+Barwert_CAPEX_Batteriesystem+Barwert_OPEX_Batteriesystem+Barwert_EEG_Umlage_abg.) -> 22026.68987 | E98: [EUR]
C99: ="Abgeschätzer Verlust an Solarstrommenge durch Einspeiselimit bei "&Einspeiselimit&"% nach "&Nutzungsdauer_der_Anlage&" Jahre" -> Abgeschätzer Verlust an Solarstrommenge durch Einspeiselimit bei 70% nach 20 Jahre | D99: =Erzeugte_Solarstrommenge_o_Abr-Erzeugte_Solarstrommenge_m_Abr -> 793.3586157 | E99: [kWh]
C100: ="Abgeschätzer Verlust an 'Einkommen' durch Einspeiselimit bei "&Einspeiselimit&"% nach "&Nutzungsdauer_der_Anlage&" Jahre" -> Abgeschätzer Verlust an 'Einkommen' durch Einspeiselimit bei 70% nach 20 Jahre | D100: =(Barwert_verm_Strombezugskosten+Barwert_EEG_Vergütung+Barwert_Direktvermarktung-Barwert_EEG_Umlage)-(Barwert_verm_Strombezugskosten_abg.+Barwert_s_der_EEG_Vergütung_abg.+Barwert_Direktvermarktung_abg.-Barwert_EEG_Umlage_abg.) -> 99.56816115 | E100: [EUR]
C102: Amortisationszeit ohne Einspeiselimit | D102: =COUNTIF(BERECHNUNG!AU6:AU35,"< 0")+1 -> 1 | E102: [Jahre]
B103: [3] | C103: ="Amortisationszeit mit "&Einspeiselimit&"% Einspeiselimit" -> Amortisationszeit mit 70% Einspeiselimit | D103: =COUNTIF(BERECHNUNG!AX6:AX35,"< 0")+1 -> 1 | E103: [Jahre]
B105: [4] | C105: Jährlich vermiedene Treibhausemissionen | D105: =Solarer_Gesamtertrag_der_Anlage*Spezifischer_Vermeindungsfaktor_Treibhausgase/1000 -> 6027.6645 | E105: [kg CO2-Äq./a]
B107: Wesentliche Datengrundlage & Quellen: Lastprofile Muster-Haushalte: Binder, et al., 2013. Dezentrale PV-Systeme: Amortisation von Batteriespeichern in Abhängigkeit von Systemauslegung, Alterung und Tarifen, 28. Symposium Photovolataische Solarenergie, Bad Staffelstein: Zentrum für Sonnenenergie- und Wasserstoff-Forschung Baden Württemberg (ZSW). Globalstrahlungsdaten: DWD Climate Data Center (CDC): Rasterdaten der vieljährigen mittleren Monatssummen und der vieljährigen mittleren Jahressumme für die Globalstrahlung auf die horizontale Ebene für Deutschland basierend auf Boden- und Satellitenmessungen, Version V003, 2019. Abregelungsverluste: Stellbogen, D., Matthis, B., Eberspächer, M. & Binder, J., 2015. Abgeregelte Energie von PV-Anlagen - Abhängigkeit von Einspeisegrenze, Ausrichtung und lokalem Lastprofil, 30. Symposium Photovoltaische Solarenergie, Bad Staffelstein: Zentrum für Sonnenenergie- und Wasserstoff-Forschung Baden-Württemberg, Stuttgart. EEG-Vergütungssätze: Bundesnetzagentur BNetzA 2020 CO-Vermeidung von Solarstrom: Umweltbundesamt 2019 Emissionsbilanz erneuerbarer Energieträger Fraunhofer ISE: Aktuelle Fakten zur Photovoltaik in Deutschland, 2020
B108: Dieser Photovoltaik-Rechner mit Berechnungsmodell wurde vom Solar-Cluster Baden-Württemberg und dem Zentrum für Sonnenenergie und Wasserstoffforschung Baden-Württemberg entwickelt. Die in diesem Modell getroffenen Annahmen wurden plausibilisiert und mit verschiedenen Quellen verglichen. Die Ersteller übernebmen keine Gewähr für die Richtigkeit der Annahmen und Berechnungen und daher weder eine ausdrückliche noch eine stillschweigende Haftung oder Garantie für die Vollständigkeit oder die Genauigkeit des Inhalts. Es wird daher allen Benutzern dieses Modells empfohlen, vor jeglicher Entscheidungsfindung oder Verpflichtungsübernahme basierend auf den in diesem Modell dargestellten Informationen, die getroffenen Annahmen, Berechnungen und Ergebnisse sorgfältig zu prüfen. Die Ersteller übernehmen keinerlei Verantwortung für die Konsequenzen, die aus der Verwendung des Modells entstehen. Die Veränderung dieses Modells ist nach Rücksprache mit dem Solar Cluster Baden-Württemberg erlaubt. Die Verbreitung veränderter Kopien ist untersagt. Es gilt als vereinbart, dass dem Nutzer zwar ein Nutzungsrecht eingeräumt wird, das geistige Eigentum jedoch beim Ersteller verbleibt. Es wird daher jedem Nutzer empfohlen, sich davon zu überzeugen, dass das Modell auf seiner eigenen IT-Plattform funktioniert. Die Nutzer erkennen an, dass sie für sämtliche Urheberrechtsfragen und Lizenzerfordernisse im Zusammenhang mit der Verwendung des Modells selber verantwortlich sind.
B109: Bei Fragen und Anmerkungen wenden Sie sich bitte an das Solar Cluster Baden-Württemberg: | E109: info@solarcluster-bw.de
B110: © 2020 Solar-Cluster Baden-Württemberg e.V. | J110: Stand Rechner: November 2020

Sheet DROP-DOWN (hidden)
B2: Ausrichtung der Anlage | D2: Dachtyp | F2: Schrägdach | H2: PV-Anlagen-Leistung | J2: Jahresstromverbrauch | L2: Elektrische Lastprofile | N2: Anbring der PV-Anlage | P2: Gebäudetyp und Nutzung | R2: JA/NEIN Auswahl | T2: Backup
B3: - | D3: Schrägdach | F3: 15 | H3: 1 | J3: 500 | L3: mittags | N3: Sonstiges Gebäude | P3: Privater Haushalt <= 4.000 kWh/a | R3: ja | T3: Spezifische Photovoltaik-Modulpreise | V3: [EUR/kWp]
B4: Nordwest | D4: Flachdach | F4: 20 | H4: 2 | J4: 1000 | L4: abends | N4: Wohngebäude | P4: Privater Haushalt > 4.000 kWh/a | R4: nein | T4: BOS-Preise flächenunabhägig | V4: [EUR/kWp]
B5: Nord | D5: Fassade | F5: 25 | H5: 3 | J5: 1500 | P5: Bürogebäude (Bildung, Behörden) | T5: BOS-Preise flächenabhängig | V5: [EUR/kWp]
B6: Nordost | F6: 30 | H6: 4 | J6: 2000 | P6: Bürogebäude (Dienstleistung) | T6: Spezifischer CAPEX der Photovoltaik-Anlage | U6: =IF(Angebotpreis_PV=0,Spezifische_PV_Modulpreise+Spez_var_BOS_Preise+BOS_Grundkosten,0) -> 0 | V6: [EUR/kWp]
B7: Ost | F7: 35 | H7: 5 | J7: 2500 | P7: Bürogebäude (Verwaltung) | T7: CAPEX Wechselrichter | U7: =IF(Angebotpreis_PV=0, , Angebotpreis_PV*0.15) -> 0 | V7: [EUR]
B8: Südost | F8: 40 | H8: 6 | J8: 3000 | P8: Krankenhäuser und Praxen | T8: CAPEX der Photovoltaik-Anlage | U8: =IF(Angebotpreis_PV=0,Spezifischer_CAPEX_der_PV_Anlage*Installierte_Leistung_der_GesamtAnlage+Wechselrichter_Kosten,Angebotpreis_PV) -> 0 | V8: [EUR]
B9: Süd | F9: 50 | H9: 7 | J9: 3500 | P9: Produz./ verarb. Gewerbe | T9: Sonstiger CAPEX (z.B. für Netzanbindung) | U9: 0 | V9: [EUR]
B10: Südwest | F10: 60 | H10: 8 | J10: 4000 | P10: Hotel, Restaurant | T10: Wechselrichter-Ersatzkosten | U10: 60 | V10: [%/CAPEXWR]
B11: West | H11: 9 | J11: 5000 | P11: Freizeitbetrieb | T11: CAPEX der Ersatz-Wechselrichtern | U11: =IF(OR(Lebensdauer_des_ersten_Wechselrichters>Nutzungsdauer_der_Anlage,Lebensdauer_des_ersten_Wechselrichters=0),0,(Nutzungsdauer_der_Anlage/Lebensdauer_des_ersten_Wechselrichters)*Wechselrichter_Kosten*(Wechselrichter_Ersatzkosten/100)) -> 0 | V11: [EUR]
H12: 10 | J12: 6000 | P12: Parkhäuser
J13: 7000 | P13: Läden mit viel Kühlung | T13: Nutzungsdauer der Photovoltaik-Anlage | U13: 20 | V13: [Jahre]
J14: 8000 | P14: Kaufhäuser | T14: Performance Ratio | U14: 85 | V14: [%]
F15: Flachdach | J15: 9000 | P15: Möbelhäuser | T15: Moduldegradation | U15: 0.25 | V15: [%/a]
F16: 0 | J16: 10000 | P16: Milchviehbetrieb | T16: Lebensdauer des ersten Wechselrichters | U16: 15 | V16: [Jahre]
F17: 10 | J17: 20000 | P17: Landwirtschaftlicher Betrieb | T17: CAPEX des Batteriesystems | V17: [EUR]
J18: 50000 | T18: Spezifische CAPEX der Batterie | V18: [EUR/kWh]
F19: Fassade | J19: 100000 | T19: Verhältnis Speicherkapazität zu Photovoltaik-Leistung | U19: =Installierte_Speicherkapazität/Installierte_Leistung_der_GesamtAnlage -> 0 | V19: [-]
F20: 90 | J20: 200000 | T20: Batterie-Ersatzkosten | U20: 40 | V20: [%/CAPEXBat]
J21: 500000 | T21: CAPEX der Batterie Erstinstallation | U21: =IF(Batterie_gewuenscht="ja",(IF(Angebotpreis_Bat=0,IF(Batterie_gewuenscht="ja",Spezifische_CAPEX_der_Batterie*Installierte_Speicherkapazität,0),Angebotpreis_Bat)),0) -> 0 | V21: [EUR]
J22: 1000000 | T22: CAPEX der Ersatz-Batterien | U22: =IF(Batterie_gewuenscht="ja",IF(OR(Lebensdauer_der_ersten_Batterie>Nutzungsdauer_der_Batterie,Lebensdauer_der_ersten_Batterie=0),0,(Nutzungsdauer_der_Batterie/Lebensdauer_der_ersten_Batterie)*CAPEX_der_Batterie*(Batterie_Ersatzkosten/100)),0) -> 0 | V22: [EUR]
T23: Teilnahme an einem Förderprogramm für Batterien | U23: nein
T24: Installierte Batteriespeicherkapazität | V24: [kWh]
T25: Nutzungsdauer der Batterie | U25: =Nutzungsdauer_der_Anlage -> 20 | V25: [Jahre]
T26: Lebensdauer der ersten Batterie | U26: 12 | V26: [Jahre]
T27: Batteriespeicherverluste | U27: 10 | V27: [%]
T29: Einspeiselimit | U29: =IF(Installierte_Leistung_der_GesamtAnlage>=30,0,IF(AND(Batterie_gewuenscht="ja",Förderung_gewuenscht="ja"),50,70)) -> 70 | V29: [%]
T30: Abregelungsverluste | U30: =SUMPRODUCT((DATENBASIS!$D$58:$K$92)*(DATENBASIS!$B$58:$B$92=Einspeiselimit)*(DATENBASIS!$C$58:$C$92=Neigung_der_Anlage)*(Ausrichtung=Ausrichtung_der_Anlage_1))*IF(AND(Eingabe_pers_Eigenverbrauch="ja",Eigenverbrauchsquote_pers=0),1,IF(Batterie_gewuenscht="nein",0.5,0.45)) -> 0.45 | V30: [%]
T32: OPEX der Photovoltaik-Anlage | U32: 1 | V32: [%/CAPEXPV]
T33: Sonstiger OPEX (z.B. für Netzanbindung) | U33: 1 | V33: [%/CAPEXPVgroß]
T35: OPEX der Batterie | U35: 0 | V35: [%/CAPEXBat]
T37: Anteil Eigenkapital | U37: 20 | V37: [%]
T38: Anteil Fremdkapital | U38: =100-Anteil_Eigenkapital -> 80 | V38: [%]
T39: Zinssatz für Fremdkapital | U39: 3 | V39: [%/a]
T40: Rendite Eigenkapital | U40: 1 | V40: [%/a]
T41: WACC nominal | U41: =(Anteil_Eigenkapital*Rendite_Eigenkapital+Anteil_Fremdkapital*Zinssatz_für_Fremdkapital)/100 -> 2.6 | V41: [%]
T42: Inflation | U42: 2 | V42: [%/a]
T43: WACC real | U43: =(((100+WACC_nominal)/(100+Inflation))-1)*100 -> 0.5882352941 | V43: [%]
T44: Jährliche CAPEX PV abgezinst | U44: =-PMT(WACC_real/100,Nutzungsdauer_der_Anlage,(CAPEX_der_PV_Anlage+CAPEX_des_Ersatz_Wechselrichters+Sonstiger_CAPEX_der_PV_Anlage),0) -> 0 | V44: [EUR]
T45: Jährliche OPEX-Kosten Photovoltaik | U45: =CAPEX_der_PV_Anlage*(PRZNT_pro_CAPEXpv/100)+Sonstiger_CAPEX_der_PV_Anlage*(PRZNT_pro_CAPEXpvsonstige/100) -> 0 | V45: [EUR]
T47: =IF(OR(Inbetriebnahme=DATENBASIS!S145,Inbetriebnahme=DATENBASIS!S146,Inbetriebnahme=DATENBASIS!S147),"Voraussichtlicher Stromerlös bei fester EEG-Vergütung","Stromerlös bei fester EEG-Vergütung") -> Stromerlös bei fester EEG-Vergütung | U47: =INDEX(DATENBASIS!$C$170:$G$175,MATCH(Inbetriebnahme,DATENBASIS!$B$170:$B$175,0),MATCH(Anbringungsort,DATENBASIS!$C$169:$G$169,0)) -> 0.0848 | V47: [EUR/kWh]
T48: =IF(OR(Inbetriebnahme=DATENBASIS!S145,Inbetriebnahme=DATENBASIS!S146,Inbetriebnahme=DATENBASIS!S147),"Voraussichtlicher Stromerlös bei geförderter Direktvermarktung","Stromerlös bei geförderter Direktvermarktung") -> Stromerlös bei geförderter Direktvermarktung | U48: =INDEX(DATENBASIS!$J$170:$N$175,MATCH(Inbetriebnahme,DATENBASIS!$I$170:$I$175,0),MATCH(Anbringungsort,DATENBASIS!$J$169:$N$169,0)) -> 0 | V48: [EUR/kWh]
T49: Verkaufserlös nach Auslauf der Förderung (21. Jahr) | U49: 0.03 | V49: [EUR/kWh]
T50: EEG-Umlage für Eigenverbrauch des Solarstroms | U50: 40 | V50: [%]
T51: EEG-Umlage für das Jahr 2020 | U51: 0.06756 | V51: [EUR/kWh]
T52: Strombezugspreis (netto) vom Stromversorger | U52: 0.26 | V52: [EUR/kWh]
T53: Strompreissteigerung pro Jahr | U53: 1 | V53: [%/a]
T54: ="Strombezugspreis (netto) in "&Nutzungsdauer_der_Anlage&" Jahre" -> Strombezugspreis (netto) in 20 Jahre | U54: =SUMPRODUCT((BERECHNUNG!$AK$6:$AK$35)*(BERECHNUNG!$B$6:$B$35=Nutzungsdauer_der_Anlage))*100 -> 31.72494104 | V54: [ct/kWh]
T55: ="Ø-Strombezugspreis über "&Nutzungsdauer_der_Anlage&" Jahre" -> Ø-Strombezugspreis über 20 Jahre | U55: =SUMPRODUCT((BERECHNUNG!$AL$6:$AL$35)*(BERECHNUNG!$B$6:$B$35=Nutzungsdauer_der_Anlage))*100 -> 28.91095225 | V55: [ct/kWh]

Sheet ERGEBNISSE
B2: =IF(Batterie_gewuenscht="nein","Ergebnisse für ihre Photovoltaik-Anlage","Ergebnisse für ihre Photovoltaik-Anlage mit Batteriespeicher") -> Ergebnisse für ihre Photovoltaik-Anlage
B4: Die Berechnung wurde mit folgenden Eingabedaten durchgeführt:
B5: Ausrichtung der PV-Teilanlage 1 | C5: =Ausrichtung_der_Anlage_1 -> Ost | D5: [-] | F5: Nennleistung der PV-Teilanlage 1 | G5: =Installierte_Nennleistung_der_PV_Anlage_1 -> 10 | H5: [kWp] | J5: Nutzungsdauer der PV-Anlage | K5: =Nutzungsdauer_der_Anlage -> 20 | L5: [Jahre]
B6: Ausrichtung der PV-Teilanlage 2 | C6: =Ausrichtung_der_Anlage_2 -> - | D6: [-] | F6: Nennleistung der PV-Teilanlage 2 | G6: =Installierte_Nennleistung_der_PV_Anlage_2 -> 0 | H6: [kWp] | J6: Dachart | K6: =RECHNER!D12 -> Schrägdach
B7: Neigung der Anlagen | C7: =Neigung_der_Anlage -> 30 | D7: [Grad] | F7: Batteriespeicher | G7: =IF(Batterie_gewuenscht="ja",Installierte_Speicherkapazität, "-") -> - | H7: [kWh] | J7: Förderprogramm | L7: =IF(Batterie_gewuenscht="ja",Förderung_gewuenscht,"-") -> -
B8: Stromverbrauch | C8: =Jahresstromverbrauch -> 4000 | D8: [kWh/a] | F8: Inbetriebnahme | G8: =Inbetriebnahme -> 2020-11-01 | J8: Gewichtete EEG-Vergütung | K8: =IF(Feste_EEG_Vergütung="ja",EEG_Vergütung,IF(Direktvermarktung="ja",Direktvermarktung_gefördert,0))*100 -> 8.48 | L8: [ct/kWh]
B10: Ergebnisüberblick:
B11: Gesamtertrag Solarstrom pro Jahr | C11: =Solarer_Gesamtertrag_der_Anlage -> 9613.5 | D11: [kWh/a] | F11: Investitionskosten PV-Anlage | G11: =CAPEX_der_PV_Anlage -> 0 | H11: [EUR] | J11: Investitionskosten Batteriesystem | K11: =IF(Batterie_gewuenscht="ja",CAPEX_der_Batterie,"-") -> - | L11: [EUR]
B12: Eingesparte Strombezugsmenge | C12: =(RECHNER!D88/100)*Solarer_Gesamtertrag_der_Anlage -> 1922.7 | D12: [kWh/a] | F12: Eingesparte Strombezugskosten | G12: =((RECHNER!D88/100)*Solarer_Gesamtertrag_der_Anlage)*Netto_Strombezugspreis_aktuell -> 499.902 | H12: [EUR/a] | J12: Rendite | K12: =RECHNER!D96 ->  | L12: [%]
B16: =(RECHNER!D88*Solarer_Gesamtertrag_der_Anlage)/Jahresstromverbrauch -> 48.0675
B17: =100-B16 -> 51.9325 | K17: =Nutzungsdauer_der_Anlage-K18 -> 18.5
B18: =IF(Eingabe_pers_Eigenverbrauch="nein",Eigenverbrauchsquote_Basis,Eigenverbrauchsquote_pers) -> 20 | K18: 1.5
B19: =100-B18 -> 80
B25: Solare Deckung des Strombedarfs:Je mehr Sonnenstrom den Einkauf des Stroms aus dem Netz ersetzt, desto höher der solar gedeckte Anteil ihres Stromverbrauchs (auch Autarkiequote genannt).
B40: =RECHNER!D103 -> 1
B44: Wichtig
B45: Die Ergebnisse dieses Photovoltaik-Rechners sind eine grobe Orientierung und sind abhängig von den eingegeben Werten, Annahmen und des Berechnungsmodells. Dieses unabhängige und kostenlose Berechnungstool für Photovoltaik-Anlagen soll Sie in Ihrem Vorhaben unterstützen, ersetzt aber keine individuelle und fachgerechte Planung mit Simulations-und Wirtschaftlichkeitsberechnung. In der Praxis können die Werte deutlich abweichen, auch aufgrund lokaler Besonderheiten.
B47: Tipps des Solar Clusters Baden-Württemberg
B48: 1) Oft lohnt es sich, die gesamte nutzbare Dachfläche mit PV-Modulen zu bestücken. Das hat viele weitere Vorteile: Mehr eigener Solarstrom vom Dach, höhere solare Deckungsanteile gerade auch im Herbst, Winter und Frühjahr und mit der Größe steigt auch der Klimanutzen.
B49: 2) Denken Sie an Ost-/West- und Norddächer - Fast alle Dächer eignen sich für PV-Anlagen. Dazu gibt es gute technische und optische Lösungen, die fast jedes Hemmnis lösen. Lassen Sie sich beraten!
B50: 3) Für die individuelle Planung und Umsetzung ist es sinnvoll einen Fachinstallateur aus der Region zu nutzen. Ein Ansprechpartner vor Ort vereinfacht Rückfragen, Wartungen und Reparaturen.
B51: 4) Vergleichen Sie möglichst 2 oder 3 Angebote
B52: 5) Eine Photovoltaik-Anlage bietet auch steuerlich interessante Möglichkeiten, die sich i.d.R. positiv auf die Gesamtrendite auswirken. Diese sind hier noch nicht berücksichtigt. Weitere Informationen für kleinere, private Photovoltaik-Anlagen finden Sie im Faktenpapier 'Photovoltaik und Steuerrecht':
B53: https://www.photovoltaik-bw.de/pv-netzwerk/pv-themen/steuerliche-aspekte-beim-erwerb/
B55: Weitere Hinweise und Grundlagen
B56: Alle Angaben und Ergebnisse sind Netto-Beträge (Vorsteuer). Die EEG-Vergütung ist laut Gesetz für Anlagen größer 10 kWp anteilig zu berechnen und damit eine gewichtete Mischvergütung. Die gültigen Vergütungssätze veröffentlicht die Bundesnetzagentur stets quartalsweise für 3 Monate im voraus. Z.B. am 31.10. wird die Vergütung für November - Januar veröffentlicht. Daher sind die hier hinterlegten Einspeisevergütungen für die letzten drei Inbetriebnahmemonate voraussichtliche Vergütungssätze, entsprechend dem Trend. Für kleinere Anlagen mit bis zu 20 kW Leistung, 20 kWh Batteriespeicher und einem Stromverbrauch bis 4000 kWh kann auf die Eigenverbrauchsquoten von Simulationen direkt zurückgegeriffen werden. Für größere Anlagen und andere Gebäudetypen kann die Quote aus den hinterlegten Simulationsergebnisdiagrammen abgelesen werden. Die Berechnungsmethodik: Die Stromgestehungskosten (LCOE) berücksichtigen die angegeben Kostenkomponenten. Die Aussagen zur Wirtschaftlichkeit der Investition wird anhand der Rendite möglich: Die Renditeberechnung mit dem internen Zinßfuß nach Baldwin berücksichtigt alle Barwerte von Einnahmen und Ausgaben. Alle Ergebnisse werden in reale Zahlungsströne über die WACC-Methode diskontiert. Die dynamische (monetäre) Amortisationzeit ist erreicht wenn der Kapitalwert positiv ist. Angenommen ist eine Kreditlaufzeit, die identisch mit der Betriebsdauer der PV-Anlage ist, bei festem Zinssatz. Bitte beachten Sie Finanzierungsanteil an den Stromgestehungskosten: Durch die lange Betriebsdauer der Anlage haben der Kreditzins, die erwartete Rendite für eigesetztes Eigenkapital und die angenommene Inflation einen großen Einfluss auf die Stromgestehungskosten. Die Kosten der Finanzierung erhöhen die Stromgestehungskosten, Inflation erniedrigt die Stromgestehungskosten. Der Wert wird zur Information pro kWh separat ausgewiesen. Vom Benutzer werden nur allgemeine Angaben über den Kredit verlangt, sodass ein erster vereinfachter Einblick in die Finanzierung einer individuellen PV-Anlage aufgezeigt werden kann. Dies ersetzt jedoch keine eingehende Beratung bei einer Bank oder bei einem Steuerberater. Die angegebenen jährlich vermiedenen Treibhausgasemissionen beziehen sich ausschließlich auf das Einsparpotential der PV-Anlage. Auf die Berücksichtigung der Batteriespeicher wird in dieser Rechnung verzichtet, da hierzu keine belastbaren Daten vorliegen. Die Berechnung von Abregelungsverlusten bei Anlagenteilen mit verschiedenen Ausrichtungen ist nicht berücksichtigt, da diese nicht pauschal angegeben werden können und im Einzelfall simuliert werden müssen. Mehr Ergebnisse zur Wirtschaftlichkeitsberechnung finden Sie auf der Seite Rechner mit den Eingaben unten (+ anklicken). Alle Ergebnisse sind ohne Gewähr (Mehr Informationen dazu finden Sie auf der Rechner-Seite).
B58: Mehr Informationen zur Photovoltaik finden Sie unter www.photovoltaik-bw.de und www.solarcluster-bw.de
B59: Bei Fragen und Anmerkungen wenden Sie sich bitte an das Solar Cluster Baden-Württemberg: | H59: info@solarcluster-bw.de
B60: © 2020 Solar Cluster Baden-Württemberg e.V. | L60: Stand Rechner: November 2020

Sheet Standardlastprofil G1
B2: Standardlastprofil G1 - Ablesen der Eigenverbrauchsquote
B3: Das Standardlastprofil G1 gilt für: Bürogebäude (Bildung, Kantinen, Krankenhäuser, Verwaltung, Behörden, Banken, Dienstleister, Praxen, etc) und für produz./verarb. Gewerbe (Werkstätten, Autohäuser, Metall, Elektro, Holz, Fahrzeuge, Ernährung)
B4: Hilfestellung: Einablesebeispiel finden Sie unten erläutert
B35: Ablese-Beispiel:
B36: § | C36: In der linken Abbildung ist das Standardlastprofil für die verschiedenen Wochentage dargestellt.
B37: § | C37: In der rechten Abbildung ist die Höhe des Eigenverbrauchs in Abhängigkeit vom elektrischen Energiebedarf und der installierten/geplanten Leistung der PV-Analge in Kilowattpeak (kWp) dargestellt.
B38: Vorgehen zum Ablesen:
B39: 1. | C39: Senkrechte bei entsprechender PV-Anlagenleistung bilden
B40: 2. | C40: Kurve für den Elektrischen Energiebedarf identifizieren, und Schnittpunkt mit Senkrechte bilden
B41: 3. | C41: An der Ordinate den Eigenverbrauch des Schnittpunkts ablesen
B42: 4. | C42: Wert im Blatt "RECHNER" im Feld "Manuelle Eingabe Eigenverbrauchsquote ohne Batterie" eintragen
B43: § | C43: Die Gelbe Linien stellen ein Beispiel für 50 kWp Anlagenleistung und 50000kWh/a Energiebedarf dar. Der Eigenverbrauch an Solarenergie beträgt in diesem Fall rund 53%.
B45: Quellen: | C45: Gewerblicher Eigenverbrauch von Solarstrom - Simulationsergebnisse anhang von Standard-Lastprofile Gewerbebetriebe: SMA Solar Technology AG, 2010 mit Aktualisierung. Gewerblicher Eigenverbrauch von Solarstrom. [Online] Available at: https://www.sma.de/partner/expertenwissen/gewerblicher-eigenverbrauch-von-solarstrom.html

Sheet Standardlastprofil G2
B2: Standardlastprofil G2 - Ablesen der Eigenverbrauchsquote
B3: Das Standardlastprofil G2 gilt für: Hotels, Restaurants, Cafes, Tankstellen, Kultur-, Sport-, oder Freizeitbetriebe
B4: Hilfestellung: Einablesebeispiel finden Sie unten erläutert
B35: Ablese-Beispiel:
B36: § | C36: In der linken Abbildung ist das Standardlastprofil für die verschiedenen Wochentage dargestellt.
B37: § | C37: In der rechten Abbildung ist die Höhe des Eigenverbrauchs in Abhängigkeit vom elektrischen Energiebedarf und der installierten/geplanten Leistung der PV-Analge in Kilowattpeak (kWp) dargestellt.
B38: Vorgehen zum Ablesen:
B39: 1. | C39: Senkrechte bei entsprechender PV-Anlagenleistung bilden
B40: 2. | C40: Kurve für den Elektrischen Energiebedarf identifizieren, und Schnittpunkt mit Senkrechte bilden
B41: 3. | C41: An der Ordinate den Eigenverbrauch des Schnittpunkts ablesen
B42: 4. | C42: Wert im Blatt "RECHNER" im Feld "Manuelle Eingabe Eigenverbrauchsquote ohne Batterie" eintragen
B43: § | C43: Die Gelbe Linien stellen ein Beispiel für 50 kWp Anlagenleistung und 50000kWh/a Energiebedarf dar. Der Eigenverbrauch an Solarenergie beträgt in diesem Fall rund 40%.
B45: Quellen: | C45: Gewerblicher Eigenverbrauch von Solarstrom - Simulationsergebnisse anhang von Standard-Lastprofile Gewerbebetriebe: SMA Solar Technology AG, 2010 mit Aktualisierung. Gewerblicher Eigenverbrauch von Solarstrom. [Online] Available at: https://www.sma.de/partner/expertenwissen/gewerblicher-eigenverbrauch-von-solarstrom.html

Sheet Standardlastprofil G3
B2: Standardlastprofil G3 - Ablesen der Eigenverbrauchsquote
B3: Das Standardlastprofil G3 gilt für: Läden mit hoher Kühlung, Kälteanlagen, Zwangsbelüftungen, Parkhäuser, IT-Infrastruktur, Kläranlagen
B4: Hilfestellung: Einablesebeispiel finden Sie unten erläutert
B37: Ablese-Beispiel:
B38: § | C38: In der linken Abbildung ist das Standardlastprofil für die verschiedenen Wochentage dargestellt.
B39: § | C39: In der rechten Abbildung ist die Höhe des Eigenverbrauchs in Abhängigkeit vom elektrischen Energiebedarf und der installierten/geplanten Leistung der PV-Analge in Kilowattpeak (kWp) dargestellt.
B40: Vorgehen zum Ablesen:
B41: 1. | C41: Senkrechte bei entsprechender PV-Anlagenleistung bilden
B42: 2. | C42: Kurve für den Elektrischen Energiebedarf identifizieren, und Schnittpunkt mit Senkrechte bilden
B43: 3. | C43: An der Ordinate den Eigenverbrauch des Schnittpunkts ablesen
B44: 4. | C44: Wert im Blatt "RECHNER" im Feld "Manuelle Eingabe Eigenverbrauchsquote ohne Batterie" eintragen
B45: § | C45: Die Gelbe Linien stellen ein Beispiel für 50 kWp Anlagenleistung und 50000kWh/a Energiebedarf dar. Der Eigenverbrauch an Solarenergie beträgt in diesem Fall rund 43%.
B47: Quellen: | C47: Gewerblicher Eigenverbrauch von Solarstrom - Simulationsergebnisse anhang von Standard-Lastprofile Gewerbebetriebe: SMA Solar Technology AG, 2010 mit Aktualisierung. Gewerblicher Eigenverbrauch von Solarstrom. [Online] Available at: https://www.sma.de/partner/expertenwissen/gewerblicher-eigenverbrauch-von-solarstrom.html

Sheet Standardlastprofil G4
B2: Standardlastprofil G4 - Ablesen der Eigenverbrauchsquote
B3: Das Standardlastprofil G4 gilt für: Ladengeschäfte, Kaufhäuser, Möbelhäuser, Reinigung, etc.
B4: Hilfestellung: Einablesebeispiel finden Sie unten erläutert
B37: Ablese-Beispiel:
B38: § | C38: In der linken Abbildung ist das Standardlastprofil für die verschiedenen Wochentage dargestellt.
B39: § | C39: In der rechten Abbildung ist die Höhe des Eigenverbrauchs in Abhängigkeit vom elektrischen Energiebedarf und der installierten/geplanten Leistung der PV-Analge in Kilowattpeak (kWp) dargestellt.
B40: Vorgehen zum Ablesen:
B41: 1. | C41: Senkrechte bei entsprechender PV-Anlagenleistung bilden
B42: 2. | C42: Kurve für den Elektrischen Energiebedarf identifizieren, und Schnittpunkt mit Senkrechte bilden
B43: 3. | C43: An der Ordinate den Eigenverbrauch des Schnittpunkts ablesen
B44: 4. | C44: Wert im Blatt "RECHNER" im Feld "Manuelle Eingabe Eigenverbrauchsquote ohne Batterie" eintragen
B45: § | C45: Die Gelbe Linien stellen ein Beispiel für 50 kWp Anlagenleistung und 50000kWh/a Energiebedarf dar. Der Eigenverbrauch an Solarenergie beträgt in diesem Fall rund 50%.
B47: Quellen: | C47: Gewerblicher Eigenverbrauch von Solarstrom - Simulationsergebnisse anhang von Standard-Lastprofile Gewerbebetriebe: SMA Solar Technology AG, 2010 mit Aktualisierung. Gewerblicher Eigenverbrauch von Solarstrom. [Online] Available at: https://www.sma.de/partner/expertenwissen/gewerblicher-eigenverbrauch-von-solarstrom.html

Sheet Standardlastprofil L1
B2: Standardlastprofil L1 - Ablesen der Eigenverbrauchsquote
B3: Das Standardlastprofil L1 gilt für: Milchviehbetrieb (Stromverbrauch durch zweimaliges Melken und anschließendes Herunterkühlen)
B4: Hilfestellung: Einablesebeispiel finden Sie unten erläutert
B37: Ablese-Beispiel:
B38: § | C38: In der linken Abbildung ist das Standardlastprofil für die verschiedenen Wochentage dargestellt.
B39: § | C39: In der rechten Abbildung ist die Höhe des Eigenverbrauchs in Abhängigkeit vom elektrischen Energiebedarf und der installierten/geplanten Leistung der PV-Analge in Kilowattpeak (kWp) dargestellt.
B40: Vorgehen zum Ablesen:
B41: 1. | C41: Senkrechte bei entsprechender PV-Anlagenleistung bilden
B42: 2. | C42: Kurve für den Elektrischen Energiebedarf identifizieren, und Schnittpunkt mit Senkrechte bilden
B43: 3. | C43: An der Ordinate den Eigenverbrauch des Schnittpunkts ablesen
B44: 4. | C44: Wert im Blatt "RECHNER" im Feld "Manuelle Eingabe Eigenverbrauchsquote ohne Batterie" eintragen
B45: § | C45: Die Gelbe Linien stellen ein Beispiel für 50 kWp Anlagenleistung und 50000kWh/a Energiebedarf dar. Der Eigenverbrauch an Solarenergie beträgt in diesem Fall rund 40%.
B47: Quellen: | C47: Gewerblicher Eigenverbrauch von Solarstrom - Simulationsergebnisse anhang von Standard-Lastprofile Gewerbebetriebe: SMA Solar Technology AG, 2010 mit Aktualisierung. Gewerblicher Eigenverbrauch von Solarstrom. [Online] Available at: https://www.sma.de/partner/expertenwissen/gewerblicher-eigenverbrauch-von-solarstrom.html

Sheet Standardlastprofil L2
B2: Standardlastprofil L2 - Ablesen der Eigenverbrauchsquote
B3: Das Standardlastprofil L2 gilt für: Landwirtschaftliche Betriebe mit Produktion und Haushalt, Schweinemast, etc.
B4: Hilfestellung: Einablesebeispiel finden Sie unten erläutert
B36: Ablese-Beispiel:
B37: § | C37: In der linken Abbildung ist das Standardlastprofil für die verschiedenen Wochentage dargestellt.
B38: § | C38: In der rechten Abbildung ist die Höhe des Eigenverbrauchs in Abhängigkeit vom elektrischen Energiebedarf und der installierten/geplanten Leistung der PV-Analge in Kilowattpeak (kWp) dargestellt.
B39: Vorgehen zum Ablesen:
B40: 1. | C40: Senkrechte bei entsprechender PV-Anlagenleistung bilden
B41: 2. | C41: Kurve für den Elektrischen Energiebedarf identifizieren, und Schnittpunkt mit Senkrechte bilden
B42: 3. | C42: An der Ordinate den Eigenverbrauch des Schnittpunkts ablesen
B43: 4. | C43: Wert im Blatt "RECHNER" im Feld "Manuelle Eingabe Eigenverbrauchsquote ohne Batterie" eintragen
B44: § | C44: Die Gelbe Linien stellen ein Beispiel für 50 kWp Anlagenleistung und 50000kWh/a Energiebedarf dar. Der Eigenverbrauch an Solarenergie beträgt in diesem Fall rund 53%.
B46: Quellen: | C46: Gewerblicher Eigenverbrauch von Solarstrom - Simulationsergebnisse anhang von Standard-Lastprofile Gewerbebetriebe: SMA Solar Technology AG, 2010 mit Aktualisierung. Gewerblicher Eigenverbrauch von Solarstrom. [Online] Available at: https://www.sma.de/partner/expertenwissen/gewerblicher-eigenverbrauch-von-solarstrom.html

Sheet KARTE (hidden)
A1: lon | B1: lat | C1: Globalstrahlung [kWh/qm]
A2: 5.56924761 | B2: 54.99564766 | C2: -999
A3: 5.570013373 | B3: 54.98667989 | C3: -999
A4: 5.570778711 | B4: 54.9777121 | C4: -999
A5: 5.571543625 | B5: 54.96874428 | C5: -999
A6: 5.572308114 | B6: 54.95977644 | C6: -999
A7: 5.573072178 | B7: 54.95080859 | C7: -999
A8: 5.573835819 | B8: 54.94184071 | C8: -999
A9: 5.574599035 | B9: 54.93287282 | C9: -999
A10: 5.575361829 | B10: 54.9239049 | C10: -999
A11: 5.576124199 | B11: 54.91493696 | C11: -999
A12: 5.576886147 | B12: 54.905969 | C12: -999
A13: 5.577647672 | B13: 54.89700102 | C13: -999
A14: 5.578408776 | B14: 54.88803302 | C14: -999
A15: 5.579169457 | B15: 54.879065 | C15: -999
A16: 5.579929717 | B16: 54.87009697 | C16: -999
A17: 5.580689556 | B17: 54.86112891 | C17: -999
A18: 5.581448974 | B18: 54.85216082 | C18: -999
A19: 5.582207972 | B19: 54.84319272 | C19: -999
A20: 5.58296655 | B20: 54.8342246 | C20: -999
A21: 5.583724707 | B21: 54.82525646 | C21: -999
A22: 5.584482446 | B22: 54.8162883 | C22: -999
A23: 5.585239764 | B23: 54.80732012 | C23: -999
A24: 5.585996664 | B24: 54.79835191 | C24: -999
A25: 5.586753146 | B25: 54.78938369 | C25: -999
A26: 5.587509209 | B26: 54.78041545 | C26: -999
A27: 5.588264854 | B27: 54.77144718 | C27: -999
A28: 5.589020082 | B28: 54.7624789 | C28: -999
A29: 5.589774892 | B29: 54.75351059 | C29: -999
A30: 5.590529285 | B30: 54.74454227 | C30: -999
A31: 5.591283262 | B31: 54.73557392 | C31: -999
A32: 5.592036822 | B32: 54.72660556 | C32: -999
A33: 5.592789966 | B33: 54.71763717 | C33: -999
A34: 5.593542694 | B34: 54.70866877 | C34: -999
A35: 5.594295007 | B35: 54.69970034 | C35: -999
A36: 5.595046905 | B36: 54.69073189 | C36: -999
A37: 5.595798387 | B37: 54.68176343 | C37: -999
A38: 5.596549456 | B38: 54.67279494 | C38: -999
A39: 5.59730011 | B39: 54.66382643 | C39: -999
A40: 5.59805035 | B40: 54.6548579 | C40: -999
A41: 5.598800177 | B41: 54.64588935 | C41: -999
A42: 5.59954959 | B42: 54.63692079 | C42: -999
A43: 5.60029859 | B43: 54.6279522 | C43: -999
A44: 5.601047178 | B44: 54.61898359 | C44: -999
A45: 5.601795353 | B45: 54.61001496 | C45: -999
A46: 5.602543116 | B46: 54.60104631 | C46: -999
A47: 5.603290468 | B47: 54.59207764 | C47: -999
A48: 5.604037408 | B48: 54.58310895 | C48: -999
A49: 5.604783937 | B49: 54.57414024 | C49: -999
A50: 5.605530055 | B50: 54.56517151 | C50: -999
A51: 5.606275762 | B51: 54.55620276 | C51: -999
A52: 5.60702106 | B52: 54.54723398 | C52: -999
A53: 5.607765947 | B53: 54.53826519 | C53: -999
A54: 5.608510425 | B54: 54.52929638 | C54: -999
A55: 5.609254493 | B55: 54.52032755 | C55: -999
A56: 5.609998153 | B56: 54.5113587 | C56: -999
A57: 5.610741404 | B57: 54.50238982 | C57: -999
A58: 5.611484246 | B58: 54.49342093 | C58: -999
A59: 5.612226681 | B59: 54.48445202 | C59: -999
A60: 5.612968707 | B60: 54.47548308 | C60: -999
A61: 5.613710326 | B61: 54.46651413 | C61: -999
A62: 5.614451538 | B62: 54.45754516 | C62: -999
A63: 5.615192343 | B63: 54.44857616 | C63: -999
A64: 5.615932742 | B64: 54.43960715 | C64: -999
A65: 5.616672734 | B65: 54.43063811 | C65: -999
A66: 5.617412321 | B66: 54.42166906 | C66: -999
A67: 5.618151501 | B67: 54.41269999 | C67: -999
A68: 5.618890277 | B68: 54.40373089 | C68: -999
A69: 5.619628647 | B69: 54.39476178 | C69: -999
A70: 5.620366612 | B70: 54.38579264 | C70: -999
A71: 5.621104173 | B71: 54.37682348 | C71: -999
A72: 5.62184133 | B72: 54.36785431 | C72: -999
A73: 5.622578083 | B73: 54.35888511 | C73: -999
A74: 5.623314433 | B74: 54.3499159 | C74: -999
A75: 5.624050379 | B75: 54.34094666 | C75: -999
A76: 5.624785922 | B76: 54.3319774 | C76: -999
A77: 5.625521063 | B77: 54.32300813 | C77: -999
A78: 5.626255801 | B78: 54.31403883 | C78: -999
A79: 5.626990137 | B79: 54.30506951 | C79: -999
A80: 5.627724072 | B80: 54.29610018 | C80: -999
A81: 5.628457605 | B81: 54.28713082 | C81: -999
A82: 5.629190736 | B82: 54.27816144 | C82: -999
A83: 5.629923467 | B83: 54.26919205 | C83: -999
A84: 5.630655798 | B84: 54.26022263 | C84: -999
A85: 5.631387728 | B85: 54.25125319 | C85: -999
A86: 5.632119258 | B86: 54.24228373 | C86: -999
A87: 5.632850388 | B87: 54.23331426 | C87: -999
A88: 5.633581119 | B88: 54.22434476 | C88: -999
A89: 5.634311451 | B89: 54.21537524 | C89: -999
A90: 5.635041384 | B90: 54.2064057 | C90: -999
A91: 5.635770919 | B91: 54.19743614 | C91: -999
A92: 5.636500055 | B92: 54.18846656 | C92: -999
A93: 5.637228793 | B93: 54.17949697 | C93: -999
A94: 5.637957134 | B94: 54.17052735 | C94: -999
A95: 5.638685078 | B95: 54.16155771 | C95: -999
A96: 5.639412624 | B96: 54.15258805 | C96: -999
A97: 5.640139774 | B97: 54.14361837 | C97: -999
A98: 5.640866527 | B98: 54.13464867 | C98: -999
A99: 5.641592884 | B99: 54.12567895 | C99: -999
A100: 5.642318845 | B100: 54.11670921 | C100: -999
A101: 5.643044411 | B101: 54.10773945 | C101: -999
A102: 5.643769581 | B102: 54.09876967 | C102: -999
A103: 5.644494356 | B103: 54.08979987 | C103: -999
A104: 5.645218737 | B104: 54.08083006 | C104: -999
A105: 5.645942723 | B105: 54.07186022 | C105: -999
A106: 5.646666315 | B106: 54.06289036 | C106: -999
A107: 5.647389513 | B107: 54.05392048 | C107: -999
A108: 5.648112318 | B108: 54.04495058 | C108: -999
A109: 5.648834729 | B109: 54.03598066 | C109: -999
A110: 5.649556748 | B110: 54.02701072 | C110: -999
A111: 5.650278373 | B111: 54.01804076 | C111: -999
A112: 5.650999607 | B112: 54.00907078 | C112: -999
A113: 5.651720448 | B113: 54.00010078 | C113: -999
A114: 5.652440897 | B114: 53.99113076 | C114: -999
A115: 5.653160955 | B115: 53.98216072 | C115: -999
A116: 5.653880621 | B116: 53.97319066 | C116: -999
A117: 5.654599897 | B117: 53.96422058 | C117: -999
A118: 5.655318782 | B118: 53.95525048 | C118: -999
A119: 5.656037277 | B119: 53.94628036 | C119: -999
A120: 5.656755381 | B120: 53.93731022 | C120: -999
A121: 5.657473096 | B121: 53.92834006 | C121: -999
A122: 5.658190421 | B122: 53.91936988 | C122: -999
A123: 5.658907357 | B123: 53.91039968 | C123: -999
A124: 5.659623904 | B124: 53.90142946 | C124: -999
A125: 5.660340062 | B125: 53.89245922 | C125: -999
A126: 5.661055832 | B126: 53.88348896 | C126: -999
A127: 5.661771213 | B127: 53.87451868 | C127: -999
A128: 5.662486207 | B128: 53.86554838 | C128: -999
A129: 5.663200814 | B129: 53.85657806 | C129: -999
A130: 5.663915033 | B130: 53.84760772 | C130: -999
A131: 5.664628865 | B131: 53.83863736 | C131: -999
A132: 5.66534231 | B132: 53.82966698 | C132: -999
A133: 5.666055369 | B133: 53.82069658 | C133: -999
A134: 5.666768042 | B134: 53.81172616 | C134: -999
A135: 5.667480329 | B135: 53.80275572 | C135: -999
A136: 5.668192231 | B136: 53.79378526 | C136: -999
A137: 5.668903747 | B137: 53.78481478 | C137: -999
A138: 5.669614878 | B138: 53.77584428 | C138: -999
A139: 5.670325625 | B139: 53.76687376 | C139: -999
A140: 5.671035987 | B140: 53.75790323 | C140: -999
A141: 5.671745964 | B141: 53.74893267 | C141: -999
A142: 5.672455558 | B142: 53.73996209 | C142: -999
A143: 5.673164769 | B143: 53.73099149 | C143: -999
A144: 5.673873596 | B144: 53.72202087 | C144: -999
A145: 5.67458204 | B145: 53.71305023 | C145: -999
A146: 5.675290101 | B146: 53.70407957 | C146: -999
A147: 5.67599778 | B147: 53.69510889 | C147: -999
A148: 5.676705076 | B148: 53.68613819 | C148: -999
A149: 5.677411991 | B149: 53.67716748 | C149: -999
A150: 5.678118524 | B150: 53.66819674 | C150: -999
A151: 5.678824676 | B151: 53.65922598 | C151: -999
A152: 5.679530446 | B152: 53.6502552 | C152: -999
A153: 5.680235836 | B153: 53.6412844 | C153: -999
A154: 5.680940845 | B154: 53.63231358 | C154: -999
A155: 5.681645474 | B155: 53.62334275 | C155: -999
A156: 5.682349722 | B156: 53.61437189 | C156: -999
A157: 5.683053592 | B157: 53.60540101 | C157: -999
A158: 5.683757081 | B158: 53.59643011 | C158: -999
A159: 5.684460192 | B159: 53.5874592 | C159: -999
A160: 5.685162923 | B160: 53.57848826 | C160: -999
A161: 5.685865276 | B161: 53.5695173 | C161: -999
A162: 5.686567251 | B162: 53.56054633 | C162: -999
A163: 5.687268847 | B163: 53.55157533 | C163: -999
A164: 5.687970066 | B164: 53.54260431 | C164: -999
A165: 5.688670907 | B165: 53.53363328 | C165: -999
A166: 5.689371371 | B166: 53.52466222 | C166: -999
A167: 5.690071458 | B167: 53.51569114 | C167: -999
A168: 5.690771169 | B168: 53.50672005 | C168: -999
A169: 5.691470503 | B169: 53.49774893 | C169: -999
A170: 5.69216946 | B170: 53.4887778 | C170: -999
A171: 5.692868042 | B171: 53.47980664 | C171: -999
A172: 5.693566248 | B172: 53.47083546 | C172: -999
A173: 5.694264079 | B173: 53.46186427 | C173: -999
A174: 5.694961535 | B174: 53.45289305 | C174: -999
A175: 5.695658616 | B175: 53.44392182 | C175: -999
A176: 5.696355322 | B176: 53.43495057 | C176: -999
A177: 5.697051654 | B177: 53.42597929 | C177: -999
A178: 5.697747613 | B178: 53.417008 | C178: -999
A179: 5.698443197 | B179: 53.40803668 | C179: -999
A180: 5.699138408 | B180: 53.39906535 | C180: -999
A181: 5.699833246 | B181: 53.390094 | C181: -999
A182: 5.700527711 | B182: 53.38112262 | C182: -999
A183: 5.701221803 | B183: 53.37215123 | C183: -999
A184: 5.701915523 | B184: 53.36317982 | C184: -999
A185: 5.702608871 | B185: 53.35420838 | C185: -999
A186: 5.703301847 | B186: 53.34523693 | C186: -999
A187: 5.703994451 | B187: 53.33626546 | C187: -999
A188: 5.704686684 | B188: 53.32729397 | C188: -999
A189: 5.705378546 | B189: 53.31832246 | C189: -999
A190: 5.706070037 | B190: 53.30935092 | C190: -999
A191: 5.706761158 | B191: 53.30037937 | C191: -999
A192: 5.707451908 | B192: 53.2914078 | C192: -999
A193: 5.708142289 | B193: 53.28243621 | C193: -999
A194: 5.708832299 | B194: 53.2734646 | C194: -999
A195: 5.709521941 | B195: 53.26449297 | C195: -999
A196: 5.710211213 | B196: 53.25552132 | C196: -999
A197: 5.710900116 | B197: 53.24654965 | C197: -999
A198: 5.711588651 | B198: 53.23757796 | C198: -999
A199: 5.712276817 | B199: 53.22860625 | C199: -999
A200: 5.712964615 | B200: 53.21963452 | C200: -999
... 4300 more rows

Sheet BERECHNUNG (hidden)
D2: Ertrag | L2: Einnahmen | AD2: Ausgaben | AK2: Strombezugspreis | AN2: Dyn. Amortisation
B4: Nutzungs-dauer | D4: Solarer Ertrag mit Degradation | E4: Solarer Ertrag mit Degradation kumuliert | F4: Solarer Ertrag mit Degradation BW | G4: Solarer Ertrag mit Degradation BW kumuliert | H4: Solarer Ertrag mit Degradation + Abregelung | I4: Solarer Ertrag mit Degradation + Abregelung kumuliert | J4: Solarer Ertrag mit Degradation + Abregelung BW | K4: Solarer Ertrag mit Degradation + Abregelung BW kumuliert | L4: Einsparung durch Eigenverbrauch | M4: Einsparung durch Eigenverbrauch BW | N4: Einsparung durch Eigenverbrauch BW kumuliert | O4: Einsparung durch Eigenverbrauch + Abregelung | P4: Einsparung durch Eigenverbrauch + Abregelung BW | Q4: Einsparung durch Eigenverbrauch + Abregelung BW kumuliert | R4: Verkauf Überschussstrom mit EEG-Vergütung | S4: Verkauf Überschussstrom mit EEG-Vergütung BW | T4: Verkauf Überschussstrom mit EEG-Vergütung BW kumuliert | U4: Verkauf Überschussstrom mit EEG-Vergütung + Abregelung | V4: Verkauf Überschussstrom mit EEG-Vergütung + Abregelung BW | W4: Verkauf Überschussstrom mit EEG-Vergütung + Abregelung BW kumuliert | X4: Verkauf Überschussstrom Direktvermarktung | Y4: Verkauf Überschussstrom Direktvermarktung BW | Z4: Verkauf Überschussstrom Direktvermarktung BW kumuliert | AA4: Verkauf Überschussstrom Direktvermarktung + Abregelung | AB4: Verkauf Überschussstrom Direktvermarktung + Abregelung BW | AC4: Verkauf Überschussstrom Direktvermarktung + Abregelung BW kumuliert | AD4: Pflicht zur EEG-Umlage | AE4: Pflicht zur EEG-Umlage BW | AF4: Pflicht zur EEG-Umlage BW kumuliert | AG4: Pflicht zur EEG-Umlage + Abregelung | AH4: Pflicht zur EEG-Umlage + Abregelung BW | AI4: Pflicht zur EEG-Umlage + Abregelung BW kumuliert | AK4: Bezugspreis mit Steigerung | AL4: Durchscnittlicher Bezugspreis | AN4: Jährliche OPEX-Kosten PV | AO4: Jährliche OPEX-Kosten BAT | AP4: Jährliche OPEX-Kosten PV BW | AQ4: Jährliche OPEX-Kosten BAT BW | AR4: Investition PV-Batterie-System | AS4: Cashflow diskontiert mit Kalkulationszins | AT4: Cashflow diskontiert mit Kalkulationszins kumuliert | AU4: Amortisationsrechnung ohne Abr. | AV4: Cashflow diskontiert mit Kalkulationszins mit Abr. | AW4: Cashflow diskontiert mit Kalkulationszins kumuliert mit Abr. | AX4: Amortisationsrechnung mit Abr.
B5: 0 | D5: [kWh/a] | E5: [kWh] | F5: [kWh/a] | G5: [kWh] | H5: [kWh/a] | I5: [kWh] | J5: [kWh/a] | K5: [kWh] | L5: [EUR/a] | M5: [EUR/a] | N5: [EUR] | O5: [EUR/a] | P5: [EUR/a] | Q5: [EUR] | R5: [EUR/a] | S5: [EUR/a] | T5: [EUR] | U5: [EUR/a] | V5: [EUR/a] | W5: [EUR] | X5: [EUR/a] | Y5: [EUR/a] | Z5: [EUR] | AA5: [EUR/a] | AB5: [EUR/a] | AC5: [EUR] | AD5: [EUR/a] | AE5: [EUR/a] | AF5: [EUR] | AG5: [EUR/a] | AH5: [EUR/a] | AI5: [EUR] | AK5: [EUR/kWh] | AL5: [EUR/kWh] | AN5: [EUR/a] | AO5: [EUR/a] | AP5: [EUR/a] | AQ5: [EUR/a] | AR5: =CAPEX_der_PV_Anlage+Sonstiger_CAPEX_der_PV_Anlage+CAPEX_der_Batterie -> 0 | AS5: =-AR5 -> 0 | AT5: =Tabelle612[[#This Row],[Cashflow diskontiert mit Kalkulationszins]] -> 0 | AU5: [EUR] | AV5: =-AR5 -> 0 | AW5: =Tabelle612[[#This Row],[Cashflow diskontiert mit Kalkulationszins mit Abr.]] -> 0 | AX5: [EUR]
B6: 1 | D6: =Solarer_Gesamtertrag_der_Anlage*(1-(Moduldegradation/100))^Tabelle1[[#This Row],[Nutzungs-dauer]] -> 9589.46625 | E6: =Tabelle4[[#This Row],[Solarer Ertrag mit Degradation]] -> 9589.46625 | F6: =Tabelle4[[#This Row],[Solarer Ertrag mit Degradation]]*(1+WACC_real/100)^-Tabelle1[[#This Row],[Nutzungs-dauer]] -> 9533.3875 | G6: =Tabelle4[[#This Row],[Solarer Ertrag mit Degradation BW]] -> 9533.3875 | H6: =Solarer_Gesamtertrag_der_Anlage*(1-(Moduldegradation/100))^Tabelle1[[#This Row],[Nutzungs-dauer]]*(1-(Abregelungsverluste/100)) -> 9546.313652 | I6: =Tabelle4[[#This Row],[Solarer Ertrag mit Degradation + Abregelung]] -> 9546.313652 | J6: =Tabelle4[[#This Row],[Solarer Ertrag mit Degradation + Abregelung]]*(1+WACC_real/100)^-Tabelle1[[#This Row],[Nutzungs-dauer]] -> 9490.487256 | K6: =Tabelle4[[#This Row],[Solarer Ertrag mit Degradation + Abregelung BW]] -> 9490.487256 | L6: =Tabelle4[[#This Row],[Solarer Ertrag mit Degradation]]*Tabelle6[[#This Row],[Bezugspreis mit Steigerung]]*IF(AND(Eingabe_pers_Eigenverbrauch="ja",Batterie_gewuenscht="nein"),(Eigenverbrauchsquote_pers/100),IF(AND(Eingabe_pers_Eigenverbrauch="ja",Batterie_gewuenscht="ja"),(Eigenverbauch_ohne_BAT/100)+(Eigenverbaucherhöhung/100)*(1-Batterie_Verluste/100),IF(Batterie_gewuenscht="nein",Eigenverbrauchsquote_Basis/100,(Eigenverbauch_ohne_BAT/100)+(Eigenverbaucherhöhung/100)*(1-Batterie_Verluste/100)))) -> 503.6387675 | M6: =Tabelle4[[#This Row],[Einsparung durch Eigenverbrauch]]*(1+WACC_real/100)^-Tabelle1[[#This Row],[Nutzungs-dauer]] -> 500.6935115 | N6: =Tabelle4[[#This Row],[Einsparung durch Eigenverbrauch BW]] -> 500.6935115 | O6: =Tabelle4[[#This Row],[Solarer Ertrag mit Degradation + Abregelung]]*Tabelle6[[#This Row],[Bezugspreis mit Steigerung]]*IF(AND(Eingabe_pers_Eigenverbrauch="ja",Batterie_gewuenscht="nein"),(Eigenverbrauchsquote_pers/100),IF(AND(Eingabe_pers_Eigenverbrauch="ja",Batterie_gewuenscht="ja"),(Eigenverbauch_ohne_BAT/100)+(Eigenverbaucherhöhung/100)*(1-Batterie_Verluste/100),IF(Batterie_gewuenscht="nein",Eigenverbrauchsquote_Basis/100,(Eigenverbauch_ohne_BAT/100)+(Eigenverbaucherhöhung/100)*(1-Batterie_Verluste/100)))) -> 501.372393 | P6: =Tabelle4[[#This Row],[Einsparung durch Eigenverbrauch + Abregelung]]*(1+WACC_real/100)^-Tabelle1[[#This Row],[Nutzungs-dauer]] -> 498.4403907 | Q6: =Tabelle4[[#This Row],[Einsparung durch Eigenverbrauch + Abregelung BW]] -> 498.4403907 | R6: =Tabelle4[[#This Row],[Solarer Ertrag mit Degradation]]*EEG_Vergütung*IF(Eingabe_pers_Eigenverbrauch="ja",(1-Eigenverbrauchsquote_pers/100),(1-(Eigenverbrauchsquote_Basis/100)))*IF(OR(Feste_EEG_Vergütung="nein",Direktvermarktung="ja"),0,1) -> 650.5493904 | S6: =Tabelle4[[#This Row],[Verkauf Überschussstrom mit EEG-Vergütung]]*(1+WACC_real/100)^-Tabelle1[[#This Row],[Nutzungs-dauer]] -> 646.745008 | T6: =Tabelle4[[#This Row],[Verkauf Überschussstrom mit EEG-Vergütung BW]] -> 646.745008 | U6: =Tabelle4[[#This Row],[Solarer Ertrag mit Degradation + Abregelung]]*EEG_Vergütung*IF(Eingabe_pers_Eigenverbrauch="ja",(1-Eigenverbrauchsquote_pers/100),(1-(Eigenverbrauchsquote_Basis/100)))*IF(OR(Feste_EEG_Vergütung="nein",Direktvermarktung="ja"),0,1) -> 647.6219181 | V6: =Tabelle4[[#This Row],[Verkauf Überschussstrom mit EEG-Vergütung + Abregelung]]*(1+WACC_real/100)^-Tabelle1[[#This Row],[Nutzungs-dauer]] -> 643.8346555 | W6: =Tabelle4[[#This Row],[Verkauf Überschussstrom mit EEG-Vergütung + Abregelung BW]] -> 643.8346555 | X6: =Tabelle4[[#This Row],[Solarer Ertrag mit Degradation]]*IF(Eingabe_pers_Eigenverbrauch="ja",(1-Eigenverbrauchsquote_pers/100),(1-(Eigenverbrauchsquote_Basis/100)))*IF(AND(Direktvermarktung="nein",Feste_EEG_Vergütung="nein"),Direktvermarktung_sonstige,IF(Direktvermarktung="ja",Direktvermarktung_gefördert,0)) -> 0 | Y6: =Tabelle4[[#This Row],[Verkauf Überschussstrom Direktvermarktung]]*(1+WACC_real/100)^-Tabelle1[[#This Row],[Nutzungs-dauer]] -> 0 | Z6: =Tabelle4[[#This Row],[Verkauf Überschussstrom Direktvermarktung BW]] -> 0 | AA6: =Tabelle4[[#This Row],[Solarer Ertrag mit Degradation + Abregelung]]*IF(Eingabe_pers_Eigenverbrauch="ja",(1-Eigenverbrauchsquote_pers/100),(1-(Eigenverbrauchsquote_Basis/100)))*IF(AND(Direktvermarktung="nein",Feste_EEG_Vergütung="nein"),Direktvermarktung_sonstige,IF(Direktvermarktung="ja",Direktvermarktung_gefördert,0)) -> 0 | AB6: =Tabelle4[[#This Row],[Verkauf Überschussstrom Direktvermarktung + Abregelung]]*(1+WACC_real/100)^-Tabelle1[[#This Row],[Nutzungs-dauer]] -> 0 | AC6: =Tabelle4[[#This Row],[Verkauf Überschussstrom Direktvermarktung + Abregelung BW]] -> 0 | AD6: =Tabelle4[[#This Row],[Solarer Ertrag mit Degradation]]*IF(Eingabe_pers_Eigenverbrauch="ja",(Eigenverbrauchsquote_pers/100),(Eigenverbrauchsquote_Basis/100))*IF(Installierte_Leistung_der_GesamtAnlage<=10, 0,1)*IF(AND(Eingabe_pers_Eigenverbrauch="ja", OR(Eigenverbrauchsquote_pers=100,Eigenverbrauchsquote_pers=0)),0,1)*EEG_Umlage*(PRZNT_EEG_Umlage/100) -> 0 | AE6: =Tabelle4[[#This Row],[Pflicht zur EEG-Umlage]]*(1+WACC_real/100)^-Tabelle1[[#This Row],[Nutzungs-dauer]] -> 0 | AF6: =Tabelle4[[#This Row],[Pflicht zur EEG-Umlage BW]] -> 0 | AG6: =Tabelle4[[#This Row],[Solarer Ertrag mit Degradation + Abregelung]]*IF(Eingabe_pers_Eigenverbrauch="ja",(Eigenverbrauchsquote_pers/100),(Eigenverbrauchsquote_Basis/100))*IF(Installierte_Leistung_der_GesamtAnlage<=10, 0,1)*IF(AND(Eingabe_pers_Eigenverbrauch="ja", OR(Eigenverbrauchsquote_pers=100,Eigenverbrauchsquote_pers=0)),0,1)*EEG_Umlage*(PRZNT_EEG_Umlage/100) -> 0 | AH6: =Tabelle4[[#This Row],[Pflicht zur EEG-Umlage + Abregelung]]*(1+WACC_real/100)^-Tabelle1[[#This Row],[Nutzungs-dauer]] -> 0 | AI6: =Tabelle4[[#This Row],[Pflicht zur EEG-Umlage + Abregelung BW]] -> 0 | AK6: =Netto_Strombezugspreis_aktuell*(1+(Strompreissteigerung/100))^B6 -> 0.2626 | AL6: =AVERAGE(Tabelle6[[#This Row],[Bezugspreis mit Steigerung]]) -> 0.2626 | AN6: =Jährliche_OPEX_Kosten_PV -> 0 | AO6: =Jährliche_OPEX_Kosten_Batterie -> 0 | AP6: =Tabelle612[[#This Row],[Jährliche OPEX-Kosten PV]]*(1+WACC_real/100)^-Tabelle1[[#This Row],[Nutzungs-dauer]] -> 0 | AQ6: =Tabelle612[[#This Row],[Jährliche OPEX-Kosten BAT]]*(1+WACC_real/100)^-Tabelle1[[#This Row],[Nutzungs-dauer]] -> 0 | AR6: =IF(Tabelle1[[#This Row],[Nutzungs-dauer]]=Lebensdauer_des_ersten_Wechselrichters,CAPEX_des_Ersatz_Wechselrichters,IF(Tabelle1[[#This Row],[Nutzungs-dauer]]=Lebensdauer_der_ersten_Batterie,CAPEX_der_Ersatz_Batterie,0)) -> 0 | AS6: =Tabelle4[[#This Row],[Einsparung durch Eigenverbrauch BW]]+Tabelle4[[#This Row],[Verkauf Überschussstrom mit EEG-Vergütung BW]]+Tabelle4[[#This Row],[Verkauf Überschussstrom Direktvermarktung BW]]-Tabelle4[[#This Row],[Pflicht zur EEG-Umlage BW]]-Tabelle612[[#This Row],[Jährliche OPEX-Kosten PV BW]]-Tabelle612[[#This Row],[Jährliche OPEX-Kosten BAT BW]]-Tabelle612[[#This Row],[Investition PV-Batterie-System]] -> 1147.43852 | AT6: =AT5+Tabelle612[[#This Row],[Cashflow diskontiert mit Kalkulationszins]] -> 1147.43852 | AU6: =Tabelle612[[#This Row],[Cashflow diskontiert mit Kalkulationszins kumuliert]] -> 1147.43852 | AV6: =Tabelle4[[#This Row],[Einsparung durch Eigenverbrauch + Abregelung BW]]+Tabelle4[[#This Row],[Verkauf Überschussstrom mit EEG-Vergütung + Abregelung BW]]+Tabelle4[[#This Row],[Verkauf Überschussstrom Direktvermarktung + Abregelung BW]]-Tabelle4[[#This Row],[Pflicht zur EEG-Umlage + Abregelung BW]]-Tabelle612[[#This Row],[Jährliche OPEX-Kosten PV BW]]-Tabelle612[[#This Row],[Jährliche OPEX-Kosten BAT BW]]-Tabelle612[[#This Row],[Investition PV-Batterie-System]] -> 1142.275046 | AW6: =AW5+Tabelle612[[#This Row],[Cashflow diskontiert mit Kalkulationszins mit Abr.]] -> 1142.275046 | AX6: =Tabelle612[[#This Row],[Cashflow diskontiert mit Kalkulationszins kumuliert mit Abr.]] -> 1142.275046
B7: 2 | D7: =Solarer_Gesamtertrag_der_Anlage*(1-(Moduldegradation/100))^Tabelle1[[#This Row],[Nutzungs-dauer]] -> 9565.492584 | E7: =E6+Tabelle4[[#This Row],[Solarer Ertrag mit Degradation]] -> 19154.95883 | F7: =Tabelle4[[#This Row],[Solarer Ertrag mit Degradation]]*(1+WACC_real/100)^-Tabelle1[[#This Row],[Nutzungs-dauer]] -> 9453.942604 | G7: =G6+Tabelle4[[#This Row],[Solarer Ertrag mit Degradation BW]] -> 18987.3301 | H7: =Solarer_Gesamtertrag_der_Anlage*(1-(Moduldegradation/100))^Tabelle1[[#This Row],[Nutzungs-dauer]]*(1-(Abregelungsverluste/100)) -> 9522.447868 | I7: =I6+Tabelle4[[#This Row],[Solarer Ertrag mit Degradation + Abregelung]] -> 19068.76152 | J7: =Tabelle4[[#This Row],[Solarer Ertrag mit Degradation + Abregelung]]*(1+WACC_real/100)^-Tabelle1[[#This Row],[Nutzungs-dauer]] -> 9411.399862 | K7: =K6+Tabelle4[[#This Row],[Solarer Ertrag mit Degradation + Abregelung BW]] -> 18901.88712 | L7: =Tabelle4[[#This Row],[Solarer Ertrag mit Degradation]]*Tabelle6[[#This Row],[Bezugspreis mit Steigerung]]*IF(AND(Eingabe_pers_Eigenverbrauch="ja",Batterie_gewuenscht="nein"),(Eigenverbrauchsquote_pers/100),IF(AND(Eingabe_pers_Eigenverbrauch="ja",Batterie_gewuenscht="ja"),(Eigenverbauch_ohne_BAT/100)+(Eigenverbaucherhöhung/100)*(1-Batterie_Verluste/100),IF(Batterie_gewuenscht="nein",Eigenverbrauchsquote_Basis/100,(Eigenverbauch_ohne_BAT/100)+(Eigenverbaucherhöhung/100)*(1-Batterie_Verluste/100)))) -> 507.4034672 | M7: =Tabelle4[[#This Row],[Einsparung durch Eigenverbrauch]]*(1+WACC_real/100)^-Tabelle1[[#This Row],[Nutzungs-dauer]] -> 501.4862762 | N7: =N6+Tabelle4[[#This Row],[Einsparung durch Eigenverbrauch BW]] -> 1002.179788 | O7: =Tabelle4[[#This Row],[Solarer Ertrag mit Degradation + Abregelung]]*Tabelle6[[#This Row],[Bezugspreis mit Steigerung]]*IF(AND(Eingabe_pers_Eigenverbrauch="ja",Batterie_gewuenscht="nein"),(Eigenverbrauchsquote_pers/100),IF(AND(Eingabe_pers_Eigenverbrauch="ja",Batterie_gewuenscht="ja"),(Eigenverbauch_ohne_BAT/100)+(Eigenverbaucherhöhung/100)*(1-Batterie_Verluste/100),IF(Batterie_gewuenscht="nein",Eigenverbrauchsquote_Basis/100,(Eigenverbauch_ohne_BAT/100)+(Eigenverbaucherhöhung/100)*(1-Batterie_Verluste/100)))) -> 505.1201516 | P7: =Tabelle4[[#This Row],[Einsparung durch Eigenverbrauch + Abregelung]]*(1+WACC_real/100)^-Tabelle1[[#This Row],[Nutzungs-dauer]] -> 499.229588 | Q7: =Q6+Tabelle4[[#This Row],[Einsparung durch Eigenverbrauch + Abregelung BW]] -> 997.6699787 | R7: =Tabelle4[[#This Row],[Solarer Ertrag mit Degradation]]*EEG_Vergütung*IF(Eingabe_pers_Eigenverbrauch="ja",(1-Eigenverbrauchsquote_pers/100),(1-(Eigenverbrauchsquote_Basis/100)))*IF(OR(Feste_EEG_Vergütung="nein",Direktvermarktung="ja"),0,1) -> 648.9230169 | S7: =Tabelle4[[#This Row],[Verkauf Überschussstrom mit EEG-Vergütung]]*(1+WACC_real/100)^-Tabelle1[[#This Row],[Nutzungs-dauer]] -> 641.3554663 | T7: =T6+Tabelle4[[#This Row],[Verkauf Überschussstrom mit EEG-Vergütung BW]] -> 1288.100474 | U7: =Tabelle4[[#This Row],[Solarer Ertrag mit Degradation + Abregelung]]*EEG_Vergütung*IF(Eingabe_pers_Eigenverbrauch="ja",(1-Eigenverbrauchsquote_pers/100),(1-(Eigenverbrauchsquote_Basis/100)))*IF(OR(Feste_EEG_Vergütung="nein",Direktvermarktung="ja"),0,1) -> 646.0028633 | V7: =Tabelle4[[#This Row],[Verkauf Überschussstrom mit EEG-Vergütung + Abregelung]]*(1+WACC_real/100)^-Tabelle1[[#This Row],[Nutzungs-dauer]] -> 638.4693667 | W7: =W6+Tabelle4[[#This Row],[Verkauf Überschussstrom mit EEG-Vergütung + Abregelung BW]] -> 1282.304022 | X7: =Tabelle4[[#This Row],[Solarer Ertrag mit Degradation]]*IF(Eingabe_pers_Eigenverbrauch="ja",(1-Eigenverbrauchsquote_pers/100),(1-(Eigenverbrauchsquote_Basis/100)))*IF(AND(Direktvermarktung="nein",Feste_EEG_Vergütung="nein"),Direktvermarktung_sonstige,IF(Direktvermarktung="ja",Direktvermarktung_gefördert,0)) -> 0 | Y7: =Tabelle4[[#This Row],[Verkauf Überschussstrom Direktvermarktung]]*(1+WACC_real/100)^-Tabelle1[[#This Row],[Nutzungs-dauer]] -> 0 | Z7: =Z6+Tabelle4[[#This Row],[Verkauf Überschussstrom Direktvermarktung BW]] -> 0 | AA7: =Tabelle4[[#This Row],[Solarer Ertrag mit Degradation + Abregelung]]*IF(Eingabe_pers_Eigenverbrauch="ja",(1-Eigenverbrauchsquote_pers/100),(1-(Eigenverbrauchsquote_Basis/100)))*IF(AND(Direktvermarktung="nein",Feste_EEG_Vergütung="nein"),Direktvermarktung_sonstige,IF(Direktvermarktung="ja",Direktvermarktung_gefördert,0)) -> 0 | AB7: =Tabelle4[[#This Row],[Verkauf Überschussstrom Direktvermarktung + Abregelung]]*(1+WACC_real/100)^-Tabelle1[[#This Row],[Nutzungs-dauer]] -> 0 | AC7: =AC6+Tabelle4[[#This Row],[Verkauf Überschussstrom Direktvermarktung + Abregelung BW]] -> 0 | AD7: =Tabelle4[[#This Row],[Solarer Ertrag mit Degradation]]*IF(Eingabe_pers_Eigenverbrauch="ja",(Eigenverbrauchsquote_pers/100),(Eigenverbrauchsquote_Basis/100))*IF(Installierte_Leistung_der_GesamtAnlage<=10, 0,1)*IF(AND(Eingabe_pers_Eigenverbrauch="ja", OR(Eigenverbrauchsquote_pers=100,Eigenverbrauchsquote_pers=0)),0,1)*EEG_Umlage*(PRZNT_EEG_Umlage/100) -> 0 | AE7: =Tabelle4[[#This Row],[Pflicht zur EEG-Umlage]]*(1+WACC_real/100)^-Tabelle1[[#This Row],[Nutzungs-dauer]] -> 0 | AF7: =AF6+Tabelle4[[#This Row],[Pflicht zur EEG-Umlage BW]] -> 0 | AG7: =Tabelle4[[#This Row],[Solarer Ertrag mit Degradation + Abregelung]]*IF(Eingabe_pers_Eigenverbrauch="ja",(Eigenverbrauchsquote_pers/100),(Eigenverbrauchsquote_Basis/100))*IF(Installierte_Leistung_der_GesamtAnlage<=10, 0,1)*IF(AND(Eingabe_pers_Eigenverbrauch="ja", OR(Eigenverbrauchsquote_pers=100,Eigenverbrauchsquote_pers=0)),0,1)*EEG_Umlage*(PRZNT_EEG_Umlage/100) -> 0 | AH7: =Tabelle4[[#This Row],[Pflicht zur EEG-Umlage + Abregelung]]*(1+WACC_real/100)^-Tabelle1[[#This Row],[Nutzungs-dauer]] -> 0 | AI7: =AI6+Tabelle4[[#This Row],[Pflicht zur EEG-Umlage + Abregelung BW]] -> 0 | AK7: 0.265226 | AL7: =AVERAGE($AK$6:AK7) -> 0.263913 | AN7: 0 | AO7: 0 | AP7: =Tabelle612[[#This Row],[Jährliche OPEX-Kosten PV]]*(1+WACC_real/100)^-Tabelle1[[#This Row],[Nutzungs-dauer]] -> 0 | AQ7: =Tabelle612[[#This Row],[Jährliche OPEX-Kosten BAT]]*(1+WACC_real/100)^-Tabelle1[[#This Row],[Nutzungs-dauer]] -> 0 | AR7: =IF(Tabelle1[[#This Row],[Nutzungs-dauer]]=Lebensdauer_des_ersten_Wechselrichters,CAPEX_des_Ersatz_Wechselrichters,IF(Tabelle1[[#This Row],[Nutzungs-dauer]]=Lebensdauer_der_ersten_Batterie,CAPEX_der_Ersatz_Batterie,0)) -> 0 | AS7: =Tabelle4[[#This Row],[Einsparung durch Eigenverbrauch BW]]+Tabelle4[[#This Row],[Verkauf Überschussstrom mit EEG-Vergütung BW]]+Tabelle4[[#This Row],[Verkauf Überschussstrom Direktvermarktung BW]]-Tabelle4[[#This Row],[Pflicht zur EEG-Umlage BW]]-Tabelle612[[#This Row],[Jährliche OPEX-Kosten PV BW]]-Tabelle612[[#This Row],[Jährliche OPEX-Kosten BAT BW]]-Tabelle612[[#This Row],[Investition PV-Batterie-System]] -> 1142.841742 | AT7: =AT6+Tabelle612[[#This Row],[Cashflow diskontiert mit Kalkulationszins]] -> 2290.280262 | AU7: =Tabelle612[[#This Row],[Cashflow diskontiert mit Kalkulationszins kumuliert]] -> 2290.280262 | AV7: =Tabelle4[[#This Row],[Einsparung durch Eigenverbrauch + Abregelung BW]]+Tabelle4[[#This Row],[Verkauf Überschussstrom mit EEG-Vergütung + Abregelung BW]]+Tabelle4[[#This Row],[Verkauf Überschussstrom Direktvermarktung + Abregelung BW]]-Tabelle4[[#This Row],[Pflicht zur EEG-Umlage + Abregelung BW]]-Tabelle612[[#This Row],[Jährliche OPEX-Kosten PV BW]]-Tabelle612[[#This Row],[Jährliche OPEX-Kosten BAT BW]]-Tabelle612[[#This Row],[Investition PV-Batterie-System]] -> 1137.698955 | AW7: =AW6+Tabelle612[[#This Row],[Cashflow diskontiert mit Kalkulationszins]] -> 2285.116789 | AX7: =Tabelle612[[#This Row],[Cashflow diskontiert mit Kalkulationszins kumuliert mit Abr.]] -> 2285.116789
B8: 3 | D8: =Solarer_Gesamtertrag_der_Anlage*(1-(Moduldegradation/100))^Tabelle1[[#This Row],[Nutzungs-dauer]] -> 9541.578853 | E8: =E7+Tabelle4[[#This Row],[Solarer Ertrag mit Degradation]] -> 28696.53769 | F8: =Tabelle4[[#This Row],[Solarer Ertrag mit Degradation]]*(1+WACC_real/100)^-Tabelle1[[#This Row],[Nutzungs-dauer]] -> 9375.159749 | G8: =G7+Tabelle4[[#This Row],[Solarer Ertrag mit Degradation BW]] -> 28362.48985 | H8: =Solarer_Gesamtertrag_der_Anlage*(1-(Moduldegradation/100))^Tabelle1[[#This Row],[Nutzungs-dauer]]*(1-(Abregelungsverluste/100)) -> 9498.641748 | I8: =I7+Tabelle4[[#This Row],[Solarer Ertrag mit Degradation + Abregelung]] -> 28567.40327 | J8: =Tabelle4[[#This Row],[Solarer Ertrag mit Degradation + Abregelung]]*(1+WACC_real/100)^-Tabelle1[[#This Row],[Nutzungs-dauer]] -> 9332.97153 | K8: =K7+Tabelle4[[#This Row],[Solarer Ertrag mit Degradation + Abregelung BW]] -> 28234.85865 | L8: =Tabelle4[[#This Row],[Solarer Ertrag mit Degradation]]*Tabelle6[[#This Row],[Bezugspreis mit Steigerung]]*IF(AND(Eingabe_pers_Eigenverbrauch="ja",Batterie_gewuenscht="nein"),(Eigenverbrauchsquote_pers/100),IF(AND(Eingabe_pers_Eigenverbrauch="ja",Batterie_gewuenscht="ja"),(Eigenverbauch_ohne_BAT/100)+(Eigenverbaucherhöhung/100)*(1-Batterie_Verluste/100),IF(Batterie_gewuenscht="nein",Eigenverbrauchsquote_Basis/100,(Eigenverbauch_ohne_BAT/100)+(Eigenverbaucherhöhung/100)*(1-Batterie_Verluste/100)))) -> 511.1963082 | M8: =Tabelle4[[#This Row],[Einsparung durch Eigenverbrauch]]*(1+WACC_real/100)^-Tabelle1[[#This Row],[Nutzungs-dauer]] -> 502.2802962 | N8: =N7+Tabelle4[[#This Row],[Einsparung durch Eigenverbrauch BW]] -> 1504.460084 | O8: =Tabelle4[[#This Row],[Solarer Ertrag mit Degradation + Abregelung]]*Tabelle6[[#This Row],[Bezugspreis mit Steigerung]]*IF(AND(Eingabe_pers_Eigenverbrauch="ja",Batterie_gewuenscht="nein"),(Eigenverbrauchsquote_pers/100),IF(AND(Eingabe_pers_Eigenverbrauch="ja",Batterie_gewuenscht="ja"),(Eigenverbauch_ohne_BAT/100)+(Eigenverbaucherhöhung/100)*(1-Batterie_Verluste/100),IF(Batterie_gewuenscht="nein",Eigenverbrauchsquote_Basis/100,(Eigenverbauch_ohne_BAT/100)+(Eigenverbaucherhöhung/100)*(1-Batterie_Verluste/100)))) -> 508.8959248 | P8: =Tabelle4[[#This Row],[Einsparung durch Eigenverbrauch + Abregelung]]*(1+WACC_real/100)^-Tabelle1[[#This Row],[Nutzungs-dauer]] -> 500.0200348 | Q8: =Q7+Tabelle4[[#This Row],[Einsparung durch Eigenverbrauch + Abregelung BW]] -> 1497.690014 | R8: =Tabelle4[[#This Row],[Solarer Ertrag mit Degradation]]*EEG_Vergütung*IF(Eingabe_pers_Eigenverbrauch="ja",(1-Eigenverbrauchsquote_pers/100),(1-(Eigenverbrauchsquote_Basis/100)))*IF(OR(Feste_EEG_Vergütung="nein",Direktvermarktung="ja"),0,1) -> 647.3007094 | S8: =Tabelle4[[#This Row],[Verkauf Überschussstrom mit EEG-Vergütung]]*(1+WACC_real/100)^-Tabelle1[[#This Row],[Nutzungs-dauer]] -> 636.0108374 | T8: =T7+Tabelle4[[#This Row],[Verkauf Überschussstrom mit EEG-Vergütung BW]] -> 1924.111312 | U8: =Tabelle4[[#This Row],[Solarer Ertrag mit Degradation + Abregelung]]*EEG_Vergütung*IF(Eingabe_pers_Eigenverbrauch="ja",(1-Eigenverbrauchsquote_pers/100),(1-(Eigenverbrauchsquote_Basis/100)))*IF(OR(Feste_EEG_Vergütung="nein",Direktvermarktung="ja"),0,1) -> 644.3878562 | V8: =Tabelle4[[#This Row],[Verkauf Überschussstrom mit EEG-Vergütung + Abregelung]]*(1+WACC_real/100)^-Tabelle1[[#This Row],[Nutzungs-dauer]] -> 633.1487886 | W8: =W7+Tabelle4[[#This Row],[Verkauf Überschussstrom mit EEG-Vergütung + Abregelung BW]] -> 1915.452811 | X8: =Tabelle4[[#This Row],[Solarer Ertrag mit Degradation]]*IF(Eingabe_pers_Eigenverbrauch="ja",(1-Eigenverbrauchsquote_pers/100),(1-(Eigenverbrauchsquote_Basis/100)))*IF(AND(Direktvermarktung="nein",Feste_EEG_Vergütung="nein"),Direktvermarktung_sonstige,IF(Direktvermarktung="ja",Direktvermarktung_gefördert,0)) -> 0 | Y8: =Tabelle4[[#This Row],[Verkauf Überschussstrom Direktvermarktung]]*(1+WACC_real/100)^-Tabelle1[[#This Row],[Nutzungs-dauer]] -> 0 | Z8: =Z7+Tabelle4[[#This Row],[Verkauf Überschussstrom Direktvermarktung BW]] -> 0 | AA8: =Tabelle4[[#This Row],[Solarer Ertrag mit Degradation + Abregelung]]*IF(Eingabe_pers_Eigenverbrauch="ja",(1-Eigenverbrauchsquote_pers/100),(1-(Eigenverbrauchsquote_Basis/100)))*IF(AND(Direktvermarktung="nein",Feste_EEG_Vergütung="nein"),Direktvermarktung_sonstige,IF(Direktvermarktung="ja",Direktvermarktung_gefördert,0)) -> 0 | AB8: =Tabelle4[[#This Row],[Verkauf Überschussstrom Direktvermarktung + Abregelung]]*(1+WACC_real/100)^-Tabelle1[[#This Row],[Nutzungs-dauer]] -> 0 | AC8: =AC7+Tabelle4[[#This Row],[Verkauf Überschussstrom Direktvermarktung + Abregelung BW]] -> 0 | AD8: =Tabelle4[[#This Row],[Solarer Ertrag mit Degradation]]*IF(Eingabe_pers_Eigenverbrauch="ja",(Eigenverbrauchsquote_pers/100),(Eigenverbrauchsquote_Basis/100))*IF(Installierte_Leistung_der_GesamtAnlage<=10, 0,1)*IF(AND(Eingabe_pers_Eigenverbrauch="ja", OR(Eigenverbrauchsquote_pers=100,Eigenverbrauchsquote_pers=0)),0,1)*EEG_Umlage*(PRZNT_EEG_Umlage/100) -> 0 | AE8: =Tabelle4[[#This Row],[Pflicht zur EEG-Umlage]]*(1+WACC_real/100)^-Tabelle1[[#This Row],[Nutzungs-dauer]] -> 0 | AF8: =AF7+Tabelle4[[#This Row],[Pflicht zur EEG-Umlage BW]] -> 0 | AG8: =Tabelle4[[#This Row],[Solarer Ertrag mit Degradation + Abregelung]]*IF(Eingabe_pers_Eigenverbrauch="ja",(Eigenverbrauchsquote_pers/100),(Eigenverbrauchsquote_Basis/100))*IF(Installierte_Leistung_der_GesamtAnlage<=10, 0,1)*IF(AND(Eingabe_pers_Eigenverbrauch="ja", OR(Eigenverbrauchsquote_pers=100,Eigenverbrauchsquote_pers=0)),0,1)*EEG_Umlage*(PRZNT_EEG_Umlage/100) -> 0 | AH8: =Tabelle4[[#This Row],[Pflicht zur EEG-Umlage + Abregelung]]*(1+WACC_real/100)^-Tabelle1[[#This Row],[Nutzungs-dauer]] -> 0 | AI8: =AI7+Tabelle4[[#This Row],[Pflicht zur EEG-Umlage + Abregelung BW]] -> 0 | AK8: 0.26787826 | AL8: =AVERAGE($AK$6:AK8) -> 0.2652347533 | AN8: 0 | AO8: 0 | AP8: =Tabelle612[[#This Row],[Jährliche OPEX-Kosten PV]]*(1+WACC_real/100)^-Tabelle1[[#This Row],[Nutzungs-dauer]] -> 0 | AQ8: =Tabelle612[[#This Row],[Jährliche OPEX-Kosten BAT]]*(1+WACC_real/100)^-Tabelle1[[#This Row],[Nutzungs-dauer]] -> 0 | AR8: =IF(Tabelle1[[#This Row],[Nutzungs-dauer]]=Lebensdauer_des_ersten_Wechselrichters,CAPEX_des_Ersatz_Wechselrichters,IF(Tabelle1[[#This Row],[Nutzungs-dauer]]=Lebensdauer_der_ersten_Batterie,CAPEX_der_Ersatz_Batterie,0)) -> 0 | AS8: =Tabelle4[[#This Row],[Einsparung durch Eigenverbrauch BW]]+Tabelle4[[#This Row],[Verkauf Überschussstrom mit EEG-Vergütung BW]]+Tabelle4[[#This Row],[Verkauf Überschussstrom Direktvermarktung BW]]-Tabelle4[[#This Row],[Pflicht zur EEG-Umlage BW]]-Tabelle612[[#This Row],[Jährliche OPEX-Kosten PV BW]]-Tabelle612[[#This Row],[Jährliche OPEX-Kosten BAT BW]]-Tabelle612[[#This Row],[Investition PV-Batterie-System]] -> 1138.291134 | AT8: =AT7+Tabelle612[[#This Row],[Cashflow diskontiert mit Kalkulationszins]] -> 3428.571396 | AU8: =Tabelle612[[#This Row],[Cashflow diskontiert mit Kalkulationszins kumuliert]] -> 3428.571396 | AV8: =Tabelle4[[#This Row],[Einsparung durch Eigenverbrauch + Abregelung BW]]+Tabelle4[[#This Row],[Verkauf Überschussstrom mit EEG-Vergütung + Abregelung BW]]+Tabelle4[[#This Row],[Verkauf Überschussstrom Direktvermarktung + Abregelung BW]]-Tabelle4[[#This Row],[Pflicht zur EEG-Umlage + Abregelung BW]]-Tabelle612[[#This Row],[Jährliche OPEX-Kosten PV BW]]-Tabelle612[[#This Row],[Jährliche OPEX-Kosten BAT BW]]-Tabelle612[[#This Row],[Investition PV-Batterie-System]] -> 1133.168823 | AW8: =AW7+Tabelle612[[#This Row],[Cashflow diskontiert mit Kalkulationszins]] -> 3423.407922 | AX8: =Tabelle612[[#This Row],[Cashflow diskontiert mit Kalkulationszins kumuliert mit Abr.]] -> 3423.407922
B9: 4 | D9: =Solarer_Gesamtertrag_der_Anlage*(1-(Moduldegradation/100))^Tabelle1[[#This Row],[Nutzungs-dauer]] -> 9517.724906 | E9: =E8+Tabelle4[[#This Row],[Solarer Ertrag mit Degradation]] -> 38214.26259 | F9: =Tabelle4[[#This Row],[Solarer Ertrag mit Degradation]]*(1+WACC_real/100)^-Tabelle1[[#This Row],[Nutzungs-dauer]] -> 9297.033418 | G9: =G8+Tabelle4[[#This Row],[Solarer Ertrag mit Degradation BW]] -> 37659.52327 | H9: =Solarer_Gesamtertrag_der_Anlage*(1-(Moduldegradation/100))^Tabelle1[[#This Row],[Nutzungs-dauer]]*(1-(Abregelungsverluste/100)) -> 9474.895144 | I9: =I8+Tabelle4[[#This Row],[Solarer Ertrag mit Degradation + Abregelung]] -> 38042.29841 | J9: =Tabelle4[[#This Row],[Solarer Ertrag mit Degradation + Abregelung]]*(1+WACC_real/100)^-Tabelle1[[#This Row],[Nutzungs-dauer]] -> 9255.196768 | K9: =K8+Tabelle4[[#This Row],[Solarer Ertrag mit Degradation + Abregelung BW]] -> 37490.05542 | L9: =Tabelle4[[#This Row],[Solarer Ertrag mit Degradation]]*Tabelle6[[#This Row],[Bezugspreis mit Steigerung]]*IF(AND(Eingabe_pers_Eigenverbrauch="ja",Batterie_gewuenscht="nein"),(Eigenverbrauchsquote_pers/100),IF(AND(Eingabe_pers_Eigenverbrauch="ja",Batterie_gewuenscht="ja"),(Eigenverbauch_ohne_BAT/100)+(Eigenverbaucherhöhung/100)*(1-Batterie_Verluste/100),IF(Batterie_gewuenscht="nein",Eigenverbrauchsquote_Basis/100,(Eigenverbauch_ohne_BAT/100)+(Eigenverbaucherhöhung/100)*(1-Batterie_Verluste/100)))) -> 515.0175006 | M9: =Tabelle4[[#This Row],[Einsparung durch Eigenverbrauch]]*(1+WACC_real/100)^-Tabelle1[[#This Row],[Nutzungs-dauer]] -> 503.0755733 | N9: =N8+Tabelle4[[#This Row],[Einsparung durch Eigenverbrauch BW]] -> 2007.535657 | O9: =Tabelle4[[#This Row],[Solarer Ertrag mit Degradation + Abregelung]]*Tabelle6[[#This Row],[Bezugspreis mit Steigerung]]*IF(AND(Eingabe_pers_Eigenverbrauch="ja",Batterie_gewuenscht="nein"),(Eigenverbrauchsquote_pers/100),IF(AND(Eingabe_pers_Eigenverbrauch="ja",Batterie_gewuenscht="ja"),(Eigenverbauch_ohne_BAT/100)+(Eigenverbaucherhöhung/100)*(1-Batterie_Verluste/100),IF(Batterie_gewuenscht="nein",Eigenverbrauchsquote_Basis/100,(Eigenverbauch_ohne_BAT/100)+(Eigenverbaucherhöhung/100)*(1-Batterie_Verluste/100)))) -> 512.6999218 | P9: =Tabelle4[[#This Row],[Einsparung durch Eigenverbrauch + Abregelung]]*(1+WACC_real/100)^-Tabelle1[[#This Row],[Nutzungs-dauer]] -> 500.8117332 | Q9: =Q8+Tabelle4[[#This Row],[Einsparung durch Eigenverbrauch + Abregelung BW]] -> 1998.501747 | R9: =Tabelle4[[#This Row],[Solarer Ertrag mit Degradation]]*EEG_Vergütung*IF(Eingabe_pers_Eigenverbrauch="ja",(1-Eigenverbrauchsquote_pers/100),(1-(Eigenverbrauchsquote_Basis/100)))*IF(OR(Feste_EEG_Vergütung="nein",Direktvermarktung="ja"),0,1) -> 645.6824576 | S9: =Tabelle4[[#This Row],[Verkauf Überschussstrom mit EEG-Vergütung]]*(1+WACC_real/100)^-Tabelle1[[#This Row],[Nutzungs-dauer]] -> 630.7107471 | T9: =T8+Tabelle4[[#This Row],[Verkauf Überschussstrom mit EEG-Vergütung BW]] -> 2554.822059 | U9: =Tabelle4[[#This Row],[Solarer Ertrag mit Degradation + Abregelung]]*EEG_Vergütung*IF(Eingabe_pers_Eigenverbrauch="ja",(1-Eigenverbrauchsquote_pers/100),(1-(Eigenverbrauchsquote_Basis/100)))*IF(OR(Feste_EEG_Vergütung="nein",Direktvermarktung="ja"),0,1) -> 642.7768865 | V9: =Tabelle4[[#This Row],[Verkauf Überschussstrom mit EEG-Vergütung + Abregelung]]*(1+WACC_real/100)^-Tabelle1[[#This Row],[Nutzungs-dauer]] -> 627.8725487 | W9: =W8+Tabelle4[[#This Row],[Verkauf Überschussstrom mit EEG-Vergütung + Abregelung BW]] -> 2543.325359 | X9: =Tabelle4[[#This Row],[Solarer Ertrag mit Degradation]]*IF(Eingabe_pers_Eigenverbrauch="ja",(1-Eigenverbrauchsquote_pers/100),(1-(Eigenverbrauchsquote_Basis/100)))*IF(AND(Direktvermarktung="nein",Feste_EEG_Vergütung="nein"),Direktvermarktung_sonstige,IF(Direktvermarktung="ja",Direktvermarktung_gefördert,0)) -> 0 | Y9: =Tabelle4[[#This Row],[Verkauf Überschussstrom Direktvermarktung]]*(1+WACC_real/100)^-Tabelle1[[#This Row],[Nutzungs-dauer]] -> 0 | Z9: =Z8+Tabelle4[[#This Row],[Verkauf Überschussstrom Direktvermarktung BW]] -> 0 | AA9: =Tabelle4[[#This Row],[Solarer Ertrag mit Degradation + Abregelung]]*IF(Eingabe_pers_Eigenverbrauch="ja",(1-Eigenverbrauchsquote_pers/100),(1-(Eigenverbrauchsquote_Basis/100)))*IF(AND(Direktvermarktung="nein",Feste_EEG_Vergütung="nein"),Direktvermarktung_sonstige,IF(Direktvermarktung="ja",Direktvermarktung_gefördert,0)) -> 0 | AB9: =Tabelle4[[#This Row],[Verkauf Überschussstrom Direktvermarktung + Abregelung]]*(1+WACC_real/100)^-Tabelle1[[#This Row],[Nutzungs-dauer]] -> 0 | AC9: =AC8+Tabelle4[[#This Row],[Verkauf Überschussstrom Direktvermarktung + Abregelung BW]] -> 0 | AD9: =Tabelle4[[#This Row],[Solarer Ertrag mit Degradation]]*IF(Eingabe_pers_Eigenverbrauch="ja",(Eigenverbrauchsquote_pers/100),(Eigenverbrauchsquote_Basis/100))*IF(Installierte_Leistung_der_GesamtAnlage<=10, 0,1)*IF(AND(Eingabe_pers_Eigenverbrauch="ja", OR(Eigenverbrauchsquote_pers=100,Eigenverbrauchsquote_pers=0)),0,1)*EEG_Umlage*(PRZNT_EEG_Umlage/100) -> 0 | AE9: =Tabelle4[[#This Row],[Pflicht zur EEG-Umlage]]*(1+WACC_real/100)^-Tabelle1[[#This Row],[Nutzungs-dauer]] -> 0 | AF9: =AF8+Tabelle4[[#This Row],[Pflicht zur EEG-Umlage BW]] -> 0 | AG9: =Tabelle4[[#This Row],[Solarer Ertrag mit Degradation + Abregelung]]*IF(Eingabe_pers_Eigenverbrauch="ja",(Eigenverbrauchsquote_pers/100),(Eigenverbrauchsquote_Basis/100))*IF(Installierte_Leistung_der_GesamtAnlage<=10, 0,1)*IF(AND(Eingabe_pers_Eigenverbrauch="ja", OR(Eigenverbrauchsquote_pers=100,Eigenverbrauchsquote_pers=0)),0,1)*EEG_Umlage*(PRZNT_EEG_Umlage/100) -> 0 | AH9: =Tabelle4[[#This Row],[Pflicht zur EEG-Umlage + Abregelung]]*(1+WACC_real/100)^-Tabelle1[[#This Row],[Nutzungs-dauer]] -> 0 | AI9: =AI8+Tabelle4[[#This Row],[Pflicht zur EEG-Umlage + Abregelung BW]] -> 0 | AK9: 0.2705570426 | AL9: =AVERAGE($AK$6:AK9) -> 0.2665653257 | AN9: 0 | AO9: 0 | AP9: =Tabelle612[[#This Row],[Jährliche OPEX-Kosten PV]]*(1+WACC_real/100)^-Tabelle1[[#This Row],[Nutzungs-dauer]] -> 0 | AQ9: =Tabelle612[[#This Row],[Jährliche OPEX-Kosten BAT]]*(1+WACC_real/100)^-Tabelle1[[#This Row],[Nutzungs-dauer]] -> 0 | AR9: =IF(Tabelle1[[#This Row],[Nutzungs-dauer]]=Lebensdauer_des_ersten_Wechselrichters,CAPEX_des_Ersatz_Wechselrichters,IF(Tabelle1[[#This Row],[Nutzungs-dauer]]=Lebensdauer_der_ersten_Batterie,CAPEX_der_Ersatz_Batterie,0)) -> 0 | AS9: =Tabelle4[[#This Row],[Einsparung durch Eigenverbrauch BW]]+Tabelle4[[#This Row],[Verkauf Überschussstrom mit EEG-Vergütung BW]]+Tabelle4[[#This Row],[Verkauf Überschussstrom Direktvermarktung BW]]-Tabelle4[[#This Row],[Pflicht zur EEG-Umlage BW]]-Tabelle612[[#This Row],[Jährliche OPEX-Kosten PV BW]]-Tabelle612[[#This Row],[Jährliche OPEX-Kosten BAT BW]]-Tabelle612[[#This Row],[Investition PV-Batterie-System]] -> 1133.78632 | AT9: =AT8+Tabelle612[[#This Row],[Cashflow diskontiert mit Kalkulationszins]] -> 4562.357716 | AU9: =Tabelle612[[#This Row],[Cashflow diskontiert mit Kalkulationszins kumuliert]] -> 4562.357716 | AV9: =Tabelle4[[#This Row],[Einsparung durch Eigenverbrauch + Abregelung BW]]+Tabelle4[[#This Row],[Verkauf Überschussstrom mit EEG-Vergütung + Abregelung BW]]+Tabelle4[[#This Row],[Verkauf Überschussstrom Direktvermarktung + Abregelung BW]]-Tabelle4[[#This Row],[Pflicht zur EEG-Umlage + Abregelung BW]]-Tabelle612[[#This Row],[Jährliche OPEX-Kosten PV BW]]-Tabelle612[[#This Row],[Jährliche OPEX-Kosten BAT BW]]-Tabelle612[[#This Row],[Investition PV-Batterie-System]] -> 1128.684282 | AW9: =AW8+Tabelle612[[#This Row],[Cashflow diskontiert mit Kalkulationszins]] -> 4557.194243 | AX9: =Tabelle612[[#This Row],[Cashflow diskontiert mit Kalkulationszins kumuliert mit Abr.]] -> 4557.194243
B10: 5 | D10: =Solarer_Gesamtertrag_der_Anlage*(1-(Moduldegradation/100))^Tabelle1[[#This Row],[Nutzungs-dauer]] -> 9493.930594 | E10: =E9+Tabelle4[[#This Row],[Solarer Ertrag mit Degradation]] -> 47708.19319 | F10: =Tabelle4[[#This Row],[Solarer Ertrag mit Degradation]]*(1+WACC_real/100)^-Tabelle1[[#This Row],[Nutzungs-dauer]] -> 9219.558139 | G10: =G9+Tabelle4[[#This Row],[Solarer Ertrag mit Degradation BW]] -> 46879.08141 | H10: =Solarer_Gesamtertrag_der_Anlage*(1-(Moduldegradation/100))^Tabelle1[[#This Row],[Nutzungs-dauer]]*(1-(Abregelungsverluste/100)) -> 9451.207906 | I10: =I9+Tabelle4[[#This Row],[Solarer Ertrag mit Degradation + Abregelung]] -> 47493.50632 | J10: =Tabelle4[[#This Row],[Solarer Ertrag mit Degradation + Abregelung]]*(1+WACC_real/100)^-Tabelle1[[#This Row],[Nutzungs-dauer]] -> 9178.070128 | K10: =K9+Tabelle4[[#This Row],[Solarer Ertrag mit Degradation + Abregelung BW]] -> 46668.12554 | L10: =Tabelle4[[#This Row],[Solarer Ertrag mit Degradation]]*Tabelle6[[#This Row],[Bezugspreis mit Steigerung]]*IF(AND(Eingabe_pers_Eigenverbrauch="ja",Batterie_gewuenscht="nein"),(Eigenverbrauchsquote_pers/100),IF(AND(Eingabe_pers_Eigenverbrauch="ja",Batterie_gewuenscht="ja"),(Eigenverbauch_ohne_BAT/100)+(Eigenverbaucherhöhung/100)*(1-Batterie_Verluste/100),IF(Batterie_gewuenscht="nein",Eigenverbrauchsquote_Basis/100,(Eigenverbauch_ohne_BAT/100)+(Eigenverbaucherhöhung/100)*(1-Batterie_Verluste/100)))) -> 518.8672564 | M10: =Tabelle4[[#This Row],[Einsparung durch Eigenverbrauch]]*(1+WACC_real/100)^-Tabelle1[[#This Row],[Nutzungs-dauer]] -> 503.8721096 | N10: =N9+Tabelle4[[#This Row],[Einsparung durch Eigenverbrauch BW]] -> 2511.407767 | O10: =Tabelle4[[#This Row],[Solarer Ertrag mit Degradation + Abregelung]]*Tabelle6[[#This Row],[Bezugspreis mit Steigerung]]*IF(AND(Eingabe_pers_Eigenverbrauch="ja",Batterie_gewuenscht="nein"),(Eigenverbrauchsquote_pers/100),IF(AND(Eingabe_pers_Eigenverbrauch="ja",Batterie_gewuenscht="ja"),(Eigenverbauch_ohne_BAT/100)+(Eigenverbaucherhöhung/100)*(1-Batterie_Verluste/100),IF(Batterie_gewuenscht="nein",Eigenverbrauchsquote_Basis/100,(Eigenverbauch_ohne_BAT/100)+(Eigenverbaucherhöhung/100)*(1-Batterie_Verluste/100)))) -> 516.5323537 | P10: =Tabelle4[[#This Row],[Einsparung durch Eigenverbrauch + Abregelung]]*(1+WACC_real/100)^-Tabelle1[[#This Row],[Nutzungs-dauer]] -> 501.6046851 | Q10: =Q9+Tabelle4[[#This Row],[Einsparung durch Eigenverbrauch + Abregelung BW]] -> 2500.106432 | R10: =Tabelle4[[#This Row],[Solarer Ertrag mit Degradation]]*EEG_Vergütung*IF(Eingabe_pers_Eigenverbrauch="ja",(1-Eigenverbrauchsquote_pers/100),(1-(Eigenverbrauchsquote_Basis/100)))*IF(OR(Feste_EEG_Vergütung="nein",Direktvermarktung="ja"),0,1) -> 644.0682515 | S10: =Tabelle4[[#This Row],[Verkauf Überschussstrom mit EEG-Vergütung]]*(1+WACC_real/100)^-Tabelle1[[#This Row],[Nutzungs-dauer]] -> 625.4548242 | T10: =T9+Tabelle4[[#This Row],[Verkauf Überschussstrom mit EEG-Vergütung BW]] -> 3180.276883 | U10: =Tabelle4[[#This Row],[Solarer Ertrag mit Degradation + Abregelung]]*EEG_Vergütung*IF(Eingabe_pers_Eigenverbrauch="ja",(1-Eigenverbrauchsquote_pers/100),(1-(Eigenverbrauchsquote_Basis/100)))*IF(OR(Feste_EEG_Vergütung="nein",Direktvermarktung="ja"),0,1) -> 641.1699443 | V10: =Tabelle4[[#This Row],[Verkauf Überschussstrom mit EEG-Vergütung + Abregelung]]*(1+WACC_real/100)^-Tabelle1[[#This Row],[Nutzungs-dauer]] -> 622.6402775 | W10: =W9+Tabelle4[[#This Row],[Verkauf Überschussstrom mit EEG-Vergütung + Abregelung BW]] -> 3165.965637 | X10: =Tabelle4[[#This Row],[Solarer Ertrag mit Degradation]]*IF(Eingabe_pers_Eigenverbrauch="ja",(1-Eigenverbrauchsquote_pers/100),(1-(Eigenverbrauchsquote_Basis/100)))*IF(AND(Direktvermarktung="nein",Feste_EEG_Vergütung="nein"),Direktvermarktung_sonstige,IF(Direktvermarktung="ja",Direktvermarktung_gefördert,0)) -> 0 | Y10: =Tabelle4[[#This Row],[Verkauf Überschussstrom Direktvermarktung]]*(1+WACC_real/100)^-Tabelle1[[#This Row],[Nutzungs-dauer]] -> 0 | Z10: =Z9+Tabelle4[[#This Row],[Verkauf Überschussstrom Direktvermarktung BW]] -> 0 | AA10: =Tabelle4[[#This Row],[Solarer Ertrag mit Degradation + Abregelung]]*IF(Eingabe_pers_Eigenverbrauch="ja",(1-Eigenverbrauchsquote_pers/100),(1-(Eigenverbrauchsquote_Basis/100)))*IF(AND(Direktvermarktung="nein",Feste_EEG_Vergütung="nein"),Direktvermarktung_sonstige,IF(Direktvermarktung="ja",Direktvermarktung_gefördert,0)) -> 0 | AB10: =Tabelle4[[#This Row],[Verkauf Überschussstrom Direktvermarktung + Abregelung]]*(1+WACC_real/100)^-Tabelle1[[#This Row],[Nutzungs-dauer]] -> 0 | AC10: =AC9+Tabelle4[[#This Row],[Verkauf Überschussstrom Direktvermarktung + Abregelung BW]] -> 0 | AD10: =Tabelle4[[#This Row],[Solarer Ertrag mit Degradation]]*IF(Eingabe_pers_Eigenverbrauch="ja",(Eigenverbrauchsquote_pers/100),(Eigenverbrauchsquote_Basis/100))*IF(Installierte_Leistung_der_GesamtAnlage<=10, 0,1)*IF(AND(Eingabe_pers_Eigenverbrauch="ja", OR(Eigenverbrauchsquote_pers=100,Eigenverbrauchsquote_pers=0)),0,1)*EEG_Umlage*(PRZNT_EEG_Umlage/100) -> 0 | AE10: =Tabelle4[[#This Row],[Pflicht zur EEG-Umlage]]*(1+WACC_real/100)^-Tabelle1[[#This Row],[Nutzungs-dauer]] -> 0 | AF10: =AF9+Tabelle4[[#This Row],[Pflicht zur EEG-Umlage BW]] -> 0 | AG10: =Tabelle4[[#This Row],[Solarer Ertrag mit Degradation + Abregelung]]*IF(Eingabe_pers_Eigenverbrauch="ja",(Eigenverbrauchsquote_pers/100),(Eigenverbrauchsquote_Basis/100))*IF(Installierte_Leistung_der_GesamtAnlage<=10, 0,1)*IF(AND(Eingabe_pers_Eigenverbrauch="ja", OR(Eigenverbrauchsquote_pers=100,Eigenverbrauchsquote_pers=0)),0,1)*EEG_Umlage*(PRZNT_EEG_Umlage/100) -> 0 | AH10: =Tabelle4[[#This Row],[Pflicht zur EEG-Umlage + Abregelung]]*(1+WACC_real/100)^-Tabelle1[[#This Row],[Nutzungs-dauer]] -> 0 | AI10: =AI9+Tabelle4[[#This Row],[Pflicht zur EEG-Umlage + Abregelung BW]] -> 0 | AK10: 0.273262613 | AL10: =AVERAGE($AK$6:AK10) -> 0.2679047831 | AN10: 0 | AO10: 0 | AP10: =Tabelle612[[#This Row],[Jährliche OPEX-Kosten PV]]*(1+WACC_real/100)^-Tabelle1[[#This Row],[Nutzungs-dauer]] -> 0 | AQ10: =Tabelle612[[#This Row],[Jährliche OPEX-Kosten BAT]]*(1+WACC_real/100)^-Tabelle1[[#This Row],[Nutzungs-dauer]] -> 0 | AR10: =IF(Tabelle1[[#This Row],[Nutzungs-dauer]]=Lebensdauer_des_ersten_Wechselrichters,CAPEX_des_Ersatz_Wechselrichters,IF(Tabelle1[[#This Row],[Nutzungs-dauer]]=Lebensdauer_der_ersten_Batterie,CAPEX_der_Ersatz_Batterie,0)) -> 0 | AS10: =Tabelle4[[#This Row],[Einsparung durch Eigenverbrauch BW]]+Tabelle4[[#This Row],[Verkauf Überschussstrom mit EEG-Vergütung BW]]+Tabelle4[[#This Row],[Verkauf Überschussstrom Direktvermarktung BW]]-Tabelle4[[#This Row],[Pflicht zur EEG-Umlage BW]]-Tabelle612[[#This Row],[Jährliche OPEX-Kosten PV BW]]-Tabelle612[[#This Row],[Jährliche OPEX-Kosten BAT BW]]-Tabelle612[[#This Row],[Investition PV-Batterie-System]] -> 1129.326934 | AT10: =AT9+Tabelle612[[#This Row],[Cashflow diskontiert mit Kalkulationszins]] -> 5691.68465 | AU10: =Tabelle612[[#This Row],[Cashflow diskontiert mit Kalkulationszins kumuliert]] -> 5691.68465 | AV10: =Tabelle4[[#This Row],[Einsparung durch Eigenverbrauch + Abregelung BW]]+Tabelle4[[#This Row],[Verkauf Überschussstrom mit EEG-Vergütung + Abregelung BW]]+Tabelle4[[#This Row],[Verkauf Überschussstrom Direktvermarktung + Abregelung BW]]-Tabelle4[[#This Row],[Pflicht zur EEG-Umlage + Abregelung BW]]-Tabelle612[[#This Row],[Jährliche OPEX-Kosten PV BW]]-Tabelle612[[#This Row],[Jährliche OPEX-Kosten BAT BW]]-Tabelle612[[#This Row],[Investition PV-Batterie-System]] -> 1124.244963 | AW10: =AW9+Tabelle612[[#This Row],[Cashflow diskontiert mit Kalkulationszins]] -> 5686.521176 | AX10: =Tabelle612[[#This Row],[Cashflow diskontiert mit Kalkulationszins kumuliert mit Abr.]] -> 5686.521176
B11: 6 | D11: =Solarer_Gesamtertrag_der_Anlage*(1-(Moduldegradation/100))^Tabelle1[[#This Row],[Nutzungs-dauer]] -> 9470.195767 | E11: =E10+Tabelle4[[#This Row],[Solarer Ertrag mit Degradation]] -> 57178.38895 | F11: =Tabelle4[[#This Row],[Solarer Ertrag mit Degradation]]*(1+WACC_real/100)^-Tabelle1[[#This Row],[Nutzungs-dauer]] -> 9142.728488 | G11: =G10+Tabelle4[[#This Row],[Solarer Ertrag mit Degradation BW]] -> 56021.8099 | H11: =Solarer_Gesamtertrag_der_Anlage*(1-(Moduldegradation/100))^Tabelle1[[#This Row],[Nutzungs-dauer]]*(1-(Abregelungsverluste/100)) -> 9427.579886 | I11: =I10+Tabelle4[[#This Row],[Solarer Ertrag mit Degradation + Abregelung]] -> 56921.0862 | J11: =Tabelle4[[#This Row],[Solarer Ertrag mit Degradation + Abregelung]]*(1+WACC_real/100)^-Tabelle1[[#This Row],[Nutzungs-dauer]] -> 9101.58621 | K11: =K10+Tabelle4[[#This Row],[Solarer Ertrag mit Degradation + Abregelung BW]] -> 55769.71175 | L11: =Tabelle4[[#This Row],[Solarer Ertrag mit Degradation]]*Tabelle6[[#This Row],[Bezugspreis mit Steigerung]]*IF(AND(Eingabe_pers_Eigenverbrauch="ja",Batterie_gewuenscht="nein"),(Eigenverbrauchsquote_pers/100),IF(AND(Eingabe_pers_Eigenverbrauch="ja",Batterie_gewuenscht="ja"),(Eigenverbauch_ohne_BAT/100)+(Eigenverbaucherhöhung/100)*(1-Batterie_Verluste/100),IF(Batterie_gewuenscht="nein",Eigenverbrauchsquote_Basis/100,(Eigenverbauch_ohne_BAT/100)+(Eigenverbaucherhöhung/100)*(1-Batterie_Verluste/100)))) -> 522.7457891 | M11: =Tabelle4[[#This Row],[Einsparung durch Eigenverbrauch]]*(1+WACC_real/100)^-Tabelle1[[#This Row],[Nutzungs-dauer]] -> 504.6699071 | N11: =N10+Tabelle4[[#This Row],[Einsparung durch Eigenverbrauch BW]] -> 3016.077674 | O11: =Tabelle4[[#This Row],[Solarer Ertrag mit Degradation + Abregelung]]*Tabelle6[[#This Row],[Bezugspreis mit Steigerung]]*IF(AND(Eingabe_pers_Eigenverbrauch="ja",Batterie_gewuenscht="nein"),(Eigenverbrauchsquote_pers/100),IF(AND(Eingabe_pers_Eigenverbrauch="ja",Batterie_gewuenscht="ja"),(Eigenverbauch_ohne_BAT/100)+(Eigenverbaucherhöhung/100)*(1-Batterie_Verluste/100),IF(Batterie_gewuenscht="nein",Eigenverbrauchsquote_Basis/100,(Eigenverbauch_ohne_BAT/100)+(Eigenverbaucherhöhung/100)*(1-Batterie_Verluste/100)))) -> 520.3934331 | P11: =Tabelle4[[#This Row],[Einsparung durch Eigenverbrauch + Abregelung]]*(1+WACC_real/100)^-Tabelle1[[#This Row],[Nutzungs-dauer]] -> 502.3988925 | Q11: =Q10+Tabelle4[[#This Row],[Einsparung durch Eigenverbrauch + Abregelung BW]] -> 3002.505324 | R11: =Tabelle4[[#This Row],[Solarer Ertrag mit Degradation]]*EEG_Vergütung*IF(Eingabe_pers_Eigenverbrauch="ja",(1-Eigenverbrauchsquote_pers/100),(1-(Eigenverbrauchsquote_Basis/100)))*IF(OR(Feste_EEG_Vergütung="nein",Direktvermarktung="ja"),0,1) -> 642.4580808 | S11: =Tabelle4[[#This Row],[Verkauf Überschussstrom mit EEG-Vergütung]]*(1+WACC_real/100)^-Tabelle1[[#This Row],[Nutzungs-dauer]] -> 620.2427006 | T11: =T10+Tabelle4[[#This Row],[Verkauf Überschussstrom mit EEG-Vergütung BW]] -> 3800.519584 | U11: =Tabelle4[[#This Row],[Solarer Ertrag mit Degradation + Abregelung]]*EEG_Vergütung*IF(Eingabe_pers_Eigenverbrauch="ja",(1-Eigenverbrauchsquote_pers/100),(1-(Eigenverbrauchsquote_Basis/100)))*IF(OR(Feste_EEG_Vergütung="nein",Direktvermarktung="ja"),0,1) -> 639.5670195 | V11: =Tabelle4[[#This Row],[Verkauf Überschussstrom mit EEG-Vergütung + Abregelung]]*(1+WACC_real/100)^-Tabelle1[[#This Row],[Nutzungs-dauer]] -> 617.4516085 | W11: =W10+Tabelle4[[#This Row],[Verkauf Überschussstrom mit EEG-Vergütung + Abregelung BW]] -> 3783.417245 | X11: =Tabelle4[[#This Row],[Solarer Ertrag mit Degradation]]*IF(Eingabe_pers_Eigenverbrauch="ja",(1-Eigenverbrauchsquote_pers/100),(1-(Eigenverbrauchsquote_Basis/100)))*IF(AND(Direktvermarktung="nein",Feste_EEG_Vergütung="nein"),Direktvermarktung_sonstige,IF(Direktvermarktung="ja",Direktvermarktung_gefördert,0)) -> 0 | Y11: =Tabelle4[[#This Row],[Verkauf Überschussstrom Direktvermarktung]]*(1+WACC_real/100)^-Tabelle1[[#This Row],[Nutzungs-dauer]] -> 0 | Z11: =Z10+Tabelle4[[#This Row],[Verkauf Überschussstrom Direktvermarktung BW]] -> 0 | AA11: =Tabelle4[[#This Row],[Solarer Ertrag mit Degradation + Abregelung]]*IF(Eingabe_pers_Eigenverbrauch="ja",(1-Eigenverbrauchsquote_pers/100),(1-(Eigenverbrauchsquote_Basis/100)))*IF(AND(Direktvermarktung="nein",Feste_EEG_Vergütung="nein"),Direktvermarktung_sonstige,IF(Direktvermarktung="ja",Direktvermarktung_gefördert,0)) -> 0 | AB11: =Tabelle4[[#This Row],[Verkauf Überschussstrom Direktvermarktung + Abregelung]]*(1+WACC_real/100)^-Tabelle1[[#This Row],[Nutzungs-dauer]] -> 0 | AC11: =AC10+Tabelle4[[#This Row],[Verkauf Überschussstrom Direktvermarktung + Abregelung BW]] -> 0 | AD11: =Tabelle4[[#This Row],[Solarer Ertrag mit Degradation]]*IF(Eingabe_pers_Eigenverbrauch="ja",(Eigenverbrauchsquote_pers/100),(Eigenverbrauchsquote_Basis/100))*IF(Installierte_Leistung_der_GesamtAnlage<=10, 0,1)*IF(AND(Eingabe_pers_Eigenverbrauch="ja", OR(Eigenverbrauchsquote_pers=100,Eigenverbrauchsquote_pers=0)),0,1)*EEG_Umlage*(PRZNT_EEG_Umlage/100) -> 0 | AE11: =Tabelle4[[#This Row],[Pflicht zur EEG-Umlage]]*(1+WACC_real/100)^-Tabelle1[[#This Row],[Nutzungs-dauer]] -> 0 | AF11: =AF10+Tabelle4[[#This Row],[Pflicht zur EEG-Umlage BW]] -> 0 | AG11: =Tabelle4[[#This Row],[Solarer Ertrag mit Degradation + Abregelung]]*IF(Eingabe_pers_Eigenverbrauch="ja",(Eigenverbrauchsquote_pers/100),(Eigenverbrauchsquote_Basis/100))*IF(Installierte_Leistung_der_GesamtAnlage<=10, 0,1)*IF(AND(Eingabe_pers_Eigenverbrauch="ja", OR(Eigenverbrauchsquote_pers=100,Eigenverbrauchsquote_pers=0)),0,1)*EEG_Umlage*(PRZNT_EEG_Umlage/100) -> 0 | AH11: =Tabelle4[[#This Row],[Pflicht zur EEG-Umlage + Abregelung]]*(1+WACC_real/100)^-Tabelle1[[#This Row],[Nutzungs-dauer]] -> 0 | AI11: =AI10+Tabelle4[[#This Row],[Pflicht zur EEG-Umlage + Abregelung BW]] -> 0 | AK11: 0.2759952392 | AL11: =AVERAGE($AK$6:AK11) -> 0.2692531925 | AN11: 0 | AO11: 0 | AP11: =Tabelle612[[#This Row],[Jährliche OPEX-Kosten PV]]*(1+WACC_real/100)^-Tabelle1[[#This Row],[Nutzungs-dauer]] -> 0 | AQ11: =Tabelle612[[#This Row],[Jährliche OPEX-Kosten BAT]]*(1+WACC_real/100)^-Tabelle1[[#This Row],[Nutzungs-dauer]] -> 0 | AR11: =IF(Tabelle1[[#This Row],[Nutzungs-dauer]]=Lebensdauer_des_ersten_Wechselrichters,CAPEX_des_Ersatz_Wechselrichters,IF(Tabelle1[[#This Row],[Nutzungs-dauer]]=Lebensdauer_der_ersten_Batterie,CAPEX_der_Ersatz_Batterie,0)) -> 0 | AS11: =Tabelle4[[#This Row],[Einsparung durch Eigenverbrauch BW]]+Tabelle4[[#This Row],[Verkauf Überschussstrom mit EEG-Vergütung BW]]+Tabelle4[[#This Row],[Verkauf Überschussstrom Direktvermarktung BW]]-Tabelle4[[#This Row],[Pflicht zur EEG-Umlage BW]]-Tabelle612[[#This Row],[Jährliche OPEX-Kosten PV BW]]-Tabelle612[[#This Row],[Jährliche OPEX-Kosten BAT BW]]-Tabelle612[[#This Row],[Investition PV-Batterie-System]] -> 1124.912608 | AT11: =AT10+Tabelle612[[#This Row],[Cashflow diskontiert mit Kalkulationszins]] -> 6816.597257 | AU11: =Tabelle612[[#This Row],[Cashflow diskontiert mit Kalkulationszins kumuliert]] -> 6816.597257 | AV11: =Tabelle4[[#This Row],[Einsparung durch Eigenverbrauch + Abregelung BW]]+Tabelle4[[#This Row],[Verkauf Überschussstrom mit EEG-Vergütung + Abregelung BW]]+Tabelle4[[#This Row],[Verkauf Überschussstrom Direktvermarktung + Abregelung BW]]-Tabelle4[[#This Row],[Pflicht zur EEG-Umlage + Abregelung BW]]-Tabelle612[[#This Row],[Jährliche OPEX-Kosten PV BW]]-Tabelle612[[#This Row],[Jährliche OPEX-Kosten BAT BW]]-Tabelle612[[#This Row],[Investition PV-Batterie-System]] -> 1119.850501 | AW11: =AW10+Tabelle612[[#This Row],[Cashflow diskontiert mit Kalkulationszins]] -> 6811.433784 | AX11: =Tabelle612[[#This Row],[Cashflow diskontiert mit Kalkulationszins kumuliert mit Abr.]] -> 6811.433784
B12: 7 | D12: =Solarer_Gesamtertrag_der_Anlage*(1-(Moduldegradation/100))^Tabelle1[[#This Row],[Nutzungs-dauer]] -> 9446.520278 | E12: =E11+Tabelle4[[#This Row],[Solarer Ertrag mit Degradation]] -> 66624.90923 | F12: =Tabelle4[[#This Row],[Solarer Ertrag mit Degradation]]*(1+WACC_real/100)^-Tabelle1[[#This Row],[Nutzungs-dauer]] -> 9066.539084 | G12: =G11+Tabelle4[[#This Row],[Solarer Ertrag mit Degradation BW]] -> 65088.34898 | H12: =Solarer_Gesamtertrag_der_Anlage*(1-(Moduldegradation/100))^Tabelle1[[#This Row],[Nutzungs-dauer]]*(1-(Abregelungsverluste/100)) -> 9404.010936 | I12: =I11+Tabelle4[[#This Row],[Solarer Ertrag mit Degradation + Abregelung]] -> 66325.09714 | J12: =Tabelle4[[#This Row],[Solarer Ertrag mit Degradation + Abregelung]]*(1+WACC_real/100)^-Tabelle1[[#This Row],[Nutzungs-dauer]] -> 9025.739658 | K12: =K11+Tabelle4[[#This Row],[Solarer Ertrag mit Degradation + Abregelung BW]] -> 64795.45141 | L12: =Tabelle4[[#This Row],[Solarer Ertrag mit Degradation]]*Tabelle6[[#This Row],[Bezugspreis mit Steigerung]]*IF(AND(Eingabe_pers_Eigenverbrauch="ja",Batterie_gewuenscht="nein"),(Eigenverbrauchsquote_pers/100),IF(AND(Eingabe_pers_Eigenverbrauch="ja",Batterie_gewuenscht="ja"),(Eigenverbauch_ohne_BAT/100)+(Eigenverbaucherhöhung/100)*(1-Batterie_Verluste/100),IF(Batterie_gewuenscht="nein",Eigenverbrauchsquote_Basis/100,(Eigenverbauch_ohne_BAT/100)+(Eigenverbaucherhöhung/100)*(1-Batterie_Verluste/100)))) -> 526.6533139 | M12: =Tabelle4[[#This Row],[Einsparung durch Eigenverbrauch]]*(1+WACC_real/100)^-Tabelle1[[#This Row],[Nutzungs-dauer]] -> 505.4689678 | N12: =N11+Tabelle4[[#This Row],[Einsparung durch Eigenverbrauch BW]] -> 3521.546642 | O12: =Tabelle4[[#This Row],[Solarer Ertrag mit Degradation + Abregelung]]*Tabelle6[[#This Row],[Bezugspreis mit Steigerung]]*IF(AND(Eingabe_pers_Eigenverbrauch="ja",Batterie_gewuenscht="nein"),(Eigenverbrauchsquote_pers/100),IF(AND(Eingabe_pers_Eigenverbrauch="ja",Batterie_gewuenscht="ja"),(Eigenverbauch_ohne_BAT/100)+(Eigenverbaucherhöhung/100)*(1-Batterie_Verluste/100),IF(Batterie_gewuenscht="nein",Eigenverbrauchsquote_Basis/100,(Eigenverbauch_ohne_BAT/100)+(Eigenverbaucherhöhung/100)*(1-Batterie_Verluste/100)))) -> 524.283374 | P12: =Tabelle4[[#This Row],[Einsparung durch Eigenverbrauch + Abregelung]]*(1+WACC_real/100)^-Tabelle1[[#This Row],[Nutzungs-dauer]] -> 503.1943575 | Q12: =Q11+Tabelle4[[#This Row],[Einsparung durch Eigenverbrauch + Abregelung BW]] -> 3505.699682 | R12: =Tabelle4[[#This Row],[Solarer Ertrag mit Degradation]]*EEG_Vergütung*IF(Eingabe_pers_Eigenverbrauch="ja",(1-Eigenverbrauchsquote_pers/100),(1-(Eigenverbrauchsquote_Basis/100)))*IF(OR(Feste_EEG_Vergütung="nein",Direktvermarktung="ja"),0,1) -> 640.8519356 | S12: =Tabelle4[[#This Row],[Verkauf Überschussstrom mit EEG-Vergütung]]*(1+WACC_real/100)^-Tabelle1[[#This Row],[Nutzungs-dauer]] -> 615.0740115 | T12: =T11+Tabelle4[[#This Row],[Verkauf Überschussstrom mit EEG-Vergütung BW]] -> 4415.593595 | U12: =Tabelle4[[#This Row],[Solarer Ertrag mit Degradation + Abregelung]]*EEG_Vergütung*IF(Eingabe_pers_Eigenverbrauch="ja",(1-Eigenverbrauchsquote_pers/100),(1-(Eigenverbrauchsquote_Basis/100)))*IF(OR(Feste_EEG_Vergütung="nein",Direktvermarktung="ja"),0,1) -> 637.9681019 | V12: =Tabelle4[[#This Row],[Verkauf Überschussstrom mit EEG-Vergütung + Abregelung]]*(1+WACC_real/100)^-Tabelle1[[#This Row],[Nutzungs-dauer]] -> 612.3061784 | W12: =W11+Tabelle4[[#This Row],[Verkauf Überschussstrom mit EEG-Vergütung + Abregelung BW]] -> 4395.723424 | X12: =Tabelle4[[#This Row],[Solarer Ertrag mit Degradation]]*IF(Eingabe_pers_Eigenverbrauch="ja",(1-Eigenverbrauchsquote_pers/100),(1-(Eigenverbrauchsquote_Basis/100)))*IF(AND(Direktvermarktung="nein",Feste_EEG_Vergütung="nein"),Direktvermarktung_sonstige,IF(Direktvermarktung="ja",Direktvermarktung_gefördert,0)) -> 0 | Y12: =Tabelle4[[#This Row],[Verkauf Überschussstrom Direktvermarktung]]*(1+WACC_real/100)^-Tabelle1[[#This Row],[Nutzungs-dauer]] -> 0 | Z12: =Z11+Tabelle4[[#This Row],[Verkauf Überschussstrom Direktvermarktung BW]] -> 0 | AA12: =Tabelle4[[#This Row],[Solarer Ertrag mit Degradation + Abregelung]]*IF(Eingabe_pers_Eigenverbrauch="ja",(1-Eigenverbrauchsquote_pers/100),(1-(Eigenverbrauchsquote_Basis/100)))*IF(AND(Direktvermarktung="nein",Feste_EEG_Vergütung="nein"),Direktvermarktung_sonstige,IF(Direktvermarktung="ja",Direktvermarktung_gefördert,0)) -> 0 | AB12: =Tabelle4[[#This Row],[Verkauf Überschussstrom Direktvermarktung + Abregelung]]*(1+WACC_real/100)^-Tabelle1[[#This Row],[Nutzungs-dauer]] -> 0 | AC12: =AC11+Tabelle4[[#This Row],[Verkauf Überschussstrom Direktvermarktung + Abregelung BW]] -> 0 | AD12: =Tabelle4[[#This Row],[Solarer Ertrag mit Degradation]]*IF(Eingabe_pers_Eigenverbrauch="ja",(Eigenverbrauchsquote_pers/100),(Eigenverbrauchsquote_Basis/100))*IF(Installierte_Leistung_der_GesamtAnlage<=10, 0,1)*IF(AND(Eingabe_pers_Eigenverbrauch="ja", OR(Eigenverbrauchsquote_pers=100,Eigenverbrauchsquote_pers=0)),0,1)*EEG_Umlage*(PRZNT_EEG_Umlage/100) -> 0 | AE12: =Tabelle4[[#This Row],[Pflicht zur EEG-Umlage]]*(1+WACC_real/100)^-Tabelle1[[#This Row],[Nutzungs-dauer]] -> 0 | AF12: =AF11+Tabelle4[[#This Row],[Pflicht zur EEG-Umlage BW]] -> 0 | AG12: =Tabelle4[[#This Row],[Solarer Ertrag mit Degradation + Abregelung]]*IF(Eingabe_pers_Eigenverbrauch="ja",(Eigenverbrauchsquote_pers/100),(Eigenverbrauchsquote_Basis/100))*IF(Installierte_Leistung_der_GesamtAnlage<=10, 0,1)*IF(AND(Eingabe_pers_Eigenverbrauch="ja", OR(Eigenverbrauchsquote_pers=100,Eigenverbrauchsquote_pers=0)),0,1)*EEG_Umlage*(PRZNT_EEG_Umlage/100) -> 0 | AH12: =Tabelle4[[#This Row],[Pflicht zur EEG-Umlage + Abregelung]]*(1+WACC_real/100)^-Tabelle1[[#This Row],[Nutzungs-dauer]] -> 0 | AI12: =AI11+Tabelle4[[#This Row],[Pflicht zur EEG-Umlage + Abregelung BW]] -> 0 | AK12: 0.2787551915 | AL12: =AVERAGE($AK$6:AK12) -> 0.2706106209 | AN12: 0 | AO12: 0 | AP12: =Tabelle612[[#This Row],[Jährliche OPEX-Kosten PV]]*(1+WACC_real/100)^-Tabelle1[[#This Row],[Nutzungs-dauer]] -> 0 | AQ12: =Tabelle612[[#This Row],[Jährliche OPEX-Kosten BAT]]*(1+WACC_real/100)^-Tabelle1[[#This Row],[Nutzungs-dauer]] -> 0 | AR12: =IF(Tabelle1[[#This Row],[Nutzungs-dauer]]=Lebensdauer_des_ersten_Wechselrichters,CAPEX_des_Ersatz_Wechselrichters,IF(Tabelle1[[#This Row],[Nutzungs-dauer]]=Lebensdauer_der_ersten_Batterie,CAPEX_der_Ersatz_Batterie,0)) -> 0 | AS12: =Tabelle4[[#This Row],[Einsparung durch Eigenverbrauch BW]]+Tabelle4[[#This Row],[Verkauf Überschussstrom mit EEG-Vergütung BW]]+Tabelle4[[#This Row],[Verkauf Überschussstrom Direktvermarktung BW]]-Tabelle4[[#This Row],[Pflicht zur EEG-Umlage BW]]-Tabelle612[[#This Row],[Jährliche OPEX-Kosten PV BW]]-Tabelle612[[#This Row],[Jährliche OPEX-Kosten BAT BW]]-Tabelle612[[#This Row],[Investition PV-Batterie-System]] -> 1120.542979 | AT12: =AT11+Tabelle612[[#This Row],[Cashflow diskontiert mit Kalkulationszins]] -> 7937.140237 | AU12: =Tabelle612[[#This Row],[Cashflow diskontiert mit Kalkulationszins kumuliert]] -> 7937.140237 | AV12: =Tabelle4[[#This Row],[Einsparung durch Eigenverbrauch + Abregelung BW]]+Tabelle4[[#This Row],[Verkauf Überschussstrom mit EEG-Vergütung + Abregelung BW]]+Tabelle4[[#This Row],[Verkauf Überschussstrom Direktvermarktung + Abregelung BW]]-Tabelle4[[#This Row],[Pflicht zur EEG-Umlage + Abregelung BW]]-Tabelle612[[#This Row],[Jährliche OPEX-Kosten PV BW]]-Tabelle612[[#This Row],[Jährliche OPEX-Kosten BAT BW]]-Tabelle612[[#This Row],[Investition PV-Batterie-System]] -> 1115.500536 | AW12: =AW11+Tabelle612[[#This Row],[Cashflow diskontiert mit Kalkulationszins]] -> 7931.976763 | AX12: =Tabelle612[[#This Row],[Cashflow diskontiert mit Kalkulationszins kumuliert mit Abr.]] -> 7931.976763
B13: 8 | D13: =Solarer_Gesamtertrag_der_Anlage*(1-(Moduldegradation/100))^Tabelle1[[#This Row],[Nutzungs-dauer]] -> 9422.903977 | E13: =E12+Tabelle4[[#This Row],[Solarer Ertrag mit Degradation]] -> 76047.81321 | F13: =Tabelle4[[#This Row],[Solarer Ertrag mit Degradation]]*(1+WACC_real/100)^-Tabelle1[[#This Row],[Nutzungs-dauer]] -> 8990.984592 | G13: =G12+Tabelle4[[#This Row],[Solarer Ertrag mit Degradation BW]] -> 74079.33357 | H13: =Solarer_Gesamtertrag_der_Anlage*(1-(Moduldegradation/100))^Tabelle1[[#This Row],[Nutzungs-dauer]]*(1-(Abregelungsverluste/100)) -> 9380.500909 | I13: =I12+Tabelle4[[#This Row],[Solarer Ertrag mit Degradation + Abregelung]] -> 75705.59805 | J13: =Tabelle4[[#This Row],[Solarer Ertrag mit Degradation + Abregelung]]*(1+WACC_real/100)^-Tabelle1[[#This Row],[Nutzungs-dauer]] -> 8950.525161 | K13: =K12+Tabelle4[[#This Row],[Solarer Ertrag mit Degradation + Abregelung BW]] -> 73745.97657 | L13: =Tabelle4[[#This Row],[Solarer Ertrag mit Degradation]]*Tabelle6[[#This Row],[Bezugspreis mit Steigerung]]*IF(AND(Eingabe_pers_Eigenverbrauch="ja",Batterie_gewuenscht="nein"),(Eigenverbrauchsquote_pers/100),IF(AND(Eingabe_pers_Eigenverbrauch="ja",Batterie_gewuenscht="ja"),(Eigenverbauch_ohne_BAT/100)+(Eigenverbaucherhöhung/100)*(1-Batterie_Verluste/100),IF(Batterie_gewuenscht="nein",Eigenverbrauchsquote_Basis/100,(Eigenverbauch_ohne_BAT/100)+(Eigenverbaucherhöhung/100)*(1-Batterie_Verluste/100)))) -> 530.5900474 | M13: =Tabelle4[[#This Row],[Einsparung durch Eigenverbrauch]]*(1+WACC_real/100)^-Tabelle1[[#This Row],[Nutzungs-dauer]] -> 506.2692937 | N13: =N12+Tabelle4[[#This Row],[Einsparung durch Eigenverbrauch BW]] -> 4027.815935 | O13: =Tabelle4[[#This Row],[Solarer Ertrag mit Degradation + Abregelung]]*Tabelle6[[#This Row],[Bezugspreis mit Steigerung]]*IF(AND(Eingabe_pers_Eigenverbrauch="ja",Batterie_gewuenscht="nein"),(Eigenverbrauchsquote_pers/100),IF(AND(Eingabe_pers_Eigenverbrauch="ja",Batterie_gewuenscht="ja"),(Eigenverbauch_ohne_BAT/100)+(Eigenverbaucherhöhung/100)*(1-Batterie_Verluste/100),IF(Batterie_gewuenscht="nein",Eigenverbrauchsquote_Basis/100,(Eigenverbauch_ohne_BAT/100)+(Eigenverbaucherhöhung/100)*(1-Batterie_Verluste/100)))) -> 528.2023922 | P13: =Tabelle4[[#This Row],[Einsparung durch Eigenverbrauch + Abregelung]]*(1+WACC_real/100)^-Tabelle1[[#This Row],[Nutzungs-dauer]] -> 503.9910819 | Q13: =Q12+Tabelle4[[#This Row],[Einsparung durch Eigenverbrauch + Abregelung BW]] -> 4009.690764 | R13: =Tabelle4[[#This Row],[Solarer Ertrag mit Degradation]]*EEG_Vergütung*IF(Eingabe_pers_Eigenverbrauch="ja",(1-Eigenverbrauchsquote_pers/100),(1-(Eigenverbrauchsquote_Basis/100)))*IF(OR(Feste_EEG_Vergütung="nein",Direktvermarktung="ja"),0,1) -> 639.2498058 | S13: =Tabelle4[[#This Row],[Verkauf Überschussstrom mit EEG-Vergütung]]*(1+WACC_real/100)^-Tabelle1[[#This Row],[Nutzungs-dauer]] -> 609.9483947 | T13: =T12+Tabelle4[[#This Row],[Verkauf Überschussstrom mit EEG-Vergütung BW]] -> 5025.54199 | U13: =Tabelle4[[#This Row],[Solarer Ertrag mit Degradation + Abregelung]]*EEG_Vergütung*IF(Eingabe_pers_Eigenverbrauch="ja",(1-Eigenverbrauchsquote_pers/100),(1-(Eigenverbrauchsquote_Basis/100)))*IF(OR(Feste_EEG_Vergütung="nein",Direktvermarktung="ja"),0,1) -> 636.3731817 | V13: =Tabelle4[[#This Row],[Verkauf Überschussstrom mit EEG-Vergütung + Abregelung]]*(1+WACC_real/100)^-Tabelle1[[#This Row],[Nutzungs-dauer]] -> 607.2036269 | W13: =W12+Tabelle4[[#This Row],[Verkauf Überschussstrom mit EEG-Vergütung + Abregelung BW]] -> 5002.927051 | X13: =Tabelle4[[#This Row],[Solarer Ertrag mit Degradation]]*IF(Eingabe_pers_Eigenverbrauch="ja",(1-Eigenverbrauchsquote_pers/100),(1-(Eigenverbrauchsquote_Basis/100)))*IF(AND(Direktvermarktung="nein",Feste_EEG_Vergütung="nein"),Direktvermarktung_sonstige,IF(Direktvermarktung="ja",Direktvermarktung_gefördert,0)) -> 0 | Y13: =Tabelle4[[#This Row],[Verkauf Überschussstrom Direktvermarktung]]*(1+WACC_real/100)^-Tabelle1[[#This Row],[Nutzungs-dauer]] -> 0 | Z13: =Z12+Tabelle4[[#This Row],[Verkauf Überschussstrom Direktvermarktung BW]] -> 0 | AA13: =Tabelle4[[#This Row],[Solarer Ertrag mit Degradation + Abregelung]]*IF(Eingabe_pers_Eigenverbrauch="ja",(1-Eigenverbrauchsquote_pers/100),(1-(Eigenverbrauchsquote_Basis/100)))*IF(AND(Direktvermarktung="nein",Feste_EEG_Vergütung="nein"),Direktvermarktung_sonstige,IF(Direktvermarktung="ja",Direktvermarktung_gefördert,0)) -> 0 | AB13: =Tabelle4[[#This Row],[Verkauf Überschussstrom Direktvermarktung + Abregelung]]*(1+WACC_real/100)^-Tabelle1[[#This Row],[Nutzungs-dauer]] -> 0 | AC13: =AC12+Tabelle4[[#This Row],[Verkauf Überschussstrom Direktvermarktung + Abregelung BW]] -> 0 | AD13: =Tabelle4[[#This Row],[Solarer Ertrag mit Degradation]]*IF(Eingabe_pers_Eigenverbrauch="ja",(Eigenverbrauchsquote_pers/100),(Eigenverbrauchsquote_Basis/100))*IF(Installierte_Leistung_der_GesamtAnlage<=10, 0,1)*IF(AND(Eingabe_pers_Eigenverbrauch="ja", OR(Eigenverbrauchsquote_pers=100,Eigenverbrauchsquote_pers=0)),0,1)*EEG_Umlage*(PRZNT_EEG_Umlage/100) -> 0 | AE13: =Tabelle4[[#This Row],[Pflicht zur EEG-Umlage]]*(1+WACC_real/100)^-Tabelle1[[#This Row],[Nutzungs-dauer]] -> 0 | AF13: =AF12+Tabelle4[[#This Row],[Pflicht zur EEG-Umlage BW]] -> 0 | AG13: =Tabelle4[[#This Row],[Solarer Ertrag mit Degradation + Abregelung]]*IF(Eingabe_pers_Eigenverbrauch="ja",(Eigenverbrauchsquote_pers/100),(Eigenverbrauchsquote_Basis/100))*IF(Installierte_Leistung_der_GesamtAnlage<=10, 0,1)*IF(AND(Eingabe_pers_Eigenverbrauch="ja", OR(Eigenverbrauchsquote_pers=100,Eigenverbrauchsquote_pers=0)),0,1)*EEG_Umlage*(PRZNT_EEG_Umlage/100) -> 0 | AH13: =Tabelle4[[#This Row],[Pflicht zur EEG-Umlage + Abregelung]]*(1+WACC_real/100)^-Tabelle1[[#This Row],[Nutzungs-dauer]] -> 0 | AI13: =AI12+Tabelle4[[#This Row],[Pflicht zur EEG-Umlage + Abregelung BW]] -> 0 | AK13: 0.2815427435 | AL13: =AVERAGE($AK$6:AK13) -> 0.2719771362 | AN13: 0 | AO13: 0 | AP13: =Tabelle612[[#This Row],[Jährliche OPEX-Kosten PV]]*(1+WACC_real/100)^-Tabelle1[[#This Row],[Nutzungs-dauer]] -> 0 | AQ13: =Tabelle612[[#This Row],[Jährliche OPEX-Kosten BAT]]*(1+WACC_real/100)^-Tabelle1[[#This Row],[Nutzungs-dauer]] -> 0 | AR13: =IF(Tabelle1[[#This Row],[Nutzungs-dauer]]=Lebensdauer_des_ersten_Wechselrichters,CAPEX_des_Ersatz_Wechselrichters,IF(Tabelle1[[#This Row],[Nutzungs-dauer]]=Lebensdauer_der_ersten_Batterie,CAPEX_der_Ersatz_Batterie,0)) -> 0 | AS13: =Tabelle4[[#This Row],[Einsparung durch Eigenverbrauch BW]]+Tabelle4[[#This Row],[Verkauf Überschussstrom mit EEG-Vergütung BW]]+Tabelle4[[#This Row],[Verkauf Überschussstrom Direktvermarktung BW]]-Tabelle4[[#This Row],[Pflicht zur EEG-Umlage BW]]-Tabelle612[[#This Row],[Jährliche OPEX-Kosten PV BW]]-Tabelle612[[#This Row],[Jährliche OPEX-Kosten BAT BW]]-Tabelle612[[#This Row],[Investition PV-Batterie-System]] -> 1116.217688 | AT13: =AT12+Tabelle612[[#This Row],[Cashflow diskontiert mit Kalkulationszins]] -> 9053.357925 | AU13: =Tabelle612[[#This Row],[Cashflow diskontiert mit Kalkulationszins kumuliert]] -> 9053.357925 | AV13: =Tabelle4[[#This Row],[Einsparung durch Eigenverbrauch + Abregelung BW]]+Tabelle4[[#This Row],[Verkauf Überschussstrom mit EEG-Vergütung + Abregelung BW]]+Tabelle4[[#This Row],[Verkauf Überschussstrom Direktvermarktung + Abregelung BW]]-Tabelle4[[#This Row],[Pflicht zur EEG-Umlage + Abregelung BW]]-Tabelle612[[#This Row],[Jährliche OPEX-Kosten PV BW]]-Tabelle612[[#This Row],[Jährliche OPEX-Kosten BAT BW]]-Tabelle612[[#This Row],[Investition PV-Batterie-System]] -> 1111.194709 | AW13: =AW12+Tabelle612[[#This Row],[Cashflow diskontiert mit Kalkulationszins]] -> 9048.194452 | AX13: =Tabelle612[[#This Row],[Cashflow diskontiert mit Kalkulationszins kumuliert mit Abr.]] -> 9048.194452
B14: 9 | D14: =Solarer_Gesamtertrag_der_Anlage*(1-(Moduldegradation/100))^Tabelle1[[#This Row],[Nutzungs-dauer]] -> 9399.346717 | E14: =E13+Tabelle4[[#This Row],[Solarer Ertrag mit Degradation]] -> 85447.15993 | F14: =Tabelle4[[#This Row],[Solarer Ertrag mit Degradation]]*(1+WACC_real/100)^-Tabelle1[[#This Row],[Nutzungs-dauer]] -> 8916.05972 | G14: =G13+Tabelle4[[#This Row],[Solarer Ertrag mit Degradation BW]] -> 82995.3933 | H14: =Solarer_Gesamtertrag_der_Anlage*(1-(Moduldegradation/100))^Tabelle1[[#This Row],[Nutzungs-dauer]]*(1-(Abregelungsverluste/100)) -> 9357.049657 | I14: =I13+Tabelle4[[#This Row],[Solarer Ertrag mit Degradation + Abregelung]] -> 85062.64771 | J14: =Tabelle4[[#This Row],[Solarer Ertrag mit Degradation + Abregelung]]*(1+WACC_real/100)^-Tabelle1[[#This Row],[Nutzungs-dauer]] -> 8875.937451 | K14: =K13+Tabelle4[[#This Row],[Solarer Ertrag mit Degradation + Abregelung BW]] -> 82621.91403 | L14: =Tabelle4[[#This Row],[Solarer Ertrag mit Degradation]]*Tabelle6[[#This Row],[Bezugspreis mit Steigerung]]*IF(AND(Eingabe_pers_Eigenverbrauch="ja",Batterie_gewuenscht="nein"),(Eigenverbrauchsquote_pers/100),IF(AND(Eingabe_pers_Eigenverbrauch="ja",Batterie_gewuenscht="ja"),(Eigenverbauch_ohne_BAT/100)+(Eigenverbaucherhöhung/100)*(1-Batterie_Verluste/100),IF(Batterie_gewuenscht="nein",Eigenverbrauchsquote_Basis/100,(Eigenverbauch_ohne_BAT/100)+(Eigenverbaucherhöhung/100)*(1-Batterie_Verluste/100)))) -> 534.556208 | M14: =Tabelle4[[#This Row],[Einsparung durch Eigenverbrauch]]*(1+WACC_real/100)^-Tabelle1[[#This Row],[Nutzungs-dauer]] -> 507.0708867 | N14: =N13+Tabelle4[[#This Row],[Einsparung durch Eigenverbrauch BW]] -> 4534.886822 | O14: =Tabelle4[[#This Row],[Solarer Ertrag mit Degradation + Abregelung]]*Tabelle6[[#This Row],[Bezugspreis mit Steigerung]]*IF(AND(Eingabe_pers_Eigenverbrauch="ja",Batterie_gewuenscht="nein"),(Eigenverbrauchsquote_pers/100),IF(AND(Eingabe_pers_Eigenverbrauch="ja",Batterie_gewuenscht="ja"),(Eigenverbauch_ohne_BAT/100)+(Eigenverbaucherhöhung/100)*(1-Batterie_Verluste/100),IF(Batterie_gewuenscht="nein",Eigenverbrauchsquote_Basis/100,(Eigenverbauch_ohne_BAT/100)+(Eigenverbaucherhöhung/100)*(1-Batterie_Verluste/100)))) -> 532.1507051 | P14: =Tabelle4[[#This Row],[Einsparung durch Eigenverbrauch + Abregelung]]*(1+WACC_real/100)^-Tabelle1[[#This Row],[Nutzungs-dauer]] -> 504.7890677 | Q14: =Q13+Tabelle4[[#This Row],[Einsparung durch Eigenverbrauch + Abregelung BW]] -> 4514.479831 | R14: =Tabelle4[[#This Row],[Solarer Ertrag mit Degradation]]*EEG_Vergütung*IF(Eingabe_pers_Eigenverbrauch="ja",(1-Eigenverbrauchsquote_pers/100),(1-(Eigenverbrauchsquote_Basis/100)))*IF(OR(Feste_EEG_Vergütung="nein",Direktvermarktung="ja"),0,1) -> 637.6516813 | S14: =Tabelle4[[#This Row],[Verkauf Überschussstrom mit EEG-Vergütung]]*(1+WACC_real/100)^-Tabelle1[[#This Row],[Nutzungs-dauer]] -> 604.8654914 | T14: =T13+Tabelle4[[#This Row],[Verkauf Überschussstrom mit EEG-Vergütung BW]] -> 5630.407481 | U14: =Tabelle4[[#This Row],[Solarer Ertrag mit Degradation + Abregelung]]*EEG_Vergütung*IF(Eingabe_pers_Eigenverbrauch="ja",(1-Eigenverbrauchsquote_pers/100),(1-(Eigenverbrauchsquote_Basis/100)))*IF(OR(Feste_EEG_Vergütung="nein",Direktvermarktung="ja"),0,1) -> 634.7822487 | V14: =Tabelle4[[#This Row],[Verkauf Überschussstrom mit EEG-Vergütung + Abregelung]]*(1+WACC_real/100)^-Tabelle1[[#This Row],[Nutzungs-dauer]] -> 602.1435967 | W14: =W13+Tabelle4[[#This Row],[Verkauf Überschussstrom mit EEG-Vergütung + Abregelung BW]] -> 5605.070647 | X14: =Tabelle4[[#This Row],[Solarer Ertrag mit Degradation]]*IF(Eingabe_pers_Eigenverbrauch="ja",(1-Eigenverbrauchsquote_pers/100),(1-(Eigenverbrauchsquote_Basis/100)))*IF(AND(Direktvermarktung="nein",Feste_EEG_Vergütung="nein"),Direktvermarktung_sonstige,IF(Direktvermarktung="ja",Direktvermarktung_gefördert,0)) -> 0 | Y14: =Tabelle4[[#This Row],[Verkauf Überschussstrom Direktvermarktung]]*(1+WACC_real/100)^-Tabelle1[[#This Row],[Nutzungs-dauer]] -> 0 | Z14: =Z13+Tabelle4[[#This Row],[Verkauf Überschussstrom Direktvermarktung BW]] -> 0 | AA14: =Tabelle4[[#This Row],[Solarer Ertrag mit Degradation + Abregelung]]*IF(Eingabe_pers_Eigenverbrauch="ja",(1-Eigenverbrauchsquote_pers/100),(1-(Eigenverbrauchsquote_Basis/100)))*IF(AND(Direktvermarktung="nein",Feste_EEG_Vergütung="nein"),Direktvermarktung_sonstige,IF(Direktvermarktung="ja",Direktvermarktung_gefördert,0)) -> 0 | AB14: =Tabelle4[[#This Row],[Verkauf Überschussstrom Direktvermarktung + Abregelung]]*(1+WACC_real/100)^-Tabelle1[[#This Row],[Nutzungs-dauer]] -> 0 | AC14: =AC13+Tabelle4[[#This Row],[Verkauf Überschussstrom Direktvermarktung + Abregelung BW]] -> 0 | AD14: =Tabelle4[[#This Row],[Solarer Ertrag mit Degradation]]*IF(Eingabe_pers_Eigenverbrauch="ja",(Eigenverbrauchsquote_pers/100),(Eigenverbrauchsquote_Basis/100))*IF(Installierte_Leistung_der_GesamtAnlage<=10, 0,1)*IF(AND(Eingabe_pers_Eigenverbrauch="ja", OR(Eigenverbrauchsquote_pers=100,Eigenverbrauchsquote_pers=0)),0,1)*EEG_Umlage*(PRZNT_EEG_Umlage/100) -> 0 | AE14: =Tabelle4[[#This Row],[Pflicht zur EEG-Umlage]]*(1+WACC_real/100)^-Tabelle1[[#This Row],[Nutzungs-dauer]] -> 0 | AF14: =AF13+Tabelle4[[#This Row],[Pflicht zur EEG-Umlage BW]] -> 0 | AG14: =Tabelle4[[#This Row],[Solarer Ertrag mit Degradation + Abregelung]]*IF(Eingabe_pers_Eigenverbrauch="ja",(Eigenverbrauchsquote_pers/100),(Eigenverbrauchsquote_Basis/100))*IF(Installierte_Leistung_der_GesamtAnlage<=10, 0,1)*IF(AND(Eingabe_pers_Eigenverbrauch="ja", OR(Eigenverbrauchsquote_pers=100,Eigenverbrauchsquote_pers=0)),0,1)*EEG_Umlage*(PRZNT_EEG_Umlage/100) -> 0 | AH14: =Tabelle4[[#This Row],[Pflicht zur EEG-Umlage + Abregelung]]*(1+WACC_real/100)^-Tabelle1[[#This Row],[Nutzungs-dauer]] -> 0 | AI14: =AI13+Tabelle4[[#This Row],[Pflicht zur EEG-Umlage + Abregelung BW]] -> 0 | AK14: 0.2843581709 | AL14: =AVERAGE($AK$6:AK14) -> 0.2733528067 | AN14: 0 | AO14: 0 | AP14: =Tabelle612[[#This Row],[Jährliche OPEX-Kosten PV]]*(1+WACC_real/100)^-Tabelle1[[#This Row],[Nutzungs-dauer]] -> 0 | AQ14: =Tabelle612[[#This Row],[Jährliche OPEX-Kosten BAT]]*(1+WACC_real/100)^-Tabelle1[[#This Row],[Nutzungs-dauer]] -> 0 | AR14: =IF(Tabelle1[[#This Row],[Nutzungs-dauer]]=Lebensdauer_des_ersten_Wechselrichters,CAPEX_des_Ersatz_Wechselrichters,IF(Tabelle1[[#This Row],[Nutzungs-dauer]]=Lebensdauer_der_ersten_Batterie,CAPEX_der_Ersatz_Batterie,0)) -> 0 | AS14: =Tabelle4[[#This Row],[Einsparung durch Eigenverbrauch BW]]+Tabelle4[[#This Row],[Verkauf Überschussstrom mit EEG-Vergütung BW]]+Tabelle4[[#This Row],[Verkauf Überschussstrom Direktvermarktung BW]]-Tabelle4[[#This Row],[Pflicht zur EEG-Umlage BW]]-Tabelle612[[#This Row],[Jährliche OPEX-Kosten PV BW]]-Tabelle612[[#This Row],[Jährliche OPEX-Kosten BAT BW]]-Tabelle612[[#This Row],[Investition PV-Batterie-System]] -> 1111.936378 | AT14: =AT13+Tabelle612[[#This Row],[Cashflow diskontiert mit Kalkulationszins]] -> 10165.2943 | AU14: =Tabelle612[[#This Row],[Cashflow diskontiert mit Kalkulationszins kumuliert]] -> 10165.2943 | AV14: =Tabelle4[[#This Row],[Einsparung durch Eigenverbrauch + Abregelung BW]]+Tabelle4[[#This Row],[Verkauf Überschussstrom mit EEG-Vergütung + Abregelung BW]]+Tabelle4[[#This Row],[Verkauf Überschussstrom Direktvermarktung + Abregelung BW]]-Tabelle4[[#This Row],[Pflicht zur EEG-Umlage + Abregelung BW]]-Tabelle612[[#This Row],[Jährliche OPEX-Kosten PV BW]]-Tabelle612[[#This Row],[Jährliche OPEX-Kosten BAT BW]]-Tabelle612[[#This Row],[Investition PV-Batterie-System]] -> 1106.932664 | AW14: =AW13+Tabelle612[[#This Row],[Cashflow diskontiert mit Kalkulationszins]] -> 10160.13083 | AX14: =Tabelle612[[#This Row],[Cashflow diskontiert mit Kalkulationszins kumuliert mit Abr.]] -> 10160.13083
B15: 10 | D15: =Solarer_Gesamtertrag_der_Anlage*(1-(Moduldegradation/100))^Tabelle1[[#This Row],[Nutzungs-dauer]] -> 9375.84835 | E15: =E14+Tabelle4[[#This Row],[Solarer Ertrag mit Degradation]] -> 94823.00828 | F15: =Tabelle4[[#This Row],[Solarer Ertrag mit Degradation]]*(1+WACC_real/100)^-Tabelle1[[#This Row],[Nutzungs-dauer]] -> 8841.759223 | G15: =G14+Tabelle4[[#This Row],[Solarer Ertrag mit Degradation BW]] -> 91837.15252 | H15: =Solarer_Gesamtertrag_der_Anlage*(1-(Moduldegradation/100))^Tabelle1[[#This Row],[Nutzungs-dauer]]*(1-(Abregelungsverluste/100)) -> 9333.657033 | I15: =I14+Tabelle4[[#This Row],[Solarer Ertrag mit Degradation + Abregelung]] -> 94396.30474 | J15: =Tabelle4[[#This Row],[Solarer Ertrag mit Degradation + Abregelung]]*(1+WACC_real/100)^-Tabelle1[[#This Row],[Nutzungs-dauer]] -> 8801.971306 | K15: =K14+Tabelle4[[#This Row],[Solarer Ertrag mit Degradation + Abregelung BW]] -> 91423.88533 | L15: =Tabelle4[[#This Row],[Solarer Ertrag mit Degradation]]*Tabelle6[[#This Row],[Bezugspreis mit Steigerung]]*IF(AND(Eingabe_pers_Eigenverbrauch="ja",Batterie_gewuenscht="nein"),(Eigenverbrauchsquote_pers/100),IF(AND(Eingabe_pers_Eigenverbrauch="ja",Batterie_gewuenscht="ja"),(Eigenverbauch_ohne_BAT/100)+(Eigenverbaucherhöhung/100)*(1-Batterie_Verluste/100),IF(Batterie_gewuenscht="nein",Eigenverbrauchsquote_Basis/100,(Eigenverbauch_ohne_BAT/100)+(Eigenverbaucherhöhung/100)*(1-Batterie_Verluste/100)))) -> 538.5520157 | M15: =Tabelle4[[#This Row],[Einsparung durch Eigenverbrauch]]*(1+WACC_real/100)^-Tabelle1[[#This Row],[Nutzungs-dauer]] -> 507.873749 | N15: =N14+Tabelle4[[#This Row],[Einsparung durch Eigenverbrauch BW]] -> 5042.760571 | O15: =Tabelle4[[#This Row],[Solarer Ertrag mit Degradation + Abregelung]]*Tabelle6[[#This Row],[Bezugspreis mit Steigerung]]*IF(AND(Eingabe_pers_Eigenverbrauch="ja",Batterie_gewuenscht="nein"),(Eigenverbrauchsquote_pers/100),IF(AND(Eingabe_pers_Eigenverbrauch="ja",Batterie_gewuenscht="ja"),(Eigenverbauch_ohne_BAT/100)+(Eigenverbaucherhöhung/100)*(1-Batterie_Verluste/100),IF(Batterie_gewuenscht="nein",Eigenverbrauchsquote_Basis/100,(Eigenverbauch_ohne_BAT/100)+(Eigenverbaucherhöhung/100)*(1-Batterie_Verluste/100)))) -> 536.1285316 | P15: =Tabelle4[[#This Row],[Einsparung durch Eigenverbrauch + Abregelung]]*(1+WACC_real/100)^-Tabelle1[[#This Row],[Nutzungs-dauer]] -> 505.5883171 | Q15: =Q14+Tabelle4[[#This Row],[Einsparung durch Eigenverbrauch + Abregelung BW]] -> 5020.068149 | R15: =Tabelle4[[#This Row],[Solarer Ertrag mit Degradation]]*EEG_Vergütung*IF(Eingabe_pers_Eigenverbrauch="ja",(1-Eigenverbrauchsquote_pers/100),(1-(Eigenverbrauchsquote_Basis/100)))*IF(OR(Feste_EEG_Vergütung="nein",Direktvermarktung="ja"),0,1) -> 636.0575521 | S15: =Tabelle4[[#This Row],[Verkauf Überschussstrom mit EEG-Vergütung]]*(1+WACC_real/100)^-Tabelle1[[#This Row],[Nutzungs-dauer]] -> 599.8249457 | T15: =T14+Tabelle4[[#This Row],[Verkauf Überschussstrom mit EEG-Vergütung BW]] -> 6230.232427 | U15: =Tabelle4[[#This Row],[Solarer Ertrag mit Degradation + Abregelung]]*EEG_Vergütung*IF(Eingabe_pers_Eigenverbrauch="ja",(1-Eigenverbrauchsquote_pers/100),(1-(Eigenverbrauchsquote_Basis/100)))*IF(OR(Feste_EEG_Vergütung="nein",Direktvermarktung="ja"),0,1) -> 633.1952931 | V15: =Tabelle4[[#This Row],[Verkauf Überschussstrom mit EEG-Vergütung + Abregelung]]*(1+WACC_real/100)^-Tabelle1[[#This Row],[Nutzungs-dauer]] -> 597.1257334 | W15: =W14+Tabelle4[[#This Row],[Verkauf Überschussstrom mit EEG-Vergütung + Abregelung BW]] -> 6202.196381 | X15: =Tabelle4[[#This Row],[Solarer Ertrag mit Degradation]]*IF(Eingabe_pers_Eigenverbrauch="ja",(1-Eigenverbrauchsquote_pers/100),(1-(Eigenverbrauchsquote_Basis/100)))*IF(AND(Direktvermarktung="nein",Feste_EEG_Vergütung="nein"),Direktvermarktung_sonstige,IF(Direktvermarktung="ja",Direktvermarktung_gefördert,0)) -> 0 | Y15: =Tabelle4[[#This Row],[Verkauf Überschussstrom Direktvermarktung]]*(1+WACC_real/100)^-Tabelle1[[#This Row],[Nutzungs-dauer]] -> 0 | Z15: =Z14+Tabelle4[[#This Row],[Verkauf Überschussstrom Direktvermarktung BW]] -> 0 | AA15: =Tabelle4[[#This Row],[Solarer Ertrag mit Degradation + Abregelung]]*IF(Eingabe_pers_Eigenverbrauch="ja",(1-Eigenverbrauchsquote_pers/100),(1-(Eigenverbrauchsquote_Basis/100)))*IF(AND(Direktvermarktung="nein",Feste_EEG_Vergütung="nein"),Direktvermarktung_sonstige,IF(Direktvermarktung="ja",Direktvermarktung_gefördert,0)) -> 0 | AB15: =Tabelle4[[#This Row],[Verkauf Überschussstrom Direktvermarktung + Abregelung]]*(1+WACC_real/100)^-Tabelle1[[#This Row],[Nutzungs-dauer]] -> 0 | AC15: =AC14+Tabelle4[[#This Row],[Verkauf Überschussstrom Direktvermarktung + Abregelung BW]] -> 0 | AD15: =Tabelle4[[#This Row],[Solarer Ertrag mit Degradation]]*IF(Eingabe_pers_Eigenverbrauch="ja",(Eigenverbrauchsquote_pers/100),(Eigenverbrauchsquote_Basis/100))*IF(Installierte_Leistung_der_GesamtAnlage<=10, 0,1)*IF(AND(Eingabe_pers_Eigenverbrauch="ja", OR(Eigenverbrauchsquote_pers=100,Eigenverbrauchsquote_pers=0)),0,1)*EEG_Umlage*(PRZNT_EEG_Umlage/100) -> 0 | AE15: =Tabelle4[[#This Row],[Pflicht zur EEG-Umlage]]*(1+WACC_real/100)^-Tabelle1[[#This Row],[Nutzungs-dauer]] -> 0 | AF15: =AF14+Tabelle4[[#This Row],[Pflicht zur EEG-Umlage BW]] -> 0 | AG15: =Tabelle4[[#This Row],[Solarer Ertrag mit Degradation + Abregelung]]*IF(Eingabe_pers_Eigenverbrauch="ja",(Eigenverbrauchsquote_pers/100),(Eigenverbrauchsquote_Basis/100))*IF(Installierte_Leistung_der_GesamtAnlage<=10, 0,1)*IF(AND(Eingabe_pers_Eigenverbrauch="ja", OR(Eigenverbrauchsquote_pers=100,Eigenverbrauchsquote_pers=0)),0,1)*EEG_Umlage*(PRZNT_EEG_Umlage/100) -> 0 | AH15: =Tabelle4[[#This Row],[Pflicht zur EEG-Umlage + Abregelung]]*(1+WACC_real/100)^-Tabelle1[[#This Row],[Nutzungs-dauer]] -> 0 | AI15: =AI14+Tabelle4[[#This Row],[Pflicht zur EEG-Umlage + Abregelung BW]] -> 0 | AK15: 0.2872017526 | AL15: =AVERAGE($AK$6:AK15) -> 0.2747377013 | AN15: 0 | AO15: 0 | AP15: =Tabelle612[[#This Row],[Jährliche OPEX-Kosten PV]]*(1+WACC_real/100)^-Tabelle1[[#This Row],[Nutzungs-dauer]] -> 0 | AQ15: =Tabelle612[[#This Row],[Jährliche OPEX-Kosten BAT]]*(1+WACC_real/100)^-Tabelle1[[#This Row],[Nutzungs-dauer]] -> 0 | AR15: =IF(Tabelle1[[#This Row],[Nutzungs-dauer]]=Lebensdauer_des_ersten_Wechselrichters,CAPEX_des_Ersatz_Wechselrichters,IF(Tabelle1[[#This Row],[Nutzungs-dauer]]=Lebensdauer_der_ersten_Batterie,CAPEX_der_Ersatz_Batterie,0)) -> 0 | AS15: =Tabelle4[[#This Row],[Einsparung durch Eigenverbrauch BW]]+Tabelle4[[#This Row],[Verkauf Überschussstrom mit EEG-Vergütung BW]]+Tabelle4[[#This Row],[Verkauf Überschussstrom Direktvermarktung BW]]-Tabelle4[[#This Row],[Pflicht zur EEG-Umlage BW]]-Tabelle612[[#This Row],[Jährliche OPEX-Kosten PV BW]]-Tabelle612[[#This Row],[Jährliche OPEX-Kosten BAT BW]]-Tabelle612[[#This Row],[Investition PV-Batterie-System]] -> 1107.698695 | AT15: =AT14+Tabelle612[[#This Row],[Cashflow diskontiert mit Kalkulationszins]] -> 11272.993 | AU15: =Tabelle612[[#This Row],[Cashflow diskontiert mit Kalkulationszins kumuliert]] -> 11272.993 | AV15: =Tabelle4[[#This Row],[Einsparung durch Eigenverbrauch + Abregelung BW]]+Tabelle4[[#This Row],[Verkauf Überschussstrom mit EEG-Vergütung + Abregelung BW]]+Tabelle4[[#This Row],[Verkauf Überschussstrom Direktvermarktung + Abregelung BW]]-Tabelle4[[#This Row],[Pflicht zur EEG-Umlage + Abregelung BW]]-Tabelle612[[#This Row],[Jährliche OPEX-Kosten PV BW]]-Tabelle612[[#This Row],[Jährliche OPEX-Kosten BAT BW]]-Tabelle612[[#This Row],[Investition PV-Batterie-System]] -> 1102.71405 | AW15: =AW14+Tabelle612[[#This Row],[Cashflow diskontiert mit Kalkulationszins]] -> 11267.82952 | AX15: =Tabelle612[[#This Row],[Cashflow diskontiert mit Kalkulationszins kumuliert mit Abr.]] -> 11267.82952
B16: 11 | D16: =Solarer_Gesamtertrag_der_Anlage*(1-(Moduldegradation/100))^Tabelle1[[#This Row],[Nutzungs-dauer]] -> 9352.408729 | E16: =E15+Tabelle4[[#This Row],[Solarer Ertrag mit Degradation]] -> 104175.417 | F16: =Tabelle4[[#This Row],[Solarer Ertrag mit Degradation]]*(1+WACC_real/100)^-Tabelle1[[#This Row],[Nutzungs-dauer]] -> 8768.077896 | G16: =G15+Tabelle4[[#This Row],[Solarer Ertrag mit Degradation BW]] -> 100605.2304 | H16: =Solarer_Gesamtertrag_der_Anlage*(1-(Moduldegradation/100))^Tabelle1[[#This Row],[Nutzungs-dauer]]*(1-(Abregelungsverluste/100)) -> 9310.32289 | I16: =I15+Tabelle4[[#This Row],[Solarer Ertrag mit Degradation + Abregelung]] -> 103706.6276 | J16: =Tabelle4[[#This Row],[Solarer Ertrag mit Degradation + Abregelung]]*(1+WACC_real/100)^-Tabelle1[[#This Row],[Nutzungs-dauer]] -> 8728.621545 | K16: =K15+Tabelle4[[#This Row],[Solarer Ertrag mit Degradation + Abregelung BW]] -> 100152.5069 | L16: =Tabelle4[[#This Row],[Solarer Ertrag mit Degradation]]*Tabelle6[[#This Row],[Bezugspreis mit Steigerung]]*IF(AND(Eingabe_pers_Eigenverbrauch="ja",Batterie_gewuenscht="nein"),(Eigenverbrauchsquote_pers/100),IF(AND(Eingabe_pers_Eigenverbrauch="ja",Batterie_gewuenscht="ja"),(Eigenverbauch_ohne_BAT/100)+(Eigenverbaucherhöhung/100)*(1-Batterie_Verluste/100),IF(Batterie_gewuenscht="nein",Eigenverbrauchsquote_Basis/100,(Eigenverbauch_ohne_BAT/100)+(Eigenverbaucherhöhung/100)*(1-Batterie_Verluste/100)))) -> 542.577692 | M16: =Tabelle4[[#This Row],[Einsparung durch Eigenverbrauch]]*(1+WACC_real/100)^-Tabelle1[[#This Row],[Nutzungs-dauer]] -> 508.6778824 | N16: =N15+Tabelle4[[#This Row],[Einsparung durch Eigenverbrauch BW]] -> 5551.438454 | O16: =Tabelle4[[#This Row],[Solarer Ertrag mit Degradation + Abregelung]]*Tabelle6[[#This Row],[Bezugspreis mit Steigerung]]*IF(AND(Eingabe_pers_Eigenverbrauch="ja",Batterie_gewuenscht="nein"),(Eigenverbrauchsquote_pers/100),IF(AND(Eingabe_pers_Eigenverbrauch="ja",Batterie_gewuenscht="ja"),(Eigenverbauch_ohne_BAT/100)+(Eigenverbaucherhöhung/100)*(1-Batterie_Verluste/100),IF(Batterie_gewuenscht="nein",Eigenverbrauchsquote_Basis/100,(Eigenverbauch_ohne_BAT/100)+(Eigenverbaucherhöhung/100)*(1-Batterie_Verluste/100)))) -> 540.1360924 | P16: =Tabelle4[[#This Row],[Einsparung durch Eigenverbrauch + Abregelung]]*(1+WACC_real/100)^-Tabelle1[[#This Row],[Nutzungs-dauer]] -> 506.3888319 | Q16: =Q15+Tabelle4[[#This Row],[Einsparung durch Eigenverbrauch + Abregelung BW]] -> 5526.456981 | R16: =Tabelle4[[#This Row],[Solarer Ertrag mit Degradation]]*EEG_Vergütung*IF(Eingabe_pers_Eigenverbrauch="ja",(1-Eigenverbrauchsquote_pers/100),(1-(Eigenverbrauchsquote_Basis/100)))*IF(OR(Feste_EEG_Vergütung="nein",Direktvermarktung="ja"),0,1) -> 634.4674082 | S16: =Tabelle4[[#This Row],[Verkauf Überschussstrom mit EEG-Vergütung]]*(1+WACC_real/100)^-Tabelle1[[#This Row],[Nutzungs-dauer]] -> 594.8264044 | T16: =T15+Tabelle4[[#This Row],[Verkauf Überschussstrom mit EEG-Vergütung BW]] -> 6825.058831 | U16: =Tabelle4[[#This Row],[Solarer Ertrag mit Degradation + Abregelung]]*EEG_Vergütung*IF(Eingabe_pers_Eigenverbrauch="ja",(1-Eigenverbrauchsquote_pers/100),(1-(Eigenverbrauchsquote_Basis/100)))*IF(OR(Feste_EEG_Vergütung="nein",Direktvermarktung="ja"),0,1) -> 631.6123049 | V16: =Tabelle4[[#This Row],[Verkauf Überschussstrom mit EEG-Vergütung + Abregelung]]*(1+WACC_real/100)^-Tabelle1[[#This Row],[Nutzungs-dauer]] -> 592.1496856 | W16: =W15+Tabelle4[[#This Row],[Verkauf Überschussstrom mit EEG-Vergütung + Abregelung BW]] -> 6794.346066 | X16: =Tabelle4[[#This Row],[Solarer Ertrag mit Degradation]]*IF(Eingabe_pers_Eigenverbrauch="ja",(1-Eigenverbrauchsquote_pers/100),(1-(Eigenverbrauchsquote_Basis/100)))*IF(AND(Direktvermarktung="nein",Feste_EEG_Vergütung="nein"),Direktvermarktung_sonstige,IF(Direktvermarktung="ja",Direktvermarktung_gefördert,0)) -> 0 | Y16: =Tabelle4[[#This Row],[Verkauf Überschussstrom Direktvermarktung]]*(1+WACC_real/100)^-Tabelle1[[#This Row],[Nutzungs-dauer]] -> 0 | Z16: =Z15+Tabelle4[[#This Row],[Verkauf Überschussstrom Direktvermarktung BW]] -> 0 | AA16: =Tabelle4[[#This Row],[Solarer Ertrag mit Degradation + Abregelung]]*IF(Eingabe_pers_Eigenverbrauch="ja",(1-Eigenverbrauchsquote_pers/100),(1-(Eigenverbrauchsquote_Basis/100)))*IF(AND(Direktvermarktung="nein",Feste_EEG_Vergütung="nein"),Direktvermarktung_sonstige,IF(Direktvermarktung="ja",Direktvermarktung_gefördert,0)) -> 0 | AB16: =Tabelle4[[#This Row],[Verkauf Überschussstrom Direktvermarktung + Abregelung]]*(1+WACC_real/100)^-Tabelle1[[#This Row],[Nutzungs-dauer]] -> 0 | AC16: =AC15+Tabelle4[[#This Row],[Verkauf Überschussstrom Direktvermarktung + Abregelung BW]] -> 0 | AD16: =Tabelle4[[#This Row],[Solarer Ertrag mit Degradation]]*IF(Eingabe_pers_Eigenverbrauch="ja",(Eigenverbrauchsquote_pers/100),(Eigenverbrauchsquote_Basis/100))*IF(Installierte_Leistung_der_GesamtAnlage<=10, 0,1)*IF(AND(Eingabe_pers_Eigenverbrauch="ja", OR(Eigenverbrauchsquote_pers=100,Eigenverbrauchsquote_pers=0)),0,1)*EEG_Umlage*(PRZNT_EEG_Umlage/100) -> 0 | AE16: =Tabelle4[[#This Row],[Pflicht zur EEG-Umlage]]*(1+WACC_real/100)^-Tabelle1[[#This Row],[Nutzungs-dauer]] -> 0 | AF16: =AF15+Tabelle4[[#This Row],[Pflicht zur EEG-Umlage BW]] -> 0 | AG16: =Tabelle4[[#This Row],[Solarer Ertrag mit Degradation + Abregelung]]*IF(Eingabe_pers_Eigenverbrauch="ja",(Eigenverbrauchsquote_pers/100),(Eigenverbrauchsquote_Basis/100))*IF(Installierte_Leistung_der_GesamtAnlage<=10, 0,1)*IF(AND(Eingabe_pers_Eigenverbrauch="ja", OR(Eigenverbrauchsquote_pers=100,Eigenverbrauchsquote_pers=0)),0,1)*EEG_Umlage*(PRZNT_EEG_Umlage/100) -> 0 | AH16: =Tabelle4[[#This Row],[Pflicht zur EEG-Umlage + Abregelung]]*(1+WACC_real/100)^-Tabelle1[[#This Row],[Nutzungs-dauer]] -> 0 | AI16: =AI15+Tabelle4[[#This Row],[Pflicht zur EEG-Umlage + Abregelung BW]] -> 0 | AK16: 0.2900737701 | AL16: =AVERAGE($AK$6:AK16) -> 0.2761318894 | AN16: 0 | AO16: 0 | AP16: =Tabelle612[[#This Row],[Jährliche OPEX-Kosten PV]]*(1+WACC_real/100)^-Tabelle1[[#This Row],[Nutzungs-dauer]] -> 0 | AQ16: =Tabelle612[[#This Row],[Jährliche OPEX-Kosten BAT]]*(1+WACC_real/100)^-Tabelle1[[#This Row],[Nutzungs-dauer]] -> 0 | AR16: =IF(Tabelle1[[#This Row],[Nutzungs-dauer]]=Lebensdauer_des_ersten_Wechselrichters,CAPEX_des_Ersatz_Wechselrichters,IF(Tabelle1[[#This Row],[Nutzungs-dauer]]=Lebensdauer_der_ersten_Batterie,CAPEX_der_Ersatz_Batterie,0)) -> 0 | AS16: =Tabelle4[[#This Row],[Einsparung durch Eigenverbrauch BW]]+Tabelle4[[#This Row],[Verkauf Überschussstrom mit EEG-Vergütung BW]]+Tabelle4[[#This Row],[Verkauf Überschussstrom Direktvermarktung BW]]-Tabelle4[[#This Row],[Pflicht zur EEG-Umlage BW]]-Tabelle612[[#This Row],[Jährliche OPEX-Kosten PV BW]]-Tabelle612[[#This Row],[Jährliche OPEX-Kosten BAT BW]]-Tabelle612[[#This Row],[Investition PV-Batterie-System]] -> 1103.504287 | AT16: =AT15+Tabelle612[[#This Row],[Cashflow diskontiert mit Kalkulationszins]] -> 12376.49728 | AU16: =Tabelle612[[#This Row],[Cashflow diskontiert mit Kalkulationszins kumuliert]] -> 12376.49728 | AV16: =Tabelle4[[#This Row],[Einsparung durch Eigenverbrauch + Abregelung BW]]+Tabelle4[[#This Row],[Verkauf Überschussstrom mit EEG-Vergütung + Abregelung BW]]+Tabelle4[[#This Row],[Verkauf Überschussstrom Direktvermarktung + Abregelung BW]]-Tabelle4[[#This Row],[Pflicht zur EEG-Umlage + Abregelung BW]]-Tabelle612[[#This Row],[Jährliche OPEX-Kosten PV BW]]-Tabelle612[[#This Row],[Jährliche OPEX-Kosten BAT BW]]-Tabelle612[[#This Row],[Investition PV-Batterie-System]] -> 1098.538518 | AW16: =AW15+Tabelle612[[#This Row],[Cashflow diskontiert mit Kalkulationszins]] -> 12371.33381 | AX16: =Tabelle612[[#This Row],[Cashflow diskontiert mit Kalkulationszins kumuliert mit Abr.]] -> 12371.33381
B17: 12 | D17: =Solarer_Gesamtertrag_der_Anlage*(1-(Moduldegradation/100))^Tabelle1[[#This Row],[Nutzungs-dauer]] -> 9329.027707 | E17: =E16+Tabelle4[[#This Row],[Solarer Ertrag mit Degradation]] -> 113504.4447 | F17: =Tabelle4[[#This Row],[Solarer Ertrag mit Degradation]]*(1+WACC_real/100)^-Tabelle1[[#This Row],[Nutzungs-dauer]] -> 8695.01058 | G17: =G16+Tabelle4[[#This Row],[Solarer Ertrag mit Degradation BW]] -> 109300.241 | H17: =Solarer_Gesamtertrag_der_Anlage*(1-(Moduldegradation/100))^Tabelle1[[#This Row],[Nutzungs-dauer]]*(1-(Abregelungsverluste/100)) -> 9287.047083 | I17: =I16+Tabelle4[[#This Row],[Solarer Ertrag mit Degradation + Abregelung]] -> 112993.6747 | J17: =Tabelle4[[#This Row],[Solarer Ertrag mit Degradation + Abregelung]]*(1+WACC_real/100)^-Tabelle1[[#This Row],[Nutzungs-dauer]] -> 8655.883032 | K17: =K16+Tabelle4[[#This Row],[Solarer Ertrag mit Degradation + Abregelung BW]] -> 108808.3899 | L17: =Tabelle4[[#This Row],[Solarer Ertrag mit Degradation]]*Tabelle6[[#This Row],[Bezugspreis mit Steigerung]]*IF(AND(Eingabe_pers_Eigenverbrauch="ja",Batterie_gewuenscht="nein"),(Eigenverbrauchsquote_pers/100),IF(AND(Eingabe_pers_Eigenverbrauch="ja",Batterie_gewuenscht="ja"),(Eigenverbauch_ohne_BAT/100)+(Eigenverbaucherhöhung/100)*(1-Batterie_Verluste/100),IF(Batterie_gewuenscht="nein",Eigenverbrauchsquote_Basis/100,(Eigenverbauch_ohne_BAT/100)+(Eigenverbaucherhöhung/100)*(1-Batterie_Verluste/100)))) -> 546.6334602 | M17: =Tabelle4[[#This Row],[Einsparung durch Eigenverbrauch]]*(1+WACC_real/100)^-Tabelle1[[#This Row],[Nutzungs-dauer]] -> 509.4832891 | N17: =N16+Tabelle4[[#This Row],[Einsparung durch Eigenverbrauch BW]] -> 6060.921743 | O17: =Tabelle4[[#This Row],[Solarer Ertrag mit Degradation + Abregelung]]*Tabelle6[[#This Row],[Bezugspreis mit Steigerung]]*IF(AND(Eingabe_pers_Eigenverbrauch="ja",Batterie_gewuenscht="nein"),(Eigenverbrauchsquote_pers/100),IF(AND(Eingabe_pers_Eigenverbrauch="ja",Batterie_gewuenscht="ja"),(Eigenverbauch_ohne_BAT/100)+(Eigenverbaucherhöhung/100)*(1-Batterie_Verluste/100),IF(Batterie_gewuenscht="nein",Eigenverbrauchsquote_Basis/100,(Eigenverbauch_ohne_BAT/100)+(Eigenverbaucherhöhung/100)*(1-Batterie_Verluste/100)))) -> 544.1736097 | P17: =Tabelle4[[#This Row],[Einsparung durch Eigenverbrauch + Abregelung]]*(1+WACC_real/100)^-Tabelle1[[#This Row],[Nutzungs-dauer]] -> 507.1906143 | Q17: =Q16+Tabelle4[[#This Row],[Einsparung durch Eigenverbrauch + Abregelung BW]] -> 6033.647595 | R17: =Tabelle4[[#This Row],[Solarer Ertrag mit Degradation]]*EEG_Vergütung*IF(Eingabe_pers_Eigenverbrauch="ja",(1-Eigenverbrauchsquote_pers/100),(1-(Eigenverbrauchsquote_Basis/100)))*IF(OR(Feste_EEG_Vergütung="nein",Direktvermarktung="ja"),0,1) -> 632.8812397 | S17: =Tabelle4[[#This Row],[Verkauf Überschussstrom mit EEG-Vergütung]]*(1+WACC_real/100)^-Tabelle1[[#This Row],[Nutzungs-dauer]] -> 589.8695177 | T17: =T16+Tabelle4[[#This Row],[Verkauf Überschussstrom mit EEG-Vergütung BW]] -> 7414.928349 | U17: =Tabelle4[[#This Row],[Solarer Ertrag mit Degradation + Abregelung]]*EEG_Vergütung*IF(Eingabe_pers_Eigenverbrauch="ja",(1-Eigenverbrauchsquote_pers/100),(1-(Eigenverbrauchsquote_Basis/100)))*IF(OR(Feste_EEG_Vergütung="nein",Direktvermarktung="ja"),0,1) -> 630.0332741 | V17: =Tabelle4[[#This Row],[Verkauf Überschussstrom mit EEG-Vergütung + Abregelung]]*(1+WACC_real/100)^-Tabelle1[[#This Row],[Nutzungs-dauer]] -> 587.2151049 | W17: =W16+Tabelle4[[#This Row],[Verkauf Überschussstrom mit EEG-Vergütung + Abregelung BW]] -> 7381.561171 | X17: =Tabelle4[[#This Row],[Solarer Ertrag mit Degradation]]*IF(Eingabe_pers_Eigenverbrauch="ja",(1-Eigenverbrauchsquote_pers/100),(1-(Eigenverbrauchsquote_Basis/100)))*IF(AND(Direktvermarktung="nein",Feste_EEG_Vergütung="nein"),Direktvermarktung_sonstige,IF(Direktvermarktung="ja",Direktvermarktung_gefördert,0)) -> 0 | Y17: =Tabelle4[[#This Row],[Verkauf Überschussstrom Direktvermarktung]]*(1+WACC_real/100)^-Tabelle1[[#This Row],[Nutzungs-dauer]] -> 0 | Z17: =Z16+Tabelle4[[#This Row],[Verkauf Überschussstrom Direktvermarktung BW]] -> 0 | AA17: =Tabelle4[[#This Row],[Solarer Ertrag mit Degradation + Abregelung]]*IF(Eingabe_pers_Eigenverbrauch="ja",(1-Eigenverbrauchsquote_pers/100),(1-(Eigenverbrauchsquote_Basis/100)))*IF(AND(Direktvermarktung="nein",Feste_EEG_Vergütung="nein"),Direktvermarktung_sonstige,IF(Direktvermarktung="ja",Direktvermarktung_gefördert,0)) -> 0 | AB17: =Tabelle4[[#This Row],[Verkauf Überschussstrom Direktvermarktung + Abregelung]]*(1+WACC_real/100)^-Tabelle1[[#This Row],[Nutzungs-dauer]] -> 0 | AC17: =AC16+Tabelle4[[#This Row],[Verkauf Überschussstrom Direktvermarktung + Abregelung BW]] -> 0 | AD17: =Tabelle4[[#This Row],[Solarer Ertrag mit Degradation]]*IF(Eingabe_pers_Eigenverbrauch="ja",(Eigenverbrauchsquote_pers/100),(Eigenverbrauchsquote_Basis/100))*IF(Installierte_Leistung_der_GesamtAnlage<=10, 0,1)*IF(AND(Eingabe_pers_Eigenverbrauch="ja", OR(Eigenverbrauchsquote_pers=100,Eigenverbrauchsquote_pers=0)),0,1)*EEG_Umlage*(PRZNT_EEG_Umlage/100) -> 0 | AE17: =Tabelle4[[#This Row],[Pflicht zur EEG-Umlage]]*(1+WACC_real/100)^-Tabelle1[[#This Row],[Nutzungs-dauer]] -> 0 | AF17: =AF16+Tabelle4[[#This Row],[Pflicht zur EEG-Umlage BW]] -> 0 | AG17: =Tabelle4[[#This Row],[Solarer Ertrag mit Degradation + Abregelung]]*IF(Eingabe_pers_Eigenverbrauch="ja",(Eigenverbrauchsquote_pers/100),(Eigenverbrauchsquote_Basis/100))*IF(Installierte_Leistung_der_GesamtAnlage<=10, 0,1)*IF(AND(Eingabe_pers_Eigenverbrauch="ja", OR(Eigenverbrauchsquote_pers=100,Eigenverbrauchsquote_pers=0)),0,1)*EEG_Umlage*(PRZNT_EEG_Umlage/100) -> 0 | AH17: =Tabelle4[[#This Row],[Pflicht zur EEG-Umlage + Abregelung]]*(1+WACC_real/100)^-Tabelle1[[#This Row],[Nutzungs-dauer]] -> 0 | AI17: =AI16+Tabelle4[[#This Row],[Pflicht zur EEG-Umlage + Abregelung BW]] -> 0 | AK17: 0.2929745078 | AL17: =AVERAGE($AK$6:AK17) -> 0.2775354409 | AN17: 0 | AO17: 0 | AP17: =Tabelle612[[#This Row],[Jährliche OPEX-Kosten PV]]*(1+WACC_real/100)^-Tabelle1[[#This Row],[Nutzungs-dauer]] -> 0 | AQ17: =Tabelle612[[#This Row],[Jährliche OPEX-Kosten BAT]]*(1+WACC_real/100)^-Tabelle1[[#This Row],[Nutzungs-dauer]] -> 0 | AR17: =IF(Tabelle1[[#This Row],[Nutzungs-dauer]]=Lebensdauer_des_ersten_Wechselrichters,CAPEX_des_Ersatz_Wechselrichters,IF(Tabelle1[[#This Row],[Nutzungs-dauer]]=Lebensdauer_der_ersten_Batterie,CAPEX_der_Ersatz_Batterie,0)) -> 0 | AS17: =Tabelle4[[#This Row],[Einsparung durch Eigenverbrauch BW]]+Tabelle4[[#This Row],[Verkauf Überschussstrom mit EEG-Vergütung BW]]+Tabelle4[[#This Row],[Verkauf Überschussstrom Direktvermarktung BW]]-Tabelle4[[#This Row],[Pflicht zur EEG-Umlage BW]]-Tabelle612[[#This Row],[Jährliche OPEX-Kosten PV BW]]-Tabelle612[[#This Row],[Jährliche OPEX-Kosten BAT BW]]-Tabelle612[[#This Row],[Investition PV-Batterie-System]] -> 1099.352807 | AT17: =AT16+Tabelle612[[#This Row],[Cashflow diskontiert mit Kalkulationszins]] -> 13475.85009 | AU17: =Tabelle612[[#This Row],[Cashflow diskontiert mit Kalkulationszins kumuliert]] -> 13475.85009 | AV17: =Tabelle4[[#This Row],[Einsparung durch Eigenverbrauch + Abregelung BW]]+Tabelle4[[#This Row],[Verkauf Überschussstrom mit EEG-Vergütung + Abregelung BW]]+Tabelle4[[#This Row],[Verkauf Überschussstrom Direktvermarktung + Abregelung BW]]-Tabelle4[[#This Row],[Pflicht zur EEG-Umlage + Abregelung BW]]-Tabelle612[[#This Row],[Jährliche OPEX-Kosten PV BW]]-Tabelle612[[#This Row],[Jährliche OPEX-Kosten BAT BW]]-Tabelle612[[#This Row],[Investition PV-Batterie-System]] -> 1094.405719 | AW17: =AW16+Tabelle612[[#This Row],[Cashflow diskontiert mit Kalkulationszins]] -> 13470.68662 | AX17: =Tabelle612[[#This Row],[Cashflow diskontiert mit Kalkulationszins kumuliert mit Abr.]] -> 13470.68662
B18: 13 | D18: =Solarer_Gesamtertrag_der_Anlage*(1-(Moduldegradation/100))^Tabelle1[[#This Row],[Nutzungs-dauer]] -> 9305.705138 | E18: =E17+Tabelle4[[#This Row],[Solarer Ertrag mit Degradation]] -> 122810.1499 | F18: =Tabelle4[[#This Row],[Solarer Ertrag mit Degradation]]*(1+WACC_real/100)^-Tabelle1[[#This Row],[Nutzungs-dauer]] -> 8622.552158 | G18: =G17+Tabelle4[[#This Row],[Solarer Ertrag mit Degradation BW]] -> 117922.7932 | H18: =Solarer_Gesamtertrag_der_Anlage*(1-(Moduldegradation/100))^Tabelle1[[#This Row],[Nutzungs-dauer]]*(1-(Abregelungsverluste/100)) -> 9263.829465 | I18: =I17+Tabelle4[[#This Row],[Solarer Ertrag mit Degradation + Abregelung]] -> 122257.5042 | J18: =Tabelle4[[#This Row],[Solarer Ertrag mit Degradation + Abregelung]]*(1+WACC_real/100)^-Tabelle1[[#This Row],[Nutzungs-dauer]] -> 8583.750674 | K18: =K17+Tabelle4[[#This Row],[Solarer Ertrag mit Degradation + Abregelung BW]] -> 117392.1406 | L18: =Tabelle4[[#This Row],[Solarer Ertrag mit Degradation]]*Tabelle6[[#This Row],[Bezugspreis mit Steigerung]]*IF(AND(Eingabe_pers_Eigenverbrauch="ja",Batterie_gewuenscht="nein"),(Eigenverbrauchsquote_pers/100),IF(AND(Eingabe_pers_Eigenverbrauch="ja",Batterie_gewuenscht="ja"),(Eigenverbauch_ohne_BAT/100)+(Eigenverbaucherhöhung/100)*(1-Batterie_Verluste/100),IF(Batterie_gewuenscht="nein",Eigenverbrauchsquote_Basis/100,(Eigenverbauch_ohne_BAT/100)+(Eigenverbaucherhöhung/100)*(1-Batterie_Verluste/100)))) -> 550.7195454 | M18: =Tabelle4[[#This Row],[Einsparung durch Eigenverbrauch]]*(1+WACC_real/100)^-Tabelle1[[#This Row],[Nutzungs-dauer]] -> 510.2899709 | N18: =N17+Tabelle4[[#This Row],[Einsparung durch Eigenverbrauch BW]] -> 6571.211714 | O18: =Tabelle4[[#This Row],[Solarer Ertrag mit Degradation + Abregelung]]*Tabelle6[[#This Row],[Bezugspreis mit Steigerung]]*IF(AND(Eingabe_pers_Eigenverbrauch="ja",Batterie_gewuenscht="nein"),(Eigenverbrauchsquote_pers/100),IF(AND(Eingabe_pers_Eigenverbrauch="ja",Batterie_gewuenscht="ja"),(Eigenverbauch_ohne_BAT/100)+(Eigenverbaucherhöhung/100)*(1-Batterie_Verluste/100),IF(Batterie_gewuenscht="nein",Eigenverbrauchsquote_Basis/100,(Eigenverbauch_ohne_BAT/100)+(Eigenverbaucherhöhung/100)*(1-Batterie_Verluste/100)))) -> 548.2413074 | P18: =Tabelle4[[#This Row],[Einsparung durch Eigenverbrauch + Abregelung]]*(1+WACC_real/100)^-Tabelle1[[#This Row],[Nutzungs-dauer]] -> 507.9936661 | Q18: =Q17+Tabelle4[[#This Row],[Einsparung durch Eigenverbrauch + Abregelung BW]] -> 6541.641261 | R18: =Tabelle4[[#This Row],[Solarer Ertrag mit Degradation]]*EEG_Vergütung*IF(Eingabe_pers_Eigenverbrauch="ja",(1-Eigenverbrauchsquote_pers/100),(1-(Eigenverbrauchsquote_Basis/100)))*IF(OR(Feste_EEG_Vergütung="nein",Direktvermarktung="ja"),0,1) -> 631.2990366 | S18: =Tabelle4[[#This Row],[Verkauf Überschussstrom mit EEG-Vergütung]]*(1+WACC_real/100)^-Tabelle1[[#This Row],[Nutzungs-dauer]] -> 584.9539384 | T18: =T17+Tabelle4[[#This Row],[Verkauf Überschussstrom mit EEG-Vergütung BW]] -> 7999.882287 | U18: =Tabelle4[[#This Row],[Solarer Ertrag mit Degradation + Abregelung]]*EEG_Vergütung*IF(Eingabe_pers_Eigenverbrauch="ja",(1-Eigenverbrauchsquote_pers/100),(1-(Eigenverbrauchsquote_Basis/100)))*IF(OR(Feste_EEG_Vergütung="nein",Direktvermarktung="ja"),0,1) -> 628.4581909 | V18: =Tabelle4[[#This Row],[Verkauf Überschussstrom mit EEG-Vergütung + Abregelung]]*(1+WACC_real/100)^-Tabelle1[[#This Row],[Nutzungs-dauer]] -> 582.3216457 | W18: =W17+Tabelle4[[#This Row],[Verkauf Überschussstrom mit EEG-Vergütung + Abregelung BW]] -> 7963.882817 | X18: =Tabelle4[[#This Row],[Solarer Ertrag mit Degradation]]*IF(Eingabe_pers_Eigenverbrauch="ja",(1-Eigenverbrauchsquote_pers/100),(1-(Eigenverbrauchsquote_Basis/100)))*IF(AND(Direktvermarktung="nein",Feste_EEG_Vergütung="nein"),Direktvermarktung_sonstige,IF(Direktvermarktung="ja",Direktvermarktung_gefördert,0)) -> 0 | Y18: =Tabelle4[[#This Row],[Verkauf Überschussstrom Direktvermarktung]]*(1+WACC_real/100)^-Tabelle1[[#This Row],[Nutzungs-dauer]] -> 0 | Z18: =Z17+Tabelle4[[#This Row],[Verkauf Überschussstrom Direktvermarktung BW]] -> 0 | AA18: =Tabelle4[[#This Row],[Solarer Ertrag mit Degradation + Abregelung]]*IF(Eingabe_pers_Eigenverbrauch="ja",(1-Eigenverbrauchsquote_pers/100),(1-(Eigenverbrauchsquote_Basis/100)))*IF(AND(Direktvermarktung="nein",Feste_EEG_Vergütung="nein"),Direktvermarktung_sonstige,IF(Direktvermarktung="ja",Direktvermarktung_gefördert,0)) -> 0 | AB18: =Tabelle4[[#This Row],[Verkauf Überschussstrom Direktvermarktung + Abregelung]]*(1+WACC_real/100)^-Tabelle1[[#This Row],[Nutzungs-dauer]] -> 0 | AC18: =AC17+Tabelle4[[#This Row],[Verkauf Überschussstrom Direktvermarktung + Abregelung BW]] -> 0 | AD18: =Tabelle4[[#This Row],[Solarer Ertrag mit Degradation]]*IF(Eingabe_pers_Eigenverbrauch="ja",(Eigenverbrauchsquote_pers/100),(Eigenverbrauchsquote_Basis/100))*IF(Installierte_Leistung_der_GesamtAnlage<=10, 0,1)*IF(AND(Eingabe_pers_Eigenverbrauch="ja", OR(Eigenverbrauchsquote_pers=100,Eigenverbrauchsquote_pers=0)),0,1)*EEG_Umlage*(PRZNT_EEG_Umlage/100) -> 0 | AE18: =Tabelle4[[#This Row],[Pflicht zur EEG-Umlage]]*(1+WACC_real/100)^-Tabelle1[[#This Row],[Nutzungs-dauer]] -> 0 | AF18: =AF17+Tabelle4[[#This Row],[Pflicht zur EEG-Umlage BW]] -> 0 | AG18: =Tabelle4[[#This Row],[Solarer Ertrag mit Degradation + Abregelung]]*IF(Eingabe_pers_Eigenverbrauch="ja",(Eigenverbrauchsquote_pers/100),(Eigenverbrauchsquote_Basis/100))*IF(Installierte_Leistung_der_GesamtAnlage<=10, 0,1)*IF(AND(Eingabe_pers_Eigenverbrauch="ja", OR(Eigenverbrauchsquote_pers=100,Eigenverbrauchsquote_pers=0)),0,1)*EEG_Umlage*(PRZNT_EEG_Umlage/100) -> 0 | AH18: =Tabelle4[[#This Row],[Pflicht zur EEG-Umlage + Abregelung]]*(1+WACC_real/100)^-Tabelle1[[#This Row],[Nutzungs-dauer]] -> 0 | AI18: =AI17+Tabelle4[[#This Row],[Pflicht zur EEG-Umlage + Abregelung BW]] -> 0 | AK18: 0.2959042529 | AL18: =AVERAGE($AK$6:AK18) -> 0.2789484265 | AN18: 0 | AO18: 0 | AP18: =Tabelle612[[#This Row],[Jährliche OPEX-Kosten PV]]*(1+WACC_real/100)^-Tabelle1[[#This Row],[Nutzungs-dauer]] -> 0 | AQ18: =Tabelle612[[#This Row],[Jährliche OPEX-Kosten BAT]]*(1+WACC_real/100)^-Tabelle1[[#This Row],[Nutzungs-dauer]] -> 0 | AR18: =IF(Tabelle1[[#This Row],[Nutzungs-dauer]]=Lebensdauer_des_ersten_Wechselrichters,CAPEX_des_Ersatz_Wechselrichters,IF(Tabelle1[[#This Row],[Nutzungs-dauer]]=Lebensdauer_der_ersten_Batterie,CAPEX_der_Ersatz_Batterie,0)) -> 0 | AS18: =Tabelle4[[#This Row],[Einsparung durch Eigenverbrauch BW]]+Tabelle4[[#This Row],[Verkauf Überschussstrom mit EEG-Vergütung BW]]+Tabelle4[[#This Row],[Verkauf Überschussstrom Direktvermarktung BW]]-Tabelle4[[#This Row],[Pflicht zur EEG-Umlage BW]]-Tabelle612[[#This Row],[Jährliche OPEX-Kosten PV BW]]-Tabelle612[[#This Row],[Jährliche OPEX-Kosten BAT BW]]-Tabelle612[[#This Row],[Investition PV-Batterie-System]] -> 1095.243909 | AT18: =AT17+Tabelle612[[#This Row],[Cashflow diskontiert mit Kalkulationszins]] -> 14571.094 | AU18: =Tabelle612[[#This Row],[Cashflow diskontiert mit Kalkulationszins kumuliert]] -> 14571.094 | AV18: =Tabelle4[[#This Row],[Einsparung durch Eigenverbrauch + Abregelung BW]]+Tabelle4[[#This Row],[Verkauf Überschussstrom mit EEG-Vergütung + Abregelung BW]]+Tabelle4[[#This Row],[Verkauf Überschussstrom Direktvermarktung + Abregelung BW]]-Tabelle4[[#This Row],[Pflicht zur EEG-Umlage + Abregelung BW]]-Tabelle612[[#This Row],[Jährliche OPEX-Kosten PV BW]]-Tabelle612[[#This Row],[Jährliche OPEX-Kosten BAT BW]]-Tabelle612[[#This Row],[Investition PV-Batterie-System]] -> 1090.315312 | AW18: =AW17+Tabelle612[[#This Row],[Cashflow diskontiert mit Kalkulationszins]] -> 14565.93053 | AX18: =Tabelle612[[#This Row],[Cashflow diskontiert mit Kalkulationszins kumuliert mit Abr.]] -> 14565.93053
B19: 14 | D19: =Solarer_Gesamtertrag_der_Anlage*(1-(Moduldegradation/100))^Tabelle1[[#This Row],[Nutzungs-dauer]] -> 9282.440875 | E19: =E18+Tabelle4[[#This Row],[Solarer Ertrag mit Degradation]] -> 132092.5907 | F19: =Tabelle4[[#This Row],[Solarer Ertrag mit Degradation]]*(1+WACC_real/100)^-Tabelle1[[#This Row],[Nutzungs-dauer]] -> 8550.697557 | G19: =G18+Tabelle4[[#This Row],[Solarer Ertrag mit Degradation BW]] -> 126473.4907 | H19: =Solarer_Gesamtertrag_der_Anlage*(1-(Moduldegradation/100))^Tabelle1[[#This Row],[Nutzungs-dauer]]*(1-(Abregelungsverluste/100)) -> 9240.669891 | I19: =I18+Tabelle4[[#This Row],[Solarer Ertrag mit Degradation + Abregelung]] -> 131498.1741 | J19: =Tabelle4[[#This Row],[Solarer Ertrag mit Degradation + Abregelung]]*(1+WACC_real/100)^-Tabelle1[[#This Row],[Nutzungs-dauer]] -> 8512.219418 | K19: =K18+Tabelle4[[#This Row],[Solarer Ertrag mit Degradation + Abregelung BW]] -> 125904.36 | L19: =Tabelle4[[#This Row],[Solarer Ertrag mit Degradation]]*Tabelle6[[#This Row],[Bezugspreis mit Steigerung]]*IF(AND(Eingabe_pers_Eigenverbrauch="ja",Batterie_gewuenscht="nein"),(Eigenverbrauchsquote_pers/100),IF(AND(Eingabe_pers_Eigenverbrauch="ja",Batterie_gewuenscht="ja"),(Eigenverbauch_ohne_BAT/100)+(Eigenverbaucherhöhung/100)*(1-Batterie_Verluste/100),IF(Batterie_gewuenscht="nein",Eigenverbrauchsquote_Basis/100,(Eigenverbauch_ohne_BAT/100)+(Eigenverbaucherhöhung/100)*(1-Batterie_Verluste/100)))) -> 554.836174 | M19: =Tabelle4[[#This Row],[Einsparung durch Eigenverbrauch]]*(1+WACC_real/100)^-Tabelle1[[#This Row],[Nutzungs-dauer]] -> 511.09793 | N19: =N18+Tabelle4[[#This Row],[Einsparung durch Eigenverbrauch BW]] -> 7082.309644 | O19: =Tabelle4[[#This Row],[Solarer Ertrag mit Degradation + Abregelung]]*Tabelle6[[#This Row],[Bezugspreis mit Steigerung]]*IF(AND(Eingabe_pers_Eigenverbrauch="ja",Batterie_gewuenscht="nein"),(Eigenverbrauchsquote_pers/100),IF(AND(Eingabe_pers_Eigenverbrauch="ja",Batterie_gewuenscht="ja"),(Eigenverbauch_ohne_BAT/100)+(Eigenverbaucherhöhung/100)*(1-Batterie_Verluste/100),IF(Batterie_gewuenscht="nein",Eigenverbrauchsquote_Basis/100,(Eigenverbauch_ohne_BAT/100)+(Eigenverbaucherhöhung/100)*(1-Batterie_Verluste/100)))) -> 552.3394112 | P19: =Tabelle4[[#This Row],[Einsparung durch Eigenverbrauch + Abregelung]]*(1+WACC_real/100)^-Tabelle1[[#This Row],[Nutzungs-dauer]] -> 508.7979894 | Q19: =Q18+Tabelle4[[#This Row],[Einsparung durch Eigenverbrauch + Abregelung BW]] -> 7050.43925 | R19: =Tabelle4[[#This Row],[Solarer Ertrag mit Degradation]]*EEG_Vergütung*IF(Eingabe_pers_Eigenverbrauch="ja",(1-Eigenverbrauchsquote_pers/100),(1-(Eigenverbrauchsquote_Basis/100)))*IF(OR(Feste_EEG_Vergütung="nein",Direktvermarktung="ja"),0,1) -> 629.720789 | S19: =Tabelle4[[#This Row],[Verkauf Überschussstrom mit EEG-Vergütung]]*(1+WACC_real/100)^-Tabelle1[[#This Row],[Nutzungs-dauer]] -> 580.0793223 | T19: =T18+Tabelle4[[#This Row],[Verkauf Überschussstrom mit EEG-Vergütung BW]] -> 8579.96161 | U19: =Tabelle4[[#This Row],[Solarer Ertrag mit Degradation + Abregelung]]*EEG_Vergütung*IF(Eingabe_pers_Eigenverbrauch="ja",(1-Eigenverbrauchsquote_pers/100),(1-(Eigenverbrauchsquote_Basis/100)))*IF(OR(Feste_EEG_Vergütung="nein",Direktvermarktung="ja"),0,1) -> 626.8870454 | V19: =Tabelle4[[#This Row],[Verkauf Überschussstrom mit EEG-Vergütung + Abregelung]]*(1+WACC_real/100)^-Tabelle1[[#This Row],[Nutzungs-dauer]] -> 577.4689653 | W19: =W18+Tabelle4[[#This Row],[Verkauf Überschussstrom mit EEG-Vergütung + Abregelung BW]] -> 8541.351782 | X19: =Tabelle4[[#This Row],[Solarer Ertrag mit Degradation]]*IF(Eingabe_pers_Eigenverbrauch="ja",(1-Eigenverbrauchsquote_pers/100),(1-(Eigenverbrauchsquote_Basis/100)))*IF(AND(Direktvermarktung="nein",Feste_EEG_Vergütung="nein"),Direktvermarktung_sonstige,IF(Direktvermarktung="ja",Direktvermarktung_gefördert,0)) -> 0 | Y19: =Tabelle4[[#This Row],[Verkauf Überschussstrom Direktvermarktung]]*(1+WACC_real/100)^-Tabelle1[[#This Row],[Nutzungs-dauer]] -> 0 | Z19: =Z18+Tabelle4[[#This Row],[Verkauf Überschussstrom Direktvermarktung BW]] -> 0 | AA19: =Tabelle4[[#This Row],[Solarer Ertrag mit Degradation + Abregelung]]*IF(Eingabe_pers_Eigenverbrauch="ja",(1-Eigenverbrauchsquote_pers/100),(1-(Eigenverbrauchsquote_Basis/100)))*IF(AND(Direktvermarktung="nein",Feste_EEG_Vergütung="nein"),Direktvermarktung_sonstige,IF(Direktvermarktung="ja",Direktvermarktung_gefördert,0)) -> 0 | AB19: =Tabelle4[[#This Row],[Verkauf Überschussstrom Direktvermarktung + Abregelung]]*(1+WACC_real/100)^-Tabelle1[[#This Row],[Nutzungs-dauer]] -> 0 | AC19: =AC18+Tabelle4[[#This Row],[Verkauf Überschussstrom Direktvermarktung + Abregelung BW]] -> 0 | AD19: =Tabelle4[[#This Row],[Solarer Ertrag mit Degradation]]*IF(Eingabe_pers_Eigenverbrauch="ja",(Eigenverbrauchsquote_pers/100),(Eigenverbrauchsquote_Basis/100))*IF(Installierte_Leistung_der_GesamtAnlage<=10, 0,1)*IF(AND(Eingabe_pers_Eigenverbrauch="ja", OR(Eigenverbrauchsquote_pers=100,Eigenverbrauchsquote_pers=0)),0,1)*EEG_Umlage*(PRZNT_EEG_Umlage/100) -> 0 | AE19: =Tabelle4[[#This Row],[Pflicht zur EEG-Umlage]]*(1+WACC_real/100)^-Tabelle1[[#This Row],[Nutzungs-dauer]] -> 0 | AF19: =AF18+Tabelle4[[#This Row],[Pflicht zur EEG-Umlage BW]] -> 0 | AG19: =Tabelle4[[#This Row],[Solarer Ertrag mit Degradation + Abregelung]]*IF(Eingabe_pers_Eigenverbrauch="ja",(Eigenverbrauchsquote_pers/100),(Eigenverbrauchsquote_Basis/100))*IF(Installierte_Leistung_der_GesamtAnlage<=10, 0,1)*IF(AND(Eingabe_pers_Eigenverbrauch="ja", OR(Eigenverbrauchsquote_pers=100,Eigenverbrauchsquote_pers=0)),0,1)*EEG_Umlage*(PRZNT_EEG_Umlage/100) -> 0 | AH19: =Tabelle4[[#This Row],[Pflicht zur EEG-Umlage + Abregelung]]*(1+WACC_real/100)^-Tabelle1[[#This Row],[Nutzungs-dauer]] -> 0 | AI19: =AI18+Tabelle4[[#This Row],[Pflicht zur EEG-Umlage + Abregelung BW]] -> 0 | AK19: 0.2988632954 | AL19: =AVERAGE($AK$6:AK19) -> 0.2803709171 | AN19: 0 | AO19: 0 | AP19: =Tabelle612[[#This Row],[Jährliche OPEX-Kosten PV]]*(1+WACC_real/100)^-Tabelle1[[#This Row],[Nutzungs-dauer]] -> 0 | AQ19: =Tabelle612[[#This Row],[Jährliche OPEX-Kosten BAT]]*(1+WACC_real/100)^-Tabelle1[[#This Row],[Nutzungs-dauer]] -> 0 | AR19: =IF(Tabelle1[[#This Row],[Nutzungs-dauer]]=Lebensdauer_des_ersten_Wechselrichters,CAPEX_des_Ersatz_Wechselrichters,IF(Tabelle1[[#This Row],[Nutzungs-dauer]]=Lebensdauer_der_ersten_Batterie,CAPEX_der_Ersatz_Batterie,0)) -> 0 | AS19: =Tabelle4[[#This Row],[Einsparung durch Eigenverbrauch BW]]+Tabelle4[[#This Row],[Verkauf Überschussstrom mit EEG-Vergütung BW]]+Tabelle4[[#This Row],[Verkauf Überschussstrom Direktvermarktung BW]]-Tabelle4[[#This Row],[Pflicht zur EEG-Umlage BW]]-Tabelle612[[#This Row],[Jährliche OPEX-Kosten PV BW]]-Tabelle612[[#This Row],[Jährliche OPEX-Kosten BAT BW]]-Tabelle612[[#This Row],[Investition PV-Batterie-System]] -> 1091.177252 | AT19: =AT18+Tabelle612[[#This Row],[Cashflow diskontiert mit Kalkulationszins]] -> 15662.27125 | AU19: =Tabelle612[[#This Row],[Cashflow diskontiert mit Kalkulationszins kumuliert]] -> 15662.27125 | AV19: =Tabelle4[[#This Row],[Einsparung durch Eigenverbrauch + Abregelung BW]]+Tabelle4[[#This Row],[Verkauf Überschussstrom mit EEG-Vergütung + Abregelung BW]]+Tabelle4[[#This Row],[Verkauf Überschussstrom Direktvermarktung + Abregelung BW]]-Tabelle4[[#This Row],[Pflicht zur EEG-Umlage + Abregelung BW]]-Tabelle612[[#This Row],[Jährliche OPEX-Kosten PV BW]]-Tabelle612[[#This Row],[Jährliche OPEX-Kosten BAT BW]]-Tabelle612[[#This Row],[Investition PV-Batterie-System]] -> 1086.266955 | AW19: =AW18+Tabelle612[[#This Row],[Cashflow diskontiert mit Kalkulationszins]] -> 15657.10778 | AX19: =Tabelle612[[#This Row],[Cashflow diskontiert mit Kalkulationszins kumuliert mit Abr.]] -> 15657.10778
B20: 15 | D20: =Solarer_Gesamtertrag_der_Anlage*(1-(Moduldegradation/100))^Tabelle1[[#This Row],[Nutzungs-dauer]] -> 9259.234773 | E20: =E19+Tabelle4[[#This Row],[Solarer Ertrag mit Degradation]] -> 141351.8255 | F20: =Tabelle4[[#This Row],[Solarer Ertrag mit Degradation]]*(1+WACC_real/100)^-Tabelle1[[#This Row],[Nutzungs-dauer]] -> 8479.441744 | G20: =G19+Tabelle4[[#This Row],[Solarer Ertrag mit Degradation BW]] -> 134952.9325 | H20: =Solarer_Gesamtertrag_der_Anlage*(1-(Moduldegradation/100))^Tabelle1[[#This Row],[Nutzungs-dauer]]*(1-(Abregelungsverluste/100)) -> 9217.568217 | I20: =I19+Tabelle4[[#This Row],[Solarer Ertrag mit Degradation + Abregelung]] -> 140715.7423 | J20: =Tabelle4[[#This Row],[Solarer Ertrag mit Degradation + Abregelung]]*(1+WACC_real/100)^-Tabelle1[[#This Row],[Nutzungs-dauer]] -> 8441.284256 | K20: =K19+Tabelle4[[#This Row],[Solarer Ertrag mit Degradation + Abregelung BW]] -> 134345.6443 | L20: =Tabelle4[[#This Row],[Solarer Ertrag mit Degradation]]*Tabelle6[[#This Row],[Bezugspreis mit Steigerung]]*IF(AND(Eingabe_pers_Eigenverbrauch="ja",Batterie_gewuenscht="nein"),(Eigenverbrauchsquote_pers/100),IF(AND(Eingabe_pers_Eigenverbrauch="ja",Batterie_gewuenscht="ja"),(Eigenverbauch_ohne_BAT/100)+(Eigenverbaucherhöhung/100)*(1-Batterie_Verluste/100),IF(Batterie_gewuenscht="nein",Eigenverbrauchsquote_Basis/100,(Eigenverbauch_ohne_BAT/100)+(Eigenverbaucherhöhung/100)*(1-Batterie_Verluste/100)))) -> 558.9835744 | M20: =Tabelle4[[#This Row],[Einsparung durch Eigenverbrauch]]*(1+WACC_real/100)^-Tabelle1[[#This Row],[Nutzungs-dauer]] -> 511.9071684 | N20: =N19+Tabelle4[[#This Row],[Einsparung durch Eigenverbrauch BW]] -> 7594.216812 | O20: =Tabelle4[[#This Row],[Solarer Ertrag mit Degradation + Abregelung]]*Tabelle6[[#This Row],[Bezugspreis mit Steigerung]]*IF(AND(Eingabe_pers_Eigenverbrauch="ja",Batterie_gewuenscht="nein"),(Eigenverbrauchsquote_pers/100),IF(AND(Eingabe_pers_Eigenverbrauch="ja",Batterie_gewuenscht="ja"),(Eigenverbauch_ohne_BAT/100)+(Eigenverbaucherhöhung/100)*(1-Batterie_Verluste/100),IF(Batterie_gewuenscht="nein",Eigenverbrauchsquote_Basis/100,(Eigenverbauch_ohne_BAT/100)+(Eigenverbaucherhöhung/100)*(1-Batterie_Verluste/100)))) -> 556.4681483 | P20: =Tabelle4[[#This Row],[Einsparung durch Eigenverbrauch + Abregelung]]*(1+WACC_real/100)^-Tabelle1[[#This Row],[Nutzungs-dauer]] -> 509.6035862 | Q20: =Q19+Tabelle4[[#This Row],[Einsparung durch Eigenverbrauch + Abregelung BW]] -> 7560.042836 | R20: =Tabelle4[[#This Row],[Solarer Ertrag mit Degradation]]*EEG_Vergütung*IF(Eingabe_pers_Eigenverbrauch="ja",(1-Eigenverbrauchsquote_pers/100),(1-(Eigenverbrauchsquote_Basis/100)))*IF(OR(Feste_EEG_Vergütung="nein",Direktvermarktung="ja"),0,1) -> 628.146487 | S20: =Tabelle4[[#This Row],[Verkauf Überschussstrom mit EEG-Vergütung]]*(1+WACC_real/100)^-Tabelle1[[#This Row],[Nutzungs-dauer]] -> 575.2453279 | T20: =T19+Tabelle4[[#This Row],[Verkauf Überschussstrom mit EEG-Vergütung BW]] -> 9155.206938 | U20: =Tabelle4[[#This Row],[Solarer Ertrag mit Degradation + Abregelung]]*EEG_Vergütung*IF(Eingabe_pers_Eigenverbrauch="ja",(1-Eigenverbrauchsquote_pers/100),(1-(Eigenverbrauchsquote_Basis/100)))*IF(OR(Feste_EEG_Vergütung="nein",Direktvermarktung="ja"),0,1) -> 625.3198278 | V20: =Tabelle4[[#This Row],[Verkauf Überschussstrom mit EEG-Vergütung + Abregelung]]*(1+WACC_real/100)^-Tabelle1[[#This Row],[Nutzungs-dauer]] -> 572.6567239 | W20: =W19+Tabelle4[[#This Row],[Verkauf Überschussstrom mit EEG-Vergütung + Abregelung BW]] -> 9114.008506 | X20: =Tabelle4[[#This Row],[Solarer Ertrag mit Degradation]]*IF(Eingabe_pers_Eigenverbrauch="ja",(1-Eigenverbrauchsquote_pers/100),(1-(Eigenverbrauchsquote_Basis/100)))*IF(AND(Direktvermarktung="nein",Feste_EEG_Vergütung="nein"),Direktvermarktung_sonstige,IF(Direktvermarktung="ja",Direktvermarktung_gefördert,0)) -> 0 | Y20: =Tabelle4[[#This Row],[Verkauf Überschussstrom Direktvermarktung]]*(1+WACC_real/100)^-Tabelle1[[#This Row],[Nutzungs-dauer]] -> 0 | Z20: =Z19+Tabelle4[[#This Row],[Verkauf Überschussstrom Direktvermarktung BW]] -> 0 | AA20: =Tabelle4[[#This Row],[Solarer Ertrag mit Degradation + Abregelung]]*IF(Eingabe_pers_Eigenverbrauch="ja",(1-Eigenverbrauchsquote_pers/100),(1-(Eigenverbrauchsquote_Basis/100)))*IF(AND(Direktvermarktung="nein",Feste_EEG_Vergütung="nein"),Direktvermarktung_sonstige,IF(Direktvermarktung="ja",Direktvermarktung_gefördert,0)) -> 0 | AB20: =Tabelle4[[#This Row],[Verkauf Überschussstrom Direktvermarktung + Abregelung]]*(1+WACC_real/100)^-Tabelle1[[#This Row],[Nutzungs-dauer]] -> 0 | AC20: =AC19+Tabelle4[[#This Row],[Verkauf Überschussstrom Direktvermarktung + Abregelung BW]] -> 0 | AD20: =Tabelle4[[#This Row],[Solarer Ertrag mit Degradation]]*IF(Eingabe_pers_Eigenverbrauch="ja",(Eigenverbrauchsquote_pers/100),(Eigenverbrauchsquote_Basis/100))*IF(Installierte_Leistung_der_GesamtAnlage<=10, 0,1)*IF(AND(Eingabe_pers_Eigenverbrauch="ja", OR(Eigenverbrauchsquote_pers=100,Eigenverbrauchsquote_pers=0)),0,1)*EEG_Umlage*(PRZNT_EEG_Umlage/100) -> 0 | AE20: =Tabelle4[[#This Row],[Pflicht zur EEG-Umlage]]*(1+WACC_real/100)^-Tabelle1[[#This Row],[Nutzungs-dauer]] -> 0 | AF20: =AF19+Tabelle4[[#This Row],[Pflicht zur EEG-Umlage BW]] -> 0 | AG20: =Tabelle4[[#This Row],[Solarer Ertrag mit Degradation + Abregelung]]*IF(Eingabe_pers_Eigenverbrauch="ja",(Eigenverbrauchsquote_pers/100),(Eigenverbrauchsquote_Basis/100))*IF(Installierte_Leistung_der_GesamtAnlage<=10, 0,1)*IF(AND(Eingabe_pers_Eigenverbrauch="ja", OR(Eigenverbrauchsquote_pers=100,Eigenverbrauchsquote_pers=0)),0,1)*EEG_Umlage*(PRZNT_EEG_Umlage/100) -> 0 | AH20: =Tabelle4[[#This Row],[Pflicht zur EEG-Umlage + Abregelung]]*(1+WACC_real/100)^-Tabelle1[[#This Row],[Nutzungs-dauer]] -> 0 | AI20: =AI19+Tabelle4[[#This Row],[Pflicht zur EEG-Umlage + Abregelung BW]] -> 0 | AK20: 0.3018519284 | AL20: =AVERAGE($AK$6:AK20) -> 0.2818029845 | AN20: 0 | AO20: 0 | AP20: =Tabelle612[[#This Row],[Jährliche OPEX-Kosten PV]]*(1+WACC_real/100)^-Tabelle1[[#This Row],[Nutzungs-dauer]] -> 0 | AQ20: =Tabelle612[[#This Row],[Jährliche OPEX-Kosten BAT]]*(1+WACC_real/100)^-Tabelle1[[#This Row],[Nutzungs-dauer]] -> 0 | AR20: =IF(Tabelle1[[#This Row],[Nutzungs-dauer]]=Lebensdauer_des_ersten_Wechselrichters,CAPEX_des_Ersatz_Wechselrichters,IF(Tabelle1[[#This Row],[Nutzungs-dauer]]=Lebensdauer_der_ersten_Batterie,CAPEX_der_Ersatz_Batterie,0)) -> 0 | AS20: =Tabelle4[[#This Row],[Einsparung durch Eigenverbrauch BW]]+Tabelle4[[#This Row],[Verkauf Überschussstrom mit EEG-Vergütung BW]]+Tabelle4[[#This Row],[Verkauf Überschussstrom Direktvermarktung BW]]-Tabelle4[[#This Row],[Pflicht zur EEG-Umlage BW]]-Tabelle612[[#This Row],[Jährliche OPEX-Kosten PV BW]]-Tabelle612[[#This Row],[Jährliche OPEX-Kosten BAT BW]]-Tabelle612[[#This Row],[Investition PV-Batterie-System]] -> 1087.152496 | AT20: =AT19+Tabelle612[[#This Row],[Cashflow diskontiert mit Kalkulationszins]] -> 16749.42375 | AU20: =Tabelle612[[#This Row],[Cashflow diskontiert mit Kalkulationszins kumuliert]] -> 16749.42375 | AV20: =Tabelle4[[#This Row],[Einsparung durch Eigenverbrauch + Abregelung BW]]+Tabelle4[[#This Row],[Verkauf Überschussstrom mit EEG-Vergütung + Abregelung BW]]+Tabelle4[[#This Row],[Verkauf Überschussstrom Direktvermarktung + Abregelung BW]]-Tabelle4[[#This Row],[Pflicht zur EEG-Umlage + Abregelung BW]]-Tabelle612[[#This Row],[Jährliche OPEX-Kosten PV BW]]-Tabelle612[[#This Row],[Jährliche OPEX-Kosten BAT BW]]-Tabelle612[[#This Row],[Investition PV-Batterie-System]] -> 1082.26031 | AW20: =AW19+Tabelle612[[#This Row],[Cashflow diskontiert mit Kalkulationszins]] -> 16744.26028 | AX20: =Tabelle612[[#This Row],[Cashflow diskontiert mit Kalkulationszins kumuliert mit Abr.]] -> 16744.26028
B21: 16 | D21: =Solarer_Gesamtertrag_der_Anlage*(1-(Moduldegradation/100))^Tabelle1[[#This Row],[Nutzungs-dauer]] -> 9236.086686 | E21: =E20+Tabelle4[[#This Row],[Solarer Ertrag mit Degradation]] -> 150587.9122 | F21: =Tabelle4[[#This Row],[Solarer Ertrag mit Degradation]]*(1+WACC_real/100)^-Tabelle1[[#This Row],[Nutzungs-dauer]] -> 8408.77973 | G21: =G20+Tabelle4[[#This Row],[Solarer Ertrag mit Degradation BW]] -> 143361.7122 | H21: =Solarer_Gesamtertrag_der_Anlage*(1-(Moduldegradation/100))^Tabelle1[[#This Row],[Nutzungs-dauer]]*(1-(Abregelungsverluste/100)) -> 9194.524296 | I21: =I20+Tabelle4[[#This Row],[Solarer Ertrag mit Degradation + Abregelung]] -> 149910.2666 | J21: =Tabelle4[[#This Row],[Solarer Ertrag mit Degradation + Abregelung]]*(1+WACC_real/100)^-Tabelle1[[#This Row],[Nutzungs-dauer]] -> 8370.940221 | K21: =K20+Tabelle4[[#This Row],[Solarer Ertrag mit Degradation + Abregelung BW]] -> 142716.5845 | L21: =Tabelle4[[#This Row],[Solarer Ertrag mit Degradation]]*Tabelle6[[#This Row],[Bezugspreis mit Steigerung]]*IF(AND(Eingabe_pers_Eigenverbrauch="ja",Batterie_gewuenscht="nein"),(Eigenverbrauchsquote_pers/100),IF(AND(Eingabe_pers_Eigenverbrauch="ja",Batterie_gewuenscht="ja"),(Eigenverbauch_ohne_BAT/100)+(Eigenverbaucherhöhung/100)*(1-Batterie_Verluste/100),IF(Batterie_gewuenscht="nein",Eigenverbrauchsquote_Basis/100,(Eigenverbauch_ohne_BAT/100)+(Eigenverbaucherhöhung/100)*(1-Batterie_Verluste/100)))) -> 563.1619766 | M21: =Tabelle4[[#This Row],[Einsparung durch Eigenverbrauch]]*(1+WACC_real/100)^-Tabelle1[[#This Row],[Nutzungs-dauer]] -> 512.7176881 | N21: =N20+Tabelle4[[#This Row],[Einsparung durch Eigenverbrauch BW]] -> 8106.9345 | O21: =Tabelle4[[#This Row],[Solarer Ertrag mit Degradation + Abregelung]]*Tabelle6[[#This Row],[Bezugspreis mit Steigerung]]*IF(AND(Eingabe_pers_Eigenverbrauch="ja",Batterie_gewuenscht="nein"),(Eigenverbrauchsquote_pers/100),IF(AND(Eingabe_pers_Eigenverbrauch="ja",Batterie_gewuenscht="ja"),(Eigenverbauch_ohne_BAT/100)+(Eigenverbaucherhöhung/100)*(1-Batterie_Verluste/100),IF(Batterie_gewuenscht="nein",Eigenverbrauchsquote_Basis/100,(Eigenverbauch_ohne_BAT/100)+(Eigenverbaucherhöhung/100)*(1-Batterie_Verluste/100)))) -> 560.6277477 | P21: =Tabelle4[[#This Row],[Einsparung durch Eigenverbrauch + Abregelung]]*(1+WACC_real/100)^-Tabelle1[[#This Row],[Nutzungs-dauer]] -> 510.4104585 | Q21: =Q20+Tabelle4[[#This Row],[Einsparung durch Eigenverbrauch + Abregelung BW]] -> 8070.453295 | R21: =Tabelle4[[#This Row],[Solarer Ertrag mit Degradation]]*EEG_Vergütung*IF(Eingabe_pers_Eigenverbrauch="ja",(1-Eigenverbrauchsquote_pers/100),(1-(Eigenverbrauchsquote_Basis/100)))*IF(OR(Feste_EEG_Vergütung="nein",Direktvermarktung="ja"),0,1) -> 626.5761208 | S21: =Tabelle4[[#This Row],[Verkauf Überschussstrom mit EEG-Vergütung]]*(1+WACC_real/100)^-Tabelle1[[#This Row],[Nutzungs-dauer]] -> 570.4516169 | T21: =T20+Tabelle4[[#This Row],[Verkauf Überschussstrom mit EEG-Vergütung BW]] -> 9725.658554 | U21: =Tabelle4[[#This Row],[Solarer Ertrag mit Degradation + Abregelung]]*EEG_Vergütung*IF(Eingabe_pers_Eigenverbrauch="ja",(1-Eigenverbrauchsquote_pers/100),(1-(Eigenverbrauchsquote_Basis/100)))*IF(OR(Feste_EEG_Vergütung="nein",Direktvermarktung="ja"),0,1) -> 623.7565283 | V21: =Tabelle4[[#This Row],[Verkauf Überschussstrom mit EEG-Vergütung + Abregelung]]*(1+WACC_real/100)^-Tabelle1[[#This Row],[Nutzungs-dauer]] -> 567.8845846 | W21: =W20+Tabelle4[[#This Row],[Verkauf Überschussstrom mit EEG-Vergütung + Abregelung BW]] -> 9681.893091 | X21: =Tabelle4[[#This Row],[Solarer Ertrag mit Degradation]]*IF(Eingabe_pers_Eigenverbrauch="ja",(1-Eigenverbrauchsquote_pers/100),(1-(Eigenverbrauchsquote_Basis/100)))*IF(AND(Direktvermarktung="nein",Feste_EEG_Vergütung="nein"),Direktvermarktung_sonstige,IF(Direktvermarktung="ja",Direktvermarktung_gefördert,0)) -> 0 | Y21: =Tabelle4[[#This Row],[Verkauf Überschussstrom Direktvermarktung]]*(1+WACC_real/100)^-Tabelle1[[#This Row],[Nutzungs-dauer]] -> 0 | Z21: =Z20+Tabelle4[[#This Row],[Verkauf Überschussstrom Direktvermarktung BW]] -> 0 | AA21: =Tabelle4[[#This Row],[Solarer Ertrag mit Degradation + Abregelung]]*IF(Eingabe_pers_Eigenverbrauch="ja",(1-Eigenverbrauchsquote_pers/100),(1-(Eigenverbrauchsquote_Basis/100)))*IF(AND(Direktvermarktung="nein",Feste_EEG_Vergütung="nein"),Direktvermarktung_sonstige,IF(Direktvermarktung="ja",Direktvermarktung_gefördert,0)) -> 0 | AB21: =Tabelle4[[#This Row],[Verkauf Überschussstrom Direktvermarktung + Abregelung]]*(1+WACC_real/100)^-Tabelle1[[#This Row],[Nutzungs-dauer]] -> 0 | AC21: =AC20+Tabelle4[[#This Row],[Verkauf Überschussstrom Direktvermarktung + Abregelung BW]] -> 0 | AD21: =Tabelle4[[#This Row],[Solarer Ertrag mit Degradation]]*IF(Eingabe_pers_Eigenverbrauch="ja",(Eigenverbrauchsquote_pers/100),(Eigenverbrauchsquote_Basis/100))*IF(Installierte_Leistung_der_GesamtAnlage<=10, 0,1)*IF(AND(Eingabe_pers_Eigenverbrauch="ja", OR(Eigenverbrauchsquote_pers=100,Eigenverbrauchsquote_pers=0)),0,1)*EEG_Umlage*(PRZNT_EEG_Umlage/100) -> 0 | AE21: =Tabelle4[[#This Row],[Pflicht zur EEG-Umlage]]*(1+WACC_real/100)^-Tabelle1[[#This Row],[Nutzungs-dauer]] -> 0 | AF21: =AF20+Tabelle4[[#This Row],[Pflicht zur EEG-Umlage BW]] -> 0 | AG21: =Tabelle4[[#This Row],[Solarer Ertrag mit Degradation + Abregelung]]*IF(Eingabe_pers_Eigenverbrauch="ja",(Eigenverbrauchsquote_pers/100),(Eigenverbrauchsquote_Basis/100))*IF(Installierte_Leistung_der_GesamtAnlage<=10, 0,1)*IF(AND(Eingabe_pers_Eigenverbrauch="ja", OR(Eigenverbrauchsquote_pers=100,Eigenverbrauchsquote_pers=0)),0,1)*EEG_Umlage*(PRZNT_EEG_Umlage/100) -> 0 | AH21: =Tabelle4[[#This Row],[Pflicht zur EEG-Umlage + Abregelung]]*(1+WACC_real/100)^-Tabelle1[[#This Row],[Nutzungs-dauer]] -> 0 | AI21: =AI20+Tabelle4[[#This Row],[Pflicht zur EEG-Umlage + Abregelung BW]] -> 0 | AK21: 0.3048704477 | AL21: =AVERAGE($AK$6:AK21) -> 0.283244701 | AN21: 0 | AO21: 0 | AP21: =Tabelle612[[#This Row],[Jährliche OPEX-Kosten PV]]*(1+WACC_real/100)^-Tabelle1[[#This Row],[Nutzungs-dauer]] -> 0 | AQ21: =Tabelle612[[#This Row],[Jährliche OPEX-Kosten BAT]]*(1+WACC_real/100)^-Tabelle1[[#This Row],[Nutzungs-dauer]] -> 0 | AR21: =IF(Tabelle1[[#This Row],[Nutzungs-dauer]]=Lebensdauer_des_ersten_Wechselrichters,CAPEX_des_Ersatz_Wechselrichters,IF(Tabelle1[[#This Row],[Nutzungs-dauer]]=Lebensdauer_der_ersten_Batterie,CAPEX_der_Ersatz_Batterie,0)) -> 0 | AS21: =Tabelle4[[#This Row],[Einsparung durch Eigenverbrauch BW]]+Tabelle4[[#This Row],[Verkauf Überschussstrom mit EEG-Vergütung BW]]+Tabelle4[[#This Row],[Verkauf Überschussstrom Direktvermarktung BW]]-Tabelle4[[#This Row],[Pflicht zur EEG-Umlage BW]]-Tabelle612[[#This Row],[Jährliche OPEX-Kosten PV BW]]-Tabelle612[[#This Row],[Jährliche OPEX-Kosten BAT BW]]-Tabelle612[[#This Row],[Investition PV-Batterie-System]] -> 1083.169305 | AT21: =AT20+Tabelle612[[#This Row],[Cashflow diskontiert mit Kalkulationszins]] -> 17832.59305 | AU21: =Tabelle612[[#This Row],[Cashflow diskontiert mit Kalkulationszins kumuliert]] -> 17832.59305 | AV21: =Tabelle4[[#This Row],[Einsparung durch Eigenverbrauch + Abregelung BW]]+Tabelle4[[#This Row],[Verkauf Überschussstrom mit EEG-Vergütung + Abregelung BW]]+Tabelle4[[#This Row],[Verkauf Überschussstrom Direktvermarktung + Abregelung BW]]-Tabelle4[[#This Row],[Pflicht zur EEG-Umlage + Abregelung BW]]-Tabelle612[[#This Row],[Jährliche OPEX-Kosten PV BW]]-Tabelle612[[#This Row],[Jährliche OPEX-Kosten BAT BW]]-Tabelle612[[#This Row],[Investition PV-Batterie-System]] -> 1078.295043 | AW21: =AW20+Tabelle612[[#This Row],[Cashflow diskontiert mit Kalkulationszins]] -> 17827.42958 | AX21: =Tabelle612[[#This Row],[Cashflow diskontiert mit Kalkulationszins kumuliert mit Abr.]] -> 17827.42958
B22: 17 | D22: =Solarer_Gesamtertrag_der_Anlage*(1-(Moduldegradation/100))^Tabelle1[[#This Row],[Nutzungs-dauer]] -> 9212.99647 | E22: =E21+Tabelle4[[#This Row],[Solarer Ertrag mit Degradation]] -> 159800.9087 | F22: =Tabelle4[[#This Row],[Solarer Ertrag mit Degradation]]*(1+WACC_real/100)^-Tabelle1[[#This Row],[Nutzungs-dauer]] -> 8338.706565 | G22: =G21+Tabelle4[[#This Row],[Solarer Ertrag mit Degradation BW]] -> 151700.4187 | H22: =Solarer_Gesamtertrag_der_Anlage*(1-(Moduldegradation/100))^Tabelle1[[#This Row],[Nutzungs-dauer]]*(1-(Abregelungsverluste/100)) -> 9171.537985 | I22: =I21+Tabelle4[[#This Row],[Solarer Ertrag mit Degradation + Abregelung]] -> 159081.8046 | J22: =Tabelle4[[#This Row],[Solarer Ertrag mit Degradation + Abregelung]]*(1+WACC_real/100)^-Tabelle1[[#This Row],[Nutzungs-dauer]] -> 8301.182386 | K22: =K21+Tabelle4[[#This Row],[Solarer Ertrag mit Degradation + Abregelung BW]] -> 151017.7669 | L22: =Tabelle4[[#This Row],[Solarer Ertrag mit Degradation]]*Tabelle6[[#This Row],[Bezugspreis mit Steigerung]]*IF(AND(Eingabe_pers_Eigenverbrauch="ja",Batterie_gewuenscht="nein"),(Eigenverbrauchsquote_pers/100),IF(AND(Eingabe_pers_Eigenverbrauch="ja",Batterie_gewuenscht="ja"),(Eigenverbauch_ohne_BAT/100)+(Eigenverbaucherhöhung/100)*(1-Batterie_Verluste/100),IF(Batterie_gewuenscht="nein",Eigenverbrauchsquote_Basis/100,(Eigenverbauch_ohne_BAT/100)+(Eigenverbaucherhöhung/100)*(1-Batterie_Verluste/100)))) -> 567.3716123 | M22: =Tabelle4[[#This Row],[Einsparung durch Eigenverbrauch]]*(1+WACC_real/100)^-Tabelle1[[#This Row],[Nutzungs-dauer]] -> 513.5294911 | N22: =N21+Tabelle4[[#This Row],[Einsparung durch Eigenverbrauch BW]] -> 8620.463991 | O22: =Tabelle4[[#This Row],[Solarer Ertrag mit Degradation + Abregelung]]*Tabelle6[[#This Row],[Bezugspreis mit Steigerung]]*IF(AND(Eingabe_pers_Eigenverbrauch="ja",Batterie_gewuenscht="nein"),(Eigenverbrauchsquote_pers/100),IF(AND(Eingabe_pers_Eigenverbrauch="ja",Batterie_gewuenscht="ja"),(Eigenverbauch_ohne_BAT/100)+(Eigenverbaucherhöhung/100)*(1-Batterie_Verluste/100),IF(Batterie_gewuenscht="nein",Eigenverbrauchsquote_Basis/100,(Eigenverbauch_ohne_BAT/100)+(Eigenverbaucherhöhung/100)*(1-Batterie_Verluste/100)))) -> 564.8184401 | P22: =Tabelle4[[#This Row],[Einsparung durch Eigenverbrauch + Abregelung]]*(1+WACC_real/100)^-Tabelle1[[#This Row],[Nutzungs-dauer]] -> 511.2186084 | Q22: =Q21+Tabelle4[[#This Row],[Einsparung durch Eigenverbrauch + Abregelung BW]] -> 8581.671903 | R22: =Tabelle4[[#This Row],[Solarer Ertrag mit Degradation]]*EEG_Vergütung*IF(Eingabe_pers_Eigenverbrauch="ja",(1-Eigenverbrauchsquote_pers/100),(1-(Eigenverbrauchsquote_Basis/100)))*IF(OR(Feste_EEG_Vergütung="nein",Direktvermarktung="ja"),0,1) -> 625.0096805 | S22: =Tabelle4[[#This Row],[Verkauf Überschussstrom mit EEG-Vergütung]]*(1+WACC_real/100)^-Tabelle1[[#This Row],[Nutzungs-dauer]] -> 565.6978534 | T22: =T21+Tabelle4[[#This Row],[Verkauf Überschussstrom mit EEG-Vergütung BW]] -> 10291.35641 | U22: =Tabelle4[[#This Row],[Solarer Ertrag mit Degradation + Abregelung]]*EEG_Vergütung*IF(Eingabe_pers_Eigenverbrauch="ja",(1-Eigenverbrauchsquote_pers/100),(1-(Eigenverbrauchsquote_Basis/100)))*IF(OR(Feste_EEG_Vergütung="nein",Direktvermarktung="ja"),0,1) -> 622.1971369 | V22: =Tabelle4[[#This Row],[Verkauf Überschussstrom mit EEG-Vergütung + Abregelung]]*(1+WACC_real/100)^-Tabelle1[[#This Row],[Nutzungs-dauer]] -> 563.152213 | W22: =W21+Tabelle4[[#This Row],[Verkauf Überschussstrom mit EEG-Vergütung + Abregelung BW]] -> 10245.0453 | X22: =Tabelle4[[#This Row],[Solarer Ertrag mit Degradation]]*IF(Eingabe_pers_Eigenverbrauch="ja",(1-Eigenverbrauchsquote_pers/100),(1-(Eigenverbrauchsquote_Basis/100)))*IF(AND(Direktvermarktung="nein",Feste_EEG_Vergütung="nein"),Direktvermarktung_sonstige,IF(Direktvermarktung="ja",Direktvermarktung_gefördert,0)) -> 0 | Y22: =Tabelle4[[#This Row],[Verkauf Überschussstrom Direktvermarktung]]*(1+WACC_real/100)^-Tabelle1[[#This Row],[Nutzungs-dauer]] -> 0 | Z22: =Z21+Tabelle4[[#This Row],[Verkauf Überschussstrom Direktvermarktung BW]] -> 0 | AA22: =Tabelle4[[#This Row],[Solarer Ertrag mit Degradation + Abregelung]]*IF(Eingabe_pers_Eigenverbrauch="ja",(1-Eigenverbrauchsquote_pers/100),(1-(Eigenverbrauchsquote_Basis/100)))*IF(AND(Direktvermarktung="nein",Feste_EEG_Vergütung="nein"),Direktvermarktung_sonstige,IF(Direktvermarktung="ja",Direktvermarktung_gefördert,0)) -> 0 | AB22: =Tabelle4[[#This Row],[Verkauf Überschussstrom Direktvermarktung + Abregelung]]*(1+WACC_real/100)^-Tabelle1[[#This Row],[Nutzungs-dauer]] -> 0 | AC22: =AC21+Tabelle4[[#This Row],[Verkauf Überschussstrom Direktvermarktung + Abregelung BW]] -> 0 | AD22: =Tabelle4[[#This Row],[Solarer Ertrag mit Degradation]]*IF(Eingabe_pers_Eigenverbrauch="ja",(Eigenverbrauchsquote_pers/100),(Eigenverbrauchsquote_Basis/100))*IF(Installierte_Leistung_der_GesamtAnlage<=10, 0,1)*IF(AND(Eingabe_pers_Eigenverbrauch="ja", OR(Eigenverbrauchsquote_pers=100,Eigenverbrauchsquote_pers=0)),0,1)*EEG_Umlage*(PRZNT_EEG_Umlage/100) -> 0 | AE22: =Tabelle4[[#This Row],[Pflicht zur EEG-Umlage]]*(1+WACC_real/100)^-Tabelle1[[#This Row],[Nutzungs-dauer]] -> 0 | AF22: =AF21+Tabelle4[[#This Row],[Pflicht zur EEG-Umlage BW]] -> 0 | AG22: =Tabelle4[[#This Row],[Solarer Ertrag mit Degradation + Abregelung]]*IF(Eingabe_pers_Eigenverbrauch="ja",(Eigenverbrauchsquote_pers/100),(Eigenverbrauchsquote_Basis/100))*IF(Installierte_Leistung_der_GesamtAnlage<=10, 0,1)*IF(AND(Eingabe_pers_Eigenverbrauch="ja", OR(Eigenverbrauchsquote_pers=100,Eigenverbrauchsquote_pers=0)),0,1)*EEG_Umlage*(PRZNT_EEG_Umlage/100) -> 0 | AH22: =Tabelle4[[#This Row],[Pflicht zur EEG-Umlage + Abregelung]]*(1+WACC_real/100)^-Tabelle1[[#This Row],[Nutzungs-dauer]] -> 0 | AI22: =AI21+Tabelle4[[#This Row],[Pflicht zur EEG-Umlage + Abregelung BW]] -> 0 | AK22: 0.3079191522 | AL22: =AVERAGE($AK$6:AK22) -> 0.2846961393 | AN22: 0 | AO22: 0 | AP22: =Tabelle612[[#This Row],[Jährliche OPEX-Kosten PV]]*(1+WACC_real/100)^-Tabelle1[[#This Row],[Nutzungs-dauer]] -> 0 | AQ22: =Tabelle612[[#This Row],[Jährliche OPEX-Kosten BAT]]*(1+WACC_real/100)^-Tabelle1[[#This Row],[Nutzungs-dauer]] -> 0 | AR22: =IF(Tabelle1[[#This Row],[Nutzungs-dauer]]=Lebensdauer_des_ersten_Wechselrichters,CAPEX_des_Ersatz_Wechselrichters,IF(Tabelle1[[#This Row],[Nutzungs-dauer]]=Lebensdauer_der_ersten_Batterie,CAPEX_der_Ersatz_Batterie,0)) -> 0 | AS22: =Tabelle4[[#This Row],[Einsparung durch Eigenverbrauch BW]]+Tabelle4[[#This Row],[Verkauf Überschussstrom mit EEG-Vergütung BW]]+Tabelle4[[#This Row],[Verkauf Überschussstrom Direktvermarktung BW]]-Tabelle4[[#This Row],[Pflicht zur EEG-Umlage BW]]-Tabelle612[[#This Row],[Jährliche OPEX-Kosten PV BW]]-Tabelle612[[#This Row],[Jährliche OPEX-Kosten BAT BW]]-Tabelle612[[#This Row],[Investition PV-Batterie-System]] -> 1079.227345 | AT22: =AT21+Tabelle612[[#This Row],[Cashflow diskontiert mit Kalkulationszins]] -> 18911.8204 | AU22: =Tabelle612[[#This Row],[Cashflow diskontiert mit Kalkulationszins kumuliert]] -> 18911.8204 | AV22: =Tabelle4[[#This Row],[Einsparung durch Eigenverbrauch + Abregelung BW]]+Tabelle4[[#This Row],[Verkauf Überschussstrom mit EEG-Vergütung + Abregelung BW]]+Tabelle4[[#This Row],[Verkauf Überschussstrom Direktvermarktung + Abregelung BW]]-Tabelle4[[#This Row],[Pflicht zur EEG-Umlage + Abregelung BW]]-Tabelle612[[#This Row],[Jährliche OPEX-Kosten PV BW]]-Tabelle612[[#This Row],[Jährliche OPEX-Kosten BAT BW]]-Tabelle612[[#This Row],[Investition PV-Batterie-System]] -> 1074.370821 | AW22: =AW21+Tabelle612[[#This Row],[Cashflow diskontiert mit Kalkulationszins]] -> 18906.65693 | AX22: =Tabelle612[[#This Row],[Cashflow diskontiert mit Kalkulationszins kumuliert mit Abr.]] -> 18906.65693
B23: 18 | D23: =Solarer_Gesamtertrag_der_Anlage*(1-(Moduldegradation/100))^Tabelle1[[#This Row],[Nutzungs-dauer]] -> 9189.963978 | E23: =E22+Tabelle4[[#This Row],[Solarer Ertrag mit Degradation]] -> 168990.8726 | F23: =Tabelle4[[#This Row],[Solarer Ertrag mit Degradation]]*(1+WACC_real/100)^-Tabelle1[[#This Row],[Nutzungs-dauer]] -> 8269.217344 | G23: =G22+Tabelle4[[#This Row],[Solarer Ertrag mit Degradation BW]] -> 159969.6361 | H23: =Solarer_Gesamtertrag_der_Anlage*(1-(Moduldegradation/100))^Tabelle1[[#This Row],[Nutzungs-dauer]]*(1-(Abregelungsverluste/100)) -> 9148.60914 | I23: =I22+Tabelle4[[#This Row],[Solarer Ertrag mit Degradation + Abregelung]] -> 168230.4137 | J23: =Tabelle4[[#This Row],[Solarer Ertrag mit Degradation + Abregelung]]*(1+WACC_real/100)^-Tabelle1[[#This Row],[Nutzungs-dauer]] -> 8232.005866 | K23: =K22+Tabelle4[[#This Row],[Solarer Ertrag mit Degradation + Abregelung BW]] -> 159249.7727 | L23: =Tabelle4[[#This Row],[Solarer Ertrag mit Degradation]]*Tabelle6[[#This Row],[Bezugspreis mit Steigerung]]*IF(AND(Eingabe_pers_Eigenverbrauch="ja",Batterie_gewuenscht="nein"),(Eigenverbrauchsquote_pers/100),IF(AND(Eingabe_pers_Eigenverbrauch="ja",Batterie_gewuenscht="ja"),(Eigenverbauch_ohne_BAT/100)+(Eigenverbaucherhöhung/100)*(1-Batterie_Verluste/100),IF(Batterie_gewuenscht="nein",Eigenverbrauchsquote_Basis/100,(Eigenverbauch_ohne_BAT/100)+(Eigenverbaucherhöhung/100)*(1-Batterie_Verluste/100)))) -> 571.6127151 | M23: =Tabelle4[[#This Row],[Einsparung durch Eigenverbrauch]]*(1+WACC_real/100)^-Tabelle1[[#This Row],[Nutzungs-dauer]] -> 514.3425795 | N23: =N22+Tabelle4[[#This Row],[Einsparung durch Eigenverbrauch BW]] -> 9134.806571 | O23: =Tabelle4[[#This Row],[Solarer Ertrag mit Degradation + Abregelung]]*Tabelle6[[#This Row],[Bezugspreis mit Steigerung]]*IF(AND(Eingabe_pers_Eigenverbrauch="ja",Batterie_gewuenscht="nein"),(Eigenverbrauchsquote_pers/100),IF(AND(Eingabe_pers_Eigenverbrauch="ja",Batterie_gewuenscht="ja"),(Eigenverbauch_ohne_BAT/100)+(Eigenverbaucherhöhung/100)*(1-Batterie_Verluste/100),IF(Batterie_gewuenscht="nein",Eigenverbrauchsquote_Basis/100,(Eigenverbauch_ohne_BAT/100)+(Eigenverbaucherhöhung/100)*(1-Batterie_Verluste/100)))) -> 569.0404579 | P23: =Tabelle4[[#This Row],[Einsparung durch Eigenverbrauch + Abregelung]]*(1+WACC_real/100)^-Tabelle1[[#This Row],[Nutzungs-dauer]] -> 512.0280379 | Q23: =Q22+Tabelle4[[#This Row],[Einsparung durch Eigenverbrauch + Abregelung BW]] -> 9093.699941 | R23: =Tabelle4[[#This Row],[Solarer Ertrag mit Degradation]]*EEG_Vergütung*IF(Eingabe_pers_Eigenverbrauch="ja",(1-Eigenverbrauchsquote_pers/100),(1-(Eigenverbrauchsquote_Basis/100)))*IF(OR(Feste_EEG_Vergütung="nein",Direktvermarktung="ja"),0,1) -> 623.4471563 | S23: =Tabelle4[[#This Row],[Verkauf Überschussstrom mit EEG-Vergütung]]*(1+WACC_real/100)^-Tabelle1[[#This Row],[Nutzungs-dauer]] -> 560.9837046 | T23: =T22+Tabelle4[[#This Row],[Verkauf Überschussstrom mit EEG-Vergütung BW]] -> 10852.34011 | U23: =Tabelle4[[#This Row],[Solarer Ertrag mit Degradation + Abregelung]]*EEG_Vergütung*IF(Eingabe_pers_Eigenverbrauch="ja",(1-Eigenverbrauchsquote_pers/100),(1-(Eigenverbrauchsquote_Basis/100)))*IF(OR(Feste_EEG_Vergütung="nein",Direktvermarktung="ja"),0,1) -> 620.6416441 | V23: =Tabelle4[[#This Row],[Verkauf Überschussstrom mit EEG-Vergütung + Abregelung]]*(1+WACC_real/100)^-Tabelle1[[#This Row],[Nutzungs-dauer]] -> 558.4592779 | W23: =W22+Tabelle4[[#This Row],[Verkauf Überschussstrom mit EEG-Vergütung + Abregelung BW]] -> 10803.50458 | X23: =Tabelle4[[#This Row],[Solarer Ertrag mit Degradation]]*IF(Eingabe_pers_Eigenverbrauch="ja",(1-Eigenverbrauchsquote_pers/100),(1-(Eigenverbrauchsquote_Basis/100)))*IF(AND(Direktvermarktung="nein",Feste_EEG_Vergütung="nein"),Direktvermarktung_sonstige,IF(Direktvermarktung="ja",Direktvermarktung_gefördert,0)) -> 0 | Y23: =Tabelle4[[#This Row],[Verkauf Überschussstrom Direktvermarktung]]*(1+WACC_real/100)^-Tabelle1[[#This Row],[Nutzungs-dauer]] -> 0 | Z23: =Z22+Tabelle4[[#This Row],[Verkauf Überschussstrom Direktvermarktung BW]] -> 0 | AA23: =Tabelle4[[#This Row],[Solarer Ertrag mit Degradation + Abregelung]]*IF(Eingabe_pers_Eigenverbrauch="ja",(1-Eigenverbrauchsquote_pers/100),(1-(Eigenverbrauchsquote_Basis/100)))*IF(AND(Direktvermarktung="nein",Feste_EEG_Vergütung="nein"),Direktvermarktung_sonstige,IF(Direktvermarktung="ja",Direktvermarktung_gefördert,0)) -> 0 | AB23: =Tabelle4[[#This Row],[Verkauf Überschussstrom Direktvermarktung + Abregelung]]*(1+WACC_real/100)^-Tabelle1[[#This Row],[Nutzungs-dauer]] -> 0 | AC23: =AC22+Tabelle4[[#This Row],[Verkauf Überschussstrom Direktvermarktung + Abregelung BW]] -> 0 | AD23: =Tabelle4[[#This Row],[Solarer Ertrag mit Degradation]]*IF(Eingabe_pers_Eigenverbrauch="ja",(Eigenverbrauchsquote_pers/100),(Eigenverbrauchsquote_Basis/100))*IF(Installierte_Leistung_der_GesamtAnlage<=10, 0,1)*IF(AND(Eingabe_pers_Eigenverbrauch="ja", OR(Eigenverbrauchsquote_pers=100,Eigenverbrauchsquote_pers=0)),0,1)*EEG_Umlage*(PRZNT_EEG_Umlage/100) -> 0 | AE23: =Tabelle4[[#This Row],[Pflicht zur EEG-Umlage]]*(1+WACC_real/100)^-Tabelle1[[#This Row],[Nutzungs-dauer]] -> 0 | AF23: =AF22+Tabelle4[[#This Row],[Pflicht zur EEG-Umlage BW]] -> 0 | AG23: =Tabelle4[[#This Row],[Solarer Ertrag mit Degradation + Abregelung]]*IF(Eingabe_pers_Eigenverbrauch="ja",(Eigenverbrauchsquote_pers/100),(Eigenverbrauchsquote_Basis/100))*IF(Installierte_Leistung_der_GesamtAnlage<=10, 0,1)*IF(AND(Eingabe_pers_Eigenverbrauch="ja", OR(Eigenverbrauchsquote_pers=100,Eigenverbrauchsquote_pers=0)),0,1)*EEG_Umlage*(PRZNT_EEG_Umlage/100) -> 0 | AH23: =Tabelle4[[#This Row],[Pflicht zur EEG-Umlage + Abregelung]]*(1+WACC_real/100)^-Tabelle1[[#This Row],[Nutzungs-dauer]] -> 0 | AI23: =AI22+Tabelle4[[#This Row],[Pflicht zur EEG-Umlage + Abregelung BW]] -> 0 | AK23: 0.3109983437 | AL23: =AVERAGE($AK$6:AK23) -> 0.2861573729 | AN23: 0 | AO23: 0 | AP23: =Tabelle612[[#This Row],[Jährliche OPEX-Kosten PV]]*(1+WACC_real/100)^-Tabelle1[[#This Row],[Nutzungs-dauer]] -> 0 | AQ23: =Tabelle612[[#This Row],[Jährliche OPEX-Kosten BAT]]*(1+WACC_real/100)^-Tabelle1[[#This Row],[Nutzungs-dauer]] -> 0 | AR23: =IF(Tabelle1[[#This Row],[Nutzungs-dauer]]=Lebensdauer_des_ersten_Wechselrichters,CAPEX_des_Ersatz_Wechselrichters,IF(Tabelle1[[#This Row],[Nutzungs-dauer]]=Lebensdauer_der_ersten_Batterie,CAPEX_der_Ersatz_Batterie,0)) -> 0 | AS23: =Tabelle4[[#This Row],[Einsparung durch Eigenverbrauch BW]]+Tabelle4[[#This Row],[Verkauf Überschussstrom mit EEG-Vergütung BW]]+Tabelle4[[#This Row],[Verkauf Überschussstrom Direktvermarktung BW]]-Tabelle4[[#This Row],[Pflicht zur EEG-Umlage BW]]-Tabelle612[[#This Row],[Jährliche OPEX-Kosten PV BW]]-Tabelle612[[#This Row],[Jährliche OPEX-Kosten BAT BW]]-Tabelle612[[#This Row],[Investition PV-Batterie-System]] -> 1075.326284 | AT23: =AT22+Tabelle612[[#This Row],[Cashflow diskontiert mit Kalkulationszins]] -> 19987.14668 | AU23: =Tabelle612[[#This Row],[Cashflow diskontiert mit Kalkulationszins kumuliert]] -> 19987.14668 | AV23: =Tabelle4[[#This Row],[Einsparung durch Eigenverbrauch + Abregelung BW]]+Tabelle4[[#This Row],[Verkauf Überschussstrom mit EEG-Vergütung + Abregelung BW]]+Tabelle4[[#This Row],[Verkauf Überschussstrom Direktvermarktung + Abregelung BW]]-Tabelle4[[#This Row],[Pflicht zur EEG-Umlage + Abregelung BW]]-Tabelle612[[#This Row],[Jährliche OPEX-Kosten PV BW]]-Tabelle612[[#This Row],[Jährliche OPEX-Kosten BAT BW]]-Tabelle612[[#This Row],[Investition PV-Batterie-System]] -> 1070.487316 | AW23: =AW22+Tabelle612[[#This Row],[Cashflow diskontiert mit Kalkulationszins]] -> 19981.98321 | AX23: =Tabelle612[[#This Row],[Cashflow diskontiert mit Kalkulationszins kumuliert mit Abr.]] -> 19981.98321
B24: 19 | D24: =Solarer_Gesamtertrag_der_Anlage*(1-(Moduldegradation/100))^Tabelle1[[#This Row],[Nutzungs-dauer]] -> 9166.989068 | E24: =E23+Tabelle4[[#This Row],[Solarer Ertrag mit Degradation]] -> 178157.8617 | F24: =Tabelle4[[#This Row],[Solarer Ertrag mit Degradation]]*(1+WACC_real/100)^-Tabelle1[[#This Row],[Nutzungs-dauer]] -> 8200.307199 | G24: =G23+Tabelle4[[#This Row],[Solarer Ertrag mit Degradation BW]] -> 168169.9433 | H24: =Solarer_Gesamtertrag_der_Anlage*(1-(Moduldegradation/100))^Tabelle1[[#This Row],[Nutzungs-dauer]]*(1-(Abregelungsverluste/100)) -> 9125.737618 | I24: =I23+Tabelle4[[#This Row],[Solarer Ertrag mit Degradation + Abregelung]] -> 177356.1513 | J24: =Tabelle4[[#This Row],[Solarer Ertrag mit Degradation + Abregelung]]*(1+WACC_real/100)^-Tabelle1[[#This Row],[Nutzungs-dauer]] -> 8163.405817 | K24: =K23+Tabelle4[[#This Row],[Solarer Ertrag mit Degradation + Abregelung BW]] -> 167413.1785 | L24: =Tabelle4[[#This Row],[Solarer Ertrag mit Degradation]]*Tabelle6[[#This Row],[Bezugspreis mit Steigerung]]*IF(AND(Eingabe_pers_Eigenverbrauch="ja",Batterie_gewuenscht="nein"),(Eigenverbrauchsquote_pers/100),IF(AND(Eingabe_pers_Eigenverbrauch="ja",Batterie_gewuenscht="ja"),(Eigenverbauch_ohne_BAT/100)+(Eigenverbaucherhöhung/100)*(1-Batterie_Verluste/100),IF(Batterie_gewuenscht="nein",Eigenverbrauchsquote_Basis/100,(Eigenverbauch_ohne_BAT/100)+(Eigenverbaucherhöhung/100)*(1-Batterie_Verluste/100)))) -> 575.8855202 | M24: =Tabelle4[[#This Row],[Einsparung durch Eigenverbrauch]]*(1+WACC_real/100)^-Tabelle1[[#This Row],[Nutzungs-dauer]] -> 515.1569552 | N24: =N23+Tabelle4[[#This Row],[Einsparung durch Eigenverbrauch BW]] -> 9649.963526 | O24: =Tabelle4[[#This Row],[Solarer Ertrag mit Degradation + Abregelung]]*Tabelle6[[#This Row],[Bezugspreis mit Steigerung]]*IF(AND(Eingabe_pers_Eigenverbrauch="ja",Batterie_gewuenscht="nein"),(Eigenverbrauchsquote_pers/100),IF(AND(Eingabe_pers_Eigenverbrauch="ja",Batterie_gewuenscht="ja"),(Eigenverbauch_ohne_BAT/100)+(Eigenverbaucherhöhung/100)*(1-Batterie_Verluste/100),IF(Batterie_gewuenscht="nein",Eigenverbrauchsquote_Basis/100,(Eigenverbauch_ohne_BAT/100)+(Eigenverbaucherhöhung/100)*(1-Batterie_Verluste/100)))) -> 573.2940354 | P24: =Tabelle4[[#This Row],[Einsparung durch Eigenverbrauch + Abregelung]]*(1+WACC_real/100)^-Tabelle1[[#This Row],[Nutzungs-dauer]] -> 512.8387489 | Q24: =Q23+Tabelle4[[#This Row],[Einsparung durch Eigenverbrauch + Abregelung BW]] -> 9606.53869 | R24: =Tabelle4[[#This Row],[Solarer Ertrag mit Degradation]]*EEG_Vergütung*IF(Eingabe_pers_Eigenverbrauch="ja",(1-Eigenverbrauchsquote_pers/100),(1-(Eigenverbrauchsquote_Basis/100)))*IF(OR(Feste_EEG_Vergütung="nein",Direktvermarktung="ja"),0,1) -> 621.8885384 | S24: =Tabelle4[[#This Row],[Verkauf Überschussstrom mit EEG-Vergütung]]*(1+WACC_real/100)^-Tabelle1[[#This Row],[Nutzungs-dauer]] -> 556.3088404 | T24: =T23+Tabelle4[[#This Row],[Verkauf Überschussstrom mit EEG-Vergütung BW]] -> 11408.64895 | U24: =Tabelle4[[#This Row],[Solarer Ertrag mit Degradation + Abregelung]]*EEG_Vergütung*IF(Eingabe_pers_Eigenverbrauch="ja",(1-Eigenverbrauchsquote_pers/100),(1-(Eigenverbrauchsquote_Basis/100)))*IF(OR(Feste_EEG_Vergütung="nein",Direktvermarktung="ja"),0,1) -> 619.09004 | V24: =Tabelle4[[#This Row],[Verkauf Überschussstrom mit EEG-Vergütung + Abregelung]]*(1+WACC_real/100)^-Tabelle1[[#This Row],[Nutzungs-dauer]] -> 553.8054506 | W24: =W23+Tabelle4[[#This Row],[Verkauf Überschussstrom mit EEG-Vergütung + Abregelung BW]] -> 11357.31003 | X24: =Tabelle4[[#This Row],[Solarer Ertrag mit Degradation]]*IF(Eingabe_pers_Eigenverbrauch="ja",(1-Eigenverbrauchsquote_pers/100),(1-(Eigenverbrauchsquote_Basis/100)))*IF(AND(Direktvermarktung="nein",Feste_EEG_Vergütung="nein"),Direktvermarktung_sonstige,IF(Direktvermarktung="ja",Direktvermarktung_gefördert,0)) -> 0 | Y24: =Tabelle4[[#This Row],[Verkauf Überschussstrom Direktvermarktung]]*(1+WACC_real/100)^-Tabelle1[[#This Row],[Nutzungs-dauer]] -> 0 | Z24: =Z23+Tabelle4[[#This Row],[Verkauf Überschussstrom Direktvermarktung BW]] -> 0 | AA24: =Tabelle4[[#This Row],[Solarer Ertrag mit Degradation + Abregelung]]*IF(Eingabe_pers_Eigenverbrauch="ja",(1-Eigenverbrauchsquote_pers/100),(1-(Eigenverbrauchsquote_Basis/100)))*IF(AND(Direktvermarktung="nein",Feste_EEG_Vergütung="nein"),Direktvermarktung_sonstige,IF(Direktvermarktung="ja",Direktvermarktung_gefördert,0)) -> 0 | AB24: =Tabelle4[[#This Row],[Verkauf Überschussstrom Direktvermarktung + Abregelung]]*(1+WACC_real/100)^-Tabelle1[[#This Row],[Nutzungs-dauer]] -> 0 | AC24: =AC23+Tabelle4[[#This Row],[Verkauf Überschussstrom Direktvermarktung + Abregelung BW]] -> 0 | AD24: =Tabelle4[[#This Row],[Solarer Ertrag mit Degradation]]*IF(Eingabe_pers_Eigenverbrauch="ja",(Eigenverbrauchsquote_pers/100),(Eigenverbrauchsquote_Basis/100))*IF(Installierte_Leistung_der_GesamtAnlage<=10, 0,1)*IF(AND(Eingabe_pers_Eigenverbrauch="ja", OR(Eigenverbrauchsquote_pers=100,Eigenverbrauchsquote_pers=0)),0,1)*EEG_Umlage*(PRZNT_EEG_Umlage/100) -> 0 | AE24: =Tabelle4[[#This Row],[Pflicht zur EEG-Umlage]]*(1+WACC_real/100)^-Tabelle1[[#This Row],[Nutzungs-dauer]] -> 0 | AF24: =AF23+Tabelle4[[#This Row],[Pflicht zur EEG-Umlage BW]] -> 0 | AG24: =Tabelle4[[#This Row],[Solarer Ertrag mit Degradation + Abregelung]]*IF(Eingabe_pers_Eigenverbrauch="ja",(Eigenverbrauchsquote_pers/100),(Eigenverbrauchsquote_Basis/100))*IF(Installierte_Leistung_der_GesamtAnlage<=10, 0,1)*IF(AND(Eingabe_pers_Eigenverbrauch="ja", OR(Eigenverbrauchsquote_pers=100,Eigenverbrauchsquote_pers=0)),0,1)*EEG_Umlage*(PRZNT_EEG_Umlage/100) -> 0 | AH24: =Tabelle4[[#This Row],[Pflicht zur EEG-Umlage + Abregelung]]*(1+WACC_real/100)^-Tabelle1[[#This Row],[Nutzungs-dauer]] -> 0 | AI24: =AI23+Tabelle4[[#This Row],[Pflicht zur EEG-Umlage + Abregelung BW]] -> 0 | AK24: 0.3141083271 | AL24: =AVERAGE($AK$6:AK24) -> 0.2876284757 | AN24: 0 | AO24: 0 | AP24: =Tabelle612[[#This Row],[Jährliche OPEX-Kosten PV]]*(1+WACC_real/100)^-Tabelle1[[#This Row],[Nutzungs-dauer]] -> 0 | AQ24: =Tabelle612[[#This Row],[Jährliche OPEX-Kosten BAT]]*(1+WACC_real/100)^-Tabelle1[[#This Row],[Nutzungs-dauer]] -> 0 | AR24: =IF(Tabelle1[[#This Row],[Nutzungs-dauer]]=Lebensdauer_des_ersten_Wechselrichters,CAPEX_des_Ersatz_Wechselrichters,IF(Tabelle1[[#This Row],[Nutzungs-dauer]]=Lebensdauer_der_ersten_Batterie,CAPEX_der_Ersatz_Batterie,0)) -> 0 | AS24: =Tabelle4[[#This Row],[Einsparung durch Eigenverbrauch BW]]+Tabelle4[[#This Row],[Verkauf Überschussstrom mit EEG-Vergütung BW]]+Tabelle4[[#This Row],[Verkauf Überschussstrom Direktvermarktung BW]]-Tabelle4[[#This Row],[Pflicht zur EEG-Umlage BW]]-Tabelle612[[#This Row],[Jährliche OPEX-Kosten PV BW]]-Tabelle612[[#This Row],[Jährliche OPEX-Kosten BAT BW]]-Tabelle612[[#This Row],[Investition PV-Batterie-System]] -> 1071.465796 | AT24: =AT23+Tabelle612[[#This Row],[Cashflow diskontiert mit Kalkulationszins]] -> 21058.61248 | AU24: =Tabelle612[[#This Row],[Cashflow diskontiert mit Kalkulationszins kumuliert]] -> 21058.61248 | AV24: =Tabelle4[[#This Row],[Einsparung durch Eigenverbrauch + Abregelung BW]]+Tabelle4[[#This Row],[Verkauf Überschussstrom mit EEG-Vergütung + Abregelung BW]]+Tabelle4[[#This Row],[Verkauf Überschussstrom Direktvermarktung + Abregelung BW]]-Tabelle4[[#This Row],[Pflicht zur EEG-Umlage + Abregelung BW]]-Tabelle612[[#This Row],[Jährliche OPEX-Kosten PV BW]]-Tabelle612[[#This Row],[Jährliche OPEX-Kosten BAT BW]]-Tabelle612[[#This Row],[Investition PV-Batterie-System]] -> 1066.6442 | AW24: =AW23+Tabelle612[[#This Row],[Cashflow diskontiert mit Kalkulationszins]] -> 21053.44901 | AX24: =Tabelle612[[#This Row],[Cashflow diskontiert mit Kalkulationszins kumuliert mit Abr.]] -> 21053.44901
B25: 20 | D25: =Solarer_Gesamtertrag_der_Anlage*(1-(Moduldegradation/100))^Tabelle1[[#This Row],[Nutzungs-dauer]] -> 9144.071596 | E25: =E24+Tabelle4[[#This Row],[Solarer Ertrag mit Degradation]] -> 187301.9333 | F25: =Tabelle4[[#This Row],[Solarer Ertrag mit Degradation]]*(1+WACC_real/100)^-Tabelle1[[#This Row],[Nutzungs-dauer]] -> 8131.971306 | G25: =G24+Tabelle4[[#This Row],[Solarer Ertrag mit Degradation BW]] -> 176301.9146 | H25: =Solarer_Gesamtertrag_der_Anlage*(1-(Moduldegradation/100))^Tabelle1[[#This Row],[Nutzungs-dauer]]*(1-(Abregelungsverluste/100)) -> 9102.923274 | I25: =I24+Tabelle4[[#This Row],[Solarer Ertrag mit Degradation + Abregelung]] -> 186459.0746 | J25: =Tabelle4[[#This Row],[Solarer Ertrag mit Degradation + Abregelung]]*(1+WACC_real/100)^-Tabelle1[[#This Row],[Nutzungs-dauer]] -> 8095.377435 | K25: =K24+Tabelle4[[#This Row],[Solarer Ertrag mit Degradation + Abregelung BW]] -> 175508.556 | L25: =Tabelle4[[#This Row],[Solarer Ertrag mit Degradation]]*Tabelle6[[#This Row],[Bezugspreis mit Steigerung]]*IF(AND(Eingabe_pers_Eigenverbrauch="ja",Batterie_gewuenscht="nein"),(Eigenverbrauchsquote_pers/100),IF(AND(Eingabe_pers_Eigenverbrauch="ja",Batterie_gewuenscht="ja"),(Eigenverbauch_ohne_BAT/100)+(Eigenverbaucherhöhung/100)*(1-Batterie_Verluste/100),IF(Batterie_gewuenscht="nein",Eigenverbrauchsquote_Basis/100,(Eigenverbauch_ohne_BAT/100)+(Eigenverbaucherhöhung/100)*(1-Batterie_Verluste/100)))) -> 580.1902645 | M25: =Tabelle4[[#This Row],[Einsparung durch Eigenverbrauch]]*(1+WACC_real/100)^-Tabelle1[[#This Row],[Nutzungs-dauer]] -> 515.9726204 | N25: =N24+Tabelle4[[#This Row],[Einsparung durch Eigenverbrauch BW]] -> 10165.93615 | O25: =Tabelle4[[#This Row],[Solarer Ertrag mit Degradation + Abregelung]]*Tabelle6[[#This Row],[Bezugspreis mit Steigerung]]*IF(AND(Eingabe_pers_Eigenverbrauch="ja",Batterie_gewuenscht="nein"),(Eigenverbrauchsquote_pers/100),IF(AND(Eingabe_pers_Eigenverbrauch="ja",Batterie_gewuenscht="ja"),(Eigenverbauch_ohne_BAT/100)+(Eigenverbaucherhöhung/100)*(1-Batterie_Verluste/100),IF(Batterie_gewuenscht="nein",Eigenverbrauchsquote_Basis/100,(Eigenverbauch_ohne_BAT/100)+(Eigenverbaucherhöhung/100)*(1-Batterie_Verluste/100)))) -> 577.5794083 | P25: =Tabelle4[[#This Row],[Einsparung durch Eigenverbrauch + Abregelung]]*(1+WACC_real/100)^-Tabelle1[[#This Row],[Nutzungs-dauer]] -> 513.6507436 | Q25: =Q24+Tabelle4[[#This Row],[Einsparung durch Eigenverbrauch + Abregelung BW]] -> 10120.18943 | R25: =Tabelle4[[#This Row],[Solarer Ertrag mit Degradation]]*EEG_Vergütung*IF(Eingabe_pers_Eigenverbrauch="ja",(1-Eigenverbrauchsquote_pers/100),(1-(Eigenverbrauchsquote_Basis/100)))*IF(OR(Feste_EEG_Vergütung="nein",Direktvermarktung="ja"),0,1) -> 620.3338171 | S25: =Tabelle4[[#This Row],[Verkauf Überschussstrom mit EEG-Vergütung]]*(1+WACC_real/100)^-Tabelle1[[#This Row],[Nutzungs-dauer]] -> 551.6729334 | T25: =T24+Tabelle4[[#This Row],[Verkauf Überschussstrom mit EEG-Vergütung BW]] -> 11960.32189 | U25: =Tabelle4[[#This Row],[Solarer Ertrag mit Degradation + Abregelung]]*EEG_Vergütung*IF(Eingabe_pers_Eigenverbrauch="ja",(1-Eigenverbrauchsquote_pers/100),(1-(Eigenverbrauchsquote_Basis/100)))*IF(OR(Feste_EEG_Vergütung="nein",Direktvermarktung="ja"),0,1) -> 617.5423149 | V25: =Tabelle4[[#This Row],[Verkauf Überschussstrom mit EEG-Vergütung + Abregelung]]*(1+WACC_real/100)^-Tabelle1[[#This Row],[Nutzungs-dauer]] -> 549.1904052 | W25: =W24+Tabelle4[[#This Row],[Verkauf Überschussstrom mit EEG-Vergütung + Abregelung BW]] -> 11906.50044 | X25: =Tabelle4[[#This Row],[Solarer Ertrag mit Degradation]]*IF(Eingabe_pers_Eigenverbrauch="ja",(1-Eigenverbrauchsquote_pers/100),(1-(Eigenverbrauchsquote_Basis/100)))*IF(AND(Direktvermarktung="nein",Feste_EEG_Vergütung="nein"),Direktvermarktung_sonstige,IF(Direktvermarktung="ja",Direktvermarktung_gefördert,0)) -> 0 | Y25: =Tabelle4[[#This Row],[Verkauf Überschussstrom Direktvermarktung]]*(1+WACC_real/100)^-Tabelle1[[#This Row],[Nutzungs-dauer]] -> 0 | Z25: =Z24+Tabelle4[[#This Row],[Verkauf Überschussstrom Direktvermarktung BW]] -> 0 | AA25: =Tabelle4[[#This Row],[Solarer Ertrag mit Degradation + Abregelung]]*IF(Eingabe_pers_Eigenverbrauch="ja",(1-Eigenverbrauchsquote_pers/100),(1-(Eigenverbrauchsquote_Basis/100)))*IF(AND(Direktvermarktung="nein",Feste_EEG_Vergütung="nein"),Direktvermarktung_sonstige,IF(Direktvermarktung="ja",Direktvermarktung_gefördert,0)) -> 0 | AB25: =Tabelle4[[#This Row],[Verkauf Überschussstrom Direktvermarktung + Abregelung]]*(1+WACC_real/100)^-Tabelle1[[#This Row],[Nutzungs-dauer]] -> 0 | AC25: =AC24+Tabelle4[[#This Row],[Verkauf Überschussstrom Direktvermarktung + Abregelung BW]] -> 0 | AD25: =Tabelle4[[#This Row],[Solarer Ertrag mit Degradation]]*IF(Eingabe_pers_Eigenverbrauch="ja",(Eigenverbrauchsquote_pers/100),(Eigenverbrauchsquote_Basis/100))*IF(Installierte_Leistung_der_GesamtAnlage<=10, 0,1)*IF(AND(Eingabe_pers_Eigenverbrauch="ja", OR(Eigenverbrauchsquote_pers=100,Eigenverbrauchsquote_pers=0)),0,1)*EEG_Umlage*(PRZNT_EEG_Umlage/100) -> 0 | AE25: =Tabelle4[[#This Row],[Pflicht zur EEG-Umlage]]*(1+WACC_real/100)^-Tabelle1[[#This Row],[Nutzungs-dauer]] -> 0 | AF25: =AF24+Tabelle4[[#This Row],[Pflicht zur EEG-Umlage BW]] -> 0 | AG25: =Tabelle4[[#This Row],[Solarer Ertrag mit Degradation + Abregelung]]*IF(Eingabe_pers_Eigenverbrauch="ja",(Eigenverbrauchsquote_pers/100),(Eigenverbrauchsquote_Basis/100))*IF(Installierte_Leistung_der_GesamtAnlage<=10, 0,1)*IF(AND(Eingabe_pers_Eigenverbrauch="ja", OR(Eigenverbrauchsquote_pers=100,Eigenverbrauchsquote_pers=0)),0,1)*EEG_Umlage*(PRZNT_EEG_Umlage/100) -> 0 | AH25: =Tabelle4[[#This Row],[Pflicht zur EEG-Umlage + Abregelung]]*(1+WACC_real/100)^-Tabelle1[[#This Row],[Nutzungs-dauer]] -> 0 | AI25: =AI24+Tabelle4[[#This Row],[Pflicht zur EEG-Umlage + Abregelung BW]] -> 0 | AK25: 0.3172494104 | AL25: =AVERAGE($AK$6:AK25) -> 0.2891095225 | AN25: 0 | AO25: 0 | AP25: =Tabelle612[[#This Row],[Jährliche OPEX-Kosten PV]]*(1+WACC_real/100)^-Tabelle1[[#This Row],[Nutzungs-dauer]] -> 0 | AQ25: =Tabelle612[[#This Row],[Jährliche OPEX-Kosten BAT]]*(1+WACC_real/100)^-Tabelle1[[#This Row],[Nutzungs-dauer]] -> 0 | AR25: =IF(Tabelle1[[#This Row],[Nutzungs-dauer]]=Lebensdauer_des_ersten_Wechselrichters,CAPEX_des_Ersatz_Wechselrichters,IF(Tabelle1[[#This Row],[Nutzungs-dauer]]=Lebensdauer_der_ersten_Batterie,CAPEX_der_Ersatz_Batterie,0)) -> 0 | AS25: =Tabelle4[[#This Row],[Einsparung durch Eigenverbrauch BW]]+Tabelle4[[#This Row],[Verkauf Überschussstrom mit EEG-Vergütung BW]]+Tabelle4[[#This Row],[Verkauf Überschussstrom Direktvermarktung BW]]-Tabelle4[[#This Row],[Pflicht zur EEG-Umlage BW]]-Tabelle612[[#This Row],[Jährliche OPEX-Kosten PV BW]]-Tabelle612[[#This Row],[Jährliche OPEX-Kosten BAT BW]]-Tabelle612[[#This Row],[Investition PV-Batterie-System]] -> 1067.645554 | AT25: =AT24+Tabelle612[[#This Row],[Cashflow diskontiert mit Kalkulationszins]] -> 22126.25803 | AU25: =Tabelle612[[#This Row],[Cashflow diskontiert mit Kalkulationszins kumuliert]] -> 22126.25803 | AV25: =Tabelle4[[#This Row],[Einsparung durch Eigenverbrauch + Abregelung BW]]+Tabelle4[[#This Row],[Verkauf Überschussstrom mit EEG-Vergütung + Abregelung BW]]+Tabelle4[[#This Row],[Verkauf Überschussstrom Direktvermarktung + Abregelung BW]]-Tabelle4[[#This Row],[Pflicht zur EEG-Umlage + Abregelung BW]]-Tabelle612[[#This Row],[Jährliche OPEX-Kosten PV BW]]-Tabelle612[[#This Row],[Jährliche OPEX-Kosten BAT BW]]-Tabelle612[[#This Row],[Investition PV-Batterie-System]] -> 1062.841149 | AW25: =AW24+Tabelle612[[#This Row],[Cashflow diskontiert mit Kalkulationszins]] -> 22121.09456 | AX25: =Tabelle612[[#This Row],[Cashflow diskontiert mit Kalkulationszins kumuliert mit Abr.]] -> 22121.09456
B26: 21 | D26: =Solarer_Gesamtertrag_der_Anlage*(1-(Moduldegradation/100))^Tabelle1[[#This Row],[Nutzungs-dauer]] -> 9121.211417 | E26: =E25+Tabelle4[[#This Row],[Solarer Ertrag mit Degradation]] -> 196423.1447 | F26: =Tabelle4[[#This Row],[Solarer Ertrag mit Degradation]]*(1+WACC_real/100)^-Tabelle1[[#This Row],[Nutzungs-dauer]] -> 8064.204878 | G26: =G25+Tabelle4[[#This Row],[Solarer Ertrag mit Degradation BW]] -> 184366.1195 | H26: =Solarer_Gesamtertrag_der_Anlage*(1-(Moduldegradation/100))^Tabelle1[[#This Row],[Nutzungs-dauer]]*(1-(Abregelungsverluste/100)) -> 9080.165965 | I26: =I25+Tabelle4[[#This Row],[Solarer Ertrag mit Degradation + Abregelung]] -> 195539.2406 | J26: =Tabelle4[[#This Row],[Solarer Ertrag mit Degradation + Abregelung]]*(1+WACC_real/100)^-Tabelle1[[#This Row],[Nutzungs-dauer]] -> 8027.915956 | K26: =K25+Tabelle4[[#This Row],[Solarer Ertrag mit Degradation + Abregelung BW]] -> 183536.4719 | L26: =Tabelle4[[#This Row],[Solarer Ertrag mit Degradation]]*Tabelle6[[#This Row],[Bezugspreis mit Steigerung]]*IF(AND(Eingabe_pers_Eigenverbrauch="ja",Batterie_gewuenscht="nein"),(Eigenverbrauchsquote_pers/100),IF(AND(Eingabe_pers_Eigenverbrauch="ja",Batterie_gewuenscht="ja"),(Eigenverbauch_ohne_BAT/100)+(Eigenverbaucherhöhung/100)*(1-Batterie_Verluste/100),IF(Batterie_gewuenscht="nein",Eigenverbrauchsquote_Basis/100,(Eigenverbauch_ohne_BAT/100)+(Eigenverbaucherhöhung/100)*(1-Batterie_Verluste/100)))) -> 584.5271867 | M26: =Tabelle4[[#This Row],[Einsparung durch Eigenverbrauch]]*(1+WACC_real/100)^-Tabelle1[[#This Row],[Nutzungs-dauer]] -> 516.7895771 | N26: =N25+Tabelle4[[#This Row],[Einsparung durch Eigenverbrauch BW]] -> 10682.72572 | O26: =Tabelle4[[#This Row],[Solarer Ertrag mit Degradation + Abregelung]]*Tabelle6[[#This Row],[Bezugspreis mit Steigerung]]*IF(AND(Eingabe_pers_Eigenverbrauch="ja",Batterie_gewuenscht="nein"),(Eigenverbrauchsquote_pers/100),IF(AND(Eingabe_pers_Eigenverbrauch="ja",Batterie_gewuenscht="ja"),(Eigenverbauch_ohne_BAT/100)+(Eigenverbaucherhöhung/100)*(1-Batterie_Verluste/100),IF(Batterie_gewuenscht="nein",Eigenverbrauchsquote_Basis/100,(Eigenverbauch_ohne_BAT/100)+(Eigenverbaucherhöhung/100)*(1-Batterie_Verluste/100)))) -> 581.8968143 | P26: =Tabelle4[[#This Row],[Einsparung durch Eigenverbrauch + Abregelung]]*(1+WACC_real/100)^-Tabelle1[[#This Row],[Nutzungs-dauer]] -> 514.464024 | Q26: =Q25+Tabelle4[[#This Row],[Einsparung durch Eigenverbrauch + Abregelung BW]] -> 10634.65346 | R26: =Tabelle4[[#This Row],[Solarer Ertrag mit Degradation]]*Direktvermarktung_sonstige*IF(Eingabe_pers_Eigenverbrauch="ja",(1-Eigenverbrauchsquote_pers/100),(1-(Eigenverbrauchsquote_Basis/100)))*IF(OR(Feste_EEG_Vergütung="nein",Direktvermarktung="ja"),0,1) -> 218.909074 | S26: =Tabelle4[[#This Row],[Verkauf Überschussstrom mit EEG-Vergütung]]*(1+WACC_real/100)^-Tabelle1[[#This Row],[Nutzungs-dauer]] -> 193.5409171 | T26: =T25+Tabelle4[[#This Row],[Verkauf Überschussstrom mit EEG-Vergütung BW]] -> 12153.8628 | U26: =Tabelle4[[#This Row],[Solarer Ertrag mit Degradation + Abregelung]]*Direktvermarktung_sonstige*IF(Eingabe_pers_Eigenverbrauch="ja",(1-Eigenverbrauchsquote_pers/100),(1-(Eigenverbrauchsquote_Basis/100)))*IF(OR(Feste_EEG_Vergütung="nein",Direktvermarktung="ja"),0,IF(Installierte_Leistung_der_GesamtAnlage>100,100/Installierte_Leistung_der_GesamtAnlage,1)) -> 217.9239832 | V26: =Tabelle4[[#This Row],[Verkauf Überschussstrom mit EEG-Vergütung + Abregelung]]*(1+WACC_real/100)^-Tabelle1[[#This Row],[Nutzungs-dauer]] -> 192.669983 | W26: =W25+Tabelle4[[#This Row],[Verkauf Überschussstrom mit EEG-Vergütung + Abregelung BW]] -> 12099.17042 | X26: =Tabelle4[[#This Row],[Solarer Ertrag mit Degradation]]*IF(Eingabe_pers_Eigenverbrauch="ja",(1-Eigenverbrauchsquote_pers/100),(1-(Eigenverbrauchsquote_Basis/100)))*IF(AND(Direktvermarktung="nein",Feste_EEG_Vergütung="nein"),Direktvermarktung_sonstige,IF(Direktvermarktung="ja",Direktvermarktung_sonstige,0)) -> 0 | Y26: =Tabelle4[[#This Row],[Verkauf Überschussstrom Direktvermarktung]]*(1+WACC_real/100)^-Tabelle1[[#This Row],[Nutzungs-dauer]] -> 0 | Z26: =Z25+Tabelle4[[#This Row],[Verkauf Überschussstrom Direktvermarktung BW]] -> 0 | AA26: =Tabelle4[[#This Row],[Solarer Ertrag mit Degradation + Abregelung]]*IF(Eingabe_pers_Eigenverbrauch="ja",(1-Eigenverbrauchsquote_pers/100),(1-(Eigenverbrauchsquote_Basis/100)))*IF(AND(Direktvermarktung="nein",Feste_EEG_Vergütung="nein"),Direktvermarktung_sonstige,IF(Direktvermarktung="ja",Direktvermarktung_sonstige,0)) -> 0 | AB26: =Tabelle4[[#This Row],[Verkauf Überschussstrom Direktvermarktung + Abregelung]]*(1+WACC_real/100)^-Tabelle1[[#This Row],[Nutzungs-dauer]] -> 0 | AC26: =AC25+Tabelle4[[#This Row],[Verkauf Überschussstrom Direktvermarktung + Abregelung BW]] -> 0 | AD26: =Tabelle4[[#This Row],[Solarer Ertrag mit Degradation]]*IF(Eingabe_pers_Eigenverbrauch="ja",(Eigenverbrauchsquote_pers/100),(Eigenverbrauchsquote_Basis/100))*IF(Installierte_Leistung_der_GesamtAnlage<=10, 0,1)*IF(AND(Eingabe_pers_Eigenverbrauch="ja", OR(Eigenverbrauchsquote_pers=100,Eigenverbrauchsquote_pers=0)),0,1)*EEG_Umlage*(PRZNT_EEG_Umlage/100) -> 0 | AE26: =Tabelle4[[#This Row],[Pflicht zur EEG-Umlage]]*(1+WACC_real/100)^-Tabelle1[[#This Row],[Nutzungs-dauer]] -> 0 | AF26: =AF25+Tabelle4[[#This Row],[Pflicht zur EEG-Umlage BW]] -> 0 | AG26: =Tabelle4[[#This Row],[Solarer Ertrag mit Degradation + Abregelung]]*IF(Eingabe_pers_Eigenverbrauch="ja",(Eigenverbrauchsquote_pers/100),(Eigenverbrauchsquote_Basis/100))*IF(Installierte_Leistung_der_GesamtAnlage<=10, 0,1)*IF(AND(Eingabe_pers_Eigenverbrauch="ja", OR(Eigenverbrauchsquote_pers=100,Eigenverbrauchsquote_pers=0)),0,1)*EEG_Umlage*(PRZNT_EEG_Umlage/100) -> 0 | AH26: =Tabelle4[[#This Row],[Pflicht zur EEG-Umlage + Abregelung]]*(1+WACC_real/100)^-Tabelle1[[#This Row],[Nutzungs-dauer]] -> 0 | AI26: =AI25+Tabelle4[[#This Row],[Pflicht zur EEG-Umlage + Abregelung BW]] -> 0 | AK26: 0.3204219045 | AL26: =AVERAGE($AK$6:AK26) -> 0.2906005883 | AN26: 0 | AO26: 0 | AP26: =Tabelle612[[#This Row],[Jährliche OPEX-Kosten PV]]*(1+WACC_real/100)^-Tabelle1[[#This Row],[Nutzungs-dauer]] -> 0 | AQ26: =Tabelle612[[#This Row],[Jährliche OPEX-Kosten BAT]]*(1+WACC_real/100)^-Tabelle1[[#This Row],[Nutzungs-dauer]] -> 0 | AR26: =IF(Tabelle1[[#This Row],[Nutzungs-dauer]]=Lebensdauer_des_ersten_Wechselrichters,CAPEX_des_Ersatz_Wechselrichters,IF(Tabelle1[[#This Row],[Nutzungs-dauer]]=Lebensdauer_der_ersten_Batterie,CAPEX_der_Ersatz_Batterie,0)) -> 0 | AS26: =Tabelle4[[#This Row],[Einsparung durch Eigenverbrauch BW]]+Tabelle4[[#This Row],[Verkauf Überschussstrom mit EEG-Vergütung BW]]+Tabelle4[[#This Row],[Verkauf Überschussstrom Direktvermarktung BW]]-Tabelle4[[#This Row],[Pflicht zur EEG-Umlage BW]]-Tabelle612[[#This Row],[Jährliche OPEX-Kosten PV BW]]-Tabelle612[[#This Row],[Jährliche OPEX-Kosten BAT BW]]-Tabelle612[[#This Row],[Investition PV-Batterie-System]] -> 710.3304941 | AT26: =AT25+Tabelle612[[#This Row],[Cashflow diskontiert mit Kalkulationszins]] -> 22836.58853 | AU26: =Tabelle612[[#This Row],[Cashflow diskontiert mit Kalkulationszins kumuliert]] -> 22836.58853 | AV26: =Tabelle4[[#This Row],[Einsparung durch Eigenverbrauch + Abregelung BW]]+Tabelle4[[#This Row],[Verkauf Überschussstrom mit EEG-Vergütung + Abregelung BW]]+Tabelle4[[#This Row],[Verkauf Überschussstrom Direktvermarktung + Abregelung BW]]-Tabelle4[[#This Row],[Pflicht zur EEG-Umlage + Abregelung BW]]-Tabelle612[[#This Row],[Jährliche OPEX-Kosten PV BW]]-Tabelle612[[#This Row],[Jährliche OPEX-Kosten BAT BW]]-Tabelle612[[#This Row],[Investition PV-Batterie-System]] -> 707.1340069 | AW26: =AW25+Tabelle612[[#This Row],[Cashflow diskontiert mit Kalkulationszins]] -> 22831.42505 | AX26: =Tabelle612[[#This Row],[Cashflow diskontiert mit Kalkulationszins kumuliert mit Abr.]] -> 22831.42505
B27: 22 | D27: =Solarer_Gesamtertrag_der_Anlage*(1-(Moduldegradation/100))^Tabelle1[[#This Row],[Nutzungs-dauer]] -> 9098.408388 | E27: =E26+Tabelle4[[#This Row],[Solarer Ertrag mit Degradation]] -> 205521.5531 | F27: =Tabelle4[[#This Row],[Solarer Ertrag mit Degradation]]*(1+WACC_real/100)^-Tabelle1[[#This Row],[Nutzungs-dauer]] -> 7997.003171 | G27: =G26+Tabelle4[[#This Row],[Solarer Ertrag mit Degradation BW]] -> 192363.1226 | H27: =Solarer_Gesamtertrag_der_Anlage*(1-(Moduldegradation/100))^Tabelle1[[#This Row],[Nutzungs-dauer]]*(1-(Abregelungsverluste/100)) -> 9057.46555 | I27: =I26+Tabelle4[[#This Row],[Solarer Ertrag mit Degradation + Abregelung]] -> 204596.7061 | J27: =Tabelle4[[#This Row],[Solarer Ertrag mit Degradation + Abregelung]]*(1+WACC_real/100)^-Tabelle1[[#This Row],[Nutzungs-dauer]] -> 7961.016657 | K27: =K26+Tabelle4[[#This Row],[Solarer Ertrag mit Degradation + Abregelung BW]] -> 191497.4886 | L27: =Tabelle4[[#This Row],[Solarer Ertrag mit Degradation]]*Tabelle6[[#This Row],[Bezugspreis mit Steigerung]]*IF(AND(Eingabe_pers_Eigenverbrauch="ja",Batterie_gewuenscht="nein"),(Eigenverbrauchsquote_pers/100),IF(AND(Eingabe_pers_Eigenverbrauch="ja",Batterie_gewuenscht="ja"),(Eigenverbauch_ohne_BAT/100)+(Eigenverbaucherhöhung/100)*(1-Batterie_Verluste/100),IF(Batterie_gewuenscht="nein",Eigenverbrauchsquote_Basis/100,(Eigenverbauch_ohne_BAT/100)+(Eigenverbaucherhöhung/100)*(1-Batterie_Verluste/100)))) -> 588.8965274 | M27: =Tabelle4[[#This Row],[Einsparung durch Eigenverbrauch]]*(1+WACC_real/100)^-Tabelle1[[#This Row],[Nutzungs-dauer]] -> 517.6078272 | N27: =N26+Tabelle4[[#This Row],[Einsparung durch Eigenverbrauch BW]] -> 11200.33355 | O27: =Tabelle4[[#This Row],[Solarer Ertrag mit Degradation + Abregelung]]*Tabelle6[[#This Row],[Bezugspreis mit Steigerung]]*IF(AND(Eingabe_pers_Eigenverbrauch="ja",Batterie_gewuenscht="nein"),(Eigenverbrauchsquote_pers/100),IF(AND(Eingabe_pers_Eigenverbrauch="ja",Batterie_gewuenscht="ja"),(Eigenverbauch_ohne_BAT/100)+(Eigenverbaucherhöhung/100)*(1-Batterie_Verluste/100),IF(Batterie_gewuenscht="nein",Eigenverbrauchsquote_Basis/100,(Eigenverbauch_ohne_BAT/100)+(Eigenverbaucherhöhung/100)*(1-Batterie_Verluste/100)))) -> 586.246493 | P27: =Tabelle4[[#This Row],[Einsparung durch Eigenverbrauch + Abregelung]]*(1+WACC_real/100)^-Tabelle1[[#This Row],[Nutzungs-dauer]] -> 515.278592 | Q27: =Q26+Tabelle4[[#This Row],[Einsparung durch Eigenverbrauch + Abregelung BW]] -> 11149.93205 | R27: =Tabelle4[[#This Row],[Solarer Ertrag mit Degradation]]*Direktvermarktung_sonstige*IF(Eingabe_pers_Eigenverbrauch="ja",(1-Eigenverbrauchsquote_pers/100),(1-(Eigenverbrauchsquote_Basis/100)))*IF(OR(Feste_EEG_Vergütung="nein",Direktvermarktung="ja"),0,1) -> 218.3618013 | S27: =Tabelle4[[#This Row],[Verkauf Überschussstrom mit EEG-Vergütung]]*(1+WACC_real/100)^-Tabelle1[[#This Row],[Nutzungs-dauer]] -> 191.9280761 | T27: =T26+Tabelle4[[#This Row],[Verkauf Überschussstrom mit EEG-Vergütung BW]] -> 12345.79088 | U27: =Tabelle4[[#This Row],[Solarer Ertrag mit Degradation + Abregelung]]*Direktvermarktung_sonstige*IF(Eingabe_pers_Eigenverbrauch="ja",(1-Eigenverbrauchsquote_pers/100),(1-(Eigenverbrauchsquote_Basis/100)))*IF(OR(Feste_EEG_Vergütung="nein",Direktvermarktung="ja"),0,IF(Installierte_Leistung_der_GesamtAnlage>100,100/Installierte_Leistung_der_GesamtAnlage,1)) -> 217.3791732 | V27: =Tabelle4[[#This Row],[Verkauf Überschussstrom mit EEG-Vergütung + Abregelung]]*(1+WACC_real/100)^-Tabelle1[[#This Row],[Nutzungs-dauer]] -> 191.0643998 | W27: =W26+Tabelle4[[#This Row],[Verkauf Überschussstrom mit EEG-Vergütung + Abregelung BW]] -> 12290.23482 | X27: =Tabelle4[[#This Row],[Solarer Ertrag mit Degradation]]*IF(Eingabe_pers_Eigenverbrauch="ja",(1-Eigenverbrauchsquote_pers/100),(1-(Eigenverbrauchsquote_Basis/100)))*IF(AND(Direktvermarktung="nein",Feste_EEG_Vergütung="nein"),Direktvermarktung_sonstige,IF(Direktvermarktung="ja",Direktvermarktung_sonstige,0)) -> 0 | Y27: =Tabelle4[[#This Row],[Verkauf Überschussstrom Direktvermarktung]]*(1+WACC_real/100)^-Tabelle1[[#This Row],[Nutzungs-dauer]] -> 0 | Z27: =Z26+Tabelle4[[#This Row],[Verkauf Überschussstrom Direktvermarktung BW]] -> 0 | AA27: =Tabelle4[[#This Row],[Solarer Ertrag mit Degradation + Abregelung]]*IF(Eingabe_pers_Eigenverbrauch="ja",(1-Eigenverbrauchsquote_pers/100),(1-(Eigenverbrauchsquote_Basis/100)))*IF(AND(Direktvermarktung="nein",Feste_EEG_Vergütung="nein"),Direktvermarktung_sonstige,IF(Direktvermarktung="ja",Direktvermarktung_sonstige,0)) -> 0 | AB27: =Tabelle4[[#This Row],[Verkauf Überschussstrom Direktvermarktung + Abregelung]]*(1+WACC_real/100)^-Tabelle1[[#This Row],[Nutzungs-dauer]] -> 0 | AC27: =AC26+Tabelle4[[#This Row],[Verkauf Überschussstrom Direktvermarktung + Abregelung BW]] -> 0 | AD27: =Tabelle4[[#This Row],[Solarer Ertrag mit Degradation]]*IF(Eingabe_pers_Eigenverbrauch="ja",(Eigenverbrauchsquote_pers/100),(Eigenverbrauchsquote_Basis/100))*IF(Installierte_Leistung_der_GesamtAnlage<=10, 0,1)*IF(AND(Eingabe_pers_Eigenverbrauch="ja", OR(Eigenverbrauchsquote_pers=100,Eigenverbrauchsquote_pers=0)),0,1)*EEG_Umlage*(PRZNT_EEG_Umlage/100) -> 0 | AE27: =Tabelle4[[#This Row],[Pflicht zur EEG-Umlage]]*(1+WACC_real/100)^-Tabelle1[[#This Row],[Nutzungs-dauer]] -> 0 | AF27: =AF26+Tabelle4[[#This Row],[Pflicht zur EEG-Umlage BW]] -> 0 | AG27: =Tabelle4[[#This Row],[Solarer Ertrag mit Degradation + Abregelung]]*IF(Eingabe_pers_Eigenverbrauch="ja",(Eigenverbrauchsquote_pers/100),(Eigenverbrauchsquote_Basis/100))*IF(Installierte_Leistung_der_GesamtAnlage<=10, 0,1)*IF(AND(Eingabe_pers_Eigenverbrauch="ja", OR(Eigenverbrauchsquote_pers=100,Eigenverbrauchsquote_pers=0)),0,1)*EEG_Umlage*(PRZNT_EEG_Umlage/100) -> 0 | AH27: =Tabelle4[[#This Row],[Pflicht zur EEG-Umlage + Abregelung]]*(1+WACC_real/100)^-Tabelle1[[#This Row],[Nutzungs-dauer]] -> 0 | AI27: =AI26+Tabelle4[[#This Row],[Pflicht zur EEG-Umlage + Abregelung BW]] -> 0 | AK27: 0.3236261235 | AL27: =AVERAGE($AK$6:AK27) -> 0.292101749 | AN27: 0 | AO27: 0 | AP27: =Tabelle612[[#This Row],[Jährliche OPEX-Kosten PV]]*(1+WACC_real/100)^-Tabelle1[[#This Row],[Nutzungs-dauer]] -> 0 | AQ27: =Tabelle612[[#This Row],[Jährliche OPEX-Kosten BAT]]*(1+WACC_real/100)^-Tabelle1[[#This Row],[Nutzungs-dauer]] -> 0 | AR27: =IF(Tabelle1[[#This Row],[Nutzungs-dauer]]=Lebensdauer_des_ersten_Wechselrichters,CAPEX_des_Ersatz_Wechselrichters,IF(Tabelle1[[#This Row],[Nutzungs-dauer]]=Lebensdauer_der_ersten_Batterie,CAPEX_der_Ersatz_Batterie,0)) -> 0 | AS27: =Tabelle4[[#This Row],[Einsparung durch Eigenverbrauch BW]]+Tabelle4[[#This Row],[Verkauf Überschussstrom mit EEG-Vergütung BW]]+Tabelle4[[#This Row],[Verkauf Überschussstrom Direktvermarktung BW]]-Tabelle4[[#This Row],[Pflicht zur EEG-Umlage BW]]-Tabelle612[[#This Row],[Jährliche OPEX-Kosten PV BW]]-Tabelle612[[#This Row],[Jährliche OPEX-Kosten BAT BW]]-Tabelle612[[#This Row],[Investition PV-Batterie-System]] -> 709.5359033 | AT27: =AT26+Tabelle612[[#This Row],[Cashflow diskontiert mit Kalkulationszins]] -> 23546.12443 | AU27: =Tabelle612[[#This Row],[Cashflow diskontiert mit Kalkulationszins kumuliert]] -> 23546.12443 | AV27: =Tabelle4[[#This Row],[Einsparung durch Eigenverbrauch + Abregelung BW]]+Tabelle4[[#This Row],[Verkauf Überschussstrom mit EEG-Vergütung + Abregelung BW]]+Tabelle4[[#This Row],[Verkauf Überschussstrom Direktvermarktung + Abregelung BW]]-Tabelle4[[#This Row],[Pflicht zur EEG-Umlage + Abregelung BW]]-Tabelle612[[#This Row],[Jährliche OPEX-Kosten PV BW]]-Tabelle612[[#This Row],[Jährliche OPEX-Kosten BAT BW]]-Tabelle612[[#This Row],[Investition PV-Batterie-System]] -> 706.3429918 | AW27: =AW26+Tabelle612[[#This Row],[Cashflow diskontiert mit Kalkulationszins]] -> 23540.96096 | AX27: =Tabelle612[[#This Row],[Cashflow diskontiert mit Kalkulationszins kumuliert mit Abr.]] -> 23540.96096
B28: 23 | D28: =Solarer_Gesamtertrag_der_Anlage*(1-(Moduldegradation/100))^Tabelle1[[#This Row],[Nutzungs-dauer]] -> 9075.662367 | E28: =E27+Tabelle4[[#This Row],[Solarer Ertrag mit Degradation]] -> 214597.2155 | F28: =Tabelle4[[#This Row],[Solarer Ertrag mit Degradation]]*(1+WACC_real/100)^-Tabelle1[[#This Row],[Nutzungs-dauer]] -> 7930.361478 | G28: =G27+Tabelle4[[#This Row],[Solarer Ertrag mit Degradation BW]] -> 200293.4841 | H28: =Solarer_Gesamtertrag_der_Anlage*(1-(Moduldegradation/100))^Tabelle1[[#This Row],[Nutzungs-dauer]]*(1-(Abregelungsverluste/100)) -> 9034.821887 | I28: =I27+Tabelle4[[#This Row],[Solarer Ertrag mit Degradation + Abregelung]] -> 213631.528 | J28: =Tabelle4[[#This Row],[Solarer Ertrag mit Degradation + Abregelung]]*(1+WACC_real/100)^-Tabelle1[[#This Row],[Nutzungs-dauer]] -> 7894.674851 | K28: =K27+Tabelle4[[#This Row],[Solarer Ertrag mit Degradation + Abregelung BW]] -> 199392.1634 | L28: =Tabelle4[[#This Row],[Solarer Ertrag mit Degradation]]*Tabelle6[[#This Row],[Bezugspreis mit Steigerung]]*IF(AND(Eingabe_pers_Eigenverbrauch="ja",Batterie_gewuenscht="nein"),(Eigenverbrauchsquote_pers/100),IF(AND(Eingabe_pers_Eigenverbrauch="ja",Batterie_gewuenscht="ja"),(Eigenverbauch_ohne_BAT/100)+(Eigenverbaucherhöhung/100)*(1-Batterie_Verluste/100),IF(Batterie_gewuenscht="nein",Eigenverbrauchsquote_Basis/100,(Eigenverbauch_ohne_BAT/100)+(Eigenverbaucherhöhung/100)*(1-Batterie_Verluste/100)))) -> 593.2985289 | M28: =Tabelle4[[#This Row],[Einsparung durch Eigenverbrauch]]*(1+WACC_real/100)^-Tabelle1[[#This Row],[Nutzungs-dauer]] -> 518.427373 | N28: =N27+Tabelle4[[#This Row],[Einsparung durch Eigenverbrauch BW]] -> 11718.76092 | O28: =Tabelle4[[#This Row],[Solarer Ertrag mit Degradation + Abregelung]]*Tabelle6[[#This Row],[Bezugspreis mit Steigerung]]*IF(AND(Eingabe_pers_Eigenverbrauch="ja",Batterie_gewuenscht="nein"),(Eigenverbrauchsquote_pers/100),IF(AND(Eingabe_pers_Eigenverbrauch="ja",Batterie_gewuenscht="ja"),(Eigenverbauch_ohne_BAT/100)+(Eigenverbaucherhöhung/100)*(1-Batterie_Verluste/100),IF(Batterie_gewuenscht="nein",Eigenverbrauchsquote_Basis/100,(Eigenverbauch_ohne_BAT/100)+(Eigenverbaucherhöhung/100)*(1-Batterie_Verluste/100)))) -> 590.6286856 | P28: =Tabelle4[[#This Row],[Einsparung durch Eigenverbrauch + Abregelung]]*(1+WACC_real/100)^-Tabelle1[[#This Row],[Nutzungs-dauer]] -> 516.0944498 | Q28: =Q27+Tabelle4[[#This Row],[Einsparung durch Eigenverbrauch + Abregelung BW]] -> 11666.0265 | R28: =Tabelle4[[#This Row],[Solarer Ertrag mit Degradation]]*Direktvermarktung_sonstige*IF(Eingabe_pers_Eigenverbrauch="ja",(1-Eigenverbrauchsquote_pers/100),(1-(Eigenverbrauchsquote_Basis/100)))*IF(OR(Feste_EEG_Vergütung="nein",Direktvermarktung="ja"),0,1) -> 217.8158968 | S28: =Tabelle4[[#This Row],[Verkauf Überschussstrom mit EEG-Vergütung]]*(1+WACC_real/100)^-Tabelle1[[#This Row],[Nutzungs-dauer]] -> 190.3286755 | T28: =T27+Tabelle4[[#This Row],[Verkauf Überschussstrom mit EEG-Vergütung BW]] -> 12536.11955 | U28: =Tabelle4[[#This Row],[Solarer Ertrag mit Degradation + Abregelung]]*Direktvermarktung_sonstige*IF(Eingabe_pers_Eigenverbrauch="ja",(1-Eigenverbrauchsquote_pers/100),(1-(Eigenverbrauchsquote_Basis/100)))*IF(OR(Feste_EEG_Vergütung="nein",Direktvermarktung="ja"),0,IF(Installierte_Leistung_der_GesamtAnlage>100,100/Installierte_Leistung_der_GesamtAnlage,1)) -> 216.8357253 | V28: =Tabelle4[[#This Row],[Verkauf Überschussstrom mit EEG-Vergütung + Abregelung]]*(1+WACC_real/100)^-Tabelle1[[#This Row],[Nutzungs-dauer]] -> 189.4721964 | W28: =W27+Tabelle4[[#This Row],[Verkauf Überschussstrom mit EEG-Vergütung + Abregelung BW]] -> 12479.70702 | X28: =Tabelle4[[#This Row],[Solarer Ertrag mit Degradation]]*IF(Eingabe_pers_Eigenverbrauch="ja",(1-Eigenverbrauchsquote_pers/100),(1-(Eigenverbrauchsquote_Basis/100)))*IF(AND(Direktvermarktung="nein",Feste_EEG_Vergütung="nein"),Direktvermarktung_sonstige,IF(Direktvermarktung="ja",Direktvermarktung_sonstige,0)) -> 0 | Y28: =Tabelle4[[#This Row],[Verkauf Überschussstrom Direktvermarktung]]*(1+WACC_real/100)^-Tabelle1[[#This Row],[Nutzungs-dauer]] -> 0 | Z28: =Z27+Tabelle4[[#This Row],[Verkauf Überschussstrom Direktvermarktung BW]] -> 0 | AA28: =Tabelle4[[#This Row],[Solarer Ertrag mit Degradation + Abregelung]]*IF(Eingabe_pers_Eigenverbrauch="ja",(1-Eigenverbrauchsquote_pers/100),(1-(Eigenverbrauchsquote_Basis/100)))*IF(AND(Direktvermarktung="nein",Feste_EEG_Vergütung="nein"),Direktvermarktung_sonstige,IF(Direktvermarktung="ja",Direktvermarktung_sonstige,0)) -> 0 | AB28: =Tabelle4[[#This Row],[Verkauf Überschussstrom Direktvermarktung + Abregelung]]*(1+WACC_real/100)^-Tabelle1[[#This Row],[Nutzungs-dauer]] -> 0 | AC28: =AC27+Tabelle4[[#This Row],[Verkauf Überschussstrom Direktvermarktung + Abregelung BW]] -> 0 | AD28: =Tabelle4[[#This Row],[Solarer Ertrag mit Degradation]]*IF(Eingabe_pers_Eigenverbrauch="ja",(Eigenverbrauchsquote_pers/100),(Eigenverbrauchsquote_Basis/100))*IF(Installierte_Leistung_der_GesamtAnlage<=10, 0,1)*IF(AND(Eingabe_pers_Eigenverbrauch="ja", OR(Eigenverbrauchsquote_pers=100,Eigenverbrauchsquote_pers=0)),0,1)*EEG_Umlage*(PRZNT_EEG_Umlage/100) -> 0 | AE28: =Tabelle4[[#This Row],[Pflicht zur EEG-Umlage]]*(1+WACC_real/100)^-Tabelle1[[#This Row],[Nutzungs-dauer]] -> 0 | AF28: =AF27+Tabelle4[[#This Row],[Pflicht zur EEG-Umlage BW]] -> 0 | AG28: =Tabelle4[[#This Row],[Solarer Ertrag mit Degradation + Abregelung]]*IF(Eingabe_pers_Eigenverbrauch="ja",(Eigenverbrauchsquote_pers/100),(Eigenverbrauchsquote_Basis/100))*IF(Installierte_Leistung_der_GesamtAnlage<=10, 0,1)*IF(AND(Eingabe_pers_Eigenverbrauch="ja", OR(Eigenverbrauchsquote_pers=100,Eigenverbrauchsquote_pers=0)),0,1)*EEG_Umlage*(PRZNT_EEG_Umlage/100) -> 0 | AH28: =Tabelle4[[#This Row],[Pflicht zur EEG-Umlage + Abregelung]]*(1+WACC_real/100)^-Tabelle1[[#This Row],[Nutzungs-dauer]] -> 0 | AI28: =AI27+Tabelle4[[#This Row],[Pflicht zur EEG-Umlage + Abregelung BW]] -> 0 | AK28: 0.3268623848 | AL28: =AVERAGE($AK$6:AK28) -> 0.2936130809 | AN28: 0 | AO28: 0 | AP28: =Tabelle612[[#This Row],[Jährliche OPEX-Kosten PV]]*(1+WACC_real/100)^-Tabelle1[[#This Row],[Nutzungs-dauer]] -> 0 | AQ28: =Tabelle612[[#This Row],[Jährliche OPEX-Kosten BAT]]*(1+WACC_real/100)^-Tabelle1[[#This Row],[Nutzungs-dauer]] -> 0 | AR28: =IF(Tabelle1[[#This Row],[Nutzungs-dauer]]=Lebensdauer_des_ersten_Wechselrichters,CAPEX_des_Ersatz_Wechselrichters,IF(Tabelle1[[#This Row],[Nutzungs-dauer]]=Lebensdauer_der_ersten_Batterie,CAPEX_der_Ersatz_Batterie,0)) -> 0 | AS28: =Tabelle4[[#This Row],[Einsparung durch Eigenverbrauch BW]]+Tabelle4[[#This Row],[Verkauf Überschussstrom mit EEG-Vergütung BW]]+Tabelle4[[#This Row],[Verkauf Überschussstrom Direktvermarktung BW]]-Tabelle4[[#This Row],[Pflicht zur EEG-Umlage BW]]-Tabelle612[[#This Row],[Jährliche OPEX-Kosten PV BW]]-Tabelle612[[#This Row],[Jährliche OPEX-Kosten BAT BW]]-Tabelle612[[#This Row],[Investition PV-Batterie-System]] -> 708.7560484 | AT28: =AT27+Tabelle612[[#This Row],[Cashflow diskontiert mit Kalkulationszins]] -> 24254.88048 | AU28: =Tabelle612[[#This Row],[Cashflow diskontiert mit Kalkulationszins kumuliert]] -> 24254.88048 | AV28: =Tabelle4[[#This Row],[Einsparung durch Eigenverbrauch + Abregelung BW]]+Tabelle4[[#This Row],[Verkauf Überschussstrom mit EEG-Vergütung + Abregelung BW]]+Tabelle4[[#This Row],[Verkauf Überschussstrom Direktvermarktung + Abregelung BW]]-Tabelle4[[#This Row],[Pflicht zur EEG-Umlage + Abregelung BW]]-Tabelle612[[#This Row],[Jährliche OPEX-Kosten PV BW]]-Tabelle612[[#This Row],[Jährliche OPEX-Kosten BAT BW]]-Tabelle612[[#This Row],[Investition PV-Batterie-System]] -> 705.5666462 | AW28: =AW27+Tabelle612[[#This Row],[Cashflow diskontiert mit Kalkulationszins]] -> 24249.71701 | AX28: =Tabelle612[[#This Row],[Cashflow diskontiert mit Kalkulationszins kumuliert mit Abr.]] -> 24249.71701
B29: 24 | D29: =Solarer_Gesamtertrag_der_Anlage*(1-(Moduldegradation/100))^Tabelle1[[#This Row],[Nutzungs-dauer]] -> 9052.973211 | E29: =E28+Tabelle4[[#This Row],[Solarer Ertrag mit Degradation]] -> 223650.1887 | F29: =Tabelle4[[#This Row],[Solarer Ertrag mit Degradation]]*(1+WACC_real/100)^-Tabelle1[[#This Row],[Nutzungs-dauer]] -> 7864.275132 | G29: =G28+Tabelle4[[#This Row],[Solarer Ertrag mit Degradation BW]] -> 208157.7593 | H29: =Solarer_Gesamtertrag_der_Anlage*(1-(Moduldegradation/100))^Tabelle1[[#This Row],[Nutzungs-dauer]]*(1-(Abregelungsverluste/100)) -> 9012.234832 | I29: =I28+Tabelle4[[#This Row],[Solarer Ertrag mit Degradation + Abregelung]] -> 222643.7628 | J29: =Tabelle4[[#This Row],[Solarer Ertrag mit Degradation + Abregelung]]*(1+WACC_real/100)^-Tabelle1[[#This Row],[Nutzungs-dauer]] -> 7828.885894 | K29: =K28+Tabelle4[[#This Row],[Solarer Ertrag mit Degradation + Abregelung BW]] -> 207221.0493 | L29: =Tabelle4[[#This Row],[Solarer Ertrag mit Degradation]]*Tabelle6[[#This Row],[Bezugspreis mit Steigerung]]*IF(AND(Eingabe_pers_Eigenverbrauch="ja",Batterie_gewuenscht="nein"),(Eigenverbrauchsquote_pers/100),IF(AND(Eingabe_pers_Eigenverbrauch="ja",Batterie_gewuenscht="ja"),(Eigenverbauch_ohne_BAT/100)+(Eigenverbaucherhöhung/100)*(1-Batterie_Verluste/100),IF(Batterie_gewuenscht="nein",Eigenverbrauchsquote_Basis/100,(Eigenverbauch_ohne_BAT/100)+(Eigenverbaucherhöhung/100)*(1-Batterie_Verluste/100)))) -> 597.7334354 | M29: =Tabelle4[[#This Row],[Einsparung durch Eigenverbrauch]]*(1+WACC_real/100)^-Tabelle1[[#This Row],[Nutzungs-dauer]] -> 519.2482163 | N29: =N28+Tabelle4[[#This Row],[Einsparung durch Eigenverbrauch BW]] -> 12238.00914 | O29: =Tabelle4[[#This Row],[Solarer Ertrag mit Degradation + Abregelung]]*Tabelle6[[#This Row],[Bezugspreis mit Steigerung]]*IF(AND(Eingabe_pers_Eigenverbrauch="ja",Batterie_gewuenscht="nein"),(Eigenverbrauchsquote_pers/100),IF(AND(Eingabe_pers_Eigenverbrauch="ja",Batterie_gewuenscht="ja"),(Eigenverbauch_ohne_BAT/100)+(Eigenverbaucherhöhung/100)*(1-Batterie_Verluste/100),IF(Batterie_gewuenscht="nein",Eigenverbrauchsquote_Basis/100,(Eigenverbauch_ohne_BAT/100)+(Eigenverbaucherhöhung/100)*(1-Batterie_Verluste/100)))) -> 595.043635 | P29: =Tabelle4[[#This Row],[Einsparung durch Eigenverbrauch + Abregelung]]*(1+WACC_real/100)^-Tabelle1[[#This Row],[Nutzungs-dauer]] -> 516.9115993 | Q29: =Q28+Tabelle4[[#This Row],[Einsparung durch Eigenverbrauch + Abregelung BW]] -> 12182.9381 | R29: =Tabelle4[[#This Row],[Solarer Ertrag mit Degradation]]*Direktvermarktung_sonstige*IF(Eingabe_pers_Eigenverbrauch="ja",(1-Eigenverbrauchsquote_pers/100),(1-(Eigenverbrauchsquote_Basis/100)))*IF(OR(Feste_EEG_Vergütung="nein",Direktvermarktung="ja"),0,1) -> 217.2713571 | S29: =Tabelle4[[#This Row],[Verkauf Überschussstrom mit EEG-Vergütung]]*(1+WACC_real/100)^-Tabelle1[[#This Row],[Nutzungs-dauer]] -> 188.7426032 | T29: =T28+Tabelle4[[#This Row],[Verkauf Überschussstrom mit EEG-Vergütung BW]] -> 12724.86216 | U29: =Tabelle4[[#This Row],[Solarer Ertrag mit Degradation + Abregelung]]*Direktvermarktung_sonstige*IF(Eingabe_pers_Eigenverbrauch="ja",(1-Eigenverbrauchsquote_pers/100),(1-(Eigenverbrauchsquote_Basis/100)))*IF(OR(Feste_EEG_Vergütung="nein",Direktvermarktung="ja"),0,IF(Installierte_Leistung_der_GesamtAnlage>100,100/Installierte_Leistung_der_GesamtAnlage,1)) -> 216.293636 | V29: =Tabelle4[[#This Row],[Verkauf Überschussstrom mit EEG-Vergütung + Abregelung]]*(1+WACC_real/100)^-Tabelle1[[#This Row],[Nutzungs-dauer]] -> 187.8932615 | W29: =W28+Tabelle4[[#This Row],[Verkauf Überschussstrom mit EEG-Vergütung + Abregelung BW]] -> 12667.60028 | X29: =Tabelle4[[#This Row],[Solarer Ertrag mit Degradation]]*IF(Eingabe_pers_Eigenverbrauch="ja",(1-Eigenverbrauchsquote_pers/100),(1-(Eigenverbrauchsquote_Basis/100)))*IF(AND(Direktvermarktung="nein",Feste_EEG_Vergütung="nein"),Direktvermarktung_sonstige,IF(Direktvermarktung="ja",Direktvermarktung_sonstige,0)) -> 0 | Y29: =Tabelle4[[#This Row],[Verkauf Überschussstrom Direktvermarktung]]*(1+WACC_real/100)^-Tabelle1[[#This Row],[Nutzungs-dauer]] -> 0 | Z29: =Z28+Tabelle4[[#This Row],[Verkauf Überschussstrom Direktvermarktung BW]] -> 0 | AA29: =Tabelle4[[#This Row],[Solarer Ertrag mit Degradation + Abregelung]]*IF(Eingabe_pers_Eigenverbrauch="ja",(1-Eigenverbrauchsquote_pers/100),(1-(Eigenverbrauchsquote_Basis/100)))*IF(AND(Direktvermarktung="nein",Feste_EEG_Vergütung="nein"),Direktvermarktung_sonstige,IF(Direktvermarktung="ja",Direktvermarktung_sonstige,0)) -> 0 | AB29: =Tabelle4[[#This Row],[Verkauf Überschussstrom Direktvermarktung + Abregelung]]*(1+WACC_real/100)^-Tabelle1[[#This Row],[Nutzungs-dauer]] -> 0 | AC29: =AC28+Tabelle4[[#This Row],[Verkauf Überschussstrom Direktvermarktung + Abregelung BW]] -> 0 | AD29: =Tabelle4[[#This Row],[Solarer Ertrag mit Degradation]]*IF(Eingabe_pers_Eigenverbrauch="ja",(Eigenverbrauchsquote_pers/100),(Eigenverbrauchsquote_Basis/100))*IF(Installierte_Leistung_der_GesamtAnlage<=10, 0,1)*IF(AND(Eingabe_pers_Eigenverbrauch="ja", OR(Eigenverbrauchsquote_pers=100,Eigenverbrauchsquote_pers=0)),0,1)*EEG_Umlage*(PRZNT_EEG_Umlage/100) -> 0 | AE29: =Tabelle4[[#This Row],[Pflicht zur EEG-Umlage]]*(1+WACC_real/100)^-Tabelle1[[#This Row],[Nutzungs-dauer]] -> 0 | AF29: =AF28+Tabelle4[[#This Row],[Pflicht zur EEG-Umlage BW]] -> 0 | AG29: =Tabelle4[[#This Row],[Solarer Ertrag mit Degradation + Abregelung]]*IF(Eingabe_pers_Eigenverbrauch="ja",(Eigenverbrauchsquote_pers/100),(Eigenverbrauchsquote_Basis/100))*IF(Installierte_Leistung_der_GesamtAnlage<=10, 0,1)*IF(AND(Eingabe_pers_Eigenverbrauch="ja", OR(Eigenverbrauchsquote_pers=100,Eigenverbrauchsquote_pers=0)),0,1)*EEG_Umlage*(PRZNT_EEG_Umlage/100) -> 0 | AH29: =Tabelle4[[#This Row],[Pflicht zur EEG-Umlage + Abregelung]]*(1+WACC_real/100)^-Tabelle1[[#This Row],[Nutzungs-dauer]] -> 0 | AI29: =AI28+Tabelle4[[#This Row],[Pflicht zur EEG-Umlage + Abregelung BW]] -> 0 | AK29: 0.3301310086 | AL29: =AVERAGE($AK$6:AK29) -> 0.2951346613 | AN29: 0 | AO29: 0 | AP29: =Tabelle612[[#This Row],[Jährliche OPEX-Kosten PV]]*(1+WACC_real/100)^-Tabelle1[[#This Row],[Nutzungs-dauer]] -> 0 | AQ29: =Tabelle612[[#This Row],[Jährliche OPEX-Kosten BAT]]*(1+WACC_real/100)^-Tabelle1[[#This Row],[Nutzungs-dauer]] -> 0 | AR29: =IF(Tabelle1[[#This Row],[Nutzungs-dauer]]=Lebensdauer_des_ersten_Wechselrichters,CAPEX_des_Ersatz_Wechselrichters,IF(Tabelle1[[#This Row],[Nutzungs-dauer]]=Lebensdauer_der_ersten_Batterie,CAPEX_der_Ersatz_Batterie,0)) -> 0 | AS29: =Tabelle4[[#This Row],[Einsparung durch Eigenverbrauch BW]]+Tabelle4[[#This Row],[Verkauf Überschussstrom mit EEG-Vergütung BW]]+Tabelle4[[#This Row],[Verkauf Überschussstrom Direktvermarktung BW]]-Tabelle4[[#This Row],[Pflicht zur EEG-Umlage BW]]-Tabelle612[[#This Row],[Jährliche OPEX-Kosten PV BW]]-Tabelle612[[#This Row],[Jährliche OPEX-Kosten BAT BW]]-Tabelle612[[#This Row],[Investition PV-Batterie-System]] -> 707.9908195 | AT29: =AT28+Tabelle612[[#This Row],[Cashflow diskontiert mit Kalkulationszins]] -> 24962.8713 | AU29: =Tabelle612[[#This Row],[Cashflow diskontiert mit Kalkulationszins kumuliert]] -> 24962.8713 | AV29: =Tabelle4[[#This Row],[Einsparung durch Eigenverbrauch + Abregelung BW]]+Tabelle4[[#This Row],[Verkauf Überschussstrom mit EEG-Vergütung + Abregelung BW]]+Tabelle4[[#This Row],[Verkauf Überschussstrom Direktvermarktung + Abregelung BW]]-Tabelle4[[#This Row],[Pflicht zur EEG-Umlage + Abregelung BW]]-Tabelle612[[#This Row],[Jährliche OPEX-Kosten PV BW]]-Tabelle612[[#This Row],[Jährliche OPEX-Kosten BAT BW]]-Tabelle612[[#This Row],[Investition PV-Batterie-System]] -> 704.8048608 | AW29: =AW28+Tabelle612[[#This Row],[Cashflow diskontiert mit Kalkulationszins]] -> 24957.70782 | AX29: =Tabelle612[[#This Row],[Cashflow diskontiert mit Kalkulationszins kumuliert mit Abr.]] -> 24957.70782
B30: 25 | D30: =Solarer_Gesamtertrag_der_Anlage*(1-(Moduldegradation/100))^Tabelle1[[#This Row],[Nutzungs-dauer]] -> 9030.340778 | E30: =E29+Tabelle4[[#This Row],[Solarer Ertrag mit Degradation]] -> 232680.5295 | F30: =Tabelle4[[#This Row],[Solarer Ertrag mit Degradation]]*(1+WACC_real/100)^-Tabelle1[[#This Row],[Nutzungs-dauer]] -> 7798.739506 | G30: =G29+Tabelle4[[#This Row],[Solarer Ertrag mit Degradation BW]] -> 215956.4988 | H30: =Solarer_Gesamtertrag_der_Anlage*(1-(Moduldegradation/100))^Tabelle1[[#This Row],[Nutzungs-dauer]]*(1-(Abregelungsverluste/100)) -> 8989.704245 | I30: =I29+Tabelle4[[#This Row],[Solarer Ertrag mit Degradation + Abregelung]] -> 231633.4671 | J30: =Tabelle4[[#This Row],[Solarer Ertrag mit Degradation + Abregelung]]*(1+WACC_real/100)^-Tabelle1[[#This Row],[Nutzungs-dauer]] -> 7763.645178 | K30: =K29+Tabelle4[[#This Row],[Solarer Ertrag mit Degradation + Abregelung BW]] -> 214984.6945 | L30: =Tabelle4[[#This Row],[Solarer Ertrag mit Degradation]]*Tabelle6[[#This Row],[Bezugspreis mit Steigerung]]*IF(AND(Eingabe_pers_Eigenverbrauch="ja",Batterie_gewuenscht="nein"),(Eigenverbrauchsquote_pers/100),IF(AND(Eingabe_pers_Eigenverbrauch="ja",Batterie_gewuenscht="ja"),(Eigenverbauch_ohne_BAT/100)+(Eigenverbaucherhöhung/100)*(1-Batterie_Verluste/100),IF(Batterie_gewuenscht="nein",Eigenverbrauchsquote_Basis/100,(Eigenverbauch_ohne_BAT/100)+(Eigenverbaucherhöhung/100)*(1-Batterie_Verluste/100)))) -> 602.2014929 | M30: =Tabelle4[[#This Row],[Einsparung durch Eigenverbrauch]]*(1+WACC_real/100)^-Tabelle1[[#This Row],[Nutzungs-dauer]] -> 520.0703593 | N30: =N29+Tabelle4[[#This Row],[Einsparung durch Eigenverbrauch BW]] -> 12758.0795 | O30: =Tabelle4[[#This Row],[Solarer Ertrag mit Degradation + Abregelung]]*Tabelle6[[#This Row],[Bezugspreis mit Steigerung]]*IF(AND(Eingabe_pers_Eigenverbrauch="ja",Batterie_gewuenscht="nein"),(Eigenverbrauchsquote_pers/100),IF(AND(Eingabe_pers_Eigenverbrauch="ja",Batterie_gewuenscht="ja"),(Eigenverbauch_ohne_BAT/100)+(Eigenverbaucherhöhung/100)*(1-Batterie_Verluste/100),IF(Batterie_gewuenscht="nein",Eigenverbrauchsquote_Basis/100,(Eigenverbauch_ohne_BAT/100)+(Eigenverbaucherhöhung/100)*(1-Batterie_Verluste/100)))) -> 599.4915862 | P30: =Tabelle4[[#This Row],[Einsparung durch Eigenverbrauch + Abregelung]]*(1+WACC_real/100)^-Tabelle1[[#This Row],[Nutzungs-dauer]] -> 517.7300427 | Q30: =Q29+Tabelle4[[#This Row],[Einsparung durch Eigenverbrauch + Abregelung BW]] -> 12700.66814 | R30: =Tabelle4[[#This Row],[Solarer Ertrag mit Degradation]]*Direktvermarktung_sonstige*IF(Eingabe_pers_Eigenverbrauch="ja",(1-Eigenverbrauchsquote_pers/100),(1-(Eigenverbrauchsquote_Basis/100)))*IF(OR(Feste_EEG_Vergütung="nein",Direktvermarktung="ja"),0,1) -> 216.7281787 | S30: =Tabelle4[[#This Row],[Verkauf Überschussstrom mit EEG-Vergütung]]*(1+WACC_real/100)^-Tabelle1[[#This Row],[Nutzungs-dauer]] -> 187.1697481 | T30: =T29+Tabelle4[[#This Row],[Verkauf Überschussstrom mit EEG-Vergütung BW]] -> 12912.03191 | U30: =Tabelle4[[#This Row],[Solarer Ertrag mit Degradation + Abregelung]]*Direktvermarktung_sonstige*IF(Eingabe_pers_Eigenverbrauch="ja",(1-Eigenverbrauchsquote_pers/100),(1-(Eigenverbrauchsquote_Basis/100)))*IF(OR(Feste_EEG_Vergütung="nein",Direktvermarktung="ja"),0,IF(Installierte_Leistung_der_GesamtAnlage>100,100/Installierte_Leistung_der_GesamtAnlage,1)) -> 215.7529019 | V30: =Tabelle4[[#This Row],[Verkauf Überschussstrom mit EEG-Vergütung + Abregelung]]*(1+WACC_real/100)^-Tabelle1[[#This Row],[Nutzungs-dauer]] -> 186.3274843 | W30: =W29+Tabelle4[[#This Row],[Verkauf Überschussstrom mit EEG-Vergütung + Abregelung BW]] -> 12853.92776 | X30: =Tabelle4[[#This Row],[Solarer Ertrag mit Degradation]]*IF(Eingabe_pers_Eigenverbrauch="ja",(1-Eigenverbrauchsquote_pers/100),(1-(Eigenverbrauchsquote_Basis/100)))*IF(AND(Direktvermarktung="nein",Feste_EEG_Vergütung="nein"),Direktvermarktung_sonstige,IF(Direktvermarktung="ja",Direktvermarktung_sonstige,0)) -> 0 | Y30: =Tabelle4[[#This Row],[Verkauf Überschussstrom Direktvermarktung]]*(1+WACC_real/100)^-Tabelle1[[#This Row],[Nutzungs-dauer]] -> 0 | Z30: =Z29+Tabelle4[[#This Row],[Verkauf Überschussstrom Direktvermarktung BW]] -> 0 | AA30: =Tabelle4[[#This Row],[Solarer Ertrag mit Degradation + Abregelung]]*IF(Eingabe_pers_Eigenverbrauch="ja",(1-Eigenverbrauchsquote_pers/100),(1-(Eigenverbrauchsquote_Basis/100)))*IF(AND(Direktvermarktung="nein",Feste_EEG_Vergütung="nein"),Direktvermarktung_sonstige,IF(Direktvermarktung="ja",Direktvermarktung_sonstige,0)) -> 0 | AB30: =Tabelle4[[#This Row],[Verkauf Überschussstrom Direktvermarktung + Abregelung]]*(1+WACC_real/100)^-Tabelle1[[#This Row],[Nutzungs-dauer]] -> 0 | AC30: =AC29+Tabelle4[[#This Row],[Verkauf Überschussstrom Direktvermarktung + Abregelung BW]] -> 0 | AD30: =Tabelle4[[#This Row],[Solarer Ertrag mit Degradation]]*IF(Eingabe_pers_Eigenverbrauch="ja",(Eigenverbrauchsquote_pers/100),(Eigenverbrauchsquote_Basis/100))*IF(Installierte_Leistung_der_GesamtAnlage<=10, 0,1)*IF(AND(Eingabe_pers_Eigenverbrauch="ja", OR(Eigenverbrauchsquote_pers=100,Eigenverbrauchsquote_pers=0)),0,1)*EEG_Umlage*(PRZNT_EEG_Umlage/100) -> 0 | AE30: =Tabelle4[[#This Row],[Pflicht zur EEG-Umlage]]*(1+WACC_real/100)^-Tabelle1[[#This Row],[Nutzungs-dauer]] -> 0 | AF30: =AF29+Tabelle4[[#This Row],[Pflicht zur EEG-Umlage BW]] -> 0 | AG30: =Tabelle4[[#This Row],[Solarer Ertrag mit Degradation + Abregelung]]*IF(Eingabe_pers_Eigenverbrauch="ja",(Eigenverbrauchsquote_pers/100),(Eigenverbrauchsquote_Basis/100))*IF(Installierte_Leistung_der_GesamtAnlage<=10, 0,1)*IF(AND(Eingabe_pers_Eigenverbrauch="ja", OR(Eigenverbrauchsquote_pers=100,Eigenverbrauchsquote_pers=0)),0,1)*EEG_Umlage*(PRZNT_EEG_Umlage/100) -> 0 | AH30: =Tabelle4[[#This Row],[Pflicht zur EEG-Umlage + Abregelung]]*(1+WACC_real/100)^-Tabelle1[[#This Row],[Nutzungs-dauer]] -> 0 | AI30: =AI29+Tabelle4[[#This Row],[Pflicht zur EEG-Umlage + Abregelung BW]] -> 0 | AK30: 0.3334323187 | AL30: =AVERAGE($AK$6:AK30) -> 0.2966665676 | AN30: 0 | AO30: 0 | AP30: =Tabelle612[[#This Row],[Jährliche OPEX-Kosten PV]]*(1+WACC_real/100)^-Tabelle1[[#This Row],[Nutzungs-dauer]] -> 0 | AQ30: =Tabelle612[[#This Row],[Jährliche OPEX-Kosten BAT]]*(1+WACC_real/100)^-Tabelle1[[#This Row],[Nutzungs-dauer]] -> 0 | AR30: =IF(Tabelle1[[#This Row],[Nutzungs-dauer]]=Lebensdauer_des_ersten_Wechselrichters,CAPEX_des_Ersatz_Wechselrichters,IF(Tabelle1[[#This Row],[Nutzungs-dauer]]=Lebensdauer_der_ersten_Batterie,CAPEX_der_Ersatz_Batterie,0)) -> 0 | AS30: =Tabelle4[[#This Row],[Einsparung durch Eigenverbrauch BW]]+Tabelle4[[#This Row],[Verkauf Überschussstrom mit EEG-Vergütung BW]]+Tabelle4[[#This Row],[Verkauf Überschussstrom Direktvermarktung BW]]-Tabelle4[[#This Row],[Pflicht zur EEG-Umlage BW]]-Tabelle612[[#This Row],[Jährliche OPEX-Kosten PV BW]]-Tabelle612[[#This Row],[Jährliche OPEX-Kosten BAT BW]]-Tabelle612[[#This Row],[Investition PV-Batterie-System]] -> 707.2401075 | AT30: =AT29+Tabelle612[[#This Row],[Cashflow diskontiert mit Kalkulationszins]] -> 25670.11141 | AU30: =Tabelle612[[#This Row],[Cashflow diskontiert mit Kalkulationszins kumuliert]] -> 25670.11141 | AV30: =Tabelle4[[#This Row],[Einsparung durch Eigenverbrauch + Abregelung BW]]+Tabelle4[[#This Row],[Verkauf Überschussstrom mit EEG-Vergütung + Abregelung BW]]+Tabelle4[[#This Row],[Verkauf Überschussstrom Direktvermarktung + Abregelung BW]]-Tabelle4[[#This Row],[Pflicht zur EEG-Umlage + Abregelung BW]]-Tabelle612[[#This Row],[Jährliche OPEX-Kosten PV BW]]-Tabelle612[[#This Row],[Jährliche OPEX-Kosten BAT BW]]-Tabelle612[[#This Row],[Investition PV-Batterie-System]] -> 704.057527 | AW30: =AW29+Tabelle612[[#This Row],[Cashflow diskontiert mit Kalkulationszins]] -> 25664.94793 | AX30: =Tabelle612[[#This Row],[Cashflow diskontiert mit Kalkulationszins kumuliert mit Abr.]] -> 25664.94793
B31: 26 | D31: =Solarer_Gesamtertrag_der_Anlage*(1-(Moduldegradation/100))^Tabelle1[[#This Row],[Nutzungs-dauer]] -> 9007.764926 | E31: =E30+Tabelle4[[#This Row],[Solarer Ertrag mit Degradation]] -> 241688.2944 | F31: =Tabelle4[[#This Row],[Solarer Ertrag mit Degradation]]*(1+WACC_real/100)^-Tabelle1[[#This Row],[Nutzungs-dauer]] -> 7733.75001 | G31: =G30+Tabelle4[[#This Row],[Solarer Ertrag mit Degradation BW]] -> 223690.2488 | H31: =Solarer_Gesamtertrag_der_Anlage*(1-(Moduldegradation/100))^Tabelle1[[#This Row],[Nutzungs-dauer]]*(1-(Abregelungsverluste/100)) -> 8967.229984 | I31: =I30+Tabelle4[[#This Row],[Solarer Ertrag mit Degradation + Abregelung]] -> 240600.6971 | J31: =Tabelle4[[#This Row],[Solarer Ertrag mit Degradation + Abregelung]]*(1+WACC_real/100)^-Tabelle1[[#This Row],[Nutzungs-dauer]] -> 7698.948135 | K31: =K30+Tabelle4[[#This Row],[Solarer Ertrag mit Degradation + Abregelung BW]] -> 222683.6427 | L31: =Tabelle4[[#This Row],[Solarer Ertrag mit Degradation]]*Tabelle6[[#This Row],[Bezugspreis mit Steigerung]]*IF(AND(Eingabe_pers_Eigenverbrauch="ja",Batterie_gewuenscht="nein"),(Eigenverbrauchsquote_pers/100),IF(AND(Eingabe_pers_Eigenverbrauch="ja",Batterie_gewuenscht="ja"),(Eigenverbauch_ohne_BAT/100)+(Eigenverbaucherhöhung/100)*(1-Batterie_Verluste/100),IF(Batterie_gewuenscht="nein",Eigenverbrauchsquote_Basis/100,(Eigenverbauch_ohne_BAT/100)+(Eigenverbaucherhöhung/100)*(1-Batterie_Verluste/100)))) -> 606.702949 | M31: =Tabelle4[[#This Row],[Einsparung durch Eigenverbrauch]]*(1+WACC_real/100)^-Tabelle1[[#This Row],[Nutzungs-dauer]] -> 520.893804 | N31: =N30+Tabelle4[[#This Row],[Einsparung durch Eigenverbrauch BW]] -> 13278.9733 | O31: =Tabelle4[[#This Row],[Solarer Ertrag mit Degradation + Abregelung]]*Tabelle6[[#This Row],[Bezugspreis mit Steigerung]]*IF(AND(Eingabe_pers_Eigenverbrauch="ja",Batterie_gewuenscht="nein"),(Eigenverbrauchsquote_pers/100),IF(AND(Eingabe_pers_Eigenverbrauch="ja",Batterie_gewuenscht="ja"),(Eigenverbauch_ohne_BAT/100)+(Eigenverbaucherhöhung/100)*(1-Batterie_Verluste/100),IF(Batterie_gewuenscht="nein",Eigenverbrauchsquote_Basis/100,(Eigenverbauch_ohne_BAT/100)+(Eigenverbaucherhöhung/100)*(1-Batterie_Verluste/100)))) -> 603.9727858 | P31: =Tabelle4[[#This Row],[Einsparung durch Eigenverbrauch + Abregelung]]*(1+WACC_real/100)^-Tabelle1[[#This Row],[Nutzungs-dauer]] -> 518.5497819 | Q31: =Q30+Tabelle4[[#This Row],[Einsparung durch Eigenverbrauch + Abregelung BW]] -> 13219.21792 | R31: =Tabelle4[[#This Row],[Solarer Ertrag mit Degradation]]*Direktvermarktung_sonstige*IF(Eingabe_pers_Eigenverbrauch="ja",(1-Eigenverbrauchsquote_pers/100),(1-(Eigenverbrauchsquote_Basis/100)))*IF(OR(Feste_EEG_Vergütung="nein",Direktvermarktung="ja"),0,1) -> 216.1863582 | S31: =Tabelle4[[#This Row],[Verkauf Überschussstrom mit EEG-Vergütung]]*(1+WACC_real/100)^-Tabelle1[[#This Row],[Nutzungs-dauer]] -> 185.6100002 | T31: =T30+Tabelle4[[#This Row],[Verkauf Überschussstrom mit EEG-Vergütung BW]] -> 13097.64191 | U31: =Tabelle4[[#This Row],[Solarer Ertrag mit Degradation + Abregelung]]*Direktvermarktung_sonstige*IF(Eingabe_pers_Eigenverbrauch="ja",(1-Eigenverbrauchsquote_pers/100),(1-(Eigenverbrauchsquote_Basis/100)))*IF(OR(Feste_EEG_Vergütung="nein",Direktvermarktung="ja"),0,IF(Installierte_Leistung_der_GesamtAnlage>100,100/Installierte_Leistung_der_GesamtAnlage,1)) -> 215.2135196 | V31: =Tabelle4[[#This Row],[Verkauf Überschussstrom mit EEG-Vergütung + Abregelung]]*(1+WACC_real/100)^-Tabelle1[[#This Row],[Nutzungs-dauer]] -> 184.7747552 | W31: =W30+Tabelle4[[#This Row],[Verkauf Überschussstrom mit EEG-Vergütung + Abregelung BW]] -> 13038.70252 | X31: =Tabelle4[[#This Row],[Solarer Ertrag mit Degradation]]*IF(Eingabe_pers_Eigenverbrauch="ja",(1-Eigenverbrauchsquote_pers/100),(1-(Eigenverbrauchsquote_Basis/100)))*IF(AND(Direktvermarktung="nein",Feste_EEG_Vergütung="nein"),Direktvermarktung_sonstige,IF(Direktvermarktung="ja",Direktvermarktung_sonstige,0)) -> 0 | Y31: =Tabelle4[[#This Row],[Verkauf Überschussstrom Direktvermarktung]]*(1+WACC_real/100)^-Tabelle1[[#This Row],[Nutzungs-dauer]] -> 0 | Z31: =Z30+Tabelle4[[#This Row],[Verkauf Überschussstrom Direktvermarktung BW]] -> 0 | AA31: =Tabelle4[[#This Row],[Solarer Ertrag mit Degradation + Abregelung]]*IF(Eingabe_pers_Eigenverbrauch="ja",(1-Eigenverbrauchsquote_pers/100),(1-(Eigenverbrauchsquote_Basis/100)))*IF(AND(Direktvermarktung="nein",Feste_EEG_Vergütung="nein"),Direktvermarktung_sonstige,IF(Direktvermarktung="ja",Direktvermarktung_sonstige,0)) -> 0 | AB31: =Tabelle4[[#This Row],[Verkauf Überschussstrom Direktvermarktung + Abregelung]]*(1+WACC_real/100)^-Tabelle1[[#This Row],[Nutzungs-dauer]] -> 0 | AC31: =AC30+Tabelle4[[#This Row],[Verkauf Überschussstrom Direktvermarktung + Abregelung BW]] -> 0 | AD31: =Tabelle4[[#This Row],[Solarer Ertrag mit Degradation]]*IF(Eingabe_pers_Eigenverbrauch="ja",(Eigenverbrauchsquote_pers/100),(Eigenverbrauchsquote_Basis/100))*IF(Installierte_Leistung_der_GesamtAnlage<=10, 0,1)*IF(AND(Eingabe_pers_Eigenverbrauch="ja", OR(Eigenverbrauchsquote_pers=100,Eigenverbrauchsquote_pers=0)),0,1)*EEG_Umlage*(PRZNT_EEG_Umlage/100) -> 0 | AE31: =Tabelle4[[#This Row],[Pflicht zur EEG-Umlage]]*(1+WACC_real/100)^-Tabelle1[[#This Row],[Nutzungs-dauer]] -> 0 | AF31: =AF30+Tabelle4[[#This Row],[Pflicht zur EEG-Umlage BW]] -> 0 | AG31: =Tabelle4[[#This Row],[Solarer Ertrag mit Degradation + Abregelung]]*IF(Eingabe_pers_Eigenverbrauch="ja",(Eigenverbrauchsquote_pers/100),(Eigenverbrauchsquote_Basis/100))*IF(Installierte_Leistung_der_GesamtAnlage<=10, 0,1)*IF(AND(Eingabe_pers_Eigenverbrauch="ja", OR(Eigenverbrauchsquote_pers=100,Eigenverbrauchsquote_pers=0)),0,1)*EEG_Umlage*(PRZNT_EEG_Umlage/100) -> 0 | AH31: =Tabelle4[[#This Row],[Pflicht zur EEG-Umlage + Abregelung]]*(1+WACC_real/100)^-Tabelle1[[#This Row],[Nutzungs-dauer]] -> 0 | AI31: =AI30+Tabelle4[[#This Row],[Pflicht zur EEG-Umlage + Abregelung BW]] -> 0 | AK31: 0.3367666419 | AL31: =AVERAGE($AK$6:AK31) -> 0.2982088781 | AN31: 0 | AO31: 0 | AP31: =Tabelle612[[#This Row],[Jährliche OPEX-Kosten PV]]*(1+WACC_real/100)^-Tabelle1[[#This Row],[Nutzungs-dauer]] -> 0 | AQ31: =Tabelle612[[#This Row],[Jährliche OPEX-Kosten BAT]]*(1+WACC_real/100)^-Tabelle1[[#This Row],[Nutzungs-dauer]] -> 0 | AR31: =IF(Tabelle1[[#This Row],[Nutzungs-dauer]]=Lebensdauer_des_ersten_Wechselrichters,CAPEX_des_Ersatz_Wechselrichters,IF(Tabelle1[[#This Row],[Nutzungs-dauer]]=Lebensdauer_der_ersten_Batterie,CAPEX_der_Ersatz_Batterie,0)) -> 0 | AS31: =Tabelle4[[#This Row],[Einsparung durch Eigenverbrauch BW]]+Tabelle4[[#This Row],[Verkauf Überschussstrom mit EEG-Vergütung BW]]+Tabelle4[[#This Row],[Verkauf Überschussstrom Direktvermarktung BW]]-Tabelle4[[#This Row],[Pflicht zur EEG-Umlage BW]]-Tabelle612[[#This Row],[Jährliche OPEX-Kosten PV BW]]-Tabelle612[[#This Row],[Jährliche OPEX-Kosten BAT BW]]-Tabelle612[[#This Row],[Investition PV-Batterie-System]] -> 706.5038043 | AT31: =AT30+Tabelle612[[#This Row],[Cashflow diskontiert mit Kalkulationszins]] -> 26376.61521 | AU31: =Tabelle612[[#This Row],[Cashflow diskontiert mit Kalkulationszins kumuliert]] -> 26376.61521 | AV31: =Tabelle4[[#This Row],[Einsparung durch Eigenverbrauch + Abregelung BW]]+Tabelle4[[#This Row],[Verkauf Überschussstrom mit EEG-Vergütung + Abregelung BW]]+Tabelle4[[#This Row],[Verkauf Überschussstrom Direktvermarktung + Abregelung BW]]-Tabelle4[[#This Row],[Pflicht zur EEG-Umlage + Abregelung BW]]-Tabelle612[[#This Row],[Jährliche OPEX-Kosten PV BW]]-Tabelle612[[#This Row],[Jährliche OPEX-Kosten BAT BW]]-Tabelle612[[#This Row],[Investition PV-Batterie-System]] -> 703.3245372 | AW31: =AW30+Tabelle612[[#This Row],[Cashflow diskontiert mit Kalkulationszins]] -> 26371.45174 | AX31: =Tabelle612[[#This Row],[Cashflow diskontiert mit Kalkulationszins kumuliert mit Abr.]] -> 26371.45174
B32: 27 | D32: =Solarer_Gesamtertrag_der_Anlage*(1-(Moduldegradation/100))^Tabelle1[[#This Row],[Nutzungs-dauer]] -> 8985.245514 | E32: =E31+Tabelle4[[#This Row],[Solarer Ertrag mit Degradation]] -> 250673.5399 | F32: =Tabelle4[[#This Row],[Solarer Ertrag mit Degradation]]*(1+WACC_real/100)^-Tabelle1[[#This Row],[Nutzungs-dauer]] -> 7669.302094 | G32: =G31+Tabelle4[[#This Row],[Solarer Ertrag mit Degradation BW]] -> 231359.5509 | H32: =Solarer_Gesamtertrag_der_Anlage*(1-(Moduldegradation/100))^Tabelle1[[#This Row],[Nutzungs-dauer]]*(1-(Abregelungsverluste/100)) -> 8944.811909 | I32: =I31+Tabelle4[[#This Row],[Solarer Ertrag mit Degradation + Abregelung]] -> 249545.509 | J32: =Tabelle4[[#This Row],[Solarer Ertrag mit Degradation + Abregelung]]*(1+WACC_real/100)^-Tabelle1[[#This Row],[Nutzungs-dauer]] -> 7634.790234 | K32: =K31+Tabelle4[[#This Row],[Solarer Ertrag mit Degradation + Abregelung BW]] -> 230318.4329 | L32: =Tabelle4[[#This Row],[Solarer Ertrag mit Degradation]]*Tabelle6[[#This Row],[Bezugspreis mit Steigerung]]*IF(AND(Eingabe_pers_Eigenverbrauch="ja",Batterie_gewuenscht="nein"),(Eigenverbrauchsquote_pers/100),IF(AND(Eingabe_pers_Eigenverbrauch="ja",Batterie_gewuenscht="ja"),(Eigenverbauch_ohne_BAT/100)+(Eigenverbaucherhöhung/100)*(1-Batterie_Verluste/100),IF(Batterie_gewuenscht="nein",Eigenverbrauchsquote_Basis/100,(Eigenverbauch_ohne_BAT/100)+(Eigenverbaucherhöhung/100)*(1-Batterie_Verluste/100)))) -> 611.2380536 | M32: =Tabelle4[[#This Row],[Einsparung durch Eigenverbrauch]]*(1+WACC_real/100)^-Tabelle1[[#This Row],[Nutzungs-dauer]] -> 521.7185526 | N32: =N31+Tabelle4[[#This Row],[Einsparung durch Eigenverbrauch BW]] -> 13800.69186 | O32: =Tabelle4[[#This Row],[Solarer Ertrag mit Degradation + Abregelung]]*Tabelle6[[#This Row],[Bezugspreis mit Steigerung]]*IF(AND(Eingabe_pers_Eigenverbrauch="ja",Batterie_gewuenscht="nein"),(Eigenverbrauchsquote_pers/100),IF(AND(Eingabe_pers_Eigenverbrauch="ja",Batterie_gewuenscht="ja"),(Eigenverbauch_ohne_BAT/100)+(Eigenverbaucherhöhung/100)*(1-Batterie_Verluste/100),IF(Batterie_gewuenscht="nein",Eigenverbrauchsquote_Basis/100,(Eigenverbauch_ohne_BAT/100)+(Eigenverbaucherhöhung/100)*(1-Batterie_Verluste/100)))) -> 608.4874823 | P32: =Tabelle4[[#This Row],[Einsparung durch Eigenverbrauch + Abregelung]]*(1+WACC_real/100)^-Tabelle1[[#This Row],[Nutzungs-dauer]] -> 519.3708191 | Q32: =Q31+Tabelle4[[#This Row],[Einsparung durch Eigenverbrauch + Abregelung BW]] -> 13738.58874 | R32: =Tabelle4[[#This Row],[Solarer Ertrag mit Degradation]]*Direktvermarktung_sonstige*IF(Eingabe_pers_Eigenverbrauch="ja",(1-Eigenverbrauchsquote_pers/100),(1-(Eigenverbrauchsquote_Basis/100)))*IF(OR(Feste_EEG_Vergütung="nein",Direktvermarktung="ja"),0,1) -> 215.6458923 | S32: =Tabelle4[[#This Row],[Verkauf Überschussstrom mit EEG-Vergütung]]*(1+WACC_real/100)^-Tabelle1[[#This Row],[Nutzungs-dauer]] -> 184.0632502 | T32: =T31+Tabelle4[[#This Row],[Verkauf Überschussstrom mit EEG-Vergütung BW]] -> 13281.70516 | U32: =Tabelle4[[#This Row],[Solarer Ertrag mit Degradation + Abregelung]]*Direktvermarktung_sonstige*IF(Eingabe_pers_Eigenverbrauch="ja",(1-Eigenverbrauchsquote_pers/100),(1-(Eigenverbrauchsquote_Basis/100)))*IF(OR(Feste_EEG_Vergütung="nein",Direktvermarktung="ja"),0,IF(Installierte_Leistung_der_GesamtAnlage>100,100/Installierte_Leistung_der_GesamtAnlage,1)) -> 214.6754858 | V32: =Tabelle4[[#This Row],[Verkauf Überschussstrom mit EEG-Vergütung + Abregelung]]*(1+WACC_real/100)^-Tabelle1[[#This Row],[Nutzungs-dauer]] -> 183.2349656 | W32: =W31+Tabelle4[[#This Row],[Verkauf Überschussstrom mit EEG-Vergütung + Abregelung BW]] -> 13221.93748 | X32: =Tabelle4[[#This Row],[Solarer Ertrag mit Degradation]]*IF(Eingabe_pers_Eigenverbrauch="ja",(1-Eigenverbrauchsquote_pers/100),(1-(Eigenverbrauchsquote_Basis/100)))*IF(AND(Direktvermarktung="nein",Feste_EEG_Vergütung="nein"),Direktvermarktung_sonstige,IF(Direktvermarktung="ja",Direktvermarktung_sonstige,0)) -> 0 | Y32: =Tabelle4[[#This Row],[Verkauf Überschussstrom Direktvermarktung]]*(1+WACC_real/100)^-Tabelle1[[#This Row],[Nutzungs-dauer]] -> 0 | Z32: =Z31+Tabelle4[[#This Row],[Verkauf Überschussstrom Direktvermarktung BW]] -> 0 | AA32: =Tabelle4[[#This Row],[Solarer Ertrag mit Degradation + Abregelung]]*IF(Eingabe_pers_Eigenverbrauch="ja",(1-Eigenverbrauchsquote_pers/100),(1-(Eigenverbrauchsquote_Basis/100)))*IF(AND(Direktvermarktung="nein",Feste_EEG_Vergütung="nein"),Direktvermarktung_sonstige,IF(Direktvermarktung="ja",Direktvermarktung_sonstige,0)) -> 0 | AB32: =Tabelle4[[#This Row],[Verkauf Überschussstrom Direktvermarktung + Abregelung]]*(1+WACC_real/100)^-Tabelle1[[#This Row],[Nutzungs-dauer]] -> 0 | AC32: =AC31+Tabelle4[[#This Row],[Verkauf Überschussstrom Direktvermarktung + Abregelung BW]] -> 0 | AD32: =Tabelle4[[#This Row],[Solarer Ertrag mit Degradation]]*IF(Eingabe_pers_Eigenverbrauch="ja",(Eigenverbrauchsquote_pers/100),(Eigenverbrauchsquote_Basis/100))*IF(Installierte_Leistung_der_GesamtAnlage<=10, 0,1)*IF(AND(Eingabe_pers_Eigenverbrauch="ja", OR(Eigenverbrauchsquote_pers=100,Eigenverbrauchsquote_pers=0)),0,1)*EEG_Umlage*(PRZNT_EEG_Umlage/100) -> 0 | AE32: =Tabelle4[[#This Row],[Pflicht zur EEG-Umlage]]*(1+WACC_real/100)^-Tabelle1[[#This Row],[Nutzungs-dauer]] -> 0 | AF32: =AF31+Tabelle4[[#This Row],[Pflicht zur EEG-Umlage BW]] -> 0 | AG32: =Tabelle4[[#This Row],[Solarer Ertrag mit Degradation + Abregelung]]*IF(Eingabe_pers_Eigenverbrauch="ja",(Eigenverbrauchsquote_pers/100),(Eigenverbrauchsquote_Basis/100))*IF(Installierte_Leistung_der_GesamtAnlage<=10, 0,1)*IF(AND(Eingabe_pers_Eigenverbrauch="ja", OR(Eigenverbrauchsquote_pers=100,Eigenverbrauchsquote_pers=0)),0,1)*EEG_Umlage*(PRZNT_EEG_Umlage/100) -> 0 | AH32: =Tabelle4[[#This Row],[Pflicht zur EEG-Umlage + Abregelung]]*(1+WACC_real/100)^-Tabelle1[[#This Row],[Nutzungs-dauer]] -> 0 | AI32: =AI31+Tabelle4[[#This Row],[Pflicht zur EEG-Umlage + Abregelung BW]] -> 0 | AK32: 0.3401343083 | AL32: =AVERAGE($AK$6:AK32) -> 0.2997616718 | AN32: 0 | AO32: 0 | AP32: =Tabelle612[[#This Row],[Jährliche OPEX-Kosten PV]]*(1+WACC_real/100)^-Tabelle1[[#This Row],[Nutzungs-dauer]] -> 0 | AQ32: =Tabelle612[[#This Row],[Jährliche OPEX-Kosten BAT]]*(1+WACC_real/100)^-Tabelle1[[#This Row],[Nutzungs-dauer]] -> 0 | AR32: =IF(Tabelle1[[#This Row],[Nutzungs-dauer]]=Lebensdauer_des_ersten_Wechselrichters,CAPEX_des_Ersatz_Wechselrichters,IF(Tabelle1[[#This Row],[Nutzungs-dauer]]=Lebensdauer_der_ersten_Batterie,CAPEX_der_Ersatz_Batterie,0)) -> 0 | AS32: =Tabelle4[[#This Row],[Einsparung durch Eigenverbrauch BW]]+Tabelle4[[#This Row],[Verkauf Überschussstrom mit EEG-Vergütung BW]]+Tabelle4[[#This Row],[Verkauf Überschussstrom Direktvermarktung BW]]-Tabelle4[[#This Row],[Pflicht zur EEG-Umlage BW]]-Tabelle612[[#This Row],[Jährliche OPEX-Kosten PV BW]]-Tabelle612[[#This Row],[Jährliche OPEX-Kosten BAT BW]]-Tabelle612[[#This Row],[Investition PV-Batterie-System]] -> 705.7818028 | AT32: =AT31+Tabelle612[[#This Row],[Cashflow diskontiert mit Kalkulationszins]] -> 27082.39701 | AU32: =Tabelle612[[#This Row],[Cashflow diskontiert mit Kalkulationszins kumuliert]] -> 27082.39701 | AV32: =Tabelle4[[#This Row],[Einsparung durch Eigenverbrauch + Abregelung BW]]+Tabelle4[[#This Row],[Verkauf Überschussstrom mit EEG-Vergütung + Abregelung BW]]+Tabelle4[[#This Row],[Verkauf Überschussstrom Direktvermarktung + Abregelung BW]]-Tabelle4[[#This Row],[Pflicht zur EEG-Umlage + Abregelung BW]]-Tabelle612[[#This Row],[Jährliche OPEX-Kosten PV BW]]-Tabelle612[[#This Row],[Jährliche OPEX-Kosten BAT BW]]-Tabelle612[[#This Row],[Investition PV-Batterie-System]] -> 702.6057847 | AW32: =AW31+Tabelle612[[#This Row],[Cashflow diskontiert mit Kalkulationszins]] -> 27077.23354 | AX32: =Tabelle612[[#This Row],[Cashflow diskontiert mit Kalkulationszins kumuliert mit Abr.]] -> 27077.23354
B33: 28 | D33: =Solarer_Gesamtertrag_der_Anlage*(1-(Moduldegradation/100))^Tabelle1[[#This Row],[Nutzungs-dauer]] -> 8962.7824 | E33: =E32+Tabelle4[[#This Row],[Solarer Ertrag mit Degradation]] -> 259636.3223 | F33: =Tabelle4[[#This Row],[Solarer Ertrag mit Degradation]]*(1+WACC_real/100)^-Tabelle1[[#This Row],[Nutzungs-dauer]] -> 7605.391243 | G33: =G32+Tabelle4[[#This Row],[Solarer Ertrag mit Degradation BW]] -> 238964.9421 | H33: =Solarer_Gesamtertrag_der_Anlage*(1-(Moduldegradation/100))^Tabelle1[[#This Row],[Nutzungs-dauer]]*(1-(Abregelungsverluste/100)) -> 8922.449879 | I33: =I32+Tabelle4[[#This Row],[Solarer Ertrag mit Degradation + Abregelung]] -> 258467.9588 | J33: =Tabelle4[[#This Row],[Solarer Ertrag mit Degradation + Abregelung]]*(1+WACC_real/100)^-Tabelle1[[#This Row],[Nutzungs-dauer]] -> 7571.166982 | K33: =K32+Tabelle4[[#This Row],[Solarer Ertrag mit Degradation + Abregelung BW]] -> 237889.5999 | L33: =Tabelle4[[#This Row],[Solarer Ertrag mit Degradation]]*Tabelle6[[#This Row],[Bezugspreis mit Steigerung]]*IF(AND(Eingabe_pers_Eigenverbrauch="ja",Batterie_gewuenscht="nein"),(Eigenverbrauchsquote_pers/100),IF(AND(Eingabe_pers_Eigenverbrauch="ja",Batterie_gewuenscht="ja"),(Eigenverbauch_ohne_BAT/100)+(Eigenverbaucherhöhung/100)*(1-Batterie_Verluste/100),IF(Batterie_gewuenscht="nein",Eigenverbrauchsquote_Basis/100,(Eigenverbauch_ohne_BAT/100)+(Eigenverbaucherhöhung/100)*(1-Batterie_Verluste/100)))) -> 615.807058 | M33: =Tabelle4[[#This Row],[Einsparung durch Eigenverbrauch]]*(1+WACC_real/100)^-Tabelle1[[#This Row],[Nutzungs-dauer]] -> 522.5446069 | N33: =N32+Tabelle4[[#This Row],[Einsparung durch Eigenverbrauch BW]] -> 14323.23646 | O33: =Tabelle4[[#This Row],[Solarer Ertrag mit Degradation + Abregelung]]*Tabelle6[[#This Row],[Bezugspreis mit Steigerung]]*IF(AND(Eingabe_pers_Eigenverbrauch="ja",Batterie_gewuenscht="nein"),(Eigenverbrauchsquote_pers/100),IF(AND(Eingabe_pers_Eigenverbrauch="ja",Batterie_gewuenscht="ja"),(Eigenverbauch_ohne_BAT/100)+(Eigenverbaucherhöhung/100)*(1-Batterie_Verluste/100),IF(Batterie_gewuenscht="nein",Eigenverbrauchsquote_Basis/100,(Eigenverbauch_ohne_BAT/100)+(Eigenverbaucherhöhung/100)*(1-Batterie_Verluste/100)))) -> 613.0359263 | P33: =Tabelle4[[#This Row],[Einsparung durch Eigenverbrauch + Abregelung]]*(1+WACC_real/100)^-Tabelle1[[#This Row],[Nutzungs-dauer]] -> 520.1931562 | Q33: =Q32+Tabelle4[[#This Row],[Einsparung durch Eigenverbrauch + Abregelung BW]] -> 14258.7819 | R33: =Tabelle4[[#This Row],[Solarer Ertrag mit Degradation]]*Direktvermarktung_sonstige*IF(Eingabe_pers_Eigenverbrauch="ja",(1-Eigenverbrauchsquote_pers/100),(1-(Eigenverbrauchsquote_Basis/100)))*IF(OR(Feste_EEG_Vergütung="nein",Direktvermarktung="ja"),0,1) -> 215.1067776 | S33: =Tabelle4[[#This Row],[Verkauf Überschussstrom mit EEG-Vergütung]]*(1+WACC_real/100)^-Tabelle1[[#This Row],[Nutzungs-dauer]] -> 182.5293898 | T33: =T32+Tabelle4[[#This Row],[Verkauf Überschussstrom mit EEG-Vergütung BW]] -> 13464.23455 | U33: =Tabelle4[[#This Row],[Solarer Ertrag mit Degradation + Abregelung]]*Direktvermarktung_sonstige*IF(Eingabe_pers_Eigenverbrauch="ja",(1-Eigenverbrauchsquote_pers/100),(1-(Eigenverbrauchsquote_Basis/100)))*IF(OR(Feste_EEG_Vergütung="nein",Direktvermarktung="ja"),0,IF(Installierte_Leistung_der_GesamtAnlage>100,100/Installierte_Leistung_der_GesamtAnlage,1)) -> 214.1387971 | V33: =Tabelle4[[#This Row],[Verkauf Überschussstrom mit EEG-Vergütung + Abregelung]]*(1+WACC_real/100)^-Tabelle1[[#This Row],[Nutzungs-dauer]] -> 181.7080076 | W33: =W32+Tabelle4[[#This Row],[Verkauf Überschussstrom mit EEG-Vergütung + Abregelung BW]] -> 13403.64549 | X33: =Tabelle4[[#This Row],[Solarer Ertrag mit Degradation]]*IF(Eingabe_pers_Eigenverbrauch="ja",(1-Eigenverbrauchsquote_pers/100),(1-(Eigenverbrauchsquote_Basis/100)))*IF(AND(Direktvermarktung="nein",Feste_EEG_Vergütung="nein"),Direktvermarktung_sonstige,IF(Direktvermarktung="ja",Direktvermarktung_sonstige,0)) -> 0 | Y33: =Tabelle4[[#This Row],[Verkauf Überschussstrom Direktvermarktung]]*(1+WACC_real/100)^-Tabelle1[[#This Row],[Nutzungs-dauer]] -> 0 | Z33: =Z32+Tabelle4[[#This Row],[Verkauf Überschussstrom Direktvermarktung BW]] -> 0 | AA33: =Tabelle4[[#This Row],[Solarer Ertrag mit Degradation + Abregelung]]*IF(Eingabe_pers_Eigenverbrauch="ja",(1-Eigenverbrauchsquote_pers/100),(1-(Eigenverbrauchsquote_Basis/100)))*IF(AND(Direktvermarktung="nein",Feste_EEG_Vergütung="nein"),Direktvermarktung_sonstige,IF(Direktvermarktung="ja",Direktvermarktung_sonstige,0)) -> 0 | AB33: =Tabelle4[[#This Row],[Verkauf Überschussstrom Direktvermarktung + Abregelung]]*(1+WACC_real/100)^-Tabelle1[[#This Row],[Nutzungs-dauer]] -> 0 | AC33: =AC32+Tabelle4[[#This Row],[Verkauf Überschussstrom Direktvermarktung + Abregelung BW]] -> 0 | AD33: =Tabelle4[[#This Row],[Solarer Ertrag mit Degradation]]*IF(Eingabe_pers_Eigenverbrauch="ja",(Eigenverbrauchsquote_pers/100),(Eigenverbrauchsquote_Basis/100))*IF(Installierte_Leistung_der_GesamtAnlage<=10, 0,1)*IF(AND(Eingabe_pers_Eigenverbrauch="ja", OR(Eigenverbrauchsquote_pers=100,Eigenverbrauchsquote_pers=0)),0,1)*EEG_Umlage*(PRZNT_EEG_Umlage/100) -> 0 | AE33: =Tabelle4[[#This Row],[Pflicht zur EEG-Umlage]]*(1+WACC_real/100)^-Tabelle1[[#This Row],[Nutzungs-dauer]] -> 0 | AF33: =AF32+Tabelle4[[#This Row],[Pflicht zur EEG-Umlage BW]] -> 0 | AG33: =Tabelle4[[#This Row],[Solarer Ertrag mit Degradation + Abregelung]]*IF(Eingabe_pers_Eigenverbrauch="ja",(Eigenverbrauchsquote_pers/100),(Eigenverbrauchsquote_Basis/100))*IF(Installierte_Leistung_der_GesamtAnlage<=10, 0,1)*IF(AND(Eingabe_pers_Eigenverbrauch="ja", OR(Eigenverbrauchsquote_pers=100,Eigenverbrauchsquote_pers=0)),0,1)*EEG_Umlage*(PRZNT_EEG_Umlage/100) -> 0 | AH33: =Tabelle4[[#This Row],[Pflicht zur EEG-Umlage + Abregelung]]*(1+WACC_real/100)^-Tabelle1[[#This Row],[Nutzungs-dauer]] -> 0 | AI33: =AI32+Tabelle4[[#This Row],[Pflicht zur EEG-Umlage + Abregelung BW]] -> 0 | AK33: 0.3435356514 | AL33: =AVERAGE($AK$6:AK33) -> 0.3013250282 | AN33: 0 | AO33: 0 | AP33: =Tabelle612[[#This Row],[Jährliche OPEX-Kosten PV]]*(1+WACC_real/100)^-Tabelle1[[#This Row],[Nutzungs-dauer]] -> 0 | AQ33: =Tabelle612[[#This Row],[Jährliche OPEX-Kosten BAT]]*(1+WACC_real/100)^-Tabelle1[[#This Row],[Nutzungs-dauer]] -> 0 | AR33: =IF(Tabelle1[[#This Row],[Nutzungs-dauer]]=Lebensdauer_des_ersten_Wechselrichters,CAPEX_des_Ersatz_Wechselrichters,IF(Tabelle1[[#This Row],[Nutzungs-dauer]]=Lebensdauer_der_ersten_Batterie,CAPEX_der_Ersatz_Batterie,0)) -> 0 | AS33: =Tabelle4[[#This Row],[Einsparung durch Eigenverbrauch BW]]+Tabelle4[[#This Row],[Verkauf Überschussstrom mit EEG-Vergütung BW]]+Tabelle4[[#This Row],[Verkauf Überschussstrom Direktvermarktung BW]]-Tabelle4[[#This Row],[Pflicht zur EEG-Umlage BW]]-Tabelle612[[#This Row],[Jährliche OPEX-Kosten PV BW]]-Tabelle612[[#This Row],[Jährliche OPEX-Kosten BAT BW]]-Tabelle612[[#This Row],[Investition PV-Batterie-System]] -> 705.0739968 | AT33: =AT32+Tabelle612[[#This Row],[Cashflow diskontiert mit Kalkulationszins]] -> 27787.47101 | AU33: =Tabelle612[[#This Row],[Cashflow diskontiert mit Kalkulationszins kumuliert]] -> 27787.47101 | AV33: =Tabelle4[[#This Row],[Einsparung durch Eigenverbrauch + Abregelung BW]]+Tabelle4[[#This Row],[Verkauf Überschussstrom mit EEG-Vergütung + Abregelung BW]]+Tabelle4[[#This Row],[Verkauf Überschussstrom Direktvermarktung + Abregelung BW]]-Tabelle4[[#This Row],[Pflicht zur EEG-Umlage + Abregelung BW]]-Tabelle612[[#This Row],[Jährliche OPEX-Kosten PV BW]]-Tabelle612[[#This Row],[Jährliche OPEX-Kosten BAT BW]]-Tabelle612[[#This Row],[Investition PV-Batterie-System]] -> 701.9011638 | AW33: =AW32+Tabelle612[[#This Row],[Cashflow diskontiert mit Kalkulationszins]] -> 27782.30754 | AX33: =Tabelle612[[#This Row],[Cashflow diskontiert mit Kalkulationszins kumuliert mit Abr.]] -> 27782.30754
B34: 29 | D34: =Solarer_Gesamtertrag_der_Anlage*(1-(Moduldegradation/100))^Tabelle1[[#This Row],[Nutzungs-dauer]] -> 8940.375444 | E34: =E33+Tabelle4[[#This Row],[Solarer Ertrag mit Degradation]] -> 268576.6977 | F34: =Tabelle4[[#This Row],[Solarer Ertrag mit Degradation]]*(1+WACC_real/100)^-Tabelle1[[#This Row],[Nutzungs-dauer]] -> 7542.012982 | G34: =G33+Tabelle4[[#This Row],[Solarer Ertrag mit Degradation BW]] -> 246506.9551 | H34: =Solarer_Gesamtertrag_der_Anlage*(1-(Moduldegradation/100))^Tabelle1[[#This Row],[Nutzungs-dauer]]*(1-(Abregelungsverluste/100)) -> 8900.143755 | I34: =I33+Tabelle4[[#This Row],[Solarer Ertrag mit Degradation + Abregelung]] -> 267368.1026 | J34: =Tabelle4[[#This Row],[Solarer Ertrag mit Degradation + Abregelung]]*(1+WACC_real/100)^-Tabelle1[[#This Row],[Nutzungs-dauer]] -> 7508.073924 | K34: =K33+Tabelle4[[#This Row],[Solarer Ertrag mit Degradation + Abregelung BW]] -> 245397.6738 | L34: =Tabelle4[[#This Row],[Solarer Ertrag mit Degradation]]*Tabelle6[[#This Row],[Bezugspreis mit Steigerung]]*IF(AND(Eingabe_pers_Eigenverbrauch="ja",Batterie_gewuenscht="nein"),(Eigenverbrauchsquote_pers/100),IF(AND(Eingabe_pers_Eigenverbrauch="ja",Batterie_gewuenscht="ja"),(Eigenverbauch_ohne_BAT/100)+(Eigenverbaucherhöhung/100)*(1-Batterie_Verluste/100),IF(Batterie_gewuenscht="nein",Eigenverbrauchsquote_Basis/100,(Eigenverbauch_ohne_BAT/100)+(Eigenverbaucherhöhung/100)*(1-Batterie_Verluste/100)))) -> 620.4102158 | M34: =Tabelle4[[#This Row],[Einsparung durch Eigenverbrauch]]*(1+WACC_real/100)^-Tabelle1[[#This Row],[Nutzungs-dauer]] -> 523.3719692 | N34: =N33+Tabelle4[[#This Row],[Einsparung durch Eigenverbrauch BW]] -> 14846.60843 | O34: =Tabelle4[[#This Row],[Solarer Ertrag mit Degradation + Abregelung]]*Tabelle6[[#This Row],[Bezugspreis mit Steigerung]]*IF(AND(Eingabe_pers_Eigenverbrauch="ja",Batterie_gewuenscht="nein"),(Eigenverbrauchsquote_pers/100),IF(AND(Eingabe_pers_Eigenverbrauch="ja",Batterie_gewuenscht="ja"),(Eigenverbauch_ohne_BAT/100)+(Eigenverbaucherhöhung/100)*(1-Batterie_Verluste/100),IF(Batterie_gewuenscht="nein",Eigenverbrauchsquote_Basis/100,(Eigenverbauch_ohne_BAT/100)+(Eigenverbaucherhöhung/100)*(1-Batterie_Verluste/100)))) -> 617.6183698 | P34: =Tabelle4[[#This Row],[Einsparung durch Eigenverbrauch + Abregelung]]*(1+WACC_real/100)^-Tabelle1[[#This Row],[Nutzungs-dauer]] -> 521.0167954 | Q34: =Q33+Tabelle4[[#This Row],[Einsparung durch Eigenverbrauch + Abregelung BW]] -> 14779.79869 | R34: =Tabelle4[[#This Row],[Solarer Ertrag mit Degradation]]*Direktvermarktung_sonstige*IF(Eingabe_pers_Eigenverbrauch="ja",(1-Eigenverbrauchsquote_pers/100),(1-(Eigenverbrauchsquote_Basis/100)))*IF(OR(Feste_EEG_Vergütung="nein",Direktvermarktung="ja"),0,1) -> 214.5690107 | S34: =Tabelle4[[#This Row],[Verkauf Überschussstrom mit EEG-Vergütung]]*(1+WACC_real/100)^-Tabelle1[[#This Row],[Nutzungs-dauer]] -> 181.0083116 | T34: =T33+Tabelle4[[#This Row],[Verkauf Überschussstrom mit EEG-Vergütung BW]] -> 13645.24286 | U34: =Tabelle4[[#This Row],[Solarer Ertrag mit Degradation + Abregelung]]*Direktvermarktung_sonstige*IF(Eingabe_pers_Eigenverbrauch="ja",(1-Eigenverbrauchsquote_pers/100),(1-(Eigenverbrauchsquote_Basis/100)))*IF(OR(Feste_EEG_Vergütung="nein",Direktvermarktung="ja"),0,IF(Installierte_Leistung_der_GesamtAnlage>100,100/Installierte_Leistung_der_GesamtAnlage,1)) -> 213.6034501 | V34: =Tabelle4[[#This Row],[Verkauf Überschussstrom mit EEG-Vergütung + Abregelung]]*(1+WACC_real/100)^-Tabelle1[[#This Row],[Nutzungs-dauer]] -> 180.1937742 | W34: =W33+Tabelle4[[#This Row],[Verkauf Überschussstrom mit EEG-Vergütung + Abregelung BW]] -> 13583.83927 | X34: =Tabelle4[[#This Row],[Solarer Ertrag mit Degradation]]*IF(Eingabe_pers_Eigenverbrauch="ja",(1-Eigenverbrauchsquote_pers/100),(1-(Eigenverbrauchsquote_Basis/100)))*IF(AND(Direktvermarktung="nein",Feste_EEG_Vergütung="nein"),Direktvermarktung_sonstige,IF(Direktvermarktung="ja",Direktvermarktung_sonstige,0)) -> 0 | Y34: =Tabelle4[[#This Row],[Verkauf Überschussstrom Direktvermarktung]]*(1+WACC_real/100)^-Tabelle1[[#This Row],[Nutzungs-dauer]] -> 0 | Z34: =Z33+Tabelle4[[#This Row],[Verkauf Überschussstrom Direktvermarktung BW]] -> 0 | AA34: =Tabelle4[[#This Row],[Solarer Ertrag mit Degradation + Abregelung]]*IF(Eingabe_pers_Eigenverbrauch="ja",(1-Eigenverbrauchsquote_pers/100),(1-(Eigenverbrauchsquote_Basis/100)))*IF(AND(Direktvermarktung="nein",Feste_EEG_Vergütung="nein"),Direktvermarktung_sonstige,IF(Direktvermarktung="ja",Direktvermarktung_sonstige,0)) -> 0 | AB34: =Tabelle4[[#This Row],[Verkauf Überschussstrom Direktvermarktung + Abregelung]]*(1+WACC_real/100)^-Tabelle1[[#This Row],[Nutzungs-dauer]] -> 0 | AC34: =AC33+Tabelle4[[#This Row],[Verkauf Überschussstrom Direktvermarktung + Abregelung BW]] -> 0 | AD34: =Tabelle4[[#This Row],[Solarer Ertrag mit Degradation]]*IF(Eingabe_pers_Eigenverbrauch="ja",(Eigenverbrauchsquote_pers/100),(Eigenverbrauchsquote_Basis/100))*IF(Installierte_Leistung_der_GesamtAnlage<=10, 0,1)*IF(AND(Eingabe_pers_Eigenverbrauch="ja", OR(Eigenverbrauchsquote_pers=100,Eigenverbrauchsquote_pers=0)),0,1)*EEG_Umlage*(PRZNT_EEG_Umlage/100) -> 0 | AE34: =Tabelle4[[#This Row],[Pflicht zur EEG-Umlage]]*(1+WACC_real/100)^-Tabelle1[[#This Row],[Nutzungs-dauer]] -> 0 | AF34: =AF33+Tabelle4[[#This Row],[Pflicht zur EEG-Umlage BW]] -> 0 | AG34: =Tabelle4[[#This Row],[Solarer Ertrag mit Degradation + Abregelung]]*IF(Eingabe_pers_Eigenverbrauch="ja",(Eigenverbrauchsquote_pers/100),(Eigenverbrauchsquote_Basis/100))*IF(Installierte_Leistung_der_GesamtAnlage<=10, 0,1)*IF(AND(Eingabe_pers_Eigenverbrauch="ja", OR(Eigenverbrauchsquote_pers=100,Eigenverbrauchsquote_pers=0)),0,1)*EEG_Umlage*(PRZNT_EEG_Umlage/100) -> 0 | AH34: =Tabelle4[[#This Row],[Pflicht zur EEG-Umlage + Abregelung]]*(1+WACC_real/100)^-Tabelle1[[#This Row],[Nutzungs-dauer]] -> 0 | AI34: =AI33+Tabelle4[[#This Row],[Pflicht zur EEG-Umlage + Abregelung BW]] -> 0 | AK34: 0.3469710079 | AL34: =AVERAGE($AK$6:AK34) -> 0.3028990275 | AN34: 0 | AO34: 0 | AP34: =Tabelle612[[#This Row],[Jährliche OPEX-Kosten PV]]*(1+WACC_real/100)^-Tabelle1[[#This Row],[Nutzungs-dauer]] -> 0 | AQ34: =Tabelle612[[#This Row],[Jährliche OPEX-Kosten BAT]]*(1+WACC_real/100)^-Tabelle1[[#This Row],[Nutzungs-dauer]] -> 0 | AR34: =IF(Tabelle1[[#This Row],[Nutzungs-dauer]]=Lebensdauer_des_ersten_Wechselrichters,CAPEX_des_Ersatz_Wechselrichters,IF(Tabelle1[[#This Row],[Nutzungs-dauer]]=Lebensdauer_der_ersten_Batterie,CAPEX_der_Ersatz_Batterie,0)) -> 0 | AS34: =Tabelle4[[#This Row],[Einsparung durch Eigenverbrauch BW]]+Tabelle4[[#This Row],[Verkauf Überschussstrom mit EEG-Vergütung BW]]+Tabelle4[[#This Row],[Verkauf Überschussstrom Direktvermarktung BW]]-Tabelle4[[#This Row],[Pflicht zur EEG-Umlage BW]]-Tabelle612[[#This Row],[Jährliche OPEX-Kosten PV BW]]-Tabelle612[[#This Row],[Jährliche OPEX-Kosten BAT BW]]-Tabelle612[[#This Row],[Investition PV-Batterie-System]] -> 704.3802808 | AT34: =AT33+Tabelle612[[#This Row],[Cashflow diskontiert mit Kalkulationszins]] -> 28491.85129 | AU34: =Tabelle612[[#This Row],[Cashflow diskontiert mit Kalkulationszins kumuliert]] -> 28491.85129 | AV34: =Tabelle4[[#This Row],[Einsparung durch Eigenverbrauch + Abregelung BW]]+Tabelle4[[#This Row],[Verkauf Überschussstrom mit EEG-Vergütung + Abregelung BW]]+Tabelle4[[#This Row],[Verkauf Überschussstrom Direktvermarktung + Abregelung BW]]-Tabelle4[[#This Row],[Pflicht zur EEG-Umlage + Abregelung BW]]-Tabelle612[[#This Row],[Jährliche OPEX-Kosten PV BW]]-Tabelle612[[#This Row],[Jährliche OPEX-Kosten BAT BW]]-Tabelle612[[#This Row],[Investition PV-Batterie-System]] -> 701.2105695 | AW34: =AW33+Tabelle612[[#This Row],[Cashflow diskontiert mit Kalkulationszins]] -> 28486.68782 | AX34: =Tabelle612[[#This Row],[Cashflow diskontiert mit Kalkulationszins kumuliert mit Abr.]] -> 28486.68782
B35: 30 | D35: =Solarer_Gesamtertrag_der_Anlage*(1-(Moduldegradation/100))^Tabelle1[[#This Row],[Nutzungs-dauer]] -> 8918.024506 | E35: =E34+Tabelle4[[#This Row],[Solarer Ertrag mit Degradation]] -> 277494.7222 | F35: =Tabelle4[[#This Row],[Solarer Ertrag mit Degradation]]*(1+WACC_real/100)^-Tabelle1[[#This Row],[Nutzungs-dauer]] -> 7479.162874 | G35: =G34+Tabelle4[[#This Row],[Solarer Ertrag mit Degradation BW]] -> 253986.118 | H35: =Solarer_Gesamtertrag_der_Anlage*(1-(Moduldegradation/100))^Tabelle1[[#This Row],[Nutzungs-dauer]]*(1-(Abregelungsverluste/100)) -> 8877.893395 | I35: =I34+Tabelle4[[#This Row],[Solarer Ertrag mit Degradation + Abregelung]] -> 276245.996 | J35: =Tabelle4[[#This Row],[Solarer Ertrag mit Degradation + Abregelung]]*(1+WACC_real/100)^-Tabelle1[[#This Row],[Nutzungs-dauer]] -> 7445.506641 | K35: =K34+Tabelle4[[#This Row],[Solarer Ertrag mit Degradation + Abregelung BW]] -> 252843.1804 | L35: =Tabelle4[[#This Row],[Solarer Ertrag mit Degradation]]*Tabelle6[[#This Row],[Bezugspreis mit Steigerung]]*IF(AND(Eingabe_pers_Eigenverbrauch="ja",Batterie_gewuenscht="nein"),(Eigenverbrauchsquote_pers/100),IF(AND(Eingabe_pers_Eigenverbrauch="ja",Batterie_gewuenscht="ja"),(Eigenverbauch_ohne_BAT/100)+(Eigenverbaucherhöhung/100)*(1-Batterie_Verluste/100),IF(Batterie_gewuenscht="nein",Eigenverbrauchsquote_Basis/100,(Eigenverbauch_ohne_BAT/100)+(Eigenverbaucherhöhung/100)*(1-Batterie_Verluste/100)))) -> 625.0477822 | M35: =Tabelle4[[#This Row],[Einsparung durch Eigenverbrauch]]*(1+WACC_real/100)^-Tabelle1[[#This Row],[Nutzungs-dauer]] -> 524.2006415 | N35: =N34+Tabelle4[[#This Row],[Einsparung durch Eigenverbrauch BW]] -> 15370.80907 | O35: =Tabelle4[[#This Row],[Solarer Ertrag mit Degradation + Abregelung]]*Tabelle6[[#This Row],[Bezugspreis mit Steigerung]]*IF(AND(Eingabe_pers_Eigenverbrauch="ja",Batterie_gewuenscht="nein"),(Eigenverbrauchsquote_pers/100),IF(AND(Eingabe_pers_Eigenverbrauch="ja",Batterie_gewuenscht="ja"),(Eigenverbauch_ohne_BAT/100)+(Eigenverbaucherhöhung/100)*(1-Batterie_Verluste/100),IF(Batterie_gewuenscht="nein",Eigenverbrauchsquote_Basis/100,(Eigenverbauch_ohne_BAT/100)+(Eigenverbaucherhöhung/100)*(1-Batterie_Verluste/100)))) -> 622.2350671 | P35: =Tabelle4[[#This Row],[Einsparung durch Eigenverbrauch + Abregelung]]*(1+WACC_real/100)^-Tabelle1[[#This Row],[Nutzungs-dauer]] -> 521.8417386 | Q35: =Q34+Tabelle4[[#This Row],[Einsparung durch Eigenverbrauch + Abregelung BW]] -> 15301.64043 | R35: =Tabelle4[[#This Row],[Solarer Ertrag mit Degradation]]*Direktvermarktung_sonstige*IF(Eingabe_pers_Eigenverbrauch="ja",(1-Eigenverbrauchsquote_pers/100),(1-(Eigenverbrauchsquote_Basis/100)))*IF(OR(Feste_EEG_Vergütung="nein",Direktvermarktung="ja"),0,1) -> 214.0325881 | S35: =Tabelle4[[#This Row],[Verkauf Überschussstrom mit EEG-Vergütung]]*(1+WACC_real/100)^-Tabelle1[[#This Row],[Nutzungs-dauer]] -> 179.499909 | T35: =T34+Tabelle4[[#This Row],[Verkauf Überschussstrom mit EEG-Vergütung BW]] -> 13824.74277 | U35: =Tabelle4[[#This Row],[Solarer Ertrag mit Degradation + Abregelung]]*Direktvermarktung_sonstige*IF(Eingabe_pers_Eigenverbrauch="ja",(1-Eigenverbrauchsquote_pers/100),(1-(Eigenverbrauchsquote_Basis/100)))*IF(OR(Feste_EEG_Vergütung="nein",Direktvermarktung="ja"),0,IF(Installierte_Leistung_der_GesamtAnlage>100,100/Installierte_Leistung_der_GesamtAnlage,1)) -> 213.0694415 | V35: =Tabelle4[[#This Row],[Verkauf Überschussstrom mit EEG-Vergütung + Abregelung]]*(1+WACC_real/100)^-Tabelle1[[#This Row],[Nutzungs-dauer]] -> 178.6921594 | W35: =W34+Tabelle4[[#This Row],[Verkauf Überschussstrom mit EEG-Vergütung + Abregelung BW]] -> 13762.53142 | X35: =Tabelle4[[#This Row],[Solarer Ertrag mit Degradation]]*IF(Eingabe_pers_Eigenverbrauch="ja",(1-Eigenverbrauchsquote_pers/100),(1-(Eigenverbrauchsquote_Basis/100)))*IF(AND(Direktvermarktung="nein",Feste_EEG_Vergütung="nein"),Direktvermarktung_sonstige,IF(Direktvermarktung="ja",Direktvermarktung_sonstige,0)) -> 0 | Y35: =Tabelle4[[#This Row],[Verkauf Überschussstrom Direktvermarktung]]*(1+WACC_real/100)^-Tabelle1[[#This Row],[Nutzungs-dauer]] -> 0 | Z35: =Z34+Tabelle4[[#This Row],[Verkauf Überschussstrom Direktvermarktung BW]] -> 0 | AA35: =Tabelle4[[#This Row],[Solarer Ertrag mit Degradation + Abregelung]]*IF(Eingabe_pers_Eigenverbrauch="ja",(1-Eigenverbrauchsquote_pers/100),(1-(Eigenverbrauchsquote_Basis/100)))*IF(AND(Direktvermarktung="nein",Feste_EEG_Vergütung="nein"),Direktvermarktung_sonstige,IF(Direktvermarktung="ja",Direktvermarktung_sonstige,0)) -> 0 | AB35: =Tabelle4[[#This Row],[Verkauf Überschussstrom Direktvermarktung + Abregelung]]*(1+WACC_real/100)^-Tabelle1[[#This Row],[Nutzungs-dauer]] -> 0 | AC35: =AC34+Tabelle4[[#This Row],[Verkauf Überschussstrom Direktvermarktung + Abregelung BW]] -> 0 | AD35: =Tabelle4[[#This Row],[Solarer Ertrag mit Degradation]]*IF(Eingabe_pers_Eigenverbrauch="ja",(Eigenverbrauchsquote_pers/100),(Eigenverbrauchsquote_Basis/100))*IF(Installierte_Leistung_der_GesamtAnlage<=10, 0,1)*IF(AND(Eingabe_pers_Eigenverbrauch="ja", OR(Eigenverbrauchsquote_pers=100,Eigenverbrauchsquote_pers=0)),0,1)*EEG_Umlage*(PRZNT_EEG_Umlage/100) -> 0 | AE35: =Tabelle4[[#This Row],[Pflicht zur EEG-Umlage]]*(1+WACC_real/100)^-Tabelle1[[#This Row],[Nutzungs-dauer]] -> 0 | AF35: =AF34+Tabelle4[[#This Row],[Pflicht zur EEG-Umlage BW]] -> 0 | AG35: =Tabelle4[[#This Row],[Solarer Ertrag mit Degradation + Abregelung]]*IF(Eingabe_pers_Eigenverbrauch="ja",(Eigenverbrauchsquote_pers/100),(Eigenverbrauchsquote_Basis/100))*IF(Installierte_Leistung_der_GesamtAnlage<=10, 0,1)*IF(AND(Eingabe_pers_Eigenverbrauch="ja", OR(Eigenverbrauchsquote_pers=100,Eigenverbrauchsquote_pers=0)),0,1)*EEG_Umlage*(PRZNT_EEG_Umlage/100) -> 0 | AH35: =Tabelle4[[#This Row],[Pflicht zur EEG-Umlage + Abregelung]]*(1+WACC_real/100)^-Tabelle1[[#This Row],[Nutzungs-dauer]] -> 0 | AI35: =AI34+Tabelle4[[#This Row],[Pflicht zur EEG-Umlage + Abregelung BW]] -> 0 | AK35: 0.350440718 | AL35: =AVERAGE($AK$6:AK35) -> 0.3044837506 | AN35: 0 | AO35: 0 | AP35: =Tabelle612[[#This Row],[Jährliche OPEX-Kosten PV]]*(1+WACC_real/100)^-Tabelle1[[#This Row],[Nutzungs-dauer]] -> 0 | AQ35: =Tabelle612[[#This Row],[Jährliche OPEX-Kosten BAT]]*(1+WACC_real/100)^-Tabelle1[[#This Row],[Nutzungs-dauer]] -> 0 | AR35: =IF(Tabelle1[[#This Row],[Nutzungs-dauer]]=Lebensdauer_des_ersten_Wechselrichters,CAPEX_des_Ersatz_Wechselrichters,IF(Tabelle1[[#This Row],[Nutzungs-dauer]]=Lebensdauer_der_ersten_Batterie,CAPEX_der_Ersatz_Batterie,0)) -> 0 | AS35: =Tabelle4[[#This Row],[Einsparung durch Eigenverbrauch BW]]+Tabelle4[[#This Row],[Verkauf Überschussstrom mit EEG-Vergütung BW]]+Tabelle4[[#This Row],[Verkauf Überschussstrom Direktvermarktung BW]]-Tabelle4[[#This Row],[Pflicht zur EEG-Umlage BW]]-Tabelle612[[#This Row],[Jährliche OPEX-Kosten PV BW]]-Tabelle612[[#This Row],[Jährliche OPEX-Kosten BAT BW]]-Tabelle612[[#This Row],[Investition PV-Batterie-System]] -> 703.7005505 | AT35: =AT34+Tabelle612[[#This Row],[Cashflow diskontiert mit Kalkulationszins]] -> 29195.55184 | AU35: =Tabelle612[[#This Row],[Cashflow diskontiert mit Kalkulationszins kumuliert]] -> 29195.55184 | AV35: =Tabelle4[[#This Row],[Einsparung durch Eigenverbrauch + Abregelung BW]]+Tabelle4[[#This Row],[Verkauf Überschussstrom mit EEG-Vergütung + Abregelung BW]]+Tabelle4[[#This Row],[Verkauf Überschussstrom Direktvermarktung + Abregelung BW]]-Tabelle4[[#This Row],[Pflicht zur EEG-Umlage + Abregelung BW]]-Tabelle612[[#This Row],[Jährliche OPEX-Kosten PV BW]]-Tabelle612[[#This Row],[Jährliche OPEX-Kosten BAT BW]]-Tabelle612[[#This Row],[Investition PV-Batterie-System]] -> 700.533898 | AW35: =AW34+Tabelle612[[#This Row],[Cashflow diskontiert mit Kalkulationszins]] -> 29190.38837 | AX35: =Tabelle612[[#This Row],[Cashflow diskontiert mit Kalkulationszins kumuliert mit Abr.]] -> 29190.38837
B36: Summe | D36: =SUM(D6:D35) -> 277494.7222 | F36: =SUM(F6:F35) -> 253986.118 | H36: =SUM(H6:H35) -> 276245.996 | J36: =SUM(J6:J35) -> 252843.1804 | L36: =SUM(L6:L35) -> 16867.05644 | M36: 15370.80907 | O36: 16791.15468 | P36: 15301.64043 | R36: 14871.19009 | S36: 13824.74277 | U36: 14804.26973 | V36: 13762.53142 | X36: 0 | Y36: 0 | AA36: 0 | AB36: 0 | AD36: 0 | AE36: 0 | AG36: 0 | AH36: 0 | AN36: =SUM(AN6:AN35) -> 0 | AO36: 0 | AP36: 0 | AQ36: 0 | AR36: 0 | AS36: =Tabelle4[[#This Row],[Einsparung durch Eigenverbrauch BW]]+Tabelle4[[#This Row],[Verkauf Überschussstrom mit EEG-Vergütung BW]]+Tabelle4[[#This Row],[Verkauf Überschussstrom Direktvermarktung BW]]-Tabelle4[[#This Row],[Pflicht zur EEG-Umlage BW]]-Tabelle612[[#This Row],[Jährliche OPEX-Kosten PV BW]]-Tabelle612[[#This Row],[Jährliche OPEX-Kosten BAT BW]]-Tabelle612[[#This Row],[Investition PV-Batterie-System]] -> 29195.55184 | AT36: =Tabelle612[[#This Row],[Cashflow diskontiert mit Kalkulationszins]] -> 29195.55184 | AV36: =Tabelle4[[#This Row],[Einsparung durch Eigenverbrauch BW]]+Tabelle4[[#This Row],[Verkauf Überschussstrom mit EEG-Vergütung BW]]+Tabelle4[[#This Row],[Verkauf Überschussstrom Direktvermarktung BW]]-Tabelle4[[#This Row],[Pflicht zur EEG-Umlage BW]]-Tabelle612[[#This Row],[Jährliche OPEX-Kosten PV BW]]-Tabelle612[[#This Row],[Jährliche OPEX-Kosten BAT BW]]-Tabelle612[[#This Row],[Investition PV-Batterie-System]] -> 29195.55184 | AW36: =Tabelle612[[#This Row],[Cashflow diskontiert mit Kalkulationszins]] -> 29195.55184

Sheet DATENBASIS (hidden)
B2: Globalstrahlung
B4: Ausrichtung / Neigung | C4: Nord | D4: Nordost | E4: Ost | F4: Südost | G4: Süd | H4: Südwest | I4: West | J4: Nordwest | V4: Abminderungsfaktoren
B5: [%] | C5: [kW/qm] | D5: [kW/qm] | E5: [kW/qm] | F5: [kW/qm] | G5: [kW/qm] | H5: [kW/qm] | I5: [kW/qm] | J5: [kW/qm] | V5: 1.1
B6: 0 | C6: =$N$6 -> 1131 | D6: 1131 | E6: 1131 | F6: 1131 | G6: 1131 | H6: 1131 | I6: 1131 | J6: 1131 | L6: Globalstrahlung nach gewähltem Standort | M6: [kWh/qm] | N6: =Standort_der_Anlage -> 1131 | V6: 1.05
B7: 5 | C7: =($N$6)*Faktor_095 -> 1074.45 | D7: =($N$6)*Faktor_100 -> 1131 | E7: =($N$6)*Faktor_100 -> 1131 | F7: =($N$6)*Faktor_105 -> 1187.55 | G7: 1187.55 | H7: 1187.55 | I7: =($N$6)*Faktor_100 -> 1131 | J7: =($N$6)*Faktor_100 -> 1131 | V7: 1
B8: 10 | C8: =($N$6)*Faktor_095 -> 1074.45 | D8: =($N$6)*Faktor_095 -> 1074.45 | E8: =($N$6)*Faktor_100 -> 1131 | F8: 1187.55 | G8: 1187.55 | H8: 1187.55 | I8: =($N$6)*Faktor_100 -> 1131 | J8: =($N$6)*Faktor_095 -> 1074.45 | V8: 0.95
B9: 15 | C9: =($N$6)*Faktor_090 -> 1017.9 | D9: =($N$6)*Faktor_095 -> 1074.45 | E9: =($N$6)*Faktor_100 -> 1131 | F9: =($N$6)*Faktor_105 -> 1187.55 | G9: =($N$6)*Faktor_110 -> 1244.1 | H9: =($N$6)*Faktor_105 -> 1187.55 | I9: =($N$6)*Faktor_100 -> 1131 | J9: =($N$6)*Faktor_095 -> 1074.45 | V9: 0.9
B10: 20 | C10: =($N$6)*Faktor_085 -> 961.35 | D10: =($N$6)*Faktor_090 -> 1017.9 | E10: =($N$6)*Faktor_100 -> 1131 | F10: =($N$6)*Faktor_105 -> 1187.55 | G10: 1244.1 | H10: =($N$6)*Faktor_105 -> 1187.55 | I10: =($N$6)*Faktor_100 -> 1131 | J10: =($N$6)*Faktor_090 -> 1017.9 | V10: 0.85
B11: 25 | C11: =($N$6)*Faktor_080 -> 904.8 | D11: =($N$6)*Faktor_085 -> 961.35 | E11: =($N$6)*Faktor_100 -> 1131 | F11: =($N$6)*Faktor_110 -> 1244.1 | G11: 1244.1 | H11: =($N$6)*Faktor_110 -> 1244.1 | I11: =($N$6)*Faktor_100 -> 1131 | J11: =($N$6)*Faktor_085 -> 961.35 | V11: 0.8
B12: 30 | C12: =($N$6)*Faktor_080 -> 904.8 | D12: =($N$6)*Faktor_085 -> 961.35 | E12: =($N$6)*Faktor_100 -> 1131 | F12: =($N$6)*Faktor_110 -> 1244.1 | G12: 1244.1 | H12: =($N$6)*Faktor_110 -> 1244.1 | I12: =($N$6)*Faktor_095 -> 1074.45 | J12: =($N$6)*Faktor_085 -> 961.35 | V12: 0.75
B13: 35 | C13: =($N$6)*Faktor_075 -> 848.25 | D13: =($N$6)*Faktor_080 -> 904.8 | E13: =($N$6)*Faktor_095 -> 1074.45 | F13: =($N$6)*Faktor_110 -> 1244.1 | G13: 1244.1 | H13: =($N$6)*Faktor_110 -> 1244.1 | I13: =($N$6)*Faktor_095 -> 1074.45 | J13: =($N$6)*Faktor_080 -> 904.8 | V13: 0.7
B14: 40 | C14: =($N$6)*Faktor_070 -> 791.7 | D14: =($N$6)*Faktor_080 -> 904.8 | E14: =($N$6)*Faktor_095 -> 1074.45 | F14: =($N$6)*Faktor_110 -> 1244.1 | G14: 1244.1 | H14: =($N$6)*Faktor_105 -> 1187.55 | I14: =($N$6)*Faktor_095 -> 1074.45 | J14: =($N$6)*Faktor_075 -> 848.25 | V14: 0.65
B15: 50 | C15: =($N$6)*Faktor_060 -> 678.6 | D15: =($N$6)*Faktor_070 -> 791.7 | E15: =($N$6)*Faktor_090 -> 1017.9 | F15: =($N$6)*Faktor_105 -> 1187.55 | G15: 1244.1 | H15: =($N$6)*Faktor_105 -> 1187.55 | I15: =($N$6)*Faktor_090 -> 1017.9 | J15: =($N$6)*Faktor_070 -> 791.7 | V15: 0.6
B16: 60 | C16: =($N$6)*Faktor_055 -> 622.05 | D16: =($N$6)*Faktor_065 -> 735.15 | E16: =($N$6)*Faktor_085 -> 961.35 | F16: =($N$6)*Faktor_100 -> 1131 | G16: =($N$6)*Faktor_105 -> 1187.55 | H16: =($N$6)*Faktor_100 -> 1131 | I16: =($N$6)*Faktor_085 -> 961.35 | J16: =($N$6)*Faktor_065 -> 735.15 | V16: 0.55
B17: 90 | C17: =($N$6)*Faktor_045 -> 508.95 | D17: =($N$6)*Faktor_055 -> 622.05 | E17: =($N$6)*Faktor_070 -> 791.7 | F17: =($N$6)*Faktor_080 -> 904.8 | G17: =($N$6)*Faktor_085 -> 961.35 | H17: =($N$6)*Faktor_080 -> 904.8 | I17: =($N$6)*Faktor_070 -> 791.7 | J17: =($N$6)*Faktor_055 -> 622.05 | V17: 0.45
B19: Quellen: | C19: Einstrahlungsscheibe Sonnenenergie: Solar Consult, kein Datum www.photovoltaik-in.de. [Online] Available at: www.photovoltaikin.de/images/ausrichtung%20und%20ertrag.JPG [Zugriff am 05 Mai 2020].
C20: Globalstrahlungsdaten: DWD Climate Data Center (CDC): Rasterdaten der vieljährigen mittleren Monatssummen und der vieljährigen mittleren Jahressumme für die Globalstrahlung auf die horizontale Ebene für Deutschland basierend auf Boden- und Satellitenmessungen, Version V003, 2019.
B24: Abregelung
B56: Einspeiselimit Volleinspeisung | C56: Ausrichtung / Neigung | D56: Nord | E56: Nordost | F56: Ost | G56: Südost | H56: Süd | I56: Südwest | J56: West | K56: Nordwest
B57: [%] | C57: [%] | D57: [%] | E57: [%] | F57: [%] | G57: [%] | H57: [%] | I57: [%] | J57: [%] | K57: [%]
B58: 70 | C58: 0 | D58: 0.5 | E58: 0.5 | F58: 0.5 | G58: 0.5 | H58: 0.5 | I58: 0.5 | J58: 0.5 | K58: 0.5
B59: 70 | C59: 5 | D59: 0.35 | E59: 0.35 | F59: 0.5 | G59: 0.6 | H59: 0.75 | I59: 0.6 | J59: 0.5 | K59: 0.35
B60: 70 | C60: 10 | D60: 0.25 | E60: 0.25 | F60: 0.7 | G60: 0.9 | H60: 1.1 | I60: 0.9 | J60: 0.7 | K60: 0.25
B61: 70 | C61: 15 | D61: 0.1 | E61: 0.1 | F61: 0.7 | G61: 1 | H61: 1.25 | I61: 1 | J61: 0.7 | K61: 0.1
B62: 70 | C62: 20 | D62: 0 | E62: =(P58+P60)*Faktor_090 -> 0 | F62: 0.8 | G62: 1.3 | H62: 1.5 | I62: 1.3 | J62: 0.8 | K62: =(V58+V60)*Faktor_090 -> 0
B63: 70 | C63: 25 | D63: 0 | E63: 0 | F63: 0.85 | G63: 1.5 | H63: 1.75 | I63: 1.5 | J63: 0.85 | K63: 0
B64: 70 | C64: 30 | D64: 0 | E64: 0 | F64: 0.9 | G64: 1.7 | H64: 2 | I64: 1.7 | J64: 0.9 | K64: 0
B65: 70 | C65: 35 | D65: 0 | E65: 0 | F65: 0.95 | G65: 2 | H65: 2.25 | I65: 2 | J65: 0.95 | K65: 0
B66: 70 | C66: 40 | D66: 0 | E66: 0 | F66: 1 | G66: 2 | H66: 2.5 | I66: 2 | J66: 1 | K66: 0
